Workbook

Sheet Summary
B1: MENU RECIPE COST SUMMARY
B2: Hospitality Finance Network
B3: SheetName | C3: Menu Item | D3: Category | E3: Yield (portions) | F3: Sell Price | G3: Cost/Portion | H3: Food Cost % | I3: Last Updated
B4: Example 1 | C4: Example 1 | D4: Starter | E4: 1 | F4: 16.00 | G4: 3.82 | H4: 24% | I4: 2026-02-02
B5: Example 2 | C5: Example 2 | D5: Starter | E5: 1 | F5: 16.00 | G5: 3.82 | H5: 24% | I5: 2026-02-02
B6: Example 3 | C6: Example 3 | D6: Starter | E6: 1 | F6: 16.00 | G6: 3.82 | H6: 24% | I6: 2026-02-06

Sheet Template
A1: RECIPE COST CARD | K1: ALLERGEN SUMMARY (from ingredient flags) | O1: For calculation (do not delete)
A2: Restaurant / Concept | C2: Demo Restaurant | E2: Last Updated | F2: 2026-01-31 | K2: Milk | L2: =IF(MAX(R21:R50)>0,"YES","") -> YES | M2: (e.g., gluten-free option? vegan? substitution guidance, allergen handling, etc.)
A3: Menu Item Name | C3: Classic Cheeseburger | G3: Currency 1 | H3: Currency 2 | I3: Notes | K3: Egg | L3: =IF(MAX(S21:S50)>0,"YES","") -> YES
A4: Category | C4: Starter | E4: Total Batch Food Cost | G4: =IFERROR(SUM(H21:H50),0) -> $3.82 | I4: SUM(G21:G50) | K4: Fish | L4: =IF(MAX(T21:T50)>0,"YES","") -> 
A5: Station | C5: Grill | E5: Other Costs (packaging etc.) | I5: IFERROR(SUM($G$14:$G$17),0) | K5: Shellfish | L5: =IF(MAX(U21:U50)>0,"YES","") -> 
A6: Batch Yield (portions) | C6: 1 | E6: Total Batch Cost | G6: =G4+G5 -> $3.82 | K6: Molluscs | L6: =IF(MAX(V21:V50)>0,"YES","") -> 
A7: Portion Size | C7: 1 burger + fries | E7: Cost / Portion | G7: =IFERROR(G6/$C$6,0) -> $3.82 | K7: Peanuts | L7: =IF(MAX(W21:W50)>0,"YES","") -> 
A8: Selling Price / Portion | C8: $16.00 | E8: Food Cost % | G8: =IFERROR(G7/$C$8,0) -> 23.9% | K8: Tree Nuts | L8: =IF(MAX(X21:X50)>0,"YES","") -> 
A9: Target Food Cost % | C9: 30.0% | E9: Gross Profit / Portion | G9: =IFERROR($C$8-G7,0) -> $12.18 | K9: Wheat/Gluten | L9: =IF(MAX(Y21:Y50)>0,"YES","") -> YES
A10: Prep Time (min) | C10: 10 | E10: Gross Margin % | G10: =IFERROR(1-G8,0) -> 76.1% | K10: Soy | L10: =IF(MAX(Z21:Z50)>0,"YES","") -> YES
A11: Cook Time (min) | C11: 8 | K11: Sesame | L11: =IF(MAX(AA21:AA50)>0,"YES","") -> YES
A12: Shelf Life / Storage | C12: Hold cold 2 days; cook to order | E12: OTHER COSTS (not part of cost of sale in hotels and resorts) | K12: Mustard | L12: =IF(MAX(AB21:AB50)>0,"YES","") -> 
E13: Description | G13: Cost | I13: Notes | K13: Celery | L13: =IF(MAX(AC21:AC50)>0,"YES","") -> 
E14: Packaging | G14: $0.25 | K14: Lupin | L14: =IF(MAX(AD21:AD50)>0,"YES","") -> 
E15: Napkin/condiment cup | G15: $0.10 | K15: Sulphites | L15: =IF(MAX(AE21:AE50)>0,"YES","") -> 
G16: $0.00
G17: $0.00
A19: INGREDIENTS (enter Qty + Unit; costs auto-calc) | F19: Actual Qty | G19: Unit Cost | K19: PREPARATION METHOD
A20: Line | B20: Ingredient | C20: Qty | D20: Unit | E20: Yield % | F20: in base units | G20: (per base) | H20: Line Cost | I20: Notes | K20: Step-by-step method - critical control points - holding temps - plating - cross-contamination notes -
A21: 1 | B21: Beef mince | C21: 180.00 | D21: g | E21: 90% | F21: =IF($B21="","",IF(ISNUMBER($Q21),$C21*$Q21/E21,"")) -> 200.00 | G21: =IF($B21="","",IFERROR(INDEX(Ingredients_DB!$K$2:$K$501, MATCH($B21, Ingredients_DB!$B$2:$B$501,0)),0)) -> $0.01 | H21: =IF($B21="","",IF(ISNUMBER($F21),$F21*$G21,"")) -> $1.80 | I21: Patty 180g | O21: =IF($B21="","",IFERROR(INDEX(Ingredients_DB!$H$2:$H$501, MATCH($B21, Ingredients_DB!$B$2:$B$501,0)),"")) -> Weight | P21: =IF($B21="","",IFERROR(INDEX(Ingredients_DB!$I$2:$I$501, MATCH($B21, Ingredients_DB!$B$2:$B$501,0)),"")) -> g | Q21: =IF($B21="","",IFERROR(VLOOKUP($O21&"|"&$D21,UOM_Conversions!$A$2:$E$50,4,FALSE),"CHECK UNIT")) -> 1 | R21: =IF($B21="","",IFERROR(INDEX(Ingredients_DB!$M$2:$M$501, MATCH($B21, Ingredients_DB!$B$2:$B$501,0)),0)) -> 0 | S21: =IF($B21="","",IFERROR(INDEX(Ingredients_DB!$N$2:$N$501, MATCH($B21, Ingredients_DB!$B$2:$B$501,0)),0)) -> 0 | T21: =IF($B21="","",IFERROR(INDEX(Ingredients_DB!$O$2:$O$501, MATCH($B21, Ingredients_DB!$B$2:$B$501,0)),0)) -> 0 | U21: =IF($B21="","",IFERROR(INDEX(Ingredients_DB!$P$2:$P$501, MATCH($B21, Ingredients_DB!$B$2:$B$501,0)),0)) -> 0 | V21: =IF($B21="","",IFERROR(INDEX(Ingredients_DB!$Q$2:$Q$501, MATCH($B21, Ingredients_DB!$B$2:$B$501,0)),0)) -> 0 | W21: =IF($B21="","",IFERROR(INDEX(Ingredients_DB!$R$2:$R$501, MATCH($B21, Ingredients_DB!$B$2:$B$501,0)),0)) -> 0 | X21: =IF($B21="","",IFERROR(INDEX(Ingredients_DB!$S$2:$S$501, MATCH($B21, Ingredients_DB!$B$2:$B$501,0)),0)) -> 0 | Y21: =IF($B21="","",IFERROR(INDEX(Ingredients_DB!$T$2:$T$501, MATCH($B21, Ingredients_DB!$B$2:$B$501,0)),0)) -> 0 | Z21: =IF($B21="","",IFERROR(INDEX(Ingredients_DB!$U$2:$U$501, MATCH($B21, Ingredients_DB!$B$2:$B$501,0)),0)) -> 0 | AA21: =IF($B21="","",IFERROR(INDEX(Ingredients_DB!$V$2:$V$501, MATCH($B21, Ingredients_DB!$B$2:$B$501,0)),0)) -> 0 | AB21: =IF($B21="","",IFERROR(INDEX(Ingredients_DB!$W$2:$W$501, MATCH($B21, Ingredients_DB!$B$2:$B$501,0)),0)) -> 0 | AC21: =IF($B21="","",IFERROR(INDEX(Ingredients_DB!$X$2:$X$501, MATCH($B21, Ingredients_DB!$B$2:$B$501,0)),0)) -> 0 | AD21: =IF($B21="","",IFERROR(INDEX(Ingredients_DB!$Y$2:$Y$501, MATCH($B21, Ingredients_DB!$B$2:$B$501,0)),0)) -> 0 | AE21: =IF($B21="","",IFERROR(INDEX(Ingredients_DB!$Z$2:$Z$501, MATCH($B21, Ingredients_DB!$B$2:$B$501,0)),0)) -> 0
A22: 2 | B22: Burger bun | C22: 1.00 | D22: each | E22: 100% | F22: 1.00 | G22: =IF($B22="","",IFERROR(INDEX(Ingredients_DB!$K$2:$K$501, MATCH($B22, Ingredients_DB!$B$2:$B$501,0)),0)) -> $0.75 | H22: $0.75 | I22: Toasted | O22: =IF($B22="","",IFERROR(INDEX(Ingredients_DB!$H$2:$H$501, MATCH($B22, Ingredients_DB!$B$2:$B$501,0)),"")) -> Each | P22: =IF($B22="","",IFERROR(INDEX(Ingredients_DB!$I$2:$I$501, MATCH($B22, Ingredients_DB!$B$2:$B$501,0)),"")) -> each | Q22: =IF($B22="","",IFERROR(VLOOKUP($O22&"|"&$D22,UOM_Conversions!$A$2:$E$50,4,FALSE),"CHECK UNIT")) -> 1 | R22: =IF($B22="","",IFERROR(INDEX(Ingredients_DB!$M$2:$M$501, MATCH($B22, Ingredients_DB!$B$2:$B$501,0)),0)) -> 0 | S22: =IF($B22="","",IFERROR(INDEX(Ingredients_DB!$N$2:$N$501, MATCH($B22, Ingredients_DB!$B$2:$B$501,0)),0)) -> 0 | T22: =IF($B22="","",IFERROR(INDEX(Ingredients_DB!$O$2:$O$501, MATCH($B22, Ingredients_DB!$B$2:$B$501,0)),0)) -> 0 | U22: =IF($B22="","",IFERROR(INDEX(Ingredients_DB!$P$2:$P$501, MATCH($B22, Ingredients_DB!$B$2:$B$501,0)),0)) -> 0 | V22: =IF($B22="","",IFERROR(INDEX(Ingredients_DB!$Q$2:$Q$501, MATCH($B22, Ingredients_DB!$B$2:$B$501,0)),0)) -> 0 | W22: =IF($B22="","",IFERROR(INDEX(Ingredients_DB!$R$2:$R$501, MATCH($B22, Ingredients_DB!$B$2:$B$501,0)),0)) -> 0 | X22: =IF($B22="","",IFERROR(INDEX(Ingredients_DB!$S$2:$S$501, MATCH($B22, Ingredients_DB!$B$2:$B$501,0)),0)) -> 0 | Y22: =IF($B22="","",IFERROR(INDEX(Ingredients_DB!$T$2:$T$501, MATCH($B22, Ingredients_DB!$B$2:$B$501,0)),0)) -> 1 | Z22: =IF($B22="","",IFERROR(INDEX(Ingredients_DB!$U$2:$U$501, MATCH($B22, Ingredients_DB!$B$2:$B$501,0)),0)) -> 0 | AA22: =IF($B22="","",IFERROR(INDEX(Ingredients_DB!$V$2:$V$501, MATCH($B22, Ingredients_DB!$B$2:$B$501,0)),0)) -> 0 | AB22: =IF($B22="","",IFERROR(INDEX(Ingredients_DB!$W$2:$W$501, MATCH($B22, Ingredients_DB!$B$2:$B$501,0)),0)) -> 0 | AC22: =IF($B22="","",IFERROR(INDEX(Ingredients_DB!$X$2:$X$501, MATCH($B22, Ingredients_DB!$B$2:$B$501,0)),0)) -> 0 | AD22: =IF($B22="","",IFERROR(INDEX(Ingredients_DB!$Y$2:$Y$501, MATCH($B22, Ingredients_DB!$B$2:$B$501,0)),0)) -> 0 | AE22: =IF($B22="","",IFERROR(INDEX(Ingredients_DB!$Z$2:$Z$501, MATCH($B22, Ingredients_DB!$B$2:$B$501,0)),0)) -> 0
A23: 3 | B23: Cheddar cheese | C23: 30.00 | D23: g | E23: 100% | F23: 30.00 | G23: =IF($B23="","",IFERROR(INDEX(Ingredients_DB!$K$2:$K$501, MATCH($B23, Ingredients_DB!$B$2:$B$501,0)),0)) -> $0.01 | H23: $0.33 | I23: Slice | O23: =IF($B23="","",IFERROR(INDEX(Ingredients_DB!$H$2:$H$501, MATCH($B23, Ingredients_DB!$B$2:$B$501,0)),"")) -> Weight | P23: =IF($B23="","",IFERROR(INDEX(Ingredients_DB!$I$2:$I$501, MATCH($B23, Ingredients_DB!$B$2:$B$501,0)),"")) -> g | Q23: =IF($B23="","",IFERROR(VLOOKUP($O23&"|"&$D23,UOM_Conversions!$A$2:$E$50,4,FALSE),"CHECK UNIT")) -> 1 | R23: =IF($B23="","",IFERROR(INDEX(Ingredients_DB!$M$2:$M$501, MATCH($B23, Ingredients_DB!$B$2:$B$501,0)),0)) -> 1 | S23: =IF($B23="","",IFERROR(INDEX(Ingredients_DB!$N$2:$N$501, MATCH($B23, Ingredients_DB!$B$2:$B$501,0)),0)) -> 0 | T23: =IF($B23="","",IFERROR(INDEX(Ingredients_DB!$O$2:$O$501, MATCH($B23, Ingredients_DB!$B$2:$B$501,0)),0)) -> 0 | U23: =IF($B23="","",IFERROR(INDEX(Ingredients_DB!$P$2:$P$501, MATCH($B23, Ingredients_DB!$B$2:$B$501,0)),0)) -> 0 | V23: =IF($B23="","",IFERROR(INDEX(Ingredients_DB!$Q$2:$Q$501, MATCH($B23, Ingredients_DB!$B$2:$B$501,0)),0)) -> 0 | W23: =IF($B23="","",IFERROR(INDEX(Ingredients_DB!$R$2:$R$501, MATCH($B23, Ingredients_DB!$B$2:$B$501,0)),0)) -> 0 | X23: =IF($B23="","",IFERROR(INDEX(Ingredients_DB!$S$2:$S$501, MATCH($B23, Ingredients_DB!$B$2:$B$501,0)),0)) -> 0 | Y23: =IF($B23="","",IFERROR(INDEX(Ingredients_DB!$T$2:$T$501, MATCH($B23, Ingredients_DB!$B$2:$B$501,0)),0)) -> 0 | Z23: =IF($B23="","",IFERROR(INDEX(Ingredients_DB!$U$2:$U$501, MATCH($B23, Ingredients_DB!$B$2:$B$501,0)),0)) -> 0 | AA23: =IF($B23="","",IFERROR(INDEX(Ingredients_DB!$V$2:$V$501, MATCH($B23, Ingredients_DB!$B$2:$B$501,0)),0)) -> 0 | AB23: =IF($B23="","",IFERROR(INDEX(Ingredients_DB!$W$2:$W$501, MATCH($B23, Ingredients_DB!$B$2:$B$501,0)),0)) -> 0 | AC23: =IF($B23="","",IFERROR(INDEX(Ingredients_DB!$X$2:$X$501, MATCH($B23, Ingredients_DB!$B$2:$B$501,0)),0)) -> 0 | AD23: =IF($B23="","",IFERROR(INDEX(Ingredients_DB!$Y$2:$Y$501, MATCH($B23, Ingredients_DB!$B$2:$B$501,0)),0)) -> 0 | AE23: =IF($B23="","",IFERROR(INDEX(Ingredients_DB!$Z$2:$Z$501, MATCH($B23, Ingredients_DB!$B$2:$B$501,0)),0)) -> 0
A24: 4 | B24: Lettuce | C24: 20.00 | D24: g | E24: 95% | F24: 21.05 | G24: =IF($B24="","",IFERROR(INDEX(Ingredients_DB!$K$2:$K$501, MATCH($B24, Ingredients_DB!$B$2:$B$501,0)),0)) -> $0.01 | H24: $0.17 | I24: Shredded | O24: =IF($B24="","",IFERROR(INDEX(Ingredients_DB!$H$2:$H$501, MATCH($B24, Ingredients_DB!$B$2:$B$501,0)),"")) -> Weight | P24: =IF($B24="","",IFERROR(INDEX(Ingredients_DB!$I$2:$I$501, MATCH($B24, Ingredients_DB!$B$2:$B$501,0)),"")) -> g | Q24: =IF($B24="","",IFERROR(VLOOKUP($O24&"|"&$D24,UOM_Conversions!$A$2:$E$50,4,FALSE),"CHECK UNIT")) -> 1 | R24: =IF($B24="","",IFERROR(INDEX(Ingredients_DB!$M$2:$M$501, MATCH($B24, Ingredients_DB!$B$2:$B$501,0)),0)) -> 0 | S24: =IF($B24="","",IFERROR(INDEX(Ingredients_DB!$N$2:$N$501, MATCH($B24, Ingredients_DB!$B$2:$B$501,0)),0)) -> 0 | T24: =IF($B24="","",IFERROR(INDEX(Ingredients_DB!$O$2:$O$501, MATCH($B24, Ingredients_DB!$B$2:$B$501,0)),0)) -> 0 | U24: =IF($B24="","",IFERROR(INDEX(Ingredients_DB!$P$2:$P$501, MATCH($B24, Ingredients_DB!$B$2:$B$501,0)),0)) -> 0 | V24: =IF($B24="","",IFERROR(INDEX(Ingredients_DB!$Q$2:$Q$501, MATCH($B24, Ingredients_DB!$B$2:$B$501,0)),0)) -> 0 | W24: =IF($B24="","",IFERROR(INDEX(Ingredients_DB!$R$2:$R$501, MATCH($B24, Ingredients_DB!$B$2:$B$501,0)),0)) -> 0 | X24: =IF($B24="","",IFERROR(INDEX(Ingredients_DB!$S$2:$S$501, MATCH($B24, Ingredients_DB!$B$2:$B$501,0)),0)) -> 0 | Y24: =IF($B24="","",IFERROR(INDEX(Ingredients_DB!$T$2:$T$501, MATCH($B24, Ingredients_DB!$B$2:$B$501,0)),0)) -> 0 | Z24: =IF($B24="","",IFERROR(INDEX(Ingredients_DB!$U$2:$U$501, MATCH($B24, Ingredients_DB!$B$2:$B$501,0)),0)) -> 0 | AA24: =IF($B24="","",IFERROR(INDEX(Ingredients_DB!$V$2:$V$501, MATCH($B24, Ingredients_DB!$B$2:$B$501,0)),0)) -> 0 | AB24: =IF($B24="","",IFERROR(INDEX(Ingredients_DB!$W$2:$W$501, MATCH($B24, Ingredients_DB!$B$2:$B$501,0)),0)) -> 0 | AC24: =IF($B24="","",IFERROR(INDEX(Ingredients_DB!$X$2:$X$501, MATCH($B24, Ingredients_DB!$B$2:$B$501,0)),0)) -> 0 | AD24: =IF($B24="","",IFERROR(INDEX(Ingredients_DB!$Y$2:$Y$501, MATCH($B24, Ingredients_DB!$B$2:$B$501,0)),0)) -> 0 | AE24: =IF($B24="","",IFERROR(INDEX(Ingredients_DB!$Z$2:$Z$501, MATCH($B24, Ingredients_DB!$B$2:$B$501,0)),0)) -> 0
A25: 5 | B25: Ketchup | C25: 20.00 | D25: g | E25: 100% | F25: 20.00 | G25: =IF($B25="","",IFERROR(INDEX(Ingredients_DB!$K$2:$K$501, MATCH($B25, Ingredients_DB!$B$2:$B$501,0)),0)) -> $0.00 | H25: $0.08 | O25: =IF($B25="","",IFERROR(INDEX(Ingredients_DB!$H$2:$H$501, MATCH($B25, Ingredients_DB!$B$2:$B$501,0)),"")) -> Weight | P25: =IF($B25="","",IFERROR(INDEX(Ingredients_DB!$I$2:$I$501, MATCH($B25, Ingredients_DB!$B$2:$B$501,0)),"")) -> g | Q25: =IF($B25="","",IFERROR(VLOOKUP($O25&"|"&$D25,UOM_Conversions!$A$2:$E$50,4,FALSE),"CHECK UNIT")) -> 1 | R25: =IF($B25="","",IFERROR(INDEX(Ingredients_DB!$M$2:$M$501, MATCH($B25, Ingredients_DB!$B$2:$B$501,0)),0)) -> 0 | S25: =IF($B25="","",IFERROR(INDEX(Ingredients_DB!$N$2:$N$501, MATCH($B25, Ingredients_DB!$B$2:$B$501,0)),0)) -> 0 | T25: =IF($B25="","",IFERROR(INDEX(Ingredients_DB!$O$2:$O$501, MATCH($B25, Ingredients_DB!$B$2:$B$501,0)),0)) -> 0 | U25: =IF($B25="","",IFERROR(INDEX(Ingredients_DB!$P$2:$P$501, MATCH($B25, Ingredients_DB!$B$2:$B$501,0)),0)) -> 0 | V25: =IF($B25="","",IFERROR(INDEX(Ingredients_DB!$Q$2:$Q$501, MATCH($B25, Ingredients_DB!$B$2:$B$501,0)),0)) -> 0 | W25: =IF($B25="","",IFERROR(INDEX(Ingredients_DB!$R$2:$R$501, MATCH($B25, Ingredients_DB!$B$2:$B$501,0)),0)) -> 0 | X25: =IF($B25="","",IFERROR(INDEX(Ingredients_DB!$S$2:$S$501, MATCH($B25, Ingredients_DB!$B$2:$B$501,0)),0)) -> 0 | Y25: =IF($B25="","",IFERROR(INDEX(Ingredients_DB!$T$2:$T$501, MATCH($B25, Ingredients_DB!$B$2:$B$501,0)),0)) -> 0 | Z25: =IF($B25="","",IFERROR(INDEX(Ingredients_DB!$U$2:$U$501, MATCH($B25, Ingredients_DB!$B$2:$B$501,0)),0)) -> 0 | AA25: =IF($B25="","",IFERROR(INDEX(Ingredients_DB!$V$2:$V$501, MATCH($B25, Ingredients_DB!$B$2:$B$501,0)),0)) -> 0 | AB25: =IF($B25="","",IFERROR(INDEX(Ingredients_DB!$W$2:$W$501, MATCH($B25, Ingredients_DB!$B$2:$B$501,0)),0)) -> 0 | AC25: =IF($B25="","",IFERROR(INDEX(Ingredients_DB!$X$2:$X$501, MATCH($B25, Ingredients_DB!$B$2:$B$501,0)),0)) -> 0 | AD25: =IF($B25="","",IFERROR(INDEX(Ingredients_DB!$Y$2:$Y$501, MATCH($B25, Ingredients_DB!$B$2:$B$501,0)),0)) -> 0 | AE25: =IF($B25="","",IFERROR(INDEX(Ingredients_DB!$Z$2:$Z$501, MATCH($B25, Ingredients_DB!$B$2:$B$501,0)),0)) -> 0
A26: 6 | B26: Mayonnaise | C26: 15.00 | D26: g | E26: 100% | F26: 15.00 | G26: =IF($B26="","",IFERROR(INDEX(Ingredients_DB!$K$2:$K$501, MATCH($B26, Ingredients_DB!$B$2:$B$501,0)),0)) -> $0.01 | H26: $0.11 | O26: =IF($B26="","",IFERROR(INDEX(Ingredients_DB!$H$2:$H$501, MATCH($B26, Ingredients_DB!$B$2:$B$501,0)),"")) -> Weight | P26: =IF($B26="","",IFERROR(INDEX(Ingredients_DB!$I$2:$I$501, MATCH($B26, Ingredients_DB!$B$2:$B$501,0)),"")) -> g | Q26: =IF($B26="","",IFERROR(VLOOKUP($O26&"|"&$D26,UOM_Conversions!$A$2:$E$50,4,FALSE),"CHECK UNIT")) -> 1 | R26: =IF($B26="","",IFERROR(INDEX(Ingredients_DB!$M$2:$M$501, MATCH($B26, Ingredients_DB!$B$2:$B$501,0)),0)) -> 0 | S26: =IF($B26="","",IFERROR(INDEX(Ingredients_DB!$N$2:$N$501, MATCH($B26, Ingredients_DB!$B$2:$B$501,0)),0)) -> 1 | T26: =IF($B26="","",IFERROR(INDEX(Ingredients_DB!$O$2:$O$501, MATCH($B26, Ingredients_DB!$B$2:$B$501,0)),0)) -> 0 | U26: =IF($B26="","",IFERROR(INDEX(Ingredients_DB!$P$2:$P$501, MATCH($B26, Ingredients_DB!$B$2:$B$501,0)),0)) -> 0 | V26: =IF($B26="","",IFERROR(INDEX(Ingredients_DB!$Q$2:$Q$501, MATCH($B26, Ingredients_DB!$B$2:$B$501,0)),0)) -> 0 | W26: =IF($B26="","",IFERROR(INDEX(Ingredients_DB!$R$2:$R$501, MATCH($B26, Ingredients_DB!$B$2:$B$501,0)),0)) -> 0 | X26: =IF($B26="","",IFERROR(INDEX(Ingredients_DB!$S$2:$S$501, MATCH($B26, Ingredients_DB!$B$2:$B$501,0)),0)) -> 0 | Y26: =IF($B26="","",IFERROR(INDEX(Ingredients_DB!$T$2:$T$501, MATCH($B26, Ingredients_DB!$B$2:$B$501,0)),0)) -> 0 | Z26: =IF($B26="","",IFERROR(INDEX(Ingredients_DB!$U$2:$U$501, MATCH($B26, Ingredients_DB!$B$2:$B$501,0)),0)) -> 1 | AA26: =IF($B26="","",IFERROR(INDEX(Ingredients_DB!$V$2:$V$501, MATCH($B26, Ingredients_DB!$B$2:$B$501,0)),0)) -> 0 | AB26: =IF($B26="","",IFERROR(INDEX(Ingredients_DB!$W$2:$W$501, MATCH($B26, Ingredients_DB!$B$2:$B$501,0)),0)) -> 0 | AC26: =IF($B26="","",IFERROR(INDEX(Ingredients_DB!$X$2:$X$501, MATCH($B26, Ingredients_DB!$B$2:$B$501,0)),0)) -> 0 | AD26: =IF($B26="","",IFERROR(INDEX(Ingredients_DB!$Y$2:$Y$501, MATCH($B26, Ingredients_DB!$B$2:$B$501,0)),0)) -> 0 | AE26: =IF($B26="","",IFERROR(INDEX(Ingredients_DB!$Z$2:$Z$501, MATCH($B26, Ingredients_DB!$B$2:$B$501,0)),0)) -> 0
A27: 7 | B27: French fries (frozen) | C27: 200.00 | D27: g | E27: 100% | F27: 200.00 | G27: =IF($B27="","",IFERROR(INDEX(Ingredients_DB!$K$2:$K$501, MATCH($B27, Ingredients_DB!$B$2:$B$501,0)),0)) -> $0.00 | H27: $0.56 | I27: Portion | O27: =IF($B27="","",IFERROR(INDEX(Ingredients_DB!$H$2:$H$501, MATCH($B27, Ingredients_DB!$B$2:$B$501,0)),"")) -> Weight | P27: =IF($B27="","",IFERROR(INDEX(Ingredients_DB!$I$2:$I$501, MATCH($B27, Ingredients_DB!$B$2:$B$501,0)),"")) -> g | Q27: =IF($B27="","",IFERROR(VLOOKUP($O27&"|"&$D27,UOM_Conversions!$A$2:$E$50,4,FALSE),"CHECK UNIT")) -> 1 | R27: =IF($B27="","",IFERROR(INDEX(Ingredients_DB!$M$2:$M$501, MATCH($B27, Ingredients_DB!$B$2:$B$501,0)),0)) -> 0 | S27: =IF($B27="","",IFERROR(INDEX(Ingredients_DB!$N$2:$N$501, MATCH($B27, Ingredients_DB!$B$2:$B$501,0)),0)) -> 0 | T27: =IF($B27="","",IFERROR(INDEX(Ingredients_DB!$O$2:$O$501, MATCH($B27, Ingredients_DB!$B$2:$B$501,0)),0)) -> 0 | U27: =IF($B27="","",IFERROR(INDEX(Ingredients_DB!$P$2:$P$501, MATCH($B27, Ingredients_DB!$B$2:$B$501,0)),0)) -> 0 | V27: =IF($B27="","",IFERROR(INDEX(Ingredients_DB!$Q$2:$Q$501, MATCH($B27, Ingredients_DB!$B$2:$B$501,0)),0)) -> 0 | W27: =IF($B27="","",IFERROR(INDEX(Ingredients_DB!$R$2:$R$501, MATCH($B27, Ingredients_DB!$B$2:$B$501,0)),0)) -> 0 | X27: =IF($B27="","",IFERROR(INDEX(Ingredients_DB!$S$2:$S$501, MATCH($B27, Ingredients_DB!$B$2:$B$501,0)),0)) -> 0 | Y27: =IF($B27="","",IFERROR(INDEX(Ingredients_DB!$T$2:$T$501, MATCH($B27, Ingredients_DB!$B$2:$B$501,0)),0)) -> 0 | Z27: =IF($B27="","",IFERROR(INDEX(Ingredients_DB!$U$2:$U$501, MATCH($B27, Ingredients_DB!$B$2:$B$501,0)),0)) -> 0 | AA27: =IF($B27="","",IFERROR(INDEX(Ingredients_DB!$V$2:$V$501, MATCH($B27, Ingredients_DB!$B$2:$B$501,0)),0)) -> 0 | AB27: =IF($B27="","",IFERROR(INDEX(Ingredients_DB!$W$2:$W$501, MATCH($B27, Ingredients_DB!$B$2:$B$501,0)),0)) -> 0 | AC27: =IF($B27="","",IFERROR(INDEX(Ingredients_DB!$X$2:$X$501, MATCH($B27, Ingredients_DB!$B$2:$B$501,0)),0)) -> 0 | AD27: =IF($B27="","",IFERROR(INDEX(Ingredients_DB!$Y$2:$Y$501, MATCH($B27, Ingredients_DB!$B$2:$B$501,0)),0)) -> 0 | AE27: =IF($B27="","",IFERROR(INDEX(Ingredients_DB!$Z$2:$Z$501, MATCH($B27, Ingredients_DB!$B$2:$B$501,0)),0)) -> 0
A28: 8 | B28: Sesame seeds | C28: 2.00 | D28: g | E28: 100% | F28: 2.00 | G28: =IF($B28="","",IFERROR(INDEX(Ingredients_DB!$K$2:$K$501, MATCH($B28, Ingredients_DB!$B$2:$B$501,0)),0)) -> $0.01 | H28: $0.02 | I28: Bun topping (optional) | O28: =IF($B28="","",IFERROR(INDEX(Ingredients_DB!$H$2:$H$501, MATCH($B28, Ingredients_DB!$B$2:$B$501,0)),"")) -> Weight | P28: =IF($B28="","",IFERROR(INDEX(Ingredients_DB!$I$2:$I$501, MATCH($B28, Ingredients_DB!$B$2:$B$501,0)),"")) -> g | Q28: =IF($B28="","",IFERROR(VLOOKUP($O28&"|"&$D28,UOM_Conversions!$A$2:$E$50,4,FALSE),"CHECK UNIT")) -> 1 | R28: =IF($B28="","",IFERROR(INDEX(Ingredients_DB!$M$2:$M$501, MATCH($B28, Ingredients_DB!$B$2:$B$501,0)),0)) -> 0 | S28: =IF($B28="","",IFERROR(INDEX(Ingredients_DB!$N$2:$N$501, MATCH($B28, Ingredients_DB!$B$2:$B$501,0)),0)) -> 0 | T28: =IF($B28="","",IFERROR(INDEX(Ingredients_DB!$O$2:$O$501, MATCH($B28, Ingredients_DB!$B$2:$B$501,0)),0)) -> 0 | U28: =IF($B28="","",IFERROR(INDEX(Ingredients_DB!$P$2:$P$501, MATCH($B28, Ingredients_DB!$B$2:$B$501,0)),0)) -> 0 | V28: =IF($B28="","",IFERROR(INDEX(Ingredients_DB!$Q$2:$Q$501, MATCH($B28, Ingredients_DB!$B$2:$B$501,0)),0)) -> 0 | W28: =IF($B28="","",IFERROR(INDEX(Ingredients_DB!$R$2:$R$501, MATCH($B28, Ingredients_DB!$B$2:$B$501,0)),0)) -> 0 | X28: =IF($B28="","",IFERROR(INDEX(Ingredients_DB!$S$2:$S$501, MATCH($B28, Ingredients_DB!$B$2:$B$501,0)),0)) -> 0 | Y28: =IF($B28="","",IFERROR(INDEX(Ingredients_DB!$T$2:$T$501, MATCH($B28, Ingredients_DB!$B$2:$B$501,0)),0)) -> 0 | Z28: =IF($B28="","",IFERROR(INDEX(Ingredients_DB!$U$2:$U$501, MATCH($B28, Ingredients_DB!$B$2:$B$501,0)),0)) -> 0 | AA28: =IF($B28="","",IFERROR(INDEX(Ingredients_DB!$V$2:$V$501, MATCH($B28, Ingredients_DB!$B$2:$B$501,0)),0)) -> 1 | AB28: =IF($B28="","",IFERROR(INDEX(Ingredients_DB!$W$2:$W$501, MATCH($B28, Ingredients_DB!$B$2:$B$501,0)),0)) -> 0 | AC28: =IF($B28="","",IFERROR(INDEX(Ingredients_DB!$X$2:$X$501, MATCH($B28, Ingredients_DB!$B$2:$B$501,0)),0)) -> 0 | AD28: =IF($B28="","",IFERROR(INDEX(Ingredients_DB!$Y$2:$Y$501, MATCH($B28, Ingredients_DB!$B$2:$B$501,0)),0)) -> 0 | AE28: =IF($B28="","",IFERROR(INDEX(Ingredients_DB!$Z$2:$Z$501, MATCH($B28, Ingredients_DB!$B$2:$B$501,0)),0)) -> 0
A29: 9 | C29: 0.00 | D29: g | G29: =IF($B29="","",IFERROR(INDEX(Ingredients_DB!$K$2:$K$501, MATCH($B29, Ingredients_DB!$B$2:$B$501,0)),0)) ->  | O29: =IF($B29="","",IFERROR(INDEX(Ingredients_DB!$H$2:$H$501, MATCH($B29, Ingredients_DB!$B$2:$B$501,0)),"")) ->  | P29: =IF($B29="","",IFERROR(INDEX(Ingredients_DB!$I$2:$I$501, MATCH($B29, Ingredients_DB!$B$2:$B$501,0)),"")) ->  | Q29: =IF($B29="","",IFERROR(VLOOKUP($O29&"|"&$D29,UOM_Conversions!$A$2:$E$50,4,FALSE),"CHECK UNIT")) ->  | R29: =IF($B29="","",IFERROR(INDEX(Ingredients_DB!$M$2:$M$501, MATCH($B29, Ingredients_DB!$B$2:$B$501,0)),0)) ->  | S29: =IF($B29="","",IFERROR(INDEX(Ingredients_DB!$N$2:$N$501, MATCH($B29, Ingredients_DB!$B$2:$B$501,0)),0)) ->  | T29: =IF($B29="","",IFERROR(INDEX(Ingredients_DB!$O$2:$O$501, MATCH($B29, Ingredients_DB!$B$2:$B$501,0)),0)) ->  | U29: =IF($B29="","",IFERROR(INDEX(Ingredients_DB!$P$2:$P$501, MATCH($B29, Ingredients_DB!$B$2:$B$501,0)),0)) ->  | V29: =IF($B29="","",IFERROR(INDEX(Ingredients_DB!$Q$2:$Q$501, MATCH($B29, Ingredients_DB!$B$2:$B$501,0)),0)) ->  | W29: =IF($B29="","",IFERROR(INDEX(Ingredients_DB!$R$2:$R$501, MATCH($B29, Ingredients_DB!$B$2:$B$501,0)),0)) ->  | X29: =IF($B29="","",IFERROR(INDEX(Ingredients_DB!$S$2:$S$501, MATCH($B29, Ingredients_DB!$B$2:$B$501,0)),0)) ->  | Y29: =IF($B29="","",IFERROR(INDEX(Ingredients_DB!$T$2:$T$501, MATCH($B29, Ingredients_DB!$B$2:$B$501,0)),0)) ->  | Z29: =IF($B29="","",IFERROR(INDEX(Ingredients_DB!$U$2:$U$501, MATCH($B29, Ingredients_DB!$B$2:$B$501,0)),0)) ->  | AA29: =IF($B29="","",IFERROR(INDEX(Ingredients_DB!$V$2:$V$501, MATCH($B29, Ingredients_DB!$B$2:$B$501,0)),0)) ->  | AB29: =IF($B29="","",IFERROR(INDEX(Ingredients_DB!$W$2:$W$501, MATCH($B29, Ingredients_DB!$B$2:$B$501,0)),0)) ->  | AC29: =IF($B29="","",IFERROR(INDEX(Ingredients_DB!$X$2:$X$501, MATCH($B29, Ingredients_DB!$B$2:$B$501,0)),0)) ->  | AD29: =IF($B29="","",IFERROR(INDEX(Ingredients_DB!$Y$2:$Y$501, MATCH($B29, Ingredients_DB!$B$2:$B$501,0)),0)) ->  | AE29: =IF($B29="","",IFERROR(INDEX(Ingredients_DB!$Z$2:$Z$501, MATCH($B29, Ingredients_DB!$B$2:$B$501,0)),0)) -> 
A30: 10 | C30: 0.00 | D30: g | G30: =IF($B30="","",IFERROR(INDEX(Ingredients_DB!$K$2:$K$501, MATCH($B30, Ingredients_DB!$B$2:$B$501,0)),0)) ->  | O30: =IF($B30="","",IFERROR(INDEX(Ingredients_DB!$H$2:$H$501, MATCH($B30, Ingredients_DB!$B$2:$B$501,0)),"")) ->  | P30: =IF($B30="","",IFERROR(INDEX(Ingredients_DB!$I$2:$I$501, MATCH($B30, Ingredients_DB!$B$2:$B$501,0)),"")) ->  | Q30: =IF($B30="","",IFERROR(VLOOKUP($O30&"|"&$D30,UOM_Conversions!$A$2:$E$50,4,FALSE),"CHECK UNIT")) ->  | R30: =IF($B30="","",IFERROR(INDEX(Ingredients_DB!$M$2:$M$501, MATCH($B30, Ingredients_DB!$B$2:$B$501,0)),0)) ->  | S30: =IF($B30="","",IFERROR(INDEX(Ingredients_DB!$N$2:$N$501, MATCH($B30, Ingredients_DB!$B$2:$B$501,0)),0)) ->  | T30: =IF($B30="","",IFERROR(INDEX(Ingredients_DB!$O$2:$O$501, MATCH($B30, Ingredients_DB!$B$2:$B$501,0)),0)) ->  | U30: =IF($B30="","",IFERROR(INDEX(Ingredients_DB!$P$2:$P$501, MATCH($B30, Ingredients_DB!$B$2:$B$501,0)),0)) ->  | V30: =IF($B30="","",IFERROR(INDEX(Ingredients_DB!$Q$2:$Q$501, MATCH($B30, Ingredients_DB!$B$2:$B$501,0)),0)) ->  | W30: =IF($B30="","",IFERROR(INDEX(Ingredients_DB!$R$2:$R$501, MATCH($B30, Ingredients_DB!$B$2:$B$501,0)),0)) ->  | X30: =IF($B30="","",IFERROR(INDEX(Ingredients_DB!$S$2:$S$501, MATCH($B30, Ingredients_DB!$B$2:$B$501,0)),0)) ->  | Y30: =IF($B30="","",IFERROR(INDEX(Ingredients_DB!$T$2:$T$501, MATCH($B30, Ingredients_DB!$B$2:$B$501,0)),0)) ->  | Z30: =IF($B30="","",IFERROR(INDEX(Ingredients_DB!$U$2:$U$501, MATCH($B30, Ingredients_DB!$B$2:$B$501,0)),0)) ->  | AA30: =IF($B30="","",IFERROR(INDEX(Ingredients_DB!$V$2:$V$501, MATCH($B30, Ingredients_DB!$B$2:$B$501,0)),0)) ->  | AB30: =IF($B30="","",IFERROR(INDEX(Ingredients_DB!$W$2:$W$501, MATCH($B30, Ingredients_DB!$B$2:$B$501,0)),0)) ->  | AC30: =IF($B30="","",IFERROR(INDEX(Ingredients_DB!$X$2:$X$501, MATCH($B30, Ingredients_DB!$B$2:$B$501,0)),0)) ->  | AD30: =IF($B30="","",IFERROR(INDEX(Ingredients_DB!$Y$2:$Y$501, MATCH($B30, Ingredients_DB!$B$2:$B$501,0)),0)) ->  | AE30: =IF($B30="","",IFERROR(INDEX(Ingredients_DB!$Z$2:$Z$501, MATCH($B30, Ingredients_DB!$B$2:$B$501,0)),0)) -> 
A31: 11 | C31: 0.00 | D31: g | G31: =IF($B31="","",IFERROR(INDEX(Ingredients_DB!$K$2:$K$501, MATCH($B31, Ingredients_DB!$B$2:$B$501,0)),0)) ->  | O31: =IF($B31="","",IFERROR(INDEX(Ingredients_DB!$H$2:$H$501, MATCH($B31, Ingredients_DB!$B$2:$B$501,0)),"")) ->  | P31: =IF($B31="","",IFERROR(INDEX(Ingredients_DB!$I$2:$I$501, MATCH($B31, Ingredients_DB!$B$2:$B$501,0)),"")) ->  | Q31: =IF($B31="","",IFERROR(VLOOKUP($O31&"|"&$D31,UOM_Conversions!$A$2:$E$50,4,FALSE),"CHECK UNIT")) ->  | R31: =IF($B31="","",IFERROR(INDEX(Ingredients_DB!$M$2:$M$501, MATCH($B31, Ingredients_DB!$B$2:$B$501,0)),0)) ->  | S31: =IF($B31="","",IFERROR(INDEX(Ingredients_DB!$N$2:$N$501, MATCH($B31, Ingredients_DB!$B$2:$B$501,0)),0)) ->  | T31: =IF($B31="","",IFERROR(INDEX(Ingredients_DB!$O$2:$O$501, MATCH($B31, Ingredients_DB!$B$2:$B$501,0)),0)) ->  | U31: =IF($B31="","",IFERROR(INDEX(Ingredients_DB!$P$2:$P$501, MATCH($B31, Ingredients_DB!$B$2:$B$501,0)),0)) ->  | V31: =IF($B31="","",IFERROR(INDEX(Ingredients_DB!$Q$2:$Q$501, MATCH($B31, Ingredients_DB!$B$2:$B$501,0)),0)) ->  | W31: =IF($B31="","",IFERROR(INDEX(Ingredients_DB!$R$2:$R$501, MATCH($B31, Ingredients_DB!$B$2:$B$501,0)),0)) ->  | X31: =IF($B31="","",IFERROR(INDEX(Ingredients_DB!$S$2:$S$501, MATCH($B31, Ingredients_DB!$B$2:$B$501,0)),0)) ->  | Y31: =IF($B31="","",IFERROR(INDEX(Ingredients_DB!$T$2:$T$501, MATCH($B31, Ingredients_DB!$B$2:$B$501,0)),0)) ->  | Z31: =IF($B31="","",IFERROR(INDEX(Ingredients_DB!$U$2:$U$501, MATCH($B31, Ingredients_DB!$B$2:$B$501,0)),0)) ->  | AA31: =IF($B31="","",IFERROR(INDEX(Ingredients_DB!$V$2:$V$501, MATCH($B31, Ingredients_DB!$B$2:$B$501,0)),0)) ->  | AB31: =IF($B31="","",IFERROR(INDEX(Ingredients_DB!$W$2:$W$501, MATCH($B31, Ingredients_DB!$B$2:$B$501,0)),0)) ->  | AC31: =IF($B31="","",IFERROR(INDEX(Ingredients_DB!$X$2:$X$501, MATCH($B31, Ingredients_DB!$B$2:$B$501,0)),0)) ->  | AD31: =IF($B31="","",IFERROR(INDEX(Ingredients_DB!$Y$2:$Y$501, MATCH($B31, Ingredients_DB!$B$2:$B$501,0)),0)) ->  | AE31: =IF($B31="","",IFERROR(INDEX(Ingredients_DB!$Z$2:$Z$501, MATCH($B31, Ingredients_DB!$B$2:$B$501,0)),0)) -> 
A32: 12 | C32: 0.00 | D32: g | G32: =IF($B32="","",IFERROR(INDEX(Ingredients_DB!$K$2:$K$501, MATCH($B32, Ingredients_DB!$B$2:$B$501,0)),0)) ->  | O32: =IF($B32="","",IFERROR(INDEX(Ingredients_DB!$H$2:$H$501, MATCH($B32, Ingredients_DB!$B$2:$B$501,0)),"")) ->  | P32: =IF($B32="","",IFERROR(INDEX(Ingredients_DB!$I$2:$I$501, MATCH($B32, Ingredients_DB!$B$2:$B$501,0)),"")) ->  | Q32: =IF($B32="","",IFERROR(VLOOKUP($O32&"|"&$D32,UOM_Conversions!$A$2:$E$50,4,FALSE),"CHECK UNIT")) ->  | R32: =IF($B32="","",IFERROR(INDEX(Ingredients_DB!$M$2:$M$501, MATCH($B32, Ingredients_DB!$B$2:$B$501,0)),0)) ->  | S32: =IF($B32="","",IFERROR(INDEX(Ingredients_DB!$N$2:$N$501, MATCH($B32, Ingredients_DB!$B$2:$B$501,0)),0)) ->  | T32: =IF($B32="","",IFERROR(INDEX(Ingredients_DB!$O$2:$O$501, MATCH($B32, Ingredients_DB!$B$2:$B$501,0)),0)) ->  | U32: =IF($B32="","",IFERROR(INDEX(Ingredients_DB!$P$2:$P$501, MATCH($B32, Ingredients_DB!$B$2:$B$501,0)),0)) ->  | V32: =IF($B32="","",IFERROR(INDEX(Ingredients_DB!$Q$2:$Q$501, MATCH($B32, Ingredients_DB!$B$2:$B$501,0)),0)) ->  | W32: =IF($B32="","",IFERROR(INDEX(Ingredients_DB!$R$2:$R$501, MATCH($B32, Ingredients_DB!$B$2:$B$501,0)),0)) ->  | X32: =IF($B32="","",IFERROR(INDEX(Ingredients_DB!$S$2:$S$501, MATCH($B32, Ingredients_DB!$B$2:$B$501,0)),0)) ->  | Y32: =IF($B32="","",IFERROR(INDEX(Ingredients_DB!$T$2:$T$501, MATCH($B32, Ingredients_DB!$B$2:$B$501,0)),0)) ->  | Z32: =IF($B32="","",IFERROR(INDEX(Ingredients_DB!$U$2:$U$501, MATCH($B32, Ingredients_DB!$B$2:$B$501,0)),0)) ->  | AA32: =IF($B32="","",IFERROR(INDEX(Ingredients_DB!$V$2:$V$501, MATCH($B32, Ingredients_DB!$B$2:$B$501,0)),0)) ->  | AB32: =IF($B32="","",IFERROR(INDEX(Ingredients_DB!$W$2:$W$501, MATCH($B32, Ingredients_DB!$B$2:$B$501,0)),0)) ->  | AC32: =IF($B32="","",IFERROR(INDEX(Ingredients_DB!$X$2:$X$501, MATCH($B32, Ingredients_DB!$B$2:$B$501,0)),0)) ->  | AD32: =IF($B32="","",IFERROR(INDEX(Ingredients_DB!$Y$2:$Y$501, MATCH($B32, Ingredients_DB!$B$2:$B$501,0)),0)) ->  | AE32: =IF($B32="","",IFERROR(INDEX(Ingredients_DB!$Z$2:$Z$501, MATCH($B32, Ingredients_DB!$B$2:$B$501,0)),0)) -> 
A33: 13 | C33: 0.00 | D33: g | G33: =IF($B33="","",IFERROR(INDEX(Ingredients_DB!$K$2:$K$501, MATCH($B33, Ingredients_DB!$B$2:$B$501,0)),0)) ->  | O33: =IF($B33="","",IFERROR(INDEX(Ingredients_DB!$H$2:$H$501, MATCH($B33, Ingredients_DB!$B$2:$B$501,0)),"")) ->  | P33: =IF($B33="","",IFERROR(INDEX(Ingredients_DB!$I$2:$I$501, MATCH($B33, Ingredients_DB!$B$2:$B$501,0)),"")) ->  | Q33: =IF($B33="","",IFERROR(VLOOKUP($O33&"|"&$D33,UOM_Conversions!$A$2:$E$50,4,FALSE),"CHECK UNIT")) ->  | R33: =IF($B33="","",IFERROR(INDEX(Ingredients_DB!$M$2:$M$501, MATCH($B33, Ingredients_DB!$B$2:$B$501,0)),0)) ->  | S33: =IF($B33="","",IFERROR(INDEX(Ingredients_DB!$N$2:$N$501, MATCH($B33, Ingredients_DB!$B$2:$B$501,0)),0)) ->  | T33: =IF($B33="","",IFERROR(INDEX(Ingredients_DB!$O$2:$O$501, MATCH($B33, Ingredients_DB!$B$2:$B$501,0)),0)) ->  | U33: =IF($B33="","",IFERROR(INDEX(Ingredients_DB!$P$2:$P$501, MATCH($B33, Ingredients_DB!$B$2:$B$501,0)),0)) ->  | V33: =IF($B33="","",IFERROR(INDEX(Ingredients_DB!$Q$2:$Q$501, MATCH($B33, Ingredients_DB!$B$2:$B$501,0)),0)) ->  | W33: =IF($B33="","",IFERROR(INDEX(Ingredients_DB!$R$2:$R$501, MATCH($B33, Ingredients_DB!$B$2:$B$501,0)),0)) ->  | X33: =IF($B33="","",IFERROR(INDEX(Ingredients_DB!$S$2:$S$501, MATCH($B33, Ingredients_DB!$B$2:$B$501,0)),0)) ->  | Y33: =IF($B33="","",IFERROR(INDEX(Ingredients_DB!$T$2:$T$501, MATCH($B33, Ingredients_DB!$B$2:$B$501,0)),0)) ->  | Z33: =IF($B33="","",IFERROR(INDEX(Ingredients_DB!$U$2:$U$501, MATCH($B33, Ingredients_DB!$B$2:$B$501,0)),0)) ->  | AA33: =IF($B33="","",IFERROR(INDEX(Ingredients_DB!$V$2:$V$501, MATCH($B33, Ingredients_DB!$B$2:$B$501,0)),0)) ->  | AB33: =IF($B33="","",IFERROR(INDEX(Ingredients_DB!$W$2:$W$501, MATCH($B33, Ingredients_DB!$B$2:$B$501,0)),0)) ->  | AC33: =IF($B33="","",IFERROR(INDEX(Ingredients_DB!$X$2:$X$501, MATCH($B33, Ingredients_DB!$B$2:$B$501,0)),0)) ->  | AD33: =IF($B33="","",IFERROR(INDEX(Ingredients_DB!$Y$2:$Y$501, MATCH($B33, Ingredients_DB!$B$2:$B$501,0)),0)) ->  | AE33: =IF($B33="","",IFERROR(INDEX(Ingredients_DB!$Z$2:$Z$501, MATCH($B33, Ingredients_DB!$B$2:$B$501,0)),0)) -> 
A34: 14 | C34: 0.00 | D34: g | G34: =IF($B34="","",IFERROR(INDEX(Ingredients_DB!$K$2:$K$501, MATCH($B34, Ingredients_DB!$B$2:$B$501,0)),0)) ->  | O34: =IF($B34="","",IFERROR(INDEX(Ingredients_DB!$H$2:$H$501, MATCH($B34, Ingredients_DB!$B$2:$B$501,0)),"")) ->  | P34: =IF($B34="","",IFERROR(INDEX(Ingredients_DB!$I$2:$I$501, MATCH($B34, Ingredients_DB!$B$2:$B$501,0)),"")) ->  | Q34: =IF($B34="","",IFERROR(VLOOKUP($O34&"|"&$D34,UOM_Conversions!$A$2:$E$50,4,FALSE),"CHECK UNIT")) ->  | R34: =IF($B34="","",IFERROR(INDEX(Ingredients_DB!$M$2:$M$501, MATCH($B34, Ingredients_DB!$B$2:$B$501,0)),0)) ->  | S34: =IF($B34="","",IFERROR(INDEX(Ingredients_DB!$N$2:$N$501, MATCH($B34, Ingredients_DB!$B$2:$B$501,0)),0)) ->  | T34: =IF($B34="","",IFERROR(INDEX(Ingredients_DB!$O$2:$O$501, MATCH($B34, Ingredients_DB!$B$2:$B$501,0)),0)) ->  | U34: =IF($B34="","",IFERROR(INDEX(Ingredients_DB!$P$2:$P$501, MATCH($B34, Ingredients_DB!$B$2:$B$501,0)),0)) ->  | V34: =IF($B34="","",IFERROR(INDEX(Ingredients_DB!$Q$2:$Q$501, MATCH($B34, Ingredients_DB!$B$2:$B$501,0)),0)) ->  | W34: =IF($B34="","",IFERROR(INDEX(Ingredients_DB!$R$2:$R$501, MATCH($B34, Ingredients_DB!$B$2:$B$501,0)),0)) ->  | X34: =IF($B34="","",IFERROR(INDEX(Ingredients_DB!$S$2:$S$501, MATCH($B34, Ingredients_DB!$B$2:$B$501,0)),0)) ->  | Y34: =IF($B34="","",IFERROR(INDEX(Ingredients_DB!$T$2:$T$501, MATCH($B34, Ingredients_DB!$B$2:$B$501,0)),0)) ->  | Z34: =IF($B34="","",IFERROR(INDEX(Ingredients_DB!$U$2:$U$501, MATCH($B34, Ingredients_DB!$B$2:$B$501,0)),0)) ->  | AA34: =IF($B34="","",IFERROR(INDEX(Ingredients_DB!$V$2:$V$501, MATCH($B34, Ingredients_DB!$B$2:$B$501,0)),0)) ->  | AB34: =IF($B34="","",IFERROR(INDEX(Ingredients_DB!$W$2:$W$501, MATCH($B34, Ingredients_DB!$B$2:$B$501,0)),0)) ->  | AC34: =IF($B34="","",IFERROR(INDEX(Ingredients_DB!$X$2:$X$501, MATCH($B34, Ingredients_DB!$B$2:$B$501,0)),0)) ->  | AD34: =IF($B34="","",IFERROR(INDEX(Ingredients_DB!$Y$2:$Y$501, MATCH($B34, Ingredients_DB!$B$2:$B$501,0)),0)) ->  | AE34: =IF($B34="","",IFERROR(INDEX(Ingredients_DB!$Z$2:$Z$501, MATCH($B34, Ingredients_DB!$B$2:$B$501,0)),0)) -> 
A35: 15 | C35: 0.00 | D35: g | G35: =IF($B35="","",IFERROR(INDEX(Ingredients_DB!$K$2:$K$501, MATCH($B35, Ingredients_DB!$B$2:$B$501,0)),0)) ->  | O35: =IF($B35="","",IFERROR(INDEX(Ingredients_DB!$H$2:$H$501, MATCH($B35, Ingredients_DB!$B$2:$B$501,0)),"")) ->  | P35: =IF($B35="","",IFERROR(INDEX(Ingredients_DB!$I$2:$I$501, MATCH($B35, Ingredients_DB!$B$2:$B$501,0)),"")) ->  | Q35: =IF($B35="","",IFERROR(VLOOKUP($O35&"|"&$D35,UOM_Conversions!$A$2:$E$50,4,FALSE),"CHECK UNIT")) ->  | R35: =IF($B35="","",IFERROR(INDEX(Ingredients_DB!$M$2:$M$501, MATCH($B35, Ingredients_DB!$B$2:$B$501,0)),0)) ->  | S35: =IF($B35="","",IFERROR(INDEX(Ingredients_DB!$N$2:$N$501, MATCH($B35, Ingredients_DB!$B$2:$B$501,0)),0)) ->  | T35: =IF($B35="","",IFERROR(INDEX(Ingredients_DB!$O$2:$O$501, MATCH($B35, Ingredients_DB!$B$2:$B$501,0)),0)) ->  | U35: =IF($B35="","",IFERROR(INDEX(Ingredients_DB!$P$2:$P$501, MATCH($B35, Ingredients_DB!$B$2:$B$501,0)),0)) ->  | V35: =IF($B35="","",IFERROR(INDEX(Ingredients_DB!$Q$2:$Q$501, MATCH($B35, Ingredients_DB!$B$2:$B$501,0)),0)) ->  | W35: =IF($B35="","",IFERROR(INDEX(Ingredients_DB!$R$2:$R$501, MATCH($B35, Ingredients_DB!$B$2:$B$501,0)),0)) ->  | X35: =IF($B35="","",IFERROR(INDEX(Ingredients_DB!$S$2:$S$501, MATCH($B35, Ingredients_DB!$B$2:$B$501,0)),0)) ->  | Y35: =IF($B35="","",IFERROR(INDEX(Ingredients_DB!$T$2:$T$501, MATCH($B35, Ingredients_DB!$B$2:$B$501,0)),0)) ->  | Z35: =IF($B35="","",IFERROR(INDEX(Ingredients_DB!$U$2:$U$501, MATCH($B35, Ingredients_DB!$B$2:$B$501,0)),0)) ->  | AA35: =IF($B35="","",IFERROR(INDEX(Ingredients_DB!$V$2:$V$501, MATCH($B35, Ingredients_DB!$B$2:$B$501,0)),0)) ->  | AB35: =IF($B35="","",IFERROR(INDEX(Ingredients_DB!$W$2:$W$501, MATCH($B35, Ingredients_DB!$B$2:$B$501,0)),0)) ->  | AC35: =IF($B35="","",IFERROR(INDEX(Ingredients_DB!$X$2:$X$501, MATCH($B35, Ingredients_DB!$B$2:$B$501,0)),0)) ->  | AD35: =IF($B35="","",IFERROR(INDEX(Ingredients_DB!$Y$2:$Y$501, MATCH($B35, Ingredients_DB!$B$2:$B$501,0)),0)) ->  | AE35: =IF($B35="","",IFERROR(INDEX(Ingredients_DB!$Z$2:$Z$501, MATCH($B35, Ingredients_DB!$B$2:$B$501,0)),0)) -> 
A36: 16 | C36: 0.00 | D36: g | G36: =IF($B36="","",IFERROR(INDEX(Ingredients_DB!$K$2:$K$501, MATCH($B36, Ingredients_DB!$B$2:$B$501,0)),0)) ->  | O36: =IF($B36="","",IFERROR(INDEX(Ingredients_DB!$H$2:$H$501, MATCH($B36, Ingredients_DB!$B$2:$B$501,0)),"")) ->  | P36: =IF($B36="","",IFERROR(INDEX(Ingredients_DB!$I$2:$I$501, MATCH($B36, Ingredients_DB!$B$2:$B$501,0)),"")) ->  | Q36: =IF($B36="","",IFERROR(VLOOKUP($O36&"|"&$D36,UOM_Conversions!$A$2:$E$50,4,FALSE),"CHECK UNIT")) ->  | R36: =IF($B36="","",IFERROR(INDEX(Ingredients_DB!$M$2:$M$501, MATCH($B36, Ingredients_DB!$B$2:$B$501,0)),0)) ->  | S36: =IF($B36="","",IFERROR(INDEX(Ingredients_DB!$N$2:$N$501, MATCH($B36, Ingredients_DB!$B$2:$B$501,0)),0)) ->  | T36: =IF($B36="","",IFERROR(INDEX(Ingredients_DB!$O$2:$O$501, MATCH($B36, Ingredients_DB!$B$2:$B$501,0)),0)) ->  | U36: =IF($B36="","",IFERROR(INDEX(Ingredients_DB!$P$2:$P$501, MATCH($B36, Ingredients_DB!$B$2:$B$501,0)),0)) ->  | V36: =IF($B36="","",IFERROR(INDEX(Ingredients_DB!$Q$2:$Q$501, MATCH($B36, Ingredients_DB!$B$2:$B$501,0)),0)) ->  | W36: =IF($B36="","",IFERROR(INDEX(Ingredients_DB!$R$2:$R$501, MATCH($B36, Ingredients_DB!$B$2:$B$501,0)),0)) ->  | X36: =IF($B36="","",IFERROR(INDEX(Ingredients_DB!$S$2:$S$501, MATCH($B36, Ingredients_DB!$B$2:$B$501,0)),0)) ->  | Y36: =IF($B36="","",IFERROR(INDEX(Ingredients_DB!$T$2:$T$501, MATCH($B36, Ingredients_DB!$B$2:$B$501,0)),0)) ->  | Z36: =IF($B36="","",IFERROR(INDEX(Ingredients_DB!$U$2:$U$501, MATCH($B36, Ingredients_DB!$B$2:$B$501,0)),0)) ->  | AA36: =IF($B36="","",IFERROR(INDEX(Ingredients_DB!$V$2:$V$501, MATCH($B36, Ingredients_DB!$B$2:$B$501,0)),0)) ->  | AB36: =IF($B36="","",IFERROR(INDEX(Ingredients_DB!$W$2:$W$501, MATCH($B36, Ingredients_DB!$B$2:$B$501,0)),0)) ->  | AC36: =IF($B36="","",IFERROR(INDEX(Ingredients_DB!$X$2:$X$501, MATCH($B36, Ingredients_DB!$B$2:$B$501,0)),0)) ->  | AD36: =IF($B36="","",IFERROR(INDEX(Ingredients_DB!$Y$2:$Y$501, MATCH($B36, Ingredients_DB!$B$2:$B$501,0)),0)) ->  | AE36: =IF($B36="","",IFERROR(INDEX(Ingredients_DB!$Z$2:$Z$501, MATCH($B36, Ingredients_DB!$B$2:$B$501,0)),0)) -> 
A37: 17 | C37: 0.00 | D37: g | G37: =IF($B37="","",IFERROR(INDEX(Ingredients_DB!$K$2:$K$501, MATCH($B37, Ingredients_DB!$B$2:$B$501,0)),0)) ->  | O37: =IF($B37="","",IFERROR(INDEX(Ingredients_DB!$H$2:$H$501, MATCH($B37, Ingredients_DB!$B$2:$B$501,0)),"")) ->  | P37: =IF($B37="","",IFERROR(INDEX(Ingredients_DB!$I$2:$I$501, MATCH($B37, Ingredients_DB!$B$2:$B$501,0)),"")) ->  | Q37: =IF($B37="","",IFERROR(VLOOKUP($O37&"|"&$D37,UOM_Conversions!$A$2:$E$50,4,FALSE),"CHECK UNIT")) ->  | R37: =IF($B37="","",IFERROR(INDEX(Ingredients_DB!$M$2:$M$501, MATCH($B37, Ingredients_DB!$B$2:$B$501,0)),0)) ->  | S37: =IF($B37="","",IFERROR(INDEX(Ingredients_DB!$N$2:$N$501, MATCH($B37, Ingredients_DB!$B$2:$B$501,0)),0)) ->  | T37: =IF($B37="","",IFERROR(INDEX(Ingredients_DB!$O$2:$O$501, MATCH($B37, Ingredients_DB!$B$2:$B$501,0)),0)) ->  | U37: =IF($B37="","",IFERROR(INDEX(Ingredients_DB!$P$2:$P$501, MATCH($B37, Ingredients_DB!$B$2:$B$501,0)),0)) ->  | V37: =IF($B37="","",IFERROR(INDEX(Ingredients_DB!$Q$2:$Q$501, MATCH($B37, Ingredients_DB!$B$2:$B$501,0)),0)) ->  | W37: =IF($B37="","",IFERROR(INDEX(Ingredients_DB!$R$2:$R$501, MATCH($B37, Ingredients_DB!$B$2:$B$501,0)),0)) ->  | X37: =IF($B37="","",IFERROR(INDEX(Ingredients_DB!$S$2:$S$501, MATCH($B37, Ingredients_DB!$B$2:$B$501,0)),0)) ->  | Y37: =IF($B37="","",IFERROR(INDEX(Ingredients_DB!$T$2:$T$501, MATCH($B37, Ingredients_DB!$B$2:$B$501,0)),0)) ->  | Z37: =IF($B37="","",IFERROR(INDEX(Ingredients_DB!$U$2:$U$501, MATCH($B37, Ingredients_DB!$B$2:$B$501,0)),0)) ->  | AA37: =IF($B37="","",IFERROR(INDEX(Ingredients_DB!$V$2:$V$501, MATCH($B37, Ingredients_DB!$B$2:$B$501,0)),0)) ->  | AB37: =IF($B37="","",IFERROR(INDEX(Ingredients_DB!$W$2:$W$501, MATCH($B37, Ingredients_DB!$B$2:$B$501,0)),0)) ->  | AC37: =IF($B37="","",IFERROR(INDEX(Ingredients_DB!$X$2:$X$501, MATCH($B37, Ingredients_DB!$B$2:$B$501,0)),0)) ->  | AD37: =IF($B37="","",IFERROR(INDEX(Ingredients_DB!$Y$2:$Y$501, MATCH($B37, Ingredients_DB!$B$2:$B$501,0)),0)) ->  | AE37: =IF($B37="","",IFERROR(INDEX(Ingredients_DB!$Z$2:$Z$501, MATCH($B37, Ingredients_DB!$B$2:$B$501,0)),0)) -> 
A38: 18 | C38: 0.00 | D38: g | G38: =IF($B38="","",IFERROR(INDEX(Ingredients_DB!$K$2:$K$501, MATCH($B38, Ingredients_DB!$B$2:$B$501,0)),0)) ->  | O38: =IF($B38="","",IFERROR(INDEX(Ingredients_DB!$H$2:$H$501, MATCH($B38, Ingredients_DB!$B$2:$B$501,0)),"")) ->  | P38: =IF($B38="","",IFERROR(INDEX(Ingredients_DB!$I$2:$I$501, MATCH($B38, Ingredients_DB!$B$2:$B$501,0)),"")) ->  | Q38: =IF($B38="","",IFERROR(VLOOKUP($O38&"|"&$D38,UOM_Conversions!$A$2:$E$50,4,FALSE),"CHECK UNIT")) ->  | R38: =IF($B38="","",IFERROR(INDEX(Ingredients_DB!$M$2:$M$501, MATCH($B38, Ingredients_DB!$B$2:$B$501,0)),0)) ->  | S38: =IF($B38="","",IFERROR(INDEX(Ingredients_DB!$N$2:$N$501, MATCH($B38, Ingredients_DB!$B$2:$B$501,0)),0)) ->  | T38: =IF($B38="","",IFERROR(INDEX(Ingredients_DB!$O$2:$O$501, MATCH($B38, Ingredients_DB!$B$2:$B$501,0)),0)) ->  | U38: =IF($B38="","",IFERROR(INDEX(Ingredients_DB!$P$2:$P$501, MATCH($B38, Ingredients_DB!$B$2:$B$501,0)),0)) ->  | V38: =IF($B38="","",IFERROR(INDEX(Ingredients_DB!$Q$2:$Q$501, MATCH($B38, Ingredients_DB!$B$2:$B$501,0)),0)) ->  | W38: =IF($B38="","",IFERROR(INDEX(Ingredients_DB!$R$2:$R$501, MATCH($B38, Ingredients_DB!$B$2:$B$501,0)),0)) ->  | X38: =IF($B38="","",IFERROR(INDEX(Ingredients_DB!$S$2:$S$501, MATCH($B38, Ingredients_DB!$B$2:$B$501,0)),0)) ->  | Y38: =IF($B38="","",IFERROR(INDEX(Ingredients_DB!$T$2:$T$501, MATCH($B38, Ingredients_DB!$B$2:$B$501,0)),0)) ->  | Z38: =IF($B38="","",IFERROR(INDEX(Ingredients_DB!$U$2:$U$501, MATCH($B38, Ingredients_DB!$B$2:$B$501,0)),0)) ->  | AA38: =IF($B38="","",IFERROR(INDEX(Ingredients_DB!$V$2:$V$501, MATCH($B38, Ingredients_DB!$B$2:$B$501,0)),0)) ->  | AB38: =IF($B38="","",IFERROR(INDEX(Ingredients_DB!$W$2:$W$501, MATCH($B38, Ingredients_DB!$B$2:$B$501,0)),0)) ->  | AC38: =IF($B38="","",IFERROR(INDEX(Ingredients_DB!$X$2:$X$501, MATCH($B38, Ingredients_DB!$B$2:$B$501,0)),0)) ->  | AD38: =IF($B38="","",IFERROR(INDEX(Ingredients_DB!$Y$2:$Y$501, MATCH($B38, Ingredients_DB!$B$2:$B$501,0)),0)) ->  | AE38: =IF($B38="","",IFERROR(INDEX(Ingredients_DB!$Z$2:$Z$501, MATCH($B38, Ingredients_DB!$B$2:$B$501,0)),0)) -> 
A39: 19 | C39: 0.00 | D39: g | G39: =IF($B39="","",IFERROR(INDEX(Ingredients_DB!$K$2:$K$501, MATCH($B39, Ingredients_DB!$B$2:$B$501,0)),0)) ->  | O39: =IF($B39="","",IFERROR(INDEX(Ingredients_DB!$H$2:$H$501, MATCH($B39, Ingredients_DB!$B$2:$B$501,0)),"")) ->  | P39: =IF($B39="","",IFERROR(INDEX(Ingredients_DB!$I$2:$I$501, MATCH($B39, Ingredients_DB!$B$2:$B$501,0)),"")) ->  | Q39: =IF($B39="","",IFERROR(VLOOKUP($O39&"|"&$D39,UOM_Conversions!$A$2:$E$50,4,FALSE),"CHECK UNIT")) ->  | R39: =IF($B39="","",IFERROR(INDEX(Ingredients_DB!$M$2:$M$501, MATCH($B39, Ingredients_DB!$B$2:$B$501,0)),0)) ->  | S39: =IF($B39="","",IFERROR(INDEX(Ingredients_DB!$N$2:$N$501, MATCH($B39, Ingredients_DB!$B$2:$B$501,0)),0)) ->  | T39: =IF($B39="","",IFERROR(INDEX(Ingredients_DB!$O$2:$O$501, MATCH($B39, Ingredients_DB!$B$2:$B$501,0)),0)) ->  | U39: =IF($B39="","",IFERROR(INDEX(Ingredients_DB!$P$2:$P$501, MATCH($B39, Ingredients_DB!$B$2:$B$501,0)),0)) ->  | V39: =IF($B39="","",IFERROR(INDEX(Ingredients_DB!$Q$2:$Q$501, MATCH($B39, Ingredients_DB!$B$2:$B$501,0)),0)) ->  | W39: =IF($B39="","",IFERROR(INDEX(Ingredients_DB!$R$2:$R$501, MATCH($B39, Ingredients_DB!$B$2:$B$501,0)),0)) ->  | X39: =IF($B39="","",IFERROR(INDEX(Ingredients_DB!$S$2:$S$501, MATCH($B39, Ingredients_DB!$B$2:$B$501,0)),0)) ->  | Y39: =IF($B39="","",IFERROR(INDEX(Ingredients_DB!$T$2:$T$501, MATCH($B39, Ingredients_DB!$B$2:$B$501,0)),0)) ->  | Z39: =IF($B39="","",IFERROR(INDEX(Ingredients_DB!$U$2:$U$501, MATCH($B39, Ingredients_DB!$B$2:$B$501,0)),0)) ->  | AA39: =IF($B39="","",IFERROR(INDEX(Ingredients_DB!$V$2:$V$501, MATCH($B39, Ingredients_DB!$B$2:$B$501,0)),0)) ->  | AB39: =IF($B39="","",IFERROR(INDEX(Ingredients_DB!$W$2:$W$501, MATCH($B39, Ingredients_DB!$B$2:$B$501,0)),0)) ->  | AC39: =IF($B39="","",IFERROR(INDEX(Ingredients_DB!$X$2:$X$501, MATCH($B39, Ingredients_DB!$B$2:$B$501,0)),0)) ->  | AD39: =IF($B39="","",IFERROR(INDEX(Ingredients_DB!$Y$2:$Y$501, MATCH($B39, Ingredients_DB!$B$2:$B$501,0)),0)) ->  | AE39: =IF($B39="","",IFERROR(INDEX(Ingredients_DB!$Z$2:$Z$501, MATCH($B39, Ingredients_DB!$B$2:$B$501,0)),0)) -> 
A40: 20 | C40: 0.00 | D40: g | G40: =IF($B40="","",IFERROR(INDEX(Ingredients_DB!$K$2:$K$501, MATCH($B40, Ingredients_DB!$B$2:$B$501,0)),0)) ->  | O40: =IF($B40="","",IFERROR(INDEX(Ingredients_DB!$H$2:$H$501, MATCH($B40, Ingredients_DB!$B$2:$B$501,0)),"")) ->  | P40: =IF($B40="","",IFERROR(INDEX(Ingredients_DB!$I$2:$I$501, MATCH($B40, Ingredients_DB!$B$2:$B$501,0)),"")) ->  | Q40: =IF($B40="","",IFERROR(VLOOKUP($O40&"|"&$D40,UOM_Conversions!$A$2:$E$50,4,FALSE),"CHECK UNIT")) ->  | R40: =IF($B40="","",IFERROR(INDEX(Ingredients_DB!$M$2:$M$501, MATCH($B40, Ingredients_DB!$B$2:$B$501,0)),0)) ->  | S40: =IF($B40="","",IFERROR(INDEX(Ingredients_DB!$N$2:$N$501, MATCH($B40, Ingredients_DB!$B$2:$B$501,0)),0)) ->  | T40: =IF($B40="","",IFERROR(INDEX(Ingredients_DB!$O$2:$O$501, MATCH($B40, Ingredients_DB!$B$2:$B$501,0)),0)) ->  | U40: =IF($B40="","",IFERROR(INDEX(Ingredients_DB!$P$2:$P$501, MATCH($B40, Ingredients_DB!$B$2:$B$501,0)),0)) ->  | V40: =IF($B40="","",IFERROR(INDEX(Ingredients_DB!$Q$2:$Q$501, MATCH($B40, Ingredients_DB!$B$2:$B$501,0)),0)) ->  | W40: =IF($B40="","",IFERROR(INDEX(Ingredients_DB!$R$2:$R$501, MATCH($B40, Ingredients_DB!$B$2:$B$501,0)),0)) ->  | X40: =IF($B40="","",IFERROR(INDEX(Ingredients_DB!$S$2:$S$501, MATCH($B40, Ingredients_DB!$B$2:$B$501,0)),0)) ->  | Y40: =IF($B40="","",IFERROR(INDEX(Ingredients_DB!$T$2:$T$501, MATCH($B40, Ingredients_DB!$B$2:$B$501,0)),0)) ->  | Z40: =IF($B40="","",IFERROR(INDEX(Ingredients_DB!$U$2:$U$501, MATCH($B40, Ingredients_DB!$B$2:$B$501,0)),0)) ->  | AA40: =IF($B40="","",IFERROR(INDEX(Ingredients_DB!$V$2:$V$501, MATCH($B40, Ingredients_DB!$B$2:$B$501,0)),0)) ->  | AB40: =IF($B40="","",IFERROR(INDEX(Ingredients_DB!$W$2:$W$501, MATCH($B40, Ingredients_DB!$B$2:$B$501,0)),0)) ->  | AC40: =IF($B40="","",IFERROR(INDEX(Ingredients_DB!$X$2:$X$501, MATCH($B40, Ingredients_DB!$B$2:$B$501,0)),0)) ->  | AD40: =IF($B40="","",IFERROR(INDEX(Ingredients_DB!$Y$2:$Y$501, MATCH($B40, Ingredients_DB!$B$2:$B$501,0)),0)) ->  | AE40: =IF($B40="","",IFERROR(INDEX(Ingredients_DB!$Z$2:$Z$501, MATCH($B40, Ingredients_DB!$B$2:$B$501,0)),0)) -> 
A41: 21 | C41: 0.00 | D41: g | G41: =IF($B41="","",IFERROR(INDEX(Ingredients_DB!$K$2:$K$501, MATCH($B41, Ingredients_DB!$B$2:$B$501,0)),0)) ->  | O41: =IF($B41="","",IFERROR(INDEX(Ingredients_DB!$H$2:$H$501, MATCH($B41, Ingredients_DB!$B$2:$B$501,0)),"")) ->  | P41: =IF($B41="","",IFERROR(INDEX(Ingredients_DB!$I$2:$I$501, MATCH($B41, Ingredients_DB!$B$2:$B$501,0)),"")) ->  | Q41: =IF($B41="","",IFERROR(VLOOKUP($O41&"|"&$D41,UOM_Conversions!$A$2:$E$50,4,FALSE),"CHECK UNIT")) ->  | R41: =IF($B41="","",IFERROR(INDEX(Ingredients_DB!$M$2:$M$501, MATCH($B41, Ingredients_DB!$B$2:$B$501,0)),0)) ->  | S41: =IF($B41="","",IFERROR(INDEX(Ingredients_DB!$N$2:$N$501, MATCH($B41, Ingredients_DB!$B$2:$B$501,0)),0)) ->  | T41: =IF($B41="","",IFERROR(INDEX(Ingredients_DB!$O$2:$O$501, MATCH($B41, Ingredients_DB!$B$2:$B$501,0)),0)) ->  | U41: =IF($B41="","",IFERROR(INDEX(Ingredients_DB!$P$2:$P$501, MATCH($B41, Ingredients_DB!$B$2:$B$501,0)),0)) ->  | V41: =IF($B41="","",IFERROR(INDEX(Ingredients_DB!$Q$2:$Q$501, MATCH($B41, Ingredients_DB!$B$2:$B$501,0)),0)) ->  | W41: =IF($B41="","",IFERROR(INDEX(Ingredients_DB!$R$2:$R$501, MATCH($B41, Ingredients_DB!$B$2:$B$501,0)),0)) ->  | X41: =IF($B41="","",IFERROR(INDEX(Ingredients_DB!$S$2:$S$501, MATCH($B41, Ingredients_DB!$B$2:$B$501,0)),0)) ->  | Y41: =IF($B41="","",IFERROR(INDEX(Ingredients_DB!$T$2:$T$501, MATCH($B41, Ingredients_DB!$B$2:$B$501,0)),0)) ->  | Z41: =IF($B41="","",IFERROR(INDEX(Ingredients_DB!$U$2:$U$501, MATCH($B41, Ingredients_DB!$B$2:$B$501,0)),0)) ->  | AA41: =IF($B41="","",IFERROR(INDEX(Ingredients_DB!$V$2:$V$501, MATCH($B41, Ingredients_DB!$B$2:$B$501,0)),0)) ->  | AB41: =IF($B41="","",IFERROR(INDEX(Ingredients_DB!$W$2:$W$501, MATCH($B41, Ingredients_DB!$B$2:$B$501,0)),0)) ->  | AC41: =IF($B41="","",IFERROR(INDEX(Ingredients_DB!$X$2:$X$501, MATCH($B41, Ingredients_DB!$B$2:$B$501,0)),0)) ->  | AD41: =IF($B41="","",IFERROR(INDEX(Ingredients_DB!$Y$2:$Y$501, MATCH($B41, Ingredients_DB!$B$2:$B$501,0)),0)) ->  | AE41: =IF($B41="","",IFERROR(INDEX(Ingredients_DB!$Z$2:$Z$501, MATCH($B41, Ingredients_DB!$B$2:$B$501,0)),0)) -> 
A42: 22 | C42: 0.00 | D42: g | G42: =IF($B42="","",IFERROR(INDEX(Ingredients_DB!$K$2:$K$501, MATCH($B42, Ingredients_DB!$B$2:$B$501,0)),0)) ->  | O42: =IF($B42="","",IFERROR(INDEX(Ingredients_DB!$H$2:$H$501, MATCH($B42, Ingredients_DB!$B$2:$B$501,0)),"")) ->  | P42: =IF($B42="","",IFERROR(INDEX(Ingredients_DB!$I$2:$I$501, MATCH($B42, Ingredients_DB!$B$2:$B$501,0)),"")) ->  | Q42: =IF($B42="","",IFERROR(VLOOKUP($O42&"|"&$D42,UOM_Conversions!$A$2:$E$50,4,FALSE),"CHECK UNIT")) ->  | R42: =IF($B42="","",IFERROR(INDEX(Ingredients_DB!$M$2:$M$501, MATCH($B42, Ingredients_DB!$B$2:$B$501,0)),0)) ->  | S42: =IF($B42="","",IFERROR(INDEX(Ingredients_DB!$N$2:$N$501, MATCH($B42, Ingredients_DB!$B$2:$B$501,0)),0)) ->  | T42: =IF($B42="","",IFERROR(INDEX(Ingredients_DB!$O$2:$O$501, MATCH($B42, Ingredients_DB!$B$2:$B$501,0)),0)) ->  | U42: =IF($B42="","",IFERROR(INDEX(Ingredients_DB!$P$2:$P$501, MATCH($B42, Ingredients_DB!$B$2:$B$501,0)),0)) ->  | V42: =IF($B42="","",IFERROR(INDEX(Ingredients_DB!$Q$2:$Q$501, MATCH($B42, Ingredients_DB!$B$2:$B$501,0)),0)) ->  | W42: =IF($B42="","",IFERROR(INDEX(Ingredients_DB!$R$2:$R$501, MATCH($B42, Ingredients_DB!$B$2:$B$501,0)),0)) ->  | X42: =IF($B42="","",IFERROR(INDEX(Ingredients_DB!$S$2:$S$501, MATCH($B42, Ingredients_DB!$B$2:$B$501,0)),0)) ->  | Y42: =IF($B42="","",IFERROR(INDEX(Ingredients_DB!$T$2:$T$501, MATCH($B42, Ingredients_DB!$B$2:$B$501,0)),0)) ->  | Z42: =IF($B42="","",IFERROR(INDEX(Ingredients_DB!$U$2:$U$501, MATCH($B42, Ingredients_DB!$B$2:$B$501,0)),0)) ->  | AA42: =IF($B42="","",IFERROR(INDEX(Ingredients_DB!$V$2:$V$501, MATCH($B42, Ingredients_DB!$B$2:$B$501,0)),0)) ->  | AB42: =IF($B42="","",IFERROR(INDEX(Ingredients_DB!$W$2:$W$501, MATCH($B42, Ingredients_DB!$B$2:$B$501,0)),0)) ->  | AC42: =IF($B42="","",IFERROR(INDEX(Ingredients_DB!$X$2:$X$501, MATCH($B42, Ingredients_DB!$B$2:$B$501,0)),0)) ->  | AD42: =IF($B42="","",IFERROR(INDEX(Ingredients_DB!$Y$2:$Y$501, MATCH($B42, Ingredients_DB!$B$2:$B$501,0)),0)) ->  | AE42: =IF($B42="","",IFERROR(INDEX(Ingredients_DB!$Z$2:$Z$501, MATCH($B42, Ingredients_DB!$B$2:$B$501,0)),0)) -> 
A43: 23 | C43: 0.00 | D43: g | G43: =IF($B43="","",IFERROR(INDEX(Ingredients_DB!$K$2:$K$501, MATCH($B43, Ingredients_DB!$B$2:$B$501,0)),0)) ->  | O43: =IF($B43="","",IFERROR(INDEX(Ingredients_DB!$H$2:$H$501, MATCH($B43, Ingredients_DB!$B$2:$B$501,0)),"")) ->  | P43: =IF($B43="","",IFERROR(INDEX(Ingredients_DB!$I$2:$I$501, MATCH($B43, Ingredients_DB!$B$2:$B$501,0)),"")) ->  | Q43: =IF($B43="","",IFERROR(VLOOKUP($O43&"|"&$D43,UOM_Conversions!$A$2:$E$50,4,FALSE),"CHECK UNIT")) ->  | R43: =IF($B43="","",IFERROR(INDEX(Ingredients_DB!$M$2:$M$501, MATCH($B43, Ingredients_DB!$B$2:$B$501,0)),0)) ->  | S43: =IF($B43="","",IFERROR(INDEX(Ingredients_DB!$N$2:$N$501, MATCH($B43, Ingredients_DB!$B$2:$B$501,0)),0)) ->  | T43: =IF($B43="","",IFERROR(INDEX(Ingredients_DB!$O$2:$O$501, MATCH($B43, Ingredients_DB!$B$2:$B$501,0)),0)) ->  | U43: =IF($B43="","",IFERROR(INDEX(Ingredients_DB!$P$2:$P$501, MATCH($B43, Ingredients_DB!$B$2:$B$501,0)),0)) ->  | V43: =IF($B43="","",IFERROR(INDEX(Ingredients_DB!$Q$2:$Q$501, MATCH($B43, Ingredients_DB!$B$2:$B$501,0)),0)) ->  | W43: =IF($B43="","",IFERROR(INDEX(Ingredients_DB!$R$2:$R$501, MATCH($B43, Ingredients_DB!$B$2:$B$501,0)),0)) ->  | X43: =IF($B43="","",IFERROR(INDEX(Ingredients_DB!$S$2:$S$501, MATCH($B43, Ingredients_DB!$B$2:$B$501,0)),0)) ->  | Y43: =IF($B43="","",IFERROR(INDEX(Ingredients_DB!$T$2:$T$501, MATCH($B43, Ingredients_DB!$B$2:$B$501,0)),0)) ->  | Z43: =IF($B43="","",IFERROR(INDEX(Ingredients_DB!$U$2:$U$501, MATCH($B43, Ingredients_DB!$B$2:$B$501,0)),0)) ->  | AA43: =IF($B43="","",IFERROR(INDEX(Ingredients_DB!$V$2:$V$501, MATCH($B43, Ingredients_DB!$B$2:$B$501,0)),0)) ->  | AB43: =IF($B43="","",IFERROR(INDEX(Ingredients_DB!$W$2:$W$501, MATCH($B43, Ingredients_DB!$B$2:$B$501,0)),0)) ->  | AC43: =IF($B43="","",IFERROR(INDEX(Ingredients_DB!$X$2:$X$501, MATCH($B43, Ingredients_DB!$B$2:$B$501,0)),0)) ->  | AD43: =IF($B43="","",IFERROR(INDEX(Ingredients_DB!$Y$2:$Y$501, MATCH($B43, Ingredients_DB!$B$2:$B$501,0)),0)) ->  | AE43: =IF($B43="","",IFERROR(INDEX(Ingredients_DB!$Z$2:$Z$501, MATCH($B43, Ingredients_DB!$B$2:$B$501,0)),0)) -> 
A44: 24 | C44: 0.00 | D44: g | G44: =IF($B44="","",IFERROR(INDEX(Ingredients_DB!$K$2:$K$501, MATCH($B44, Ingredients_DB!$B$2:$B$501,0)),0)) ->  | O44: =IF($B44="","",IFERROR(INDEX(Ingredients_DB!$H$2:$H$501, MATCH($B44, Ingredients_DB!$B$2:$B$501,0)),"")) ->  | P44: =IF($B44="","",IFERROR(INDEX(Ingredients_DB!$I$2:$I$501, MATCH($B44, Ingredients_DB!$B$2:$B$501,0)),"")) ->  | Q44: =IF($B44="","",IFERROR(VLOOKUP($O44&"|"&$D44,UOM_Conversions!$A$2:$E$50,4,FALSE),"CHECK UNIT")) ->  | R44: =IF($B44="","",IFERROR(INDEX(Ingredients_DB!$M$2:$M$501, MATCH($B44, Ingredients_DB!$B$2:$B$501,0)),0)) ->  | S44: =IF($B44="","",IFERROR(INDEX(Ingredients_DB!$N$2:$N$501, MATCH($B44, Ingredients_DB!$B$2:$B$501,0)),0)) ->  | T44: =IF($B44="","",IFERROR(INDEX(Ingredients_DB!$O$2:$O$501, MATCH($B44, Ingredients_DB!$B$2:$B$501,0)),0)) ->  | U44: =IF($B44="","",IFERROR(INDEX(Ingredients_DB!$P$2:$P$501, MATCH($B44, Ingredients_DB!$B$2:$B$501,0)),0)) ->  | V44: =IF($B44="","",IFERROR(INDEX(Ingredients_DB!$Q$2:$Q$501, MATCH($B44, Ingredients_DB!$B$2:$B$501,0)),0)) ->  | W44: =IF($B44="","",IFERROR(INDEX(Ingredients_DB!$R$2:$R$501, MATCH($B44, Ingredients_DB!$B$2:$B$501,0)),0)) ->  | X44: =IF($B44="","",IFERROR(INDEX(Ingredients_DB!$S$2:$S$501, MATCH($B44, Ingredients_DB!$B$2:$B$501,0)),0)) ->  | Y44: =IF($B44="","",IFERROR(INDEX(Ingredients_DB!$T$2:$T$501, MATCH($B44, Ingredients_DB!$B$2:$B$501,0)),0)) ->  | Z44: =IF($B44="","",IFERROR(INDEX(Ingredients_DB!$U$2:$U$501, MATCH($B44, Ingredients_DB!$B$2:$B$501,0)),0)) ->  | AA44: =IF($B44="","",IFERROR(INDEX(Ingredients_DB!$V$2:$V$501, MATCH($B44, Ingredients_DB!$B$2:$B$501,0)),0)) ->  | AB44: =IF($B44="","",IFERROR(INDEX(Ingredients_DB!$W$2:$W$501, MATCH($B44, Ingredients_DB!$B$2:$B$501,0)),0)) ->  | AC44: =IF($B44="","",IFERROR(INDEX(Ingredients_DB!$X$2:$X$501, MATCH($B44, Ingredients_DB!$B$2:$B$501,0)),0)) ->  | AD44: =IF($B44="","",IFERROR(INDEX(Ingredients_DB!$Y$2:$Y$501, MATCH($B44, Ingredients_DB!$B$2:$B$501,0)),0)) ->  | AE44: =IF($B44="","",IFERROR(INDEX(Ingredients_DB!$Z$2:$Z$501, MATCH($B44, Ingredients_DB!$B$2:$B$501,0)),0)) -> 
A45: 25 | C45: 0.00 | D45: g | G45: =IF($B45="","",IFERROR(INDEX(Ingredients_DB!$K$2:$K$501, MATCH($B45, Ingredients_DB!$B$2:$B$501,0)),0)) ->  | O45: =IF($B45="","",IFERROR(INDEX(Ingredients_DB!$H$2:$H$501, MATCH($B45, Ingredients_DB!$B$2:$B$501,0)),"")) ->  | P45: =IF($B45="","",IFERROR(INDEX(Ingredients_DB!$I$2:$I$501, MATCH($B45, Ingredients_DB!$B$2:$B$501,0)),"")) ->  | Q45: =IF($B45="","",IFERROR(VLOOKUP($O45&"|"&$D45,UOM_Conversions!$A$2:$E$50,4,FALSE),"CHECK UNIT")) ->  | R45: =IF($B45="","",IFERROR(INDEX(Ingredients_DB!$M$2:$M$501, MATCH($B45, Ingredients_DB!$B$2:$B$501,0)),0)) ->  | S45: =IF($B45="","",IFERROR(INDEX(Ingredients_DB!$N$2:$N$501, MATCH($B45, Ingredients_DB!$B$2:$B$501,0)),0)) ->  | T45: =IF($B45="","",IFERROR(INDEX(Ingredients_DB!$O$2:$O$501, MATCH($B45, Ingredients_DB!$B$2:$B$501,0)),0)) ->  | U45: =IF($B45="","",IFERROR(INDEX(Ingredients_DB!$P$2:$P$501, MATCH($B45, Ingredients_DB!$B$2:$B$501,0)),0)) ->  | V45: =IF($B45="","",IFERROR(INDEX(Ingredients_DB!$Q$2:$Q$501, MATCH($B45, Ingredients_DB!$B$2:$B$501,0)),0)) ->  | W45: =IF($B45="","",IFERROR(INDEX(Ingredients_DB!$R$2:$R$501, MATCH($B45, Ingredients_DB!$B$2:$B$501,0)),0)) ->  | X45: =IF($B45="","",IFERROR(INDEX(Ingredients_DB!$S$2:$S$501, MATCH($B45, Ingredients_DB!$B$2:$B$501,0)),0)) ->  | Y45: =IF($B45="","",IFERROR(INDEX(Ingredients_DB!$T$2:$T$501, MATCH($B45, Ingredients_DB!$B$2:$B$501,0)),0)) ->  | Z45: =IF($B45="","",IFERROR(INDEX(Ingredients_DB!$U$2:$U$501, MATCH($B45, Ingredients_DB!$B$2:$B$501,0)),0)) ->  | AA45: =IF($B45="","",IFERROR(INDEX(Ingredients_DB!$V$2:$V$501, MATCH($B45, Ingredients_DB!$B$2:$B$501,0)),0)) ->  | AB45: =IF($B45="","",IFERROR(INDEX(Ingredients_DB!$W$2:$W$501, MATCH($B45, Ingredients_DB!$B$2:$B$501,0)),0)) ->  | AC45: =IF($B45="","",IFERROR(INDEX(Ingredients_DB!$X$2:$X$501, MATCH($B45, Ingredients_DB!$B$2:$B$501,0)),0)) ->  | AD45: =IF($B45="","",IFERROR(INDEX(Ingredients_DB!$Y$2:$Y$501, MATCH($B45, Ingredients_DB!$B$2:$B$501,0)),0)) ->  | AE45: =IF($B45="","",IFERROR(INDEX(Ingredients_DB!$Z$2:$Z$501, MATCH($B45, Ingredients_DB!$B$2:$B$501,0)),0)) -> 
A46: 26 | C46: 0.00 | D46: g | G46: =IF($B46="","",IFERROR(INDEX(Ingredients_DB!$K$2:$K$501, MATCH($B46, Ingredients_DB!$B$2:$B$501,0)),0)) ->  | O46: =IF($B46="","",IFERROR(INDEX(Ingredients_DB!$H$2:$H$501, MATCH($B46, Ingredients_DB!$B$2:$B$501,0)),"")) ->  | P46: =IF($B46="","",IFERROR(INDEX(Ingredients_DB!$I$2:$I$501, MATCH($B46, Ingredients_DB!$B$2:$B$501,0)),"")) ->  | Q46: =IF($B46="","",IFERROR(VLOOKUP($O46&"|"&$D46,UOM_Conversions!$A$2:$E$50,4,FALSE),"CHECK UNIT")) ->  | R46: =IF($B46="","",IFERROR(INDEX(Ingredients_DB!$M$2:$M$501, MATCH($B46, Ingredients_DB!$B$2:$B$501,0)),0)) ->  | S46: =IF($B46="","",IFERROR(INDEX(Ingredients_DB!$N$2:$N$501, MATCH($B46, Ingredients_DB!$B$2:$B$501,0)),0)) ->  | T46: =IF($B46="","",IFERROR(INDEX(Ingredients_DB!$O$2:$O$501, MATCH($B46, Ingredients_DB!$B$2:$B$501,0)),0)) ->  | U46: =IF($B46="","",IFERROR(INDEX(Ingredients_DB!$P$2:$P$501, MATCH($B46, Ingredients_DB!$B$2:$B$501,0)),0)) ->  | V46: =IF($B46="","",IFERROR(INDEX(Ingredients_DB!$Q$2:$Q$501, MATCH($B46, Ingredients_DB!$B$2:$B$501,0)),0)) ->  | W46: =IF($B46="","",IFERROR(INDEX(Ingredients_DB!$R$2:$R$501, MATCH($B46, Ingredients_DB!$B$2:$B$501,0)),0)) ->  | X46: =IF($B46="","",IFERROR(INDEX(Ingredients_DB!$S$2:$S$501, MATCH($B46, Ingredients_DB!$B$2:$B$501,0)),0)) ->  | Y46: =IF($B46="","",IFERROR(INDEX(Ingredients_DB!$T$2:$T$501, MATCH($B46, Ingredients_DB!$B$2:$B$501,0)),0)) ->  | Z46: =IF($B46="","",IFERROR(INDEX(Ingredients_DB!$U$2:$U$501, MATCH($B46, Ingredients_DB!$B$2:$B$501,0)),0)) ->  | AA46: =IF($B46="","",IFERROR(INDEX(Ingredients_DB!$V$2:$V$501, MATCH($B46, Ingredients_DB!$B$2:$B$501,0)),0)) ->  | AB46: =IF($B46="","",IFERROR(INDEX(Ingredients_DB!$W$2:$W$501, MATCH($B46, Ingredients_DB!$B$2:$B$501,0)),0)) ->  | AC46: =IF($B46="","",IFERROR(INDEX(Ingredients_DB!$X$2:$X$501, MATCH($B46, Ingredients_DB!$B$2:$B$501,0)),0)) ->  | AD46: =IF($B46="","",IFERROR(INDEX(Ingredients_DB!$Y$2:$Y$501, MATCH($B46, Ingredients_DB!$B$2:$B$501,0)),0)) ->  | AE46: =IF($B46="","",IFERROR(INDEX(Ingredients_DB!$Z$2:$Z$501, MATCH($B46, Ingredients_DB!$B$2:$B$501,0)),0)) -> 
A47: 27 | C47: 0.00 | D47: g | G47: =IF($B47="","",IFERROR(INDEX(Ingredients_DB!$K$2:$K$501, MATCH($B47, Ingredients_DB!$B$2:$B$501,0)),0)) ->  | O47: =IF($B47="","",IFERROR(INDEX(Ingredients_DB!$H$2:$H$501, MATCH($B47, Ingredients_DB!$B$2:$B$501,0)),"")) ->  | P47: =IF($B47="","",IFERROR(INDEX(Ingredients_DB!$I$2:$I$501, MATCH($B47, Ingredients_DB!$B$2:$B$501,0)),"")) ->  | Q47: =IF($B47="","",IFERROR(VLOOKUP($O47&"|"&$D47,UOM_Conversions!$A$2:$E$50,4,FALSE),"CHECK UNIT")) ->  | R47: =IF($B47="","",IFERROR(INDEX(Ingredients_DB!$M$2:$M$501, MATCH($B47, Ingredients_DB!$B$2:$B$501,0)),0)) ->  | S47: =IF($B47="","",IFERROR(INDEX(Ingredients_DB!$N$2:$N$501, MATCH($B47, Ingredients_DB!$B$2:$B$501,0)),0)) ->  | T47: =IF($B47="","",IFERROR(INDEX(Ingredients_DB!$O$2:$O$501, MATCH($B47, Ingredients_DB!$B$2:$B$501,0)),0)) ->  | U47: =IF($B47="","",IFERROR(INDEX(Ingredients_DB!$P$2:$P$501, MATCH($B47, Ingredients_DB!$B$2:$B$501,0)),0)) ->  | V47: =IF($B47="","",IFERROR(INDEX(Ingredients_DB!$Q$2:$Q$501, MATCH($B47, Ingredients_DB!$B$2:$B$501,0)),0)) ->  | W47: =IF($B47="","",IFERROR(INDEX(Ingredients_DB!$R$2:$R$501, MATCH($B47, Ingredients_DB!$B$2:$B$501,0)),0)) ->  | X47: =IF($B47="","",IFERROR(INDEX(Ingredients_DB!$S$2:$S$501, MATCH($B47, Ingredients_DB!$B$2:$B$501,0)),0)) ->  | Y47: =IF($B47="","",IFERROR(INDEX(Ingredients_DB!$T$2:$T$501, MATCH($B47, Ingredients_DB!$B$2:$B$501,0)),0)) ->  | Z47: =IF($B47="","",IFERROR(INDEX(Ingredients_DB!$U$2:$U$501, MATCH($B47, Ingredients_DB!$B$2:$B$501,0)),0)) ->  | AA47: =IF($B47="","",IFERROR(INDEX(Ingredients_DB!$V$2:$V$501, MATCH($B47, Ingredients_DB!$B$2:$B$501,0)),0)) ->  | AB47: =IF($B47="","",IFERROR(INDEX(Ingredients_DB!$W$2:$W$501, MATCH($B47, Ingredients_DB!$B$2:$B$501,0)),0)) ->  | AC47: =IF($B47="","",IFERROR(INDEX(Ingredients_DB!$X$2:$X$501, MATCH($B47, Ingredients_DB!$B$2:$B$501,0)),0)) ->  | AD47: =IF($B47="","",IFERROR(INDEX(Ingredients_DB!$Y$2:$Y$501, MATCH($B47, Ingredients_DB!$B$2:$B$501,0)),0)) ->  | AE47: =IF($B47="","",IFERROR(INDEX(Ingredients_DB!$Z$2:$Z$501, MATCH($B47, Ingredients_DB!$B$2:$B$501,0)),0)) -> 
A48: 28 | C48: 0.00 | D48: g | G48: =IF($B48="","",IFERROR(INDEX(Ingredients_DB!$K$2:$K$501, MATCH($B48, Ingredients_DB!$B$2:$B$501,0)),0)) ->  | O48: =IF($B48="","",IFERROR(INDEX(Ingredients_DB!$H$2:$H$501, MATCH($B48, Ingredients_DB!$B$2:$B$501,0)),"")) ->  | P48: =IF($B48="","",IFERROR(INDEX(Ingredients_DB!$I$2:$I$501, MATCH($B48, Ingredients_DB!$B$2:$B$501,0)),"")) ->  | Q48: =IF($B48="","",IFERROR(VLOOKUP($O48&"|"&$D48,UOM_Conversions!$A$2:$E$50,4,FALSE),"CHECK UNIT")) ->  | R48: =IF($B48="","",IFERROR(INDEX(Ingredients_DB!$M$2:$M$501, MATCH($B48, Ingredients_DB!$B$2:$B$501,0)),0)) ->  | S48: =IF($B48="","",IFERROR(INDEX(Ingredients_DB!$N$2:$N$501, MATCH($B48, Ingredients_DB!$B$2:$B$501,0)),0)) ->  | T48: =IF($B48="","",IFERROR(INDEX(Ingredients_DB!$O$2:$O$501, MATCH($B48, Ingredients_DB!$B$2:$B$501,0)),0)) ->  | U48: =IF($B48="","",IFERROR(INDEX(Ingredients_DB!$P$2:$P$501, MATCH($B48, Ingredients_DB!$B$2:$B$501,0)),0)) ->  | V48: =IF($B48="","",IFERROR(INDEX(Ingredients_DB!$Q$2:$Q$501, MATCH($B48, Ingredients_DB!$B$2:$B$501,0)),0)) ->  | W48: =IF($B48="","",IFERROR(INDEX(Ingredients_DB!$R$2:$R$501, MATCH($B48, Ingredients_DB!$B$2:$B$501,0)),0)) ->  | X48: =IF($B48="","",IFERROR(INDEX(Ingredients_DB!$S$2:$S$501, MATCH($B48, Ingredients_DB!$B$2:$B$501,0)),0)) ->  | Y48: =IF($B48="","",IFERROR(INDEX(Ingredients_DB!$T$2:$T$501, MATCH($B48, Ingredients_DB!$B$2:$B$501,0)),0)) ->  | Z48: =IF($B48="","",IFERROR(INDEX(Ingredients_DB!$U$2:$U$501, MATCH($B48, Ingredients_DB!$B$2:$B$501,0)),0)) ->  | AA48: =IF($B48="","",IFERROR(INDEX(Ingredients_DB!$V$2:$V$501, MATCH($B48, Ingredients_DB!$B$2:$B$501,0)),0)) ->  | AB48: =IF($B48="","",IFERROR(INDEX(Ingredients_DB!$W$2:$W$501, MATCH($B48, Ingredients_DB!$B$2:$B$501,0)),0)) ->  | AC48: =IF($B48="","",IFERROR(INDEX(Ingredients_DB!$X$2:$X$501, MATCH($B48, Ingredients_DB!$B$2:$B$501,0)),0)) ->  | AD48: =IF($B48="","",IFERROR(INDEX(Ingredients_DB!$Y$2:$Y$501, MATCH($B48, Ingredients_DB!$B$2:$B$501,0)),0)) ->  | AE48: =IF($B48="","",IFERROR(INDEX(Ingredients_DB!$Z$2:$Z$501, MATCH($B48, Ingredients_DB!$B$2:$B$501,0)),0)) -> 
A49: 29 | C49: 0.00 | D49: g | G49: =IF($B49="","",IFERROR(INDEX(Ingredients_DB!$K$2:$K$501, MATCH($B49, Ingredients_DB!$B$2:$B$501,0)),0)) ->  | O49: =IF($B49="","",IFERROR(INDEX(Ingredients_DB!$H$2:$H$501, MATCH($B49, Ingredients_DB!$B$2:$B$501,0)),"")) ->  | P49: =IF($B49="","",IFERROR(INDEX(Ingredients_DB!$I$2:$I$501, MATCH($B49, Ingredients_DB!$B$2:$B$501,0)),"")) ->  | Q49: =IF($B49="","",IFERROR(VLOOKUP($O49&"|"&$D49,UOM_Conversions!$A$2:$E$50,4,FALSE),"CHECK UNIT")) ->  | R49: =IF($B49="","",IFERROR(INDEX(Ingredients_DB!$M$2:$M$501, MATCH($B49, Ingredients_DB!$B$2:$B$501,0)),0)) ->  | S49: =IF($B49="","",IFERROR(INDEX(Ingredients_DB!$N$2:$N$501, MATCH($B49, Ingredients_DB!$B$2:$B$501,0)),0)) ->  | T49: =IF($B49="","",IFERROR(INDEX(Ingredients_DB!$O$2:$O$501, MATCH($B49, Ingredients_DB!$B$2:$B$501,0)),0)) ->  | U49: =IF($B49="","",IFERROR(INDEX(Ingredients_DB!$P$2:$P$501, MATCH($B49, Ingredients_DB!$B$2:$B$501,0)),0)) ->  | V49: =IF($B49="","",IFERROR(INDEX(Ingredients_DB!$Q$2:$Q$501, MATCH($B49, Ingredients_DB!$B$2:$B$501,0)),0)) ->  | W49: =IF($B49="","",IFERROR(INDEX(Ingredients_DB!$R$2:$R$501, MATCH($B49, Ingredients_DB!$B$2:$B$501,0)),0)) ->  | X49: =IF($B49="","",IFERROR(INDEX(Ingredients_DB!$S$2:$S$501, MATCH($B49, Ingredients_DB!$B$2:$B$501,0)),0)) ->  | Y49: =IF($B49="","",IFERROR(INDEX(Ingredients_DB!$T$2:$T$501, MATCH($B49, Ingredients_DB!$B$2:$B$501,0)),0)) ->  | Z49: =IF($B49="","",IFERROR(INDEX(Ingredients_DB!$U$2:$U$501, MATCH($B49, Ingredients_DB!$B$2:$B$501,0)),0)) ->  | AA49: =IF($B49="","",IFERROR(INDEX(Ingredients_DB!$V$2:$V$501, MATCH($B49, Ingredients_DB!$B$2:$B$501,0)),0)) ->  | AB49: =IF($B49="","",IFERROR(INDEX(Ingredients_DB!$W$2:$W$501, MATCH($B49, Ingredients_DB!$B$2:$B$501,0)),0)) ->  | AC49: =IF($B49="","",IFERROR(INDEX(Ingredients_DB!$X$2:$X$501, MATCH($B49, Ingredients_DB!$B$2:$B$501,0)),0)) ->  | AD49: =IF($B49="","",IFERROR(INDEX(Ingredients_DB!$Y$2:$Y$501, MATCH($B49, Ingredients_DB!$B$2:$B$501,0)),0)) ->  | AE49: =IF($B49="","",IFERROR(INDEX(Ingredients_DB!$Z$2:$Z$501, MATCH($B49, Ingredients_DB!$B$2:$B$501,0)),0)) -> 
A50: 30 | C50: 0.00 | D50: g | G50: =IF($B50="","",IFERROR(INDEX(Ingredients_DB!$K$2:$K$501, MATCH($B50, Ingredients_DB!$B$2:$B$501,0)),0)) ->  | O50: =IF($B50="","",IFERROR(INDEX(Ingredients_DB!$H$2:$H$501, MATCH($B50, Ingredients_DB!$B$2:$B$501,0)),"")) ->  | P50: =IF($B50="","",IFERROR(INDEX(Ingredients_DB!$I$2:$I$501, MATCH($B50, Ingredients_DB!$B$2:$B$501,0)),"")) ->  | Q50: =IF($B50="","",IFERROR(VLOOKUP($O50&"|"&$D50,UOM_Conversions!$A$2:$E$50,4,FALSE),"CHECK UNIT")) ->  | R50: =IF($B50="","",IFERROR(INDEX(Ingredients_DB!$M$2:$M$501, MATCH($B50, Ingredients_DB!$B$2:$B$501,0)),0)) ->  | S50: =IF($B50="","",IFERROR(INDEX(Ingredients_DB!$N$2:$N$501, MATCH($B50, Ingredients_DB!$B$2:$B$501,0)),0)) ->  | T50: =IF($B50="","",IFERROR(INDEX(Ingredients_DB!$O$2:$O$501, MATCH($B50, Ingredients_DB!$B$2:$B$501,0)),0)) ->  | U50: =IF($B50="","",IFERROR(INDEX(Ingredients_DB!$P$2:$P$501, MATCH($B50, Ingredients_DB!$B$2:$B$501,0)),0)) ->  | V50: =IF($B50="","",IFERROR(INDEX(Ingredients_DB!$Q$2:$Q$501, MATCH($B50, Ingredients_DB!$B$2:$B$501,0)),0)) ->  | W50: =IF($B50="","",IFERROR(INDEX(Ingredients_DB!$R$2:$R$501, MATCH($B50, Ingredients_DB!$B$2:$B$501,0)),0)) ->  | X50: =IF($B50="","",IFERROR(INDEX(Ingredients_DB!$S$2:$S$501, MATCH($B50, Ingredients_DB!$B$2:$B$501,0)),0)) ->  | Y50: =IF($B50="","",IFERROR(INDEX(Ingredients_DB!$T$2:$T$501, MATCH($B50, Ingredients_DB!$B$2:$B$501,0)),0)) ->  | Z50: =IF($B50="","",IFERROR(INDEX(Ingredients_DB!$U$2:$U$501, MATCH($B50, Ingredients_DB!$B$2:$B$501,0)),0)) ->  | AA50: =IF($B50="","",IFERROR(INDEX(Ingredients_DB!$V$2:$V$501, MATCH($B50, Ingredients_DB!$B$2:$B$501,0)),0)) ->  | AB50: =IF($B50="","",IFERROR(INDEX(Ingredients_DB!$W$2:$W$501, MATCH($B50, Ingredients_DB!$B$2:$B$501,0)),0)) ->  | AC50: =IF($B50="","",IFERROR(INDEX(Ingredients_DB!$X$2:$X$501, MATCH($B50, Ingredients_DB!$B$2:$B$501,0)),0)) ->  | AD50: =IF($B50="","",IFERROR(INDEX(Ingredients_DB!$Y$2:$Y$501, MATCH($B50, Ingredients_DB!$B$2:$B$501,0)),0)) ->  | AE50: =IF($B50="","",IFERROR(INDEX(Ingredients_DB!$Z$2:$Z$501, MATCH($B50, Ingredients_DB!$B$2:$B$501,0)),0)) -> 

Sheet Ingredients_DB
A1: ID | B1: Ingredient | C1: Category | D1: Supplier | E1: PackCost | F1: PackSize | G1: PackUOM | H1: BaseType | I1: BaseUnit | J1: PackBaseQty | K1: UnitCostPerBase | L1: Notes | M1: Milk | N1: Egg | O1: Fish | P1: Shellfish | Q1: Molluscs | R1: Peanuts | S1: TreeNuts | T1: Wheat/Gluten | U1: Soy | V1: Sesame | W1: Mustard | X1: Celery | Y1: Lupin | Z1: Sulphites
A2: ING001 | B2: Beef mince | C2: Meat | D2: Local Butcher | E2: $45.00 | F2: 5.00 | G2: kg | H2: Weight | I2: g | J2: =IF($B2="","",IF($H2="Weight",$F2*VLOOKUP("Weight|"&$G2,UOM_Conversions!$A$2:$E$50,4,FALSE),IF($H2="Volume",$F2*VLOOKUP("Volume|"&$G2,UOM_Conversions!$A$2:$E$50,4,FALSE),$F2*VLOOKUP("Each|"&$G2,UOM_Conversions!$A$2:$E$50,4,FALSE)))) -> 5000.00 | K2: =IF($B2="","",IFERROR($E2/$J2,0)) -> $0.01 | M2: 0 | N2: 0 | O2: 0 | P2: 0 | Q2: 0 | R2: 0 | S2: 0 | T2: 0 | U2: 0 | V2: 0 | W2: 0 | X2: 0 | Y2: 0 | Z2: 0
A3: ING002 | B3: Burger bun | C3: Bakery | D3: Bakery Co | E3: $18.00 | F3: 24.00 | G3: each | H3: Each | I3: each | J3: =IF($B3="","",IF($H3="Weight",$F3*VLOOKUP("Weight|"&$G3,UOM_Conversions!$A$2:$E$50,4,FALSE),IF($H3="Volume",$F3*VLOOKUP("Volume|"&$G3,UOM_Conversions!$A$2:$E$50,4,FALSE),$F3*VLOOKUP("Each|"&$G3,UOM_Conversions!$A$2:$E$50,4,FALSE)))) -> 24.00 | K3: $0.75 | M3: 0 | N3: 0 | O3: 0 | P3: 0 | Q3: 0 | R3: 0 | S3: 0 | T3: 1 | U3: 0 | V3: 0 | W3: 0 | X3: 0 | Y3: 0 | Z3: 0
A4: ING003 | B4: Cheddar cheese | C4: Dairy | D4: Dairy Supplier | E4: $22.00 | F4: 2.00 | G4: kg | H4: Weight | I4: g | J4: =IF($B4="","",IF($H4="Weight",$F4*VLOOKUP("Weight|"&$G4,UOM_Conversions!$A$2:$E$50,4,FALSE),IF($H4="Volume",$F4*VLOOKUP("Volume|"&$G4,UOM_Conversions!$A$2:$E$50,4,FALSE),$F4*VLOOKUP("Each|"&$G4,UOM_Conversions!$A$2:$E$50,4,FALSE)))) -> 2000.00 | K4: $0.01 | M4: 1 | N4: 0 | O4: 0 | P4: 0 | Q4: 0 | R4: 0 | S4: 0 | T4: 0 | U4: 0 | V4: 0 | W4: 0 | X4: 0 | Y4: 0 | Z4: 0
A5: ING004 | B5: Lettuce | C5: Produce | D5: Fresh Farms | E5: $8.00 | F5: 1.00 | G5: kg | H5: Weight | I5: g | J5: =IF($B5="","",IF($H5="Weight",$F5*VLOOKUP("Weight|"&$G5,UOM_Conversions!$A$2:$E$50,4,FALSE),IF($H5="Volume",$F5*VLOOKUP("Volume|"&$G5,UOM_Conversions!$A$2:$E$50,4,FALSE),$F5*VLOOKUP("Each|"&$G5,UOM_Conversions!$A$2:$E$50,4,FALSE)))) -> 1000.00 | K5: $0.01 | M5: 0 | N5: 0 | O5: 0 | P5: 0 | Q5: 0 | R5: 0 | S5: 0 | T5: 0 | U5: 0 | V5: 0 | W5: 0 | X5: 0 | Y5: 0 | Z5: 0
A6: ING005 | B6: Ketchup | C6: Condiments | D6: Foodservice | E6: $12.00 | F6: 3.00 | G6: kg | H6: Weight | I6: g | J6: =IF($B6="","",IF($H6="Weight",$F6*VLOOKUP("Weight|"&$G6,UOM_Conversions!$A$2:$E$50,4,FALSE),IF($H6="Volume",$F6*VLOOKUP("Volume|"&$G6,UOM_Conversions!$A$2:$E$50,4,FALSE),$F6*VLOOKUP("Each|"&$G6,UOM_Conversions!$A$2:$E$50,4,FALSE)))) -> 3000.00 | K6: $0.00 | M6: 0 | N6: 0 | O6: 0 | P6: 0 | Q6: 0 | R6: 0 | S6: 0 | T6: 0 | U6: 0 | V6: 0 | W6: 0 | X6: 0 | Y6: 0 | Z6: 0
A7: ING006 | B7: Mayonnaise | C7: Condiments | D7: Foodservice | E7: $15.00 | F7: 2.00 | G7: kg | H7: Weight | I7: g | J7: =IF($B7="","",IF($H7="Weight",$F7*VLOOKUP("Weight|"&$G7,UOM_Conversions!$A$2:$E$50,4,FALSE),IF($H7="Volume",$F7*VLOOKUP("Volume|"&$G7,UOM_Conversions!$A$2:$E$50,4,FALSE),$F7*VLOOKUP("Each|"&$G7,UOM_Conversions!$A$2:$E$50,4,FALSE)))) -> 2000.00 | K7: $0.01 | M7: 0 | N7: 1 | O7: 0 | P7: 0 | Q7: 0 | R7: 0 | S7: 0 | T7: 0 | U7: 1 | V7: 0 | W7: 0 | X7: 0 | Y7: 0 | Z7: 0
A8: ING007 | B8: French fries (frozen) | C8: Frozen | D8: Foodservice | E8: $28.00 | F8: 10.00 | G8: kg | H8: Weight | I8: g | J8: =IF($B8="","",IF($H8="Weight",$F8*VLOOKUP("Weight|"&$G8,UOM_Conversions!$A$2:$E$50,4,FALSE),IF($H8="Volume",$F8*VLOOKUP("Volume|"&$G8,UOM_Conversions!$A$2:$E$50,4,FALSE),$F8*VLOOKUP("Each|"&$G8,UOM_Conversions!$A$2:$E$50,4,FALSE)))) -> 10000.00 | K8: $0.00 | M8: 0 | N8: 0 | O8: 0 | P8: 0 | Q8: 0 | R8: 0 | S8: 0 | T8: 0 | U8: 0 | V8: 0 | W8: 0 | X8: 0 | Y8: 0 | Z8: 0
A9: ING008 | B9: Sesame seeds | C9: Dry goods | D9: Foodservice | E9: $10.00 | F9: 1.00 | G9: kg | H9: Weight | I9: g | J9: =IF($B9="","",IF($H9="Weight",$F9*VLOOKUP("Weight|"&$G9,UOM_Conversions!$A$2:$E$50,4,FALSE),IF($H9="Volume",$F9*VLOOKUP("Volume|"&$G9,UOM_Conversions!$A$2:$E$50,4,FALSE),$F9*VLOOKUP("Each|"&$G9,UOM_Conversions!$A$2:$E$50,4,FALSE)))) -> 1000.00 | K9: $0.01 | M9: 0 | N9: 0 | O9: 0 | P9: 0 | Q9: 0 | R9: 0 | S9: 0 | T9: 0 | U9: 0 | V9: 1 | W9: 0 | X9: 0 | Y9: 0 | Z9: 0
J10: =IF($B10="","",IF($H10="Weight",$F10*VLOOKUP("Weight|"&$G10,UOM_Conversions!$A$2:$E$50,4,FALSE),IF($H10="Volume",$F10*VLOOKUP("Volume|"&$G10,UOM_Conversions!$A$2:$E$50,4,FALSE),$F10*VLOOKUP("Each|"&$G10,UOM_Conversions!$A$2:$E$50,4,FALSE)))) -> 
J11: =IF($B11="","",IF($H11="Weight",$F11*VLOOKUP("Weight|"&$G11,UOM_Conversions!$A$2:$E$50,4,FALSE),IF($H11="Volume",$F11*VLOOKUP("Volume|"&$G11,UOM_Conversions!$A$2:$E$50,4,FALSE),$F11*VLOOKUP("Each|"&$G11,UOM_Conversions!$A$2:$E$50,4,FALSE)))) -> 
J12: =IF($B12="","",IF($H12="Weight",$F12*VLOOKUP("Weight|"&$G12,UOM_Conversions!$A$2:$E$50,4,FALSE),IF($H12="Volume",$F12*VLOOKUP("Volume|"&$G12,UOM_Conversions!$A$2:$E$50,4,FALSE),$F12*VLOOKUP("Each|"&$G12,UOM_Conversions!$A$2:$E$50,4,FALSE)))) -> 
J13: =IF($B13="","",IF($H13="Weight",$F13*VLOOKUP("Weight|"&$G13,UOM_Conversions!$A$2:$E$50,4,FALSE),IF($H13="Volume",$F13*VLOOKUP("Volume|"&$G13,UOM_Conversions!$A$2:$E$50,4,FALSE),$F13*VLOOKUP("Each|"&$G13,UOM_Conversions!$A$2:$E$50,4,FALSE)))) -> 
J14: =IF($B14="","",IF($H14="Weight",$F14*VLOOKUP("Weight|"&$G14,UOM_Conversions!$A$2:$E$50,4,FALSE),IF($H14="Volume",$F14*VLOOKUP("Volume|"&$G14,UOM_Conversions!$A$2:$E$50,4,FALSE),$F14*VLOOKUP("Each|"&$G14,UOM_Conversions!$A$2:$E$50,4,FALSE)))) -> 
J15: =IF($B15="","",IF($H15="Weight",$F15*VLOOKUP("Weight|"&$G15,UOM_Conversions!$A$2:$E$50,4,FALSE),IF($H15="Volume",$F15*VLOOKUP("Volume|"&$G15,UOM_Conversions!$A$2:$E$50,4,FALSE),$F15*VLOOKUP("Each|"&$G15,UOM_Conversions!$A$2:$E$50,4,FALSE)))) -> 
J16: =IF($B16="","",IF($H16="Weight",$F16*VLOOKUP("Weight|"&$G16,UOM_Conversions!$A$2:$E$50,4,FALSE),IF($H16="Volume",$F16*VLOOKUP("Volume|"&$G16,UOM_Conversions!$A$2:$E$50,4,FALSE),$F16*VLOOKUP("Each|"&$G16,UOM_Conversions!$A$2:$E$50,4,FALSE)))) -> 
J17: =IF($B17="","",IF($H17="Weight",$F17*VLOOKUP("Weight|"&$G17,UOM_Conversions!$A$2:$E$50,4,FALSE),IF($H17="Volume",$F17*VLOOKUP("Volume|"&$G17,UOM_Conversions!$A$2:$E$50,4,FALSE),$F17*VLOOKUP("Each|"&$G17,UOM_Conversions!$A$2:$E$50,4,FALSE)))) -> 
J18: =IF($B18="","",IF($H18="Weight",$F18*VLOOKUP("Weight|"&$G18,UOM_Conversions!$A$2:$E$50,4,FALSE),IF($H18="Volume",$F18*VLOOKUP("Volume|"&$G18,UOM_Conversions!$A$2:$E$50,4,FALSE),$F18*VLOOKUP("Each|"&$G18,UOM_Conversions!$A$2:$E$50,4,FALSE)))) -> 
J19: =IF($B19="","",IF($H19="Weight",$F19*VLOOKUP("Weight|"&$G19,UOM_Conversions!$A$2:$E$50,4,FALSE),IF($H19="Volume",$F19*VLOOKUP("Volume|"&$G19,UOM_Conversions!$A$2:$E$50,4,FALSE),$F19*VLOOKUP("Each|"&$G19,UOM_Conversions!$A$2:$E$50,4,FALSE)))) -> 
J20: =IF($B20="","",IF($H20="Weight",$F20*VLOOKUP("Weight|"&$G20,UOM_Conversions!$A$2:$E$50,4,FALSE),IF($H20="Volume",$F20*VLOOKUP("Volume|"&$G20,UOM_Conversions!$A$2:$E$50,4,FALSE),$F20*VLOOKUP("Each|"&$G20,UOM_Conversions!$A$2:$E$50,4,FALSE)))) -> 
J21: =IF($B21="","",IF($H21="Weight",$F21*VLOOKUP("Weight|"&$G21,UOM_Conversions!$A$2:$E$50,4,FALSE),IF($H21="Volume",$F21*VLOOKUP("Volume|"&$G21,UOM_Conversions!$A$2:$E$50,4,FALSE),$F21*VLOOKUP("Each|"&$G21,UOM_Conversions!$A$2:$E$50,4,FALSE)))) -> 
J22: =IF($B22="","",IF($H22="Weight",$F22*VLOOKUP("Weight|"&$G22,UOM_Conversions!$A$2:$E$50,4,FALSE),IF($H22="Volume",$F22*VLOOKUP("Volume|"&$G22,UOM_Conversions!$A$2:$E$50,4,FALSE),$F22*VLOOKUP("Each|"&$G22,UOM_Conversions!$A$2:$E$50,4,FALSE)))) -> 
J23: =IF($B23="","",IF($H23="Weight",$F23*VLOOKUP("Weight|"&$G23,UOM_Conversions!$A$2:$E$50,4,FALSE),IF($H23="Volume",$F23*VLOOKUP("Volume|"&$G23,UOM_Conversions!$A$2:$E$50,4,FALSE),$F23*VLOOKUP("Each|"&$G23,UOM_Conversions!$A$2:$E$50,4,FALSE)))) -> 
J24: =IF($B24="","",IF($H24="Weight",$F24*VLOOKUP("Weight|"&$G24,UOM_Conversions!$A$2:$E$50,4,FALSE),IF($H24="Volume",$F24*VLOOKUP("Volume|"&$G24,UOM_Conversions!$A$2:$E$50,4,FALSE),$F24*VLOOKUP("Each|"&$G24,UOM_Conversions!$A$2:$E$50,4,FALSE)))) -> 
J25: =IF($B25="","",IF($H25="Weight",$F25*VLOOKUP("Weight|"&$G25,UOM_Conversions!$A$2:$E$50,4,FALSE),IF($H25="Volume",$F25*VLOOKUP("Volume|"&$G25,UOM_Conversions!$A$2:$E$50,4,FALSE),$F25*VLOOKUP("Each|"&$G25,UOM_Conversions!$A$2:$E$50,4,FALSE)))) -> 
J26: =IF($B26="","",IF($H26="Weight",$F26*VLOOKUP("Weight|"&$G26,UOM_Conversions!$A$2:$E$50,4,FALSE),IF($H26="Volume",$F26*VLOOKUP("Volume|"&$G26,UOM_Conversions!$A$2:$E$50,4,FALSE),$F26*VLOOKUP("Each|"&$G26,UOM_Conversions!$A$2:$E$50,4,FALSE)))) -> 
J27: =IF($B27="","",IF($H27="Weight",$F27*VLOOKUP("Weight|"&$G27,UOM_Conversions!$A$2:$E$50,4,FALSE),IF($H27="Volume",$F27*VLOOKUP("Volume|"&$G27,UOM_Conversions!$A$2:$E$50,4,FALSE),$F27*VLOOKUP("Each|"&$G27,UOM_Conversions!$A$2:$E$50,4,FALSE)))) -> 
J28: =IF($B28="","",IF($H28="Weight",$F28*VLOOKUP("Weight|"&$G28,UOM_Conversions!$A$2:$E$50,4,FALSE),IF($H28="Volume",$F28*VLOOKUP("Volume|"&$G28,UOM_Conversions!$A$2:$E$50,4,FALSE),$F28*VLOOKUP("Each|"&$G28,UOM_Conversions!$A$2:$E$50,4,FALSE)))) -> 
J29: =IF($B29="","",IF($H29="Weight",$F29*VLOOKUP("Weight|"&$G29,UOM_Conversions!$A$2:$E$50,4,FALSE),IF($H29="Volume",$F29*VLOOKUP("Volume|"&$G29,UOM_Conversions!$A$2:$E$50,4,FALSE),$F29*VLOOKUP("Each|"&$G29,UOM_Conversions!$A$2:$E$50,4,FALSE)))) -> 
J30: =IF($B30="","",IF($H30="Weight",$F30*VLOOKUP("Weight|"&$G30,UOM_Conversions!$A$2:$E$50,4,FALSE),IF($H30="Volume",$F30*VLOOKUP("Volume|"&$G30,UOM_Conversions!$A$2:$E$50,4,FALSE),$F30*VLOOKUP("Each|"&$G30,UOM_Conversions!$A$2:$E$50,4,FALSE)))) -> 
J31: =IF($B31="","",IF($H31="Weight",$F31*VLOOKUP("Weight|"&$G31,UOM_Conversions!$A$2:$E$50,4,FALSE),IF($H31="Volume",$F31*VLOOKUP("Volume|"&$G31,UOM_Conversions!$A$2:$E$50,4,FALSE),$F31*VLOOKUP("Each|"&$G31,UOM_Conversions!$A$2:$E$50,4,FALSE)))) -> 
J32: =IF($B32="","",IF($H32="Weight",$F32*VLOOKUP("Weight|"&$G32,UOM_Conversions!$A$2:$E$50,4,FALSE),IF($H32="Volume",$F32*VLOOKUP("Volume|"&$G32,UOM_Conversions!$A$2:$E$50,4,FALSE),$F32*VLOOKUP("Each|"&$G32,UOM_Conversions!$A$2:$E$50,4,FALSE)))) -> 
J33: =IF($B33="","",IF($H33="Weight",$F33*VLOOKUP("Weight|"&$G33,UOM_Conversions!$A$2:$E$50,4,FALSE),IF($H33="Volume",$F33*VLOOKUP("Volume|"&$G33,UOM_Conversions!$A$2:$E$50,4,FALSE),$F33*VLOOKUP("Each|"&$G33,UOM_Conversions!$A$2:$E$50,4,FALSE)))) -> 
J34: =IF($B34="","",IF($H34="Weight",$F34*VLOOKUP("Weight|"&$G34,UOM_Conversions!$A$2:$E$50,4,FALSE),IF($H34="Volume",$F34*VLOOKUP("Volume|"&$G34,UOM_Conversions!$A$2:$E$50,4,FALSE),$F34*VLOOKUP("Each|"&$G34,UOM_Conversions!$A$2:$E$50,4,FALSE)))) -> 
J35: =IF($B35="","",IF($H35="Weight",$F35*VLOOKUP("Weight|"&$G35,UOM_Conversions!$A$2:$E$50,4,FALSE),IF($H35="Volume",$F35*VLOOKUP("Volume|"&$G35,UOM_Conversions!$A$2:$E$50,4,FALSE),$F35*VLOOKUP("Each|"&$G35,UOM_Conversions!$A$2:$E$50,4,FALSE)))) -> 
J36: =IF($B36="","",IF($H36="Weight",$F36*VLOOKUP("Weight|"&$G36,UOM_Conversions!$A$2:$E$50,4,FALSE),IF($H36="Volume",$F36*VLOOKUP("Volume|"&$G36,UOM_Conversions!$A$2:$E$50,4,FALSE),$F36*VLOOKUP("Each|"&$G36,UOM_Conversions!$A$2:$E$50,4,FALSE)))) -> 
J37: =IF($B37="","",IF($H37="Weight",$F37*VLOOKUP("Weight|"&$G37,UOM_Conversions!$A$2:$E$50,4,FALSE),IF($H37="Volume",$F37*VLOOKUP("Volume|"&$G37,UOM_Conversions!$A$2:$E$50,4,FALSE),$F37*VLOOKUP("Each|"&$G37,UOM_Conversions!$A$2:$E$50,4,FALSE)))) -> 
J38: =IF($B38="","",IF($H38="Weight",$F38*VLOOKUP("Weight|"&$G38,UOM_Conversions!$A$2:$E$50,4,FALSE),IF($H38="Volume",$F38*VLOOKUP("Volume|"&$G38,UOM_Conversions!$A$2:$E$50,4,FALSE),$F38*VLOOKUP("Each|"&$G38,UOM_Conversions!$A$2:$E$50,4,FALSE)))) -> 
J39: =IF($B39="","",IF($H39="Weight",$F39*VLOOKUP("Weight|"&$G39,UOM_Conversions!$A$2:$E$50,4,FALSE),IF($H39="Volume",$F39*VLOOKUP("Volume|"&$G39,UOM_Conversions!$A$2:$E$50,4,FALSE),$F39*VLOOKUP("Each|"&$G39,UOM_Conversions!$A$2:$E$50,4,FALSE)))) -> 
J40: =IF($B40="","",IF($H40="Weight",$F40*VLOOKUP("Weight|"&$G40,UOM_Conversions!$A$2:$E$50,4,FALSE),IF($H40="Volume",$F40*VLOOKUP("Volume|"&$G40,UOM_Conversions!$A$2:$E$50,4,FALSE),$F40*VLOOKUP("Each|"&$G40,UOM_Conversions!$A$2:$E$50,4,FALSE)))) -> 
J41: =IF($B41="","",IF($H41="Weight",$F41*VLOOKUP("Weight|"&$G41,UOM_Conversions!$A$2:$E$50,4,FALSE),IF($H41="Volume",$F41*VLOOKUP("Volume|"&$G41,UOM_Conversions!$A$2:$E$50,4,FALSE),$F41*VLOOKUP("Each|"&$G41,UOM_Conversions!$A$2:$E$50,4,FALSE)))) -> 
J42: =IF($B42="","",IF($H42="Weight",$F42*VLOOKUP("Weight|"&$G42,UOM_Conversions!$A$2:$E$50,4,FALSE),IF($H42="Volume",$F42*VLOOKUP("Volume|"&$G42,UOM_Conversions!$A$2:$E$50,4,FALSE),$F42*VLOOKUP("Each|"&$G42,UOM_Conversions!$A$2:$E$50,4,FALSE)))) -> 
J43: =IF($B43="","",IF($H43="Weight",$F43*VLOOKUP("Weight|"&$G43,UOM_Conversions!$A$2:$E$50,4,FALSE),IF($H43="Volume",$F43*VLOOKUP("Volume|"&$G43,UOM_Conversions!$A$2:$E$50,4,FALSE),$F43*VLOOKUP("Each|"&$G43,UOM_Conversions!$A$2:$E$50,4,FALSE)))) -> 
J44: =IF($B44="","",IF($H44="Weight",$F44*VLOOKUP("Weight|"&$G44,UOM_Conversions!$A$2:$E$50,4,FALSE),IF($H44="Volume",$F44*VLOOKUP("Volume|"&$G44,UOM_Conversions!$A$2:$E$50,4,FALSE),$F44*VLOOKUP("Each|"&$G44,UOM_Conversions!$A$2:$E$50,4,FALSE)))) -> 
J45: =IF($B45="","",IF($H45="Weight",$F45*VLOOKUP("Weight|"&$G45,UOM_Conversions!$A$2:$E$50,4,FALSE),IF($H45="Volume",$F45*VLOOKUP("Volume|"&$G45,UOM_Conversions!$A$2:$E$50,4,FALSE),$F45*VLOOKUP("Each|"&$G45,UOM_Conversions!$A$2:$E$50,4,FALSE)))) -> 
J46: =IF($B46="","",IF($H46="Weight",$F46*VLOOKUP("Weight|"&$G46,UOM_Conversions!$A$2:$E$50,4,FALSE),IF($H46="Volume",$F46*VLOOKUP("Volume|"&$G46,UOM_Conversions!$A$2:$E$50,4,FALSE),$F46*VLOOKUP("Each|"&$G46,UOM_Conversions!$A$2:$E$50,4,FALSE)))) -> 
J47: =IF($B47="","",IF($H47="Weight",$F47*VLOOKUP("Weight|"&$G47,UOM_Conversions!$A$2:$E$50,4,FALSE),IF($H47="Volume",$F47*VLOOKUP("Volume|"&$G47,UOM_Conversions!$A$2:$E$50,4,FALSE),$F47*VLOOKUP("Each|"&$G47,UOM_Conversions!$A$2:$E$50,4,FALSE)))) -> 
J48: =IF($B48="","",IF($H48="Weight",$F48*VLOOKUP("Weight|"&$G48,UOM_Conversions!$A$2:$E$50,4,FALSE),IF($H48="Volume",$F48*VLOOKUP("Volume|"&$G48,UOM_Conversions!$A$2:$E$50,4,FALSE),$F48*VLOOKUP("Each|"&$G48,UOM_Conversions!$A$2:$E$50,4,FALSE)))) -> 
J49: =IF($B49="","",IF($H49="Weight",$F49*VLOOKUP("Weight|"&$G49,UOM_Conversions!$A$2:$E$50,4,FALSE),IF($H49="Volume",$F49*VLOOKUP("Volume|"&$G49,UOM_Conversions!$A$2:$E$50,4,FALSE),$F49*VLOOKUP("Each|"&$G49,UOM_Conversions!$A$2:$E$50,4,FALSE)))) -> 
J50: =IF($B50="","",IF($H50="Weight",$F50*VLOOKUP("Weight|"&$G50,UOM_Conversions!$A$2:$E$50,4,FALSE),IF($H50="Volume",$F50*VLOOKUP("Volume|"&$G50,UOM_Conversions!$A$2:$E$50,4,FALSE),$F50*VLOOKUP("Each|"&$G50,UOM_Conversions!$A$2:$E$50,4,FALSE)))) -> 
J51: =IF($B51="","",IF($H51="Weight",$F51*VLOOKUP("Weight|"&$G51,UOM_Conversions!$A$2:$E$50,4,FALSE),IF($H51="Volume",$F51*VLOOKUP("Volume|"&$G51,UOM_Conversions!$A$2:$E$50,4,FALSE),$F51*VLOOKUP("Each|"&$G51,UOM_Conversions!$A$2:$E$50,4,FALSE)))) -> 
J52: =IF($B52="","",IF($H52="Weight",$F52*VLOOKUP("Weight|"&$G52,UOM_Conversions!$A$2:$E$50,4,FALSE),IF($H52="Volume",$F52*VLOOKUP("Volume|"&$G52,UOM_Conversions!$A$2:$E$50,4,FALSE),$F52*VLOOKUP("Each|"&$G52,UOM_Conversions!$A$2:$E$50,4,FALSE)))) -> 
J53: =IF($B53="","",IF($H53="Weight",$F53*VLOOKUP("Weight|"&$G53,UOM_Conversions!$A$2:$E$50,4,FALSE),IF($H53="Volume",$F53*VLOOKUP("Volume|"&$G53,UOM_Conversions!$A$2:$E$50,4,FALSE),$F53*VLOOKUP("Each|"&$G53,UOM_Conversions!$A$2:$E$50,4,FALSE)))) -> 
J54: =IF($B54="","",IF($H54="Weight",$F54*VLOOKUP("Weight|"&$G54,UOM_Conversions!$A$2:$E$50,4,FALSE),IF($H54="Volume",$F54*VLOOKUP("Volume|"&$G54,UOM_Conversions!$A$2:$E$50,4,FALSE),$F54*VLOOKUP("Each|"&$G54,UOM_Conversions!$A$2:$E$50,4,FALSE)))) -> 
J55: =IF($B55="","",IF($H55="Weight",$F55*VLOOKUP("Weight|"&$G55,UOM_Conversions!$A$2:$E$50,4,FALSE),IF($H55="Volume",$F55*VLOOKUP("Volume|"&$G55,UOM_Conversions!$A$2:$E$50,4,FALSE),$F55*VLOOKUP("Each|"&$G55,UOM_Conversions!$A$2:$E$50,4,FALSE)))) -> 
J56: =IF($B56="","",IF($H56="Weight",$F56*VLOOKUP("Weight|"&$G56,UOM_Conversions!$A$2:$E$50,4,FALSE),IF($H56="Volume",$F56*VLOOKUP("Volume|"&$G56,UOM_Conversions!$A$2:$E$50,4,FALSE),$F56*VLOOKUP("Each|"&$G56,UOM_Conversions!$A$2:$E$50,4,FALSE)))) -> 
J57: =IF($B57="","",IF($H57="Weight",$F57*VLOOKUP("Weight|"&$G57,UOM_Conversions!$A$2:$E$50,4,FALSE),IF($H57="Volume",$F57*VLOOKUP("Volume|"&$G57,UOM_Conversions!$A$2:$E$50,4,FALSE),$F57*VLOOKUP("Each|"&$G57,UOM_Conversions!$A$2:$E$50,4,FALSE)))) -> 
J58: =IF($B58="","",IF($H58="Weight",$F58*VLOOKUP("Weight|"&$G58,UOM_Conversions!$A$2:$E$50,4,FALSE),IF($H58="Volume",$F58*VLOOKUP("Volume|"&$G58,UOM_Conversions!$A$2:$E$50,4,FALSE),$F58*VLOOKUP("Each|"&$G58,UOM_Conversions!$A$2:$E$50,4,FALSE)))) -> 
J59: =IF($B59="","",IF($H59="Weight",$F59*VLOOKUP("Weight|"&$G59,UOM_Conversions!$A$2:$E$50,4,FALSE),IF($H59="Volume",$F59*VLOOKUP("Volume|"&$G59,UOM_Conversions!$A$2:$E$50,4,FALSE),$F59*VLOOKUP("Each|"&$G59,UOM_Conversions!$A$2:$E$50,4,FALSE)))) -> 
J60: =IF($B60="","",IF($H60="Weight",$F60*VLOOKUP("Weight|"&$G60,UOM_Conversions!$A$2:$E$50,4,FALSE),IF($H60="Volume",$F60*VLOOKUP("Volume|"&$G60,UOM_Conversions!$A$2:$E$50,4,FALSE),$F60*VLOOKUP("Each|"&$G60,UOM_Conversions!$A$2:$E$50,4,FALSE)))) -> 
J61: =IF($B61="","",IF($H61="Weight",$F61*VLOOKUP("Weight|"&$G61,UOM_Conversions!$A$2:$E$50,4,FALSE),IF($H61="Volume",$F61*VLOOKUP("Volume|"&$G61,UOM_Conversions!$A$2:$E$50,4,FALSE),$F61*VLOOKUP("Each|"&$G61,UOM_Conversions!$A$2:$E$50,4,FALSE)))) -> 
J62: =IF($B62="","",IF($H62="Weight",$F62*VLOOKUP("Weight|"&$G62,UOM_Conversions!$A$2:$E$50,4,FALSE),IF($H62="Volume",$F62*VLOOKUP("Volume|"&$G62,UOM_Conversions!$A$2:$E$50,4,FALSE),$F62*VLOOKUP("Each|"&$G62,UOM_Conversions!$A$2:$E$50,4,FALSE)))) -> 
J63: =IF($B63="","",IF($H63="Weight",$F63*VLOOKUP("Weight|"&$G63,UOM_Conversions!$A$2:$E$50,4,FALSE),IF($H63="Volume",$F63*VLOOKUP("Volume|"&$G63,UOM_Conversions!$A$2:$E$50,4,FALSE),$F63*VLOOKUP("Each|"&$G63,UOM_Conversions!$A$2:$E$50,4,FALSE)))) -> 
J64: =IF($B64="","",IF($H64="Weight",$F64*VLOOKUP("Weight|"&$G64,UOM_Conversions!$A$2:$E$50,4,FALSE),IF($H64="Volume",$F64*VLOOKUP("Volume|"&$G64,UOM_Conversions!$A$2:$E$50,4,FALSE),$F64*VLOOKUP("Each|"&$G64,UOM_Conversions!$A$2:$E$50,4,FALSE)))) -> 
J65: =IF($B65="","",IF($H65="Weight",$F65*VLOOKUP("Weight|"&$G65,UOM_Conversions!$A$2:$E$50,4,FALSE),IF($H65="Volume",$F65*VLOOKUP("Volume|"&$G65,UOM_Conversions!$A$2:$E$50,4,FALSE),$F65*VLOOKUP("Each|"&$G65,UOM_Conversions!$A$2:$E$50,4,FALSE)))) -> 
J66: =IF($B66="","",IF($H66="Weight",$F66*VLOOKUP("Weight|"&$G66,UOM_Conversions!$A$2:$E$50,4,FALSE),IF($H66="Volume",$F66*VLOOKUP("Volume|"&$G66,UOM_Conversions!$A$2:$E$50,4,FALSE),$F66*VLOOKUP("Each|"&$G66,UOM_Conversions!$A$2:$E$50,4,FALSE)))) ->  | K66: =IF($B66="","",IFERROR($E66/$J66,0)) -> 
J67: =IF($B67="","",IF($H67="Weight",$F67*VLOOKUP("Weight|"&$G67,UOM_Conversions!$A$2:$E$50,4,FALSE),IF($H67="Volume",$F67*VLOOKUP("Volume|"&$G67,UOM_Conversions!$A$2:$E$50,4,FALSE),$F67*VLOOKUP("Each|"&$G67,UOM_Conversions!$A$2:$E$50,4,FALSE)))) -> 
J68: =IF($B68="","",IF($H68="Weight",$F68*VLOOKUP("Weight|"&$G68,UOM_Conversions!$A$2:$E$50,4,FALSE),IF($H68="Volume",$F68*VLOOKUP("Volume|"&$G68,UOM_Conversions!$A$2:$E$50,4,FALSE),$F68*VLOOKUP("Each|"&$G68,UOM_Conversions!$A$2:$E$50,4,FALSE)))) -> 
J69: =IF($B69="","",IF($H69="Weight",$F69*VLOOKUP("Weight|"&$G69,UOM_Conversions!$A$2:$E$50,4,FALSE),IF($H69="Volume",$F69*VLOOKUP("Volume|"&$G69,UOM_Conversions!$A$2:$E$50,4,FALSE),$F69*VLOOKUP("Each|"&$G69,UOM_Conversions!$A$2:$E$50,4,FALSE)))) -> 
J70: =IF($B70="","",IF($H70="Weight",$F70*VLOOKUP("Weight|"&$G70,UOM_Conversions!$A$2:$E$50,4,FALSE),IF($H70="Volume",$F70*VLOOKUP("Volume|"&$G70,UOM_Conversions!$A$2:$E$50,4,FALSE),$F70*VLOOKUP("Each|"&$G70,UOM_Conversions!$A$2:$E$50,4,FALSE)))) -> 
J71: =IF($B71="","",IF($H71="Weight",$F71*VLOOKUP("Weight|"&$G71,UOM_Conversions!$A$2:$E$50,4,FALSE),IF($H71="Volume",$F71*VLOOKUP("Volume|"&$G71,UOM_Conversions!$A$2:$E$50,4,FALSE),$F71*VLOOKUP("Each|"&$G71,UOM_Conversions!$A$2:$E$50,4,FALSE)))) -> 
J72: =IF($B72="","",IF($H72="Weight",$F72*VLOOKUP("Weight|"&$G72,UOM_Conversions!$A$2:$E$50,4,FALSE),IF($H72="Volume",$F72*VLOOKUP("Volume|"&$G72,UOM_Conversions!$A$2:$E$50,4,FALSE),$F72*VLOOKUP("Each|"&$G72,UOM_Conversions!$A$2:$E$50,4,FALSE)))) -> 
J73: =IF($B73="","",IF($H73="Weight",$F73*VLOOKUP("Weight|"&$G73,UOM_Conversions!$A$2:$E$50,4,FALSE),IF($H73="Volume",$F73*VLOOKUP("Volume|"&$G73,UOM_Conversions!$A$2:$E$50,4,FALSE),$F73*VLOOKUP("Each|"&$G73,UOM_Conversions!$A$2:$E$50,4,FALSE)))) -> 
J74: =IF($B74="","",IF($H74="Weight",$F74*VLOOKUP("Weight|"&$G74,UOM_Conversions!$A$2:$E$50,4,FALSE),IF($H74="Volume",$F74*VLOOKUP("Volume|"&$G74,UOM_Conversions!$A$2:$E$50,4,FALSE),$F74*VLOOKUP("Each|"&$G74,UOM_Conversions!$A$2:$E$50,4,FALSE)))) -> 
J75: =IF($B75="","",IF($H75="Weight",$F75*VLOOKUP("Weight|"&$G75,UOM_Conversions!$A$2:$E$50,4,FALSE),IF($H75="Volume",$F75*VLOOKUP("Volume|"&$G75,UOM_Conversions!$A$2:$E$50,4,FALSE),$F75*VLOOKUP("Each|"&$G75,UOM_Conversions!$A$2:$E$50,4,FALSE)))) -> 
J76: =IF($B76="","",IF($H76="Weight",$F76*VLOOKUP("Weight|"&$G76,UOM_Conversions!$A$2:$E$50,4,FALSE),IF($H76="Volume",$F76*VLOOKUP("Volume|"&$G76,UOM_Conversions!$A$2:$E$50,4,FALSE),$F76*VLOOKUP("Each|"&$G76,UOM_Conversions!$A$2:$E$50,4,FALSE)))) -> 
J77: =IF($B77="","",IF($H77="Weight",$F77*VLOOKUP("Weight|"&$G77,UOM_Conversions!$A$2:$E$50,4,FALSE),IF($H77="Volume",$F77*VLOOKUP("Volume|"&$G77,UOM_Conversions!$A$2:$E$50,4,FALSE),$F77*VLOOKUP("Each|"&$G77,UOM_Conversions!$A$2:$E$50,4,FALSE)))) -> 
J78: =IF($B78="","",IF($H78="Weight",$F78*VLOOKUP("Weight|"&$G78,UOM_Conversions!$A$2:$E$50,4,FALSE),IF($H78="Volume",$F78*VLOOKUP("Volume|"&$G78,UOM_Conversions!$A$2:$E$50,4,FALSE),$F78*VLOOKUP("Each|"&$G78,UOM_Conversions!$A$2:$E$50,4,FALSE)))) -> 
J79: =IF($B79="","",IF($H79="Weight",$F79*VLOOKUP("Weight|"&$G79,UOM_Conversions!$A$2:$E$50,4,FALSE),IF($H79="Volume",$F79*VLOOKUP("Volume|"&$G79,UOM_Conversions!$A$2:$E$50,4,FALSE),$F79*VLOOKUP("Each|"&$G79,UOM_Conversions!$A$2:$E$50,4,FALSE)))) -> 
J80: =IF($B80="","",IF($H80="Weight",$F80*VLOOKUP("Weight|"&$G80,UOM_Conversions!$A$2:$E$50,4,FALSE),IF($H80="Volume",$F80*VLOOKUP("Volume|"&$G80,UOM_Conversions!$A$2:$E$50,4,FALSE),$F80*VLOOKUP("Each|"&$G80,UOM_Conversions!$A$2:$E$50,4,FALSE)))) -> 
J81: =IF($B81="","",IF($H81="Weight",$F81*VLOOKUP("Weight|"&$G81,UOM_Conversions!$A$2:$E$50,4,FALSE),IF($H81="Volume",$F81*VLOOKUP("Volume|"&$G81,UOM_Conversions!$A$2:$E$50,4,FALSE),$F81*VLOOKUP("Each|"&$G81,UOM_Conversions!$A$2:$E$50,4,FALSE)))) -> 
J82: =IF($B82="","",IF($H82="Weight",$F82*VLOOKUP("Weight|"&$G82,UOM_Conversions!$A$2:$E$50,4,FALSE),IF($H82="Volume",$F82*VLOOKUP("Volume|"&$G82,UOM_Conversions!$A$2:$E$50,4,FALSE),$F82*VLOOKUP("Each|"&$G82,UOM_Conversions!$A$2:$E$50,4,FALSE)))) -> 
J83: =IF($B83="","",IF($H83="Weight",$F83*VLOOKUP("Weight|"&$G83,UOM_Conversions!$A$2:$E$50,4,FALSE),IF($H83="Volume",$F83*VLOOKUP("Volume|"&$G83,UOM_Conversions!$A$2:$E$50,4,FALSE),$F83*VLOOKUP("Each|"&$G83,UOM_Conversions!$A$2:$E$50,4,FALSE)))) -> 
J84: =IF($B84="","",IF($H84="Weight",$F84*VLOOKUP("Weight|"&$G84,UOM_Conversions!$A$2:$E$50,4,FALSE),IF($H84="Volume",$F84*VLOOKUP("Volume|"&$G84,UOM_Conversions!$A$2:$E$50,4,FALSE),$F84*VLOOKUP("Each|"&$G84,UOM_Conversions!$A$2:$E$50,4,FALSE)))) -> 
J85: =IF($B85="","",IF($H85="Weight",$F85*VLOOKUP("Weight|"&$G85,UOM_Conversions!$A$2:$E$50,4,FALSE),IF($H85="Volume",$F85*VLOOKUP("Volume|"&$G85,UOM_Conversions!$A$2:$E$50,4,FALSE),$F85*VLOOKUP("Each|"&$G85,UOM_Conversions!$A$2:$E$50,4,FALSE)))) -> 
J86: =IF($B86="","",IF($H86="Weight",$F86*VLOOKUP("Weight|"&$G86,UOM_Conversions!$A$2:$E$50,4,FALSE),IF($H86="Volume",$F86*VLOOKUP("Volume|"&$G86,UOM_Conversions!$A$2:$E$50,4,FALSE),$F86*VLOOKUP("Each|"&$G86,UOM_Conversions!$A$2:$E$50,4,FALSE)))) -> 
J87: =IF($B87="","",IF($H87="Weight",$F87*VLOOKUP("Weight|"&$G87,UOM_Conversions!$A$2:$E$50,4,FALSE),IF($H87="Volume",$F87*VLOOKUP("Volume|"&$G87,UOM_Conversions!$A$2:$E$50,4,FALSE),$F87*VLOOKUP("Each|"&$G87,UOM_Conversions!$A$2:$E$50,4,FALSE)))) -> 
J88: =IF($B88="","",IF($H88="Weight",$F88*VLOOKUP("Weight|"&$G88,UOM_Conversions!$A$2:$E$50,4,FALSE),IF($H88="Volume",$F88*VLOOKUP("Volume|"&$G88,UOM_Conversions!$A$2:$E$50,4,FALSE),$F88*VLOOKUP("Each|"&$G88,UOM_Conversions!$A$2:$E$50,4,FALSE)))) -> 
J89: =IF($B89="","",IF($H89="Weight",$F89*VLOOKUP("Weight|"&$G89,UOM_Conversions!$A$2:$E$50,4,FALSE),IF($H89="Volume",$F89*VLOOKUP("Volume|"&$G89,UOM_Conversions!$A$2:$E$50,4,FALSE),$F89*VLOOKUP("Each|"&$G89,UOM_Conversions!$A$2:$E$50,4,FALSE)))) -> 
J90: =IF($B90="","",IF($H90="Weight",$F90*VLOOKUP("Weight|"&$G90,UOM_Conversions!$A$2:$E$50,4,FALSE),IF($H90="Volume",$F90*VLOOKUP("Volume|"&$G90,UOM_Conversions!$A$2:$E$50,4,FALSE),$F90*VLOOKUP("Each|"&$G90,UOM_Conversions!$A$2:$E$50,4,FALSE)))) -> 
J91: =IF($B91="","",IF($H91="Weight",$F91*VLOOKUP("Weight|"&$G91,UOM_Conversions!$A$2:$E$50,4,FALSE),IF($H91="Volume",$F91*VLOOKUP("Volume|"&$G91,UOM_Conversions!$A$2:$E$50,4,FALSE),$F91*VLOOKUP("Each|"&$G91,UOM_Conversions!$A$2:$E$50,4,FALSE)))) -> 
J92: =IF($B92="","",IF($H92="Weight",$F92*VLOOKUP("Weight|"&$G92,UOM_Conversions!$A$2:$E$50,4,FALSE),IF($H92="Volume",$F92*VLOOKUP("Volume|"&$G92,UOM_Conversions!$A$2:$E$50,4,FALSE),$F92*VLOOKUP("Each|"&$G92,UOM_Conversions!$A$2:$E$50,4,FALSE)))) -> 
J93: =IF($B93="","",IF($H93="Weight",$F93*VLOOKUP("Weight|"&$G93,UOM_Conversions!$A$2:$E$50,4,FALSE),IF($H93="Volume",$F93*VLOOKUP("Volume|"&$G93,UOM_Conversions!$A$2:$E$50,4,FALSE),$F93*VLOOKUP("Each|"&$G93,UOM_Conversions!$A$2:$E$50,4,FALSE)))) -> 
J94: =IF($B94="","",IF($H94="Weight",$F94*VLOOKUP("Weight|"&$G94,UOM_Conversions!$A$2:$E$50,4,FALSE),IF($H94="Volume",$F94*VLOOKUP("Volume|"&$G94,UOM_Conversions!$A$2:$E$50,4,FALSE),$F94*VLOOKUP("Each|"&$G94,UOM_Conversions!$A$2:$E$50,4,FALSE)))) -> 
J95: =IF($B95="","",IF($H95="Weight",$F95*VLOOKUP("Weight|"&$G95,UOM_Conversions!$A$2:$E$50,4,FALSE),IF($H95="Volume",$F95*VLOOKUP("Volume|"&$G95,UOM_Conversions!$A$2:$E$50,4,FALSE),$F95*VLOOKUP("Each|"&$G95,UOM_Conversions!$A$2:$E$50,4,FALSE)))) -> 
J96: =IF($B96="","",IF($H96="Weight",$F96*VLOOKUP("Weight|"&$G96,UOM_Conversions!$A$2:$E$50,4,FALSE),IF($H96="Volume",$F96*VLOOKUP("Volume|"&$G96,UOM_Conversions!$A$2:$E$50,4,FALSE),$F96*VLOOKUP("Each|"&$G96,UOM_Conversions!$A$2:$E$50,4,FALSE)))) -> 
J97: =IF($B97="","",IF($H97="Weight",$F97*VLOOKUP("Weight|"&$G97,UOM_Conversions!$A$2:$E$50,4,FALSE),IF($H97="Volume",$F97*VLOOKUP("Volume|"&$G97,UOM_Conversions!$A$2:$E$50,4,FALSE),$F97*VLOOKUP("Each|"&$G97,UOM_Conversions!$A$2:$E$50,4,FALSE)))) -> 
J98: =IF($B98="","",IF($H98="Weight",$F98*VLOOKUP("Weight|"&$G98,UOM_Conversions!$A$2:$E$50,4,FALSE),IF($H98="Volume",$F98*VLOOKUP("Volume|"&$G98,UOM_Conversions!$A$2:$E$50,4,FALSE),$F98*VLOOKUP("Each|"&$G98,UOM_Conversions!$A$2:$E$50,4,FALSE)))) -> 
J99: =IF($B99="","",IF($H99="Weight",$F99*VLOOKUP("Weight|"&$G99,UOM_Conversions!$A$2:$E$50,4,FALSE),IF($H99="Volume",$F99*VLOOKUP("Volume|"&$G99,UOM_Conversions!$A$2:$E$50,4,FALSE),$F99*VLOOKUP("Each|"&$G99,UOM_Conversions!$A$2:$E$50,4,FALSE)))) -> 
J100: =IF($B100="","",IF($H100="Weight",$F100*VLOOKUP("Weight|"&$G100,UOM_Conversions!$A$2:$E$50,4,FALSE),IF($H100="Volume",$F100*VLOOKUP("Volume|"&$G100,UOM_Conversions!$A$2:$E$50,4,FALSE),$F100*VLOOKUP("Each|"&$G100,UOM_Conversions!$A$2:$E$50,4,FALSE)))) -> 
J101: =IF($B101="","",IF($H101="Weight",$F101*VLOOKUP("Weight|"&$G101,UOM_Conversions!$A$2:$E$50,4,FALSE),IF($H101="Volume",$F101*VLOOKUP("Volume|"&$G101,UOM_Conversions!$A$2:$E$50,4,FALSE),$F101*VLOOKUP("Each|"&$G101,UOM_Conversions!$A$2:$E$50,4,FALSE)))) -> 
J102: =IF($B102="","",IF($H102="Weight",$F102*VLOOKUP("Weight|"&$G102,UOM_Conversions!$A$2:$E$50,4,FALSE),IF($H102="Volume",$F102*VLOOKUP("Volume|"&$G102,UOM_Conversions!$A$2:$E$50,4,FALSE),$F102*VLOOKUP("Each|"&$G102,UOM_Conversions!$A$2:$E$50,4,FALSE)))) -> 
J103: =IF($B103="","",IF($H103="Weight",$F103*VLOOKUP("Weight|"&$G103,UOM_Conversions!$A$2:$E$50,4,FALSE),IF($H103="Volume",$F103*VLOOKUP("Volume|"&$G103,UOM_Conversions!$A$2:$E$50,4,FALSE),$F103*VLOOKUP("Each|"&$G103,UOM_Conversions!$A$2:$E$50,4,FALSE)))) -> 
J104: =IF($B104="","",IF($H104="Weight",$F104*VLOOKUP("Weight|"&$G104,UOM_Conversions!$A$2:$E$50,4,FALSE),IF($H104="Volume",$F104*VLOOKUP("Volume|"&$G104,UOM_Conversions!$A$2:$E$50,4,FALSE),$F104*VLOOKUP("Each|"&$G104,UOM_Conversions!$A$2:$E$50,4,FALSE)))) -> 
J105: =IF($B105="","",IF($H105="Weight",$F105*VLOOKUP("Weight|"&$G105,UOM_Conversions!$A$2:$E$50,4,FALSE),IF($H105="Volume",$F105*VLOOKUP("Volume|"&$G105,UOM_Conversions!$A$2:$E$50,4,FALSE),$F105*VLOOKUP("Each|"&$G105,UOM_Conversions!$A$2:$E$50,4,FALSE)))) -> 
J106: =IF($B106="","",IF($H106="Weight",$F106*VLOOKUP("Weight|"&$G106,UOM_Conversions!$A$2:$E$50,4,FALSE),IF($H106="Volume",$F106*VLOOKUP("Volume|"&$G106,UOM_Conversions!$A$2:$E$50,4,FALSE),$F106*VLOOKUP("Each|"&$G106,UOM_Conversions!$A$2:$E$50,4,FALSE)))) -> 
J107: =IF($B107="","",IF($H107="Weight",$F107*VLOOKUP("Weight|"&$G107,UOM_Conversions!$A$2:$E$50,4,FALSE),IF($H107="Volume",$F107*VLOOKUP("Volume|"&$G107,UOM_Conversions!$A$2:$E$50,4,FALSE),$F107*VLOOKUP("Each|"&$G107,UOM_Conversions!$A$2:$E$50,4,FALSE)))) -> 
J108: =IF($B108="","",IF($H108="Weight",$F108*VLOOKUP("Weight|"&$G108,UOM_Conversions!$A$2:$E$50,4,FALSE),IF($H108="Volume",$F108*VLOOKUP("Volume|"&$G108,UOM_Conversions!$A$2:$E$50,4,FALSE),$F108*VLOOKUP("Each|"&$G108,UOM_Conversions!$A$2:$E$50,4,FALSE)))) -> 
J109: =IF($B109="","",IF($H109="Weight",$F109*VLOOKUP("Weight|"&$G109,UOM_Conversions!$A$2:$E$50,4,FALSE),IF($H109="Volume",$F109*VLOOKUP("Volume|"&$G109,UOM_Conversions!$A$2:$E$50,4,FALSE),$F109*VLOOKUP("Each|"&$G109,UOM_Conversions!$A$2:$E$50,4,FALSE)))) -> 
J110: =IF($B110="","",IF($H110="Weight",$F110*VLOOKUP("Weight|"&$G110,UOM_Conversions!$A$2:$E$50,4,FALSE),IF($H110="Volume",$F110*VLOOKUP("Volume|"&$G110,UOM_Conversions!$A$2:$E$50,4,FALSE),$F110*VLOOKUP("Each|"&$G110,UOM_Conversions!$A$2:$E$50,4,FALSE)))) -> 
J111: =IF($B111="","",IF($H111="Weight",$F111*VLOOKUP("Weight|"&$G111,UOM_Conversions!$A$2:$E$50,4,FALSE),IF($H111="Volume",$F111*VLOOKUP("Volume|"&$G111,UOM_Conversions!$A$2:$E$50,4,FALSE),$F111*VLOOKUP("Each|"&$G111,UOM_Conversions!$A$2:$E$50,4,FALSE)))) -> 
J112: =IF($B112="","",IF($H112="Weight",$F112*VLOOKUP("Weight|"&$G112,UOM_Conversions!$A$2:$E$50,4,FALSE),IF($H112="Volume",$F112*VLOOKUP("Volume|"&$G112,UOM_Conversions!$A$2:$E$50,4,FALSE),$F112*VLOOKUP("Each|"&$G112,UOM_Conversions!$A$2:$E$50,4,FALSE)))) -> 
J113: =IF($B113="","",IF($H113="Weight",$F113*VLOOKUP("Weight|"&$G113,UOM_Conversions!$A$2:$E$50,4,FALSE),IF($H113="Volume",$F113*VLOOKUP("Volume|"&$G113,UOM_Conversions!$A$2:$E$50,4,FALSE),$F113*VLOOKUP("Each|"&$G113,UOM_Conversions!$A$2:$E$50,4,FALSE)))) -> 
J114: =IF($B114="","",IF($H114="Weight",$F114*VLOOKUP("Weight|"&$G114,UOM_Conversions!$A$2:$E$50,4,FALSE),IF($H114="Volume",$F114*VLOOKUP("Volume|"&$G114,UOM_Conversions!$A$2:$E$50,4,FALSE),$F114*VLOOKUP("Each|"&$G114,UOM_Conversions!$A$2:$E$50,4,FALSE)))) -> 
J115: =IF($B115="","",IF($H115="Weight",$F115*VLOOKUP("Weight|"&$G115,UOM_Conversions!$A$2:$E$50,4,FALSE),IF($H115="Volume",$F115*VLOOKUP("Volume|"&$G115,UOM_Conversions!$A$2:$E$50,4,FALSE),$F115*VLOOKUP("Each|"&$G115,UOM_Conversions!$A$2:$E$50,4,FALSE)))) -> 
J116: =IF($B116="","",IF($H116="Weight",$F116*VLOOKUP("Weight|"&$G116,UOM_Conversions!$A$2:$E$50,4,FALSE),IF($H116="Volume",$F116*VLOOKUP("Volume|"&$G116,UOM_Conversions!$A$2:$E$50,4,FALSE),$F116*VLOOKUP("Each|"&$G116,UOM_Conversions!$A$2:$E$50,4,FALSE)))) -> 
J117: =IF($B117="","",IF($H117="Weight",$F117*VLOOKUP("Weight|"&$G117,UOM_Conversions!$A$2:$E$50,4,FALSE),IF($H117="Volume",$F117*VLOOKUP("Volume|"&$G117,UOM_Conversions!$A$2:$E$50,4,FALSE),$F117*VLOOKUP("Each|"&$G117,UOM_Conversions!$A$2:$E$50,4,FALSE)))) -> 
J118: =IF($B118="","",IF($H118="Weight",$F118*VLOOKUP("Weight|"&$G118,UOM_Conversions!$A$2:$E$50,4,FALSE),IF($H118="Volume",$F118*VLOOKUP("Volume|"&$G118,UOM_Conversions!$A$2:$E$50,4,FALSE),$F118*VLOOKUP("Each|"&$G118,UOM_Conversions!$A$2:$E$50,4,FALSE)))) -> 
J119: =IF($B119="","",IF($H119="Weight",$F119*VLOOKUP("Weight|"&$G119,UOM_Conversions!$A$2:$E$50,4,FALSE),IF($H119="Volume",$F119*VLOOKUP("Volume|"&$G119,UOM_Conversions!$A$2:$E$50,4,FALSE),$F119*VLOOKUP("Each|"&$G119,UOM_Conversions!$A$2:$E$50,4,FALSE)))) -> 
J120: =IF($B120="","",IF($H120="Weight",$F120*VLOOKUP("Weight|"&$G120,UOM_Conversions!$A$2:$E$50,4,FALSE),IF($H120="Volume",$F120*VLOOKUP("Volume|"&$G120,UOM_Conversions!$A$2:$E$50,4,FALSE),$F120*VLOOKUP("Each|"&$G120,UOM_Conversions!$A$2:$E$50,4,FALSE)))) -> 
J121: =IF($B121="","",IF($H121="Weight",$F121*VLOOKUP("Weight|"&$G121,UOM_Conversions!$A$2:$E$50,4,FALSE),IF($H121="Volume",$F121*VLOOKUP("Volume|"&$G121,UOM_Conversions!$A$2:$E$50,4,FALSE),$F121*VLOOKUP("Each|"&$G121,UOM_Conversions!$A$2:$E$50,4,FALSE)))) -> 
J122: =IF($B122="","",IF($H122="Weight",$F122*VLOOKUP("Weight|"&$G122,UOM_Conversions!$A$2:$E$50,4,FALSE),IF($H122="Volume",$F122*VLOOKUP("Volume|"&$G122,UOM_Conversions!$A$2:$E$50,4,FALSE),$F122*VLOOKUP("Each|"&$G122,UOM_Conversions!$A$2:$E$50,4,FALSE)))) -> 
J123: =IF($B123="","",IF($H123="Weight",$F123*VLOOKUP("Weight|"&$G123,UOM_Conversions!$A$2:$E$50,4,FALSE),IF($H123="Volume",$F123*VLOOKUP("Volume|"&$G123,UOM_Conversions!$A$2:$E$50,4,FALSE),$F123*VLOOKUP("Each|"&$G123,UOM_Conversions!$A$2:$E$50,4,FALSE)))) -> 
J124: =IF($B124="","",IF($H124="Weight",$F124*VLOOKUP("Weight|"&$G124,UOM_Conversions!$A$2:$E$50,4,FALSE),IF($H124="Volume",$F124*VLOOKUP("Volume|"&$G124,UOM_Conversions!$A$2:$E$50,4,FALSE),$F124*VLOOKUP("Each|"&$G124,UOM_Conversions!$A$2:$E$50,4,FALSE)))) -> 
J125: =IF($B125="","",IF($H125="Weight",$F125*VLOOKUP("Weight|"&$G125,UOM_Conversions!$A$2:$E$50,4,FALSE),IF($H125="Volume",$F125*VLOOKUP("Volume|"&$G125,UOM_Conversions!$A$2:$E$50,4,FALSE),$F125*VLOOKUP("Each|"&$G125,UOM_Conversions!$A$2:$E$50,4,FALSE)))) -> 
J126: =IF($B126="","",IF($H126="Weight",$F126*VLOOKUP("Weight|"&$G126,UOM_Conversions!$A$2:$E$50,4,FALSE),IF($H126="Volume",$F126*VLOOKUP("Volume|"&$G126,UOM_Conversions!$A$2:$E$50,4,FALSE),$F126*VLOOKUP("Each|"&$G126,UOM_Conversions!$A$2:$E$50,4,FALSE)))) -> 
J127: =IF($B127="","",IF($H127="Weight",$F127*VLOOKUP("Weight|"&$G127,UOM_Conversions!$A$2:$E$50,4,FALSE),IF($H127="Volume",$F127*VLOOKUP("Volume|"&$G127,UOM_Conversions!$A$2:$E$50,4,FALSE),$F127*VLOOKUP("Each|"&$G127,UOM_Conversions!$A$2:$E$50,4,FALSE)))) -> 
J128: =IF($B128="","",IF($H128="Weight",$F128*VLOOKUP("Weight|"&$G128,UOM_Conversions!$A$2:$E$50,4,FALSE),IF($H128="Volume",$F128*VLOOKUP("Volume|"&$G128,UOM_Conversions!$A$2:$E$50,4,FALSE),$F128*VLOOKUP("Each|"&$G128,UOM_Conversions!$A$2:$E$50,4,FALSE)))) -> 
J129: =IF($B129="","",IF($H129="Weight",$F129*VLOOKUP("Weight|"&$G129,UOM_Conversions!$A$2:$E$50,4,FALSE),IF($H129="Volume",$F129*VLOOKUP("Volume|"&$G129,UOM_Conversions!$A$2:$E$50,4,FALSE),$F129*VLOOKUP("Each|"&$G129,UOM_Conversions!$A$2:$E$50,4,FALSE)))) -> 
J130: =IF($B130="","",IF($H130="Weight",$F130*VLOOKUP("Weight|"&$G130,UOM_Conversions!$A$2:$E$50,4,FALSE),IF($H130="Volume",$F130*VLOOKUP("Volume|"&$G130,UOM_Conversions!$A$2:$E$50,4,FALSE),$F130*VLOOKUP("Each|"&$G130,UOM_Conversions!$A$2:$E$50,4,FALSE)))) ->  | K130: =IF($B130="","",IFERROR($E130/$J130,0)) -> 
J131: =IF($B131="","",IF($H131="Weight",$F131*VLOOKUP("Weight|"&$G131,UOM_Conversions!$A$2:$E$50,4,FALSE),IF($H131="Volume",$F131*VLOOKUP("Volume|"&$G131,UOM_Conversions!$A$2:$E$50,4,FALSE),$F131*VLOOKUP("Each|"&$G131,UOM_Conversions!$A$2:$E$50,4,FALSE)))) -> 
J132: =IF($B132="","",IF($H132="Weight",$F132*VLOOKUP("Weight|"&$G132,UOM_Conversions!$A$2:$E$50,4,FALSE),IF($H132="Volume",$F132*VLOOKUP("Volume|"&$G132,UOM_Conversions!$A$2:$E$50,4,FALSE),$F132*VLOOKUP("Each|"&$G132,UOM_Conversions!$A$2:$E$50,4,FALSE)))) -> 
J133: =IF($B133="","",IF($H133="Weight",$F133*VLOOKUP("Weight|"&$G133,UOM_Conversions!$A$2:$E$50,4,FALSE),IF($H133="Volume",$F133*VLOOKUP("Volume|"&$G133,UOM_Conversions!$A$2:$E$50,4,FALSE),$F133*VLOOKUP("Each|"&$G133,UOM_Conversions!$A$2:$E$50,4,FALSE)))) -> 
J134: =IF($B134="","",IF($H134="Weight",$F134*VLOOKUP("Weight|"&$G134,UOM_Conversions!$A$2:$E$50,4,FALSE),IF($H134="Volume",$F134*VLOOKUP("Volume|"&$G134,UOM_Conversions!$A$2:$E$50,4,FALSE),$F134*VLOOKUP("Each|"&$G134,UOM_Conversions!$A$2:$E$50,4,FALSE)))) -> 
J135: =IF($B135="","",IF($H135="Weight",$F135*VLOOKUP("Weight|"&$G135,UOM_Conversions!$A$2:$E$50,4,FALSE),IF($H135="Volume",$F135*VLOOKUP("Volume|"&$G135,UOM_Conversions!$A$2:$E$50,4,FALSE),$F135*VLOOKUP("Each|"&$G135,UOM_Conversions!$A$2:$E$50,4,FALSE)))) -> 
J136: =IF($B136="","",IF($H136="Weight",$F136*VLOOKUP("Weight|"&$G136,UOM_Conversions!$A$2:$E$50,4,FALSE),IF($H136="Volume",$F136*VLOOKUP("Volume|"&$G136,UOM_Conversions!$A$2:$E$50,4,FALSE),$F136*VLOOKUP("Each|"&$G136,UOM_Conversions!$A$2:$E$50,4,FALSE)))) -> 
J137: =IF($B137="","",IF($H137="Weight",$F137*VLOOKUP("Weight|"&$G137,UOM_Conversions!$A$2:$E$50,4,FALSE),IF($H137="Volume",$F137*VLOOKUP("Volume|"&$G137,UOM_Conversions!$A$2:$E$50,4,FALSE),$F137*VLOOKUP("Each|"&$G137,UOM_Conversions!$A$2:$E$50,4,FALSE)))) -> 
J138: =IF($B138="","",IF($H138="Weight",$F138*VLOOKUP("Weight|"&$G138,UOM_Conversions!$A$2:$E$50,4,FALSE),IF($H138="Volume",$F138*VLOOKUP("Volume|"&$G138,UOM_Conversions!$A$2:$E$50,4,FALSE),$F138*VLOOKUP("Each|"&$G138,UOM_Conversions!$A$2:$E$50,4,FALSE)))) -> 
J139: =IF($B139="","",IF($H139="Weight",$F139*VLOOKUP("Weight|"&$G139,UOM_Conversions!$A$2:$E$50,4,FALSE),IF($H139="Volume",$F139*VLOOKUP("Volume|"&$G139,UOM_Conversions!$A$2:$E$50,4,FALSE),$F139*VLOOKUP("Each|"&$G139,UOM_Conversions!$A$2:$E$50,4,FALSE)))) -> 
J140: =IF($B140="","",IF($H140="Weight",$F140*VLOOKUP("Weight|"&$G140,UOM_Conversions!$A$2:$E$50,4,FALSE),IF($H140="Volume",$F140*VLOOKUP("Volume|"&$G140,UOM_Conversions!$A$2:$E$50,4,FALSE),$F140*VLOOKUP("Each|"&$G140,UOM_Conversions!$A$2:$E$50,4,FALSE)))) -> 
J141: =IF($B141="","",IF($H141="Weight",$F141*VLOOKUP("Weight|"&$G141,UOM_Conversions!$A$2:$E$50,4,FALSE),IF($H141="Volume",$F141*VLOOKUP("Volume|"&$G141,UOM_Conversions!$A$2:$E$50,4,FALSE),$F141*VLOOKUP("Each|"&$G141,UOM_Conversions!$A$2:$E$50,4,FALSE)))) -> 
J142: =IF($B142="","",IF($H142="Weight",$F142*VLOOKUP("Weight|"&$G142,UOM_Conversions!$A$2:$E$50,4,FALSE),IF($H142="Volume",$F142*VLOOKUP("Volume|"&$G142,UOM_Conversions!$A$2:$E$50,4,FALSE),$F142*VLOOKUP("Each|"&$G142,UOM_Conversions!$A$2:$E$50,4,FALSE)))) -> 
J143: =IF($B143="","",IF($H143="Weight",$F143*VLOOKUP("Weight|"&$G143,UOM_Conversions!$A$2:$E$50,4,FALSE),IF($H143="Volume",$F143*VLOOKUP("Volume|"&$G143,UOM_Conversions!$A$2:$E$50,4,FALSE),$F143*VLOOKUP("Each|"&$G143,UOM_Conversions!$A$2:$E$50,4,FALSE)))) -> 
J144: =IF($B144="","",IF($H144="Weight",$F144*VLOOKUP("Weight|"&$G144,UOM_Conversions!$A$2:$E$50,4,FALSE),IF($H144="Volume",$F144*VLOOKUP("Volume|"&$G144,UOM_Conversions!$A$2:$E$50,4,FALSE),$F144*VLOOKUP("Each|"&$G144,UOM_Conversions!$A$2:$E$50,4,FALSE)))) -> 
J145: =IF($B145="","",IF($H145="Weight",$F145*VLOOKUP("Weight|"&$G145,UOM_Conversions!$A$2:$E$50,4,FALSE),IF($H145="Volume",$F145*VLOOKUP("Volume|"&$G145,UOM_Conversions!$A$2:$E$50,4,FALSE),$F145*VLOOKUP("Each|"&$G145,UOM_Conversions!$A$2:$E$50,4,FALSE)))) -> 
J146: =IF($B146="","",IF($H146="Weight",$F146*VLOOKUP("Weight|"&$G146,UOM_Conversions!$A$2:$E$50,4,FALSE),IF($H146="Volume",$F146*VLOOKUP("Volume|"&$G146,UOM_Conversions!$A$2:$E$50,4,FALSE),$F146*VLOOKUP("Each|"&$G146,UOM_Conversions!$A$2:$E$50,4,FALSE)))) -> 
J147: =IF($B147="","",IF($H147="Weight",$F147*VLOOKUP("Weight|"&$G147,UOM_Conversions!$A$2:$E$50,4,FALSE),IF($H147="Volume",$F147*VLOOKUP("Volume|"&$G147,UOM_Conversions!$A$2:$E$50,4,FALSE),$F147*VLOOKUP("Each|"&$G147,UOM_Conversions!$A$2:$E$50,4,FALSE)))) -> 
J148: =IF($B148="","",IF($H148="Weight",$F148*VLOOKUP("Weight|"&$G148,UOM_Conversions!$A$2:$E$50,4,FALSE),IF($H148="Volume",$F148*VLOOKUP("Volume|"&$G148,UOM_Conversions!$A$2:$E$50,4,FALSE),$F148*VLOOKUP("Each|"&$G148,UOM_Conversions!$A$2:$E$50,4,FALSE)))) -> 
J149: =IF($B149="","",IF($H149="Weight",$F149*VLOOKUP("Weight|"&$G149,UOM_Conversions!$A$2:$E$50,4,FALSE),IF($H149="Volume",$F149*VLOOKUP("Volume|"&$G149,UOM_Conversions!$A$2:$E$50,4,FALSE),$F149*VLOOKUP("Each|"&$G149,UOM_Conversions!$A$2:$E$50,4,FALSE)))) -> 
J150: =IF($B150="","",IF($H150="Weight",$F150*VLOOKUP("Weight|"&$G150,UOM_Conversions!$A$2:$E$50,4,FALSE),IF($H150="Volume",$F150*VLOOKUP("Volume|"&$G150,UOM_Conversions!$A$2:$E$50,4,FALSE),$F150*VLOOKUP("Each|"&$G150,UOM_Conversions!$A$2:$E$50,4,FALSE)))) -> 
J151: =IF($B151="","",IF($H151="Weight",$F151*VLOOKUP("Weight|"&$G151,UOM_Conversions!$A$2:$E$50,4,FALSE),IF($H151="Volume",$F151*VLOOKUP("Volume|"&$G151,UOM_Conversions!$A$2:$E$50,4,FALSE),$F151*VLOOKUP("Each|"&$G151,UOM_Conversions!$A$2:$E$50,4,FALSE)))) -> 
J152: =IF($B152="","",IF($H152="Weight",$F152*VLOOKUP("Weight|"&$G152,UOM_Conversions!$A$2:$E$50,4,FALSE),IF($H152="Volume",$F152*VLOOKUP("Volume|"&$G152,UOM_Conversions!$A$2:$E$50,4,FALSE),$F152*VLOOKUP("Each|"&$G152,UOM_Conversions!$A$2:$E$50,4,FALSE)))) -> 
J153: =IF($B153="","",IF($H153="Weight",$F153*VLOOKUP("Weight|"&$G153,UOM_Conversions!$A$2:$E$50,4,FALSE),IF($H153="Volume",$F153*VLOOKUP("Volume|"&$G153,UOM_Conversions!$A$2:$E$50,4,FALSE),$F153*VLOOKUP("Each|"&$G153,UOM_Conversions!$A$2:$E$50,4,FALSE)))) -> 
J154: =IF($B154="","",IF($H154="Weight",$F154*VLOOKUP("Weight|"&$G154,UOM_Conversions!$A$2:$E$50,4,FALSE),IF($H154="Volume",$F154*VLOOKUP("Volume|"&$G154,UOM_Conversions!$A$2:$E$50,4,FALSE),$F154*VLOOKUP("Each|"&$G154,UOM_Conversions!$A$2:$E$50,4,FALSE)))) -> 
J155: =IF($B155="","",IF($H155="Weight",$F155*VLOOKUP("Weight|"&$G155,UOM_Conversions!$A$2:$E$50,4,FALSE),IF($H155="Volume",$F155*VLOOKUP("Volume|"&$G155,UOM_Conversions!$A$2:$E$50,4,FALSE),$F155*VLOOKUP("Each|"&$G155,UOM_Conversions!$A$2:$E$50,4,FALSE)))) -> 
J156: =IF($B156="","",IF($H156="Weight",$F156*VLOOKUP("Weight|"&$G156,UOM_Conversions!$A$2:$E$50,4,FALSE),IF($H156="Volume",$F156*VLOOKUP("Volume|"&$G156,UOM_Conversions!$A$2:$E$50,4,FALSE),$F156*VLOOKUP("Each|"&$G156,UOM_Conversions!$A$2:$E$50,4,FALSE)))) -> 
J157: =IF($B157="","",IF($H157="Weight",$F157*VLOOKUP("Weight|"&$G157,UOM_Conversions!$A$2:$E$50,4,FALSE),IF($H157="Volume",$F157*VLOOKUP("Volume|"&$G157,UOM_Conversions!$A$2:$E$50,4,FALSE),$F157*VLOOKUP("Each|"&$G157,UOM_Conversions!$A$2:$E$50,4,FALSE)))) -> 
J158: =IF($B158="","",IF($H158="Weight",$F158*VLOOKUP("Weight|"&$G158,UOM_Conversions!$A$2:$E$50,4,FALSE),IF($H158="Volume",$F158*VLOOKUP("Volume|"&$G158,UOM_Conversions!$A$2:$E$50,4,FALSE),$F158*VLOOKUP("Each|"&$G158,UOM_Conversions!$A$2:$E$50,4,FALSE)))) -> 
J159: =IF($B159="","",IF($H159="Weight",$F159*VLOOKUP("Weight|"&$G159,UOM_Conversions!$A$2:$E$50,4,FALSE),IF($H159="Volume",$F159*VLOOKUP("Volume|"&$G159,UOM_Conversions!$A$2:$E$50,4,FALSE),$F159*VLOOKUP("Each|"&$G159,UOM_Conversions!$A$2:$E$50,4,FALSE)))) -> 
J160: =IF($B160="","",IF($H160="Weight",$F160*VLOOKUP("Weight|"&$G160,UOM_Conversions!$A$2:$E$50,4,FALSE),IF($H160="Volume",$F160*VLOOKUP("Volume|"&$G160,UOM_Conversions!$A$2:$E$50,4,FALSE),$F160*VLOOKUP("Each|"&$G160,UOM_Conversions!$A$2:$E$50,4,FALSE)))) -> 
J161: =IF($B161="","",IF($H161="Weight",$F161*VLOOKUP("Weight|"&$G161,UOM_Conversions!$A$2:$E$50,4,FALSE),IF($H161="Volume",$F161*VLOOKUP("Volume|"&$G161,UOM_Conversions!$A$2:$E$50,4,FALSE),$F161*VLOOKUP("Each|"&$G161,UOM_Conversions!$A$2:$E$50,4,FALSE)))) -> 
J162: =IF($B162="","",IF($H162="Weight",$F162*VLOOKUP("Weight|"&$G162,UOM_Conversions!$A$2:$E$50,4,FALSE),IF($H162="Volume",$F162*VLOOKUP("Volume|"&$G162,UOM_Conversions!$A$2:$E$50,4,FALSE),$F162*VLOOKUP("Each|"&$G162,UOM_Conversions!$A$2:$E$50,4,FALSE)))) -> 
J163: =IF($B163="","",IF($H163="Weight",$F163*VLOOKUP("Weight|"&$G163,UOM_Conversions!$A$2:$E$50,4,FALSE),IF($H163="Volume",$F163*VLOOKUP("Volume|"&$G163,UOM_Conversions!$A$2:$E$50,4,FALSE),$F163*VLOOKUP("Each|"&$G163,UOM_Conversions!$A$2:$E$50,4,FALSE)))) -> 
J164: =IF($B164="","",IF($H164="Weight",$F164*VLOOKUP("Weight|"&$G164,UOM_Conversions!$A$2:$E$50,4,FALSE),IF($H164="Volume",$F164*VLOOKUP("Volume|"&$G164,UOM_Conversions!$A$2:$E$50,4,FALSE),$F164*VLOOKUP("Each|"&$G164,UOM_Conversions!$A$2:$E$50,4,FALSE)))) -> 
J165: =IF($B165="","",IF($H165="Weight",$F165*VLOOKUP("Weight|"&$G165,UOM_Conversions!$A$2:$E$50,4,FALSE),IF($H165="Volume",$F165*VLOOKUP("Volume|"&$G165,UOM_Conversions!$A$2:$E$50,4,FALSE),$F165*VLOOKUP("Each|"&$G165,UOM_Conversions!$A$2:$E$50,4,FALSE)))) -> 
J166: =IF($B166="","",IF($H166="Weight",$F166*VLOOKUP("Weight|"&$G166,UOM_Conversions!$A$2:$E$50,4,FALSE),IF($H166="Volume",$F166*VLOOKUP("Volume|"&$G166,UOM_Conversions!$A$2:$E$50,4,FALSE),$F166*VLOOKUP("Each|"&$G166,UOM_Conversions!$A$2:$E$50,4,FALSE)))) -> 
J167: =IF($B167="","",IF($H167="Weight",$F167*VLOOKUP("Weight|"&$G167,UOM_Conversions!$A$2:$E$50,4,FALSE),IF($H167="Volume",$F167*VLOOKUP("Volume|"&$G167,UOM_Conversions!$A$2:$E$50,4,FALSE),$F167*VLOOKUP("Each|"&$G167,UOM_Conversions!$A$2:$E$50,4,FALSE)))) -> 
J168: =IF($B168="","",IF($H168="Weight",$F168*VLOOKUP("Weight|"&$G168,UOM_Conversions!$A$2:$E$50,4,FALSE),IF($H168="Volume",$F168*VLOOKUP("Volume|"&$G168,UOM_Conversions!$A$2:$E$50,4,FALSE),$F168*VLOOKUP("Each|"&$G168,UOM_Conversions!$A$2:$E$50,4,FALSE)))) -> 
J169: =IF($B169="","",IF($H169="Weight",$F169*VLOOKUP("Weight|"&$G169,UOM_Conversions!$A$2:$E$50,4,FALSE),IF($H169="Volume",$F169*VLOOKUP("Volume|"&$G169,UOM_Conversions!$A$2:$E$50,4,FALSE),$F169*VLOOKUP("Each|"&$G169,UOM_Conversions!$A$2:$E$50,4,FALSE)))) -> 
J170: =IF($B170="","",IF($H170="Weight",$F170*VLOOKUP("Weight|"&$G170,UOM_Conversions!$A$2:$E$50,4,FALSE),IF($H170="Volume",$F170*VLOOKUP("Volume|"&$G170,UOM_Conversions!$A$2:$E$50,4,FALSE),$F170*VLOOKUP("Each|"&$G170,UOM_Conversions!$A$2:$E$50,4,FALSE)))) -> 
J171: =IF($B171="","",IF($H171="Weight",$F171*VLOOKUP("Weight|"&$G171,UOM_Conversions!$A$2:$E$50,4,FALSE),IF($H171="Volume",$F171*VLOOKUP("Volume|"&$G171,UOM_Conversions!$A$2:$E$50,4,FALSE),$F171*VLOOKUP("Each|"&$G171,UOM_Conversions!$A$2:$E$50,4,FALSE)))) -> 
J172: =IF($B172="","",IF($H172="Weight",$F172*VLOOKUP("Weight|"&$G172,UOM_Conversions!$A$2:$E$50,4,FALSE),IF($H172="Volume",$F172*VLOOKUP("Volume|"&$G172,UOM_Conversions!$A$2:$E$50,4,FALSE),$F172*VLOOKUP("Each|"&$G172,UOM_Conversions!$A$2:$E$50,4,FALSE)))) -> 
J173: =IF($B173="","",IF($H173="Weight",$F173*VLOOKUP("Weight|"&$G173,UOM_Conversions!$A$2:$E$50,4,FALSE),IF($H173="Volume",$F173*VLOOKUP("Volume|"&$G173,UOM_Conversions!$A$2:$E$50,4,FALSE),$F173*VLOOKUP("Each|"&$G173,UOM_Conversions!$A$2:$E$50,4,FALSE)))) -> 
J174: =IF($B174="","",IF($H174="Weight",$F174*VLOOKUP("Weight|"&$G174,UOM_Conversions!$A$2:$E$50,4,FALSE),IF($H174="Volume",$F174*VLOOKUP("Volume|"&$G174,UOM_Conversions!$A$2:$E$50,4,FALSE),$F174*VLOOKUP("Each|"&$G174,UOM_Conversions!$A$2:$E$50,4,FALSE)))) -> 
J175: =IF($B175="","",IF($H175="Weight",$F175*VLOOKUP("Weight|"&$G175,UOM_Conversions!$A$2:$E$50,4,FALSE),IF($H175="Volume",$F175*VLOOKUP("Volume|"&$G175,UOM_Conversions!$A$2:$E$50,4,FALSE),$F175*VLOOKUP("Each|"&$G175,UOM_Conversions!$A$2:$E$50,4,FALSE)))) -> 
J176: =IF($B176="","",IF($H176="Weight",$F176*VLOOKUP("Weight|"&$G176,UOM_Conversions!$A$2:$E$50,4,FALSE),IF($H176="Volume",$F176*VLOOKUP("Volume|"&$G176,UOM_Conversions!$A$2:$E$50,4,FALSE),$F176*VLOOKUP("Each|"&$G176,UOM_Conversions!$A$2:$E$50,4,FALSE)))) -> 
J177: =IF($B177="","",IF($H177="Weight",$F177*VLOOKUP("Weight|"&$G177,UOM_Conversions!$A$2:$E$50,4,FALSE),IF($H177="Volume",$F177*VLOOKUP("Volume|"&$G177,UOM_Conversions!$A$2:$E$50,4,FALSE),$F177*VLOOKUP("Each|"&$G177,UOM_Conversions!$A$2:$E$50,4,FALSE)))) -> 
J178: =IF($B178="","",IF($H178="Weight",$F178*VLOOKUP("Weight|"&$G178,UOM_Conversions!$A$2:$E$50,4,FALSE),IF($H178="Volume",$F178*VLOOKUP("Volume|"&$G178,UOM_Conversions!$A$2:$E$50,4,FALSE),$F178*VLOOKUP("Each|"&$G178,UOM_Conversions!$A$2:$E$50,4,FALSE)))) -> 
J179: =IF($B179="","",IF($H179="Weight",$F179*VLOOKUP("Weight|"&$G179,UOM_Conversions!$A$2:$E$50,4,FALSE),IF($H179="Volume",$F179*VLOOKUP("Volume|"&$G179,UOM_Conversions!$A$2:$E$50,4,FALSE),$F179*VLOOKUP("Each|"&$G179,UOM_Conversions!$A$2:$E$50,4,FALSE)))) -> 
J180: =IF($B180="","",IF($H180="Weight",$F180*VLOOKUP("Weight|"&$G180,UOM_Conversions!$A$2:$E$50,4,FALSE),IF($H180="Volume",$F180*VLOOKUP("Volume|"&$G180,UOM_Conversions!$A$2:$E$50,4,FALSE),$F180*VLOOKUP("Each|"&$G180,UOM_Conversions!$A$2:$E$50,4,FALSE)))) -> 
J181: =IF($B181="","",IF($H181="Weight",$F181*VLOOKUP("Weight|"&$G181,UOM_Conversions!$A$2:$E$50,4,FALSE),IF($H181="Volume",$F181*VLOOKUP("Volume|"&$G181,UOM_Conversions!$A$2:$E$50,4,FALSE),$F181*VLOOKUP("Each|"&$G181,UOM_Conversions!$A$2:$E$50,4,FALSE)))) -> 
J182: =IF($B182="","",IF($H182="Weight",$F182*VLOOKUP("Weight|"&$G182,UOM_Conversions!$A$2:$E$50,4,FALSE),IF($H182="Volume",$F182*VLOOKUP("Volume|"&$G182,UOM_Conversions!$A$2:$E$50,4,FALSE),$F182*VLOOKUP("Each|"&$G182,UOM_Conversions!$A$2:$E$50,4,FALSE)))) -> 
J183: =IF($B183="","",IF($H183="Weight",$F183*VLOOKUP("Weight|"&$G183,UOM_Conversions!$A$2:$E$50,4,FALSE),IF($H183="Volume",$F183*VLOOKUP("Volume|"&$G183,UOM_Conversions!$A$2:$E$50,4,FALSE),$F183*VLOOKUP("Each|"&$G183,UOM_Conversions!$A$2:$E$50,4,FALSE)))) -> 
J184: =IF($B184="","",IF($H184="Weight",$F184*VLOOKUP("Weight|"&$G184,UOM_Conversions!$A$2:$E$50,4,FALSE),IF($H184="Volume",$F184*VLOOKUP("Volume|"&$G184,UOM_Conversions!$A$2:$E$50,4,FALSE),$F184*VLOOKUP("Each|"&$G184,UOM_Conversions!$A$2:$E$50,4,FALSE)))) -> 
J185: =IF($B185="","",IF($H185="Weight",$F185*VLOOKUP("Weight|"&$G185,UOM_Conversions!$A$2:$E$50,4,FALSE),IF($H185="Volume",$F185*VLOOKUP("Volume|"&$G185,UOM_Conversions!$A$2:$E$50,4,FALSE),$F185*VLOOKUP("Each|"&$G185,UOM_Conversions!$A$2:$E$50,4,FALSE)))) -> 
J186: =IF($B186="","",IF($H186="Weight",$F186*VLOOKUP("Weight|"&$G186,UOM_Conversions!$A$2:$E$50,4,FALSE),IF($H186="Volume",$F186*VLOOKUP("Volume|"&$G186,UOM_Conversions!$A$2:$E$50,4,FALSE),$F186*VLOOKUP("Each|"&$G186,UOM_Conversions!$A$2:$E$50,4,FALSE)))) -> 
J187: =IF($B187="","",IF($H187="Weight",$F187*VLOOKUP("Weight|"&$G187,UOM_Conversions!$A$2:$E$50,4,FALSE),IF($H187="Volume",$F187*VLOOKUP("Volume|"&$G187,UOM_Conversions!$A$2:$E$50,4,FALSE),$F187*VLOOKUP("Each|"&$G187,UOM_Conversions!$A$2:$E$50,4,FALSE)))) -> 
J188: =IF($B188="","",IF($H188="Weight",$F188*VLOOKUP("Weight|"&$G188,UOM_Conversions!$A$2:$E$50,4,FALSE),IF($H188="Volume",$F188*VLOOKUP("Volume|"&$G188,UOM_Conversions!$A$2:$E$50,4,FALSE),$F188*VLOOKUP("Each|"&$G188,UOM_Conversions!$A$2:$E$50,4,FALSE)))) -> 
J189: =IF($B189="","",IF($H189="Weight",$F189*VLOOKUP("Weight|"&$G189,UOM_Conversions!$A$2:$E$50,4,FALSE),IF($H189="Volume",$F189*VLOOKUP("Volume|"&$G189,UOM_Conversions!$A$2:$E$50,4,FALSE),$F189*VLOOKUP("Each|"&$G189,UOM_Conversions!$A$2:$E$50,4,FALSE)))) -> 
J190: =IF($B190="","",IF($H190="Weight",$F190*VLOOKUP("Weight|"&$G190,UOM_Conversions!$A$2:$E$50,4,FALSE),IF($H190="Volume",$F190*VLOOKUP("Volume|"&$G190,UOM_Conversions!$A$2:$E$50,4,FALSE),$F190*VLOOKUP("Each|"&$G190,UOM_Conversions!$A$2:$E$50,4,FALSE)))) -> 
J191: =IF($B191="","",IF($H191="Weight",$F191*VLOOKUP("Weight|"&$G191,UOM_Conversions!$A$2:$E$50,4,FALSE),IF($H191="Volume",$F191*VLOOKUP("Volume|"&$G191,UOM_Conversions!$A$2:$E$50,4,FALSE),$F191*VLOOKUP("Each|"&$G191,UOM_Conversions!$A$2:$E$50,4,FALSE)))) -> 
J192: =IF($B192="","",IF($H192="Weight",$F192*VLOOKUP("Weight|"&$G192,UOM_Conversions!$A$2:$E$50,4,FALSE),IF($H192="Volume",$F192*VLOOKUP("Volume|"&$G192,UOM_Conversions!$A$2:$E$50,4,FALSE),$F192*VLOOKUP("Each|"&$G192,UOM_Conversions!$A$2:$E$50,4,FALSE)))) -> 
J193: =IF($B193="","",IF($H193="Weight",$F193*VLOOKUP("Weight|"&$G193,UOM_Conversions!$A$2:$E$50,4,FALSE),IF($H193="Volume",$F193*VLOOKUP("Volume|"&$G193,UOM_Conversions!$A$2:$E$50,4,FALSE),$F193*VLOOKUP("Each|"&$G193,UOM_Conversions!$A$2:$E$50,4,FALSE)))) -> 
J194: =IF($B194="","",IF($H194="Weight",$F194*VLOOKUP("Weight|"&$G194,UOM_Conversions!$A$2:$E$50,4,FALSE),IF($H194="Volume",$F194*VLOOKUP("Volume|"&$G194,UOM_Conversions!$A$2:$E$50,4,FALSE),$F194*VLOOKUP("Each|"&$G194,UOM_Conversions!$A$2:$E$50,4,FALSE)))) ->  | K194: =IF($B194="","",IFERROR($E194/$J194,0)) -> 
J195: =IF($B195="","",IF($H195="Weight",$F195*VLOOKUP("Weight|"&$G195,UOM_Conversions!$A$2:$E$50,4,FALSE),IF($H195="Volume",$F195*VLOOKUP("Volume|"&$G195,UOM_Conversions!$A$2:$E$50,4,FALSE),$F195*VLOOKUP("Each|"&$G195,UOM_Conversions!$A$2:$E$50,4,FALSE)))) -> 
J196: =IF($B196="","",IF($H196="Weight",$F196*VLOOKUP("Weight|"&$G196,UOM_Conversions!$A$2:$E$50,4,FALSE),IF($H196="Volume",$F196*VLOOKUP("Volume|"&$G196,UOM_Conversions!$A$2:$E$50,4,FALSE),$F196*VLOOKUP("Each|"&$G196,UOM_Conversions!$A$2:$E$50,4,FALSE)))) -> 
J197: =IF($B197="","",IF($H197="Weight",$F197*VLOOKUP("Weight|"&$G197,UOM_Conversions!$A$2:$E$50,4,FALSE),IF($H197="Volume",$F197*VLOOKUP("Volume|"&$G197,UOM_Conversions!$A$2:$E$50,4,FALSE),$F197*VLOOKUP("Each|"&$G197,UOM_Conversions!$A$2:$E$50,4,FALSE)))) -> 
J198: =IF($B198="","",IF($H198="Weight",$F198*VLOOKUP("Weight|"&$G198,UOM_Conversions!$A$2:$E$50,4,FALSE),IF($H198="Volume",$F198*VLOOKUP("Volume|"&$G198,UOM_Conversions!$A$2:$E$50,4,FALSE),$F198*VLOOKUP("Each|"&$G198,UOM_Conversions!$A$2:$E$50,4,FALSE)))) -> 
J199: =IF($B199="","",IF($H199="Weight",$F199*VLOOKUP("Weight|"&$G199,UOM_Conversions!$A$2:$E$50,4,FALSE),IF($H199="Volume",$F199*VLOOKUP("Volume|"&$G199,UOM_Conversions!$A$2:$E$50,4,FALSE),$F199*VLOOKUP("Each|"&$G199,UOM_Conversions!$A$2:$E$50,4,FALSE)))) -> 
J200: =IF($B200="","",IF($H200="Weight",$F200*VLOOKUP("Weight|"&$G200,UOM_Conversions!$A$2:$E$50,4,FALSE),IF($H200="Volume",$F200*VLOOKUP("Volume|"&$G200,UOM_Conversions!$A$2:$E$50,4,FALSE),$F200*VLOOKUP("Each|"&$G200,UOM_Conversions!$A$2:$E$50,4,FALSE)))) -> 
... 301 more rows

Sheet UOM_Conversions
A1: Key | B1: Type | C1: Unit | D1: ToBaseFactor | E1: BaseUnit | G1: Units_List
A2: Weight|g | B2: Weight | C2: g | D2: 1.00 | E2: g | G2: g
A3: Weight|kg | B3: Weight | C3: kg | D3: 1000.00 | E3: g | G3: kg
A4: Weight|oz | B4: Weight | C4: oz | D4: 28.35 | E4: g | G4: oz
A5: Weight|lb | B5: Weight | C5: lb | D5: 453.59 | E5: g | G5: lb
A6: Volume|ml | B6: Volume | C6: ml | D6: 1.00 | E6: ml | G6: ml
A7: Volume|l | B7: Volume | C7: l | D7: 1000.00 | E7: ml | G7: l
A8: Volume|tsp | B8: Volume | C8: tsp | D8: 4.93 | E8: ml | G8: tsp
A9: Volume|tbsp | B9: Volume | C9: tbsp | D9: 14.79 | E9: ml | G9: tbsp
A10: Volume|cup | B10: Volume | C10: cup | D10: 236.59 | E10: ml | G10: cup
A11: Each|each | B11: Each | C11: each | D11: 1.00 | E11: each | G11: each
A12: Each|dozen | B12: Each | C12: dozen | D12: 12.00 | E12: each | G12: dozen

Sheet HowTo
B1: HOW TO USE THIS RECIPE COST WORKBOOK | Z1: =SUBSTITUTE(SUBSTITUTE(LEFT(CELL("filename",B1),FIND("]",CELL("filename",B1))),"[",""),"]","") -> C:\HFPNet\Food_Recipe_Costing_Template.xlsm
B3: Purpose
B4: This workbook helps you:
B5: 1. Cost each menu item using one sheet per recipe
B6: 2. Automatically build a Summary table across all recipes using Power Query
B7: 3. copy and create new recipe sheets with click of a button
B8: 4. Track key KPIs: Cost/Portion, Food Cost %, Last Updated
B9: 5. Easy navogation summary sheet to recipes and back to summary
B11: Quick Start (3 steps)
B12: 1. Create a new recipe sheet by copying TEMPLATE
B13: 2. Fill the recipe sheet (ingredients + header details)
B14: 3. Save → Data → Refresh All to update the Summary
B16: 1) Add a New Recipe (Recommended Workflow)
B17: 1. Click on Add new recipe button
B18: 2. Type in the recipe name on the popup
B19: 3. Update these header cells on the recipe sheet:
B21: Header cells Power Query reads (do not move these):
B22: C3 Menu Item Name
B23: C4 Category
B24: C6 Yield (portions)
B25: C8 Selling Price
B26: F2 Last Updated
B27: G7 Cost / Portion
B28: G8 Food Cost %
B29: G10 Gross Margin %
B30: Once the sheet has a value in C3, it will appear in Summary after refresh.
B32: 2) Update an Existing Recipe
B33: 1. Open the recipe sheet
B34: 2. Update ingredients / quantities / prices / yield / selling price
B35: 3. Update Last Updated in F2
B36: 4. Save (Ctrl+S)
B37: 5. Go to Data → Refresh All or right click on any row of the summary table → click refresh
B39: 3) Refresh the Summary (Power Query)
B40: Power Query reads the saved workbook, so always save first.
B41: 1. Ctrl + S (Save)
B42: 2. Go to Data → Refresh All or right click on any row of the summary table → click refresh
B43: 3. Summary updates automatically
B45: 4) Renaming Recipe Sheets
B46: Power Query will still work after renaming sheets.
B47: After renaming a recipe tab:
B48: 1. Save
B49: 2. Refresh All
B50: No link breakage (this is one reason we use Power Query instead of excel links).
B52: COMMON MISTAKES (AND FIXES)
B53: ❌ Recipe missing from Summary
B54: Cause: Menu Item Name (C3) is blank
B55: Fix: Enter a menu item name in C3, save, refresh.
B56: ❌ Summary values are blank or zero
B57: Cause: The workbook layout changed or values are not in the expected cells
B58: Fix: Confirm these cells contain the correct values:
B59: Sell Price in C8
B60: Cost/Portion in G7
B61: Food Cost % in G8
B62: Then save and refresh.
B63: ❌ Summary not updating after changes
B64: Cause: Workbook wasn’t saved before refresh
B65: Fix: Ctrl+S then Refresh All
B66: ❌ Wrong yields or costs
B67: Cause: Yield (C6) is incorrect or ingredients are not in the batch quantity
B68: Fix: Confirm yield in C6 and ingredient units/conversions.
B69: ❌ Template sheet is renamed or template details are included in the summary
B70: Cause: Renaming, rearranging the order of the mandatory sheets or hiding the sheets (Template, Ingredients_DB, UOM_Conversions, HowTo)
B71: Fix: Do not rename, rearrange order or hide mandatory sheets (Template, Ingredients_DB, UOM_Conversions, HowTo)
B73: CHANGE LOG (Optional but Recommended)
B74: Use this to track changes to recipes and pricing.
B76: Date | C76: Recipe / Sheet Name | D76: What Changed | E76: Changed By | F76: Notes
B79: Best practice: When you change a recipe’s ingredients, yield, or selling price:
B80: Update F2 Last Updated
B81: Add a line in the Change Log (above)
B83: WORKFLOW CHECKLIST (Daily / Weekly)
B84: Add new recipes by clicking on Add new recipe button
B85: Keep header cells in the same locations
B86: Update F2 “Last Updated” when changing anything important
B87: Save and Refresh All before reporting/exporting
B88: Review Summary filters (Category, high Food Cost %, low margin)

Sheet Example 1
A1: RECIPE COST CARD | K1: ALLERGEN SUMMARY (from ingredient flags) | O1: For calculation (do not delete)
A2: Restaurant / Concept | C2: Demo Restaurant | E2: Last Updated | F2: 2026-02-02 | K2: Milk | L2: =IF(MAX(R21:R50)>0,"YES","") -> YES | M2: (e.g., gluten-free option? vegan? substitution guidance, allergen handling, etc.)
A3: Menu Item Name | C3: Example 1 | G3: Currency 1 | H3: Currency 2 | I3: Notes | K3: Egg | L3: =IF(MAX(S21:S50)>0,"YES","") -> YES
A4: Category | C4: Starter | E4: Total Batch Food Cost | G4: =IFERROR(SUM(H21:H50),0) -> $3.82 | I4: SUM(G21:G50) | K4: Fish | L4: =IF(MAX(T21:T50)>0,"YES","") -> 
A5: Station | C5: Grill | E5: Other Costs (packaging etc.) | I5: IFERROR(SUM($G$14:$G$17),0) | K5: Shellfish | L5: =IF(MAX(U21:U50)>0,"YES","") -> 
A6: Batch Yield (portions) | C6: 1 | E6: Total Batch Cost | G6: =G4+G5 -> $3.82 | K6: Molluscs | L6: =IF(MAX(V21:V50)>0,"YES","") -> 
A7: Portion Size | C7: 1 burger + fries | E7: Cost / Portion | G7: =IFERROR(G6/$C$6,0) -> $3.82 | K7: Peanuts | L7: =IF(MAX(W21:W50)>0,"YES","") -> 
A8: Selling Price / Portion | C8: $16.00 | E8: Food Cost % | G8: =IFERROR(G7/$C$8,0) -> 23.9% | K8: Tree Nuts | L8: =IF(MAX(X21:X50)>0,"YES","") -> 
A9: Target Food Cost % | C9: 30.0% | E9: Gross Profit / Portion | G9: =IFERROR($C$8-G7,0) -> $12.18 | K9: Wheat/Gluten | L9: =IF(MAX(Y21:Y50)>0,"YES","") -> YES
A10: Prep Time (min) | C10: 10 | E10: Gross Margin % | G10: =IFERROR(1-G8,0) -> 76.1% | K10: Soy | L10: =IF(MAX(Z21:Z50)>0,"YES","") -> YES
A11: Cook Time (min) | C11: 8 | K11: Sesame | L11: =IF(MAX(AA21:AA50)>0,"YES","") -> YES
A12: Shelf Life / Storage | C12: Hold cold 2 days; cook to order | E12: OTHER COSTS (not part of cost of sale in hotels and resorts) | K12: Mustard | L12: =IF(MAX(AB21:AB50)>0,"YES","") -> 
E13: Description | G13: Cost | I13: Notes | K13: Celery | L13: =IF(MAX(AC21:AC50)>0,"YES","") -> 
E14: Packaging | G14: $0.25 | K14: Lupin | L14: =IF(MAX(AD21:AD50)>0,"YES","") -> 
E15: Napkin/condiment cup | G15: $0.10 | K15: Sulphites | L15: =IF(MAX(AE21:AE50)>0,"YES","") -> 
G16: $0.00
G17: $0.00
A19: INGREDIENTS (enter Qty + Unit; costs auto-calc) | F19: Actual Qty | G19: Unit Cost | K19: PREPARATION METHOD
A20: Line | B20: Ingredient | C20: Qty | D20: Unit | E20: Yield % | F20: in base units | G20: (per base) | H20: Line Cost | I20: Notes | K20: Step-by-step method - critical control points - holding temps - plating - cross-contamination notes -
A21: 1 | B21: Beef mince | C21: 180.00 | D21: g | E21: 90% | F21: =IF($B21="","",IF(ISNUMBER($Q21),$C21*$Q21/E21,"")) -> 200.00 | G21: =IF($B21="","",IFERROR(INDEX(Ingredients_DB!$K$2:$K$501, MATCH($B21, Ingredients_DB!$B$2:$B$501,0)),0)) -> $0.01 | H21: =IF($B21="","",IF(ISNUMBER($F21),$F21*$G21,"")) -> $1.80 | I21: Patty 180g | O21: =IF($B21="","",IFERROR(INDEX(Ingredients_DB!$H$2:$H$501, MATCH($B21, Ingredients_DB!$B$2:$B$501,0)),"")) -> Weight | P21: =IF($B21="","",IFERROR(INDEX(Ingredients_DB!$I$2:$I$501, MATCH($B21, Ingredients_DB!$B$2:$B$501,0)),"")) -> g | Q21: =IF($B21="","",IFERROR(VLOOKUP($O21&"|"&$D21,UOM_Conversions!$A$2:$E$50,4,FALSE),"CHECK UNIT")) -> 1 | R21: =IF($B21="","",IFERROR(INDEX(Ingredients_DB!$M$2:$M$501, MATCH($B21, Ingredients_DB!$B$2:$B$501,0)),0)) -> 0 | S21: =IF($B21="","",IFERROR(INDEX(Ingredients_DB!$N$2:$N$501, MATCH($B21, Ingredients_DB!$B$2:$B$501,0)),0)) -> 0 | T21: =IF($B21="","",IFERROR(INDEX(Ingredients_DB!$O$2:$O$501, MATCH($B21, Ingredients_DB!$B$2:$B$501,0)),0)) -> 0 | U21: =IF($B21="","",IFERROR(INDEX(Ingredients_DB!$P$2:$P$501, MATCH($B21, Ingredients_DB!$B$2:$B$501,0)),0)) -> 0 | V21: =IF($B21="","",IFERROR(INDEX(Ingredients_DB!$Q$2:$Q$501, MATCH($B21, Ingredients_DB!$B$2:$B$501,0)),0)) -> 0 | W21: =IF($B21="","",IFERROR(INDEX(Ingredients_DB!$R$2:$R$501, MATCH($B21, Ingredients_DB!$B$2:$B$501,0)),0)) -> 0 | X21: =IF($B21="","",IFERROR(INDEX(Ingredients_DB!$S$2:$S$501, MATCH($B21, Ingredients_DB!$B$2:$B$501,0)),0)) -> 0 | Y21: =IF($B21="","",IFERROR(INDEX(Ingredients_DB!$T$2:$T$501, MATCH($B21, Ingredients_DB!$B$2:$B$501,0)),0)) -> 0 | Z21: =IF($B21="","",IFERROR(INDEX(Ingredients_DB!$U$2:$U$501, MATCH($B21, Ingredients_DB!$B$2:$B$501,0)),0)) -> 0 | AA21: =IF($B21="","",IFERROR(INDEX(Ingredients_DB!$V$2:$V$501, MATCH($B21, Ingredients_DB!$B$2:$B$501,0)),0)) -> 0 | AB21: =IF($B21="","",IFERROR(INDEX(Ingredients_DB!$W$2:$W$501, MATCH($B21, Ingredients_DB!$B$2:$B$501,0)),0)) -> 0 | AC21: =IF($B21="","",IFERROR(INDEX(Ingredients_DB!$X$2:$X$501, MATCH($B21, Ingredients_DB!$B$2:$B$501,0)),0)) -> 0 | AD21: =IF($B21="","",IFERROR(INDEX(Ingredients_DB!$Y$2:$Y$501, MATCH($B21, Ingredients_DB!$B$2:$B$501,0)),0)) -> 0 | AE21: =IF($B21="","",IFERROR(INDEX(Ingredients_DB!$Z$2:$Z$501, MATCH($B21, Ingredients_DB!$B$2:$B$501,0)),0)) -> 0
A22: 2 | B22: Burger bun | C22: 1.00 | D22: each | E22: 100% | F22: 1.00 | G22: =IF($B22="","",IFERROR(INDEX(Ingredients_DB!$K$2:$K$501, MATCH($B22, Ingredients_DB!$B$2:$B$501,0)),0)) -> $0.75 | H22: $0.75 | I22: Toasted | O22: =IF($B22="","",IFERROR(INDEX(Ingredients_DB!$H$2:$H$501, MATCH($B22, Ingredients_DB!$B$2:$B$501,0)),"")) -> Each | P22: =IF($B22="","",IFERROR(INDEX(Ingredients_DB!$I$2:$I$501, MATCH($B22, Ingredients_DB!$B$2:$B$501,0)),"")) -> each | Q22: =IF($B22="","",IFERROR(VLOOKUP($O22&"|"&$D22,UOM_Conversions!$A$2:$E$50,4,FALSE),"CHECK UNIT")) -> 1 | R22: =IF($B22="","",IFERROR(INDEX(Ingredients_DB!$M$2:$M$501, MATCH($B22, Ingredients_DB!$B$2:$B$501,0)),0)) -> 0 | S22: =IF($B22="","",IFERROR(INDEX(Ingredients_DB!$N$2:$N$501, MATCH($B22, Ingredients_DB!$B$2:$B$501,0)),0)) -> 0 | T22: =IF($B22="","",IFERROR(INDEX(Ingredients_DB!$O$2:$O$501, MATCH($B22, Ingredients_DB!$B$2:$B$501,0)),0)) -> 0 | U22: =IF($B22="","",IFERROR(INDEX(Ingredients_DB!$P$2:$P$501, MATCH($B22, Ingredients_DB!$B$2:$B$501,0)),0)) -> 0 | V22: =IF($B22="","",IFERROR(INDEX(Ingredients_DB!$Q$2:$Q$501, MATCH($B22, Ingredients_DB!$B$2:$B$501,0)),0)) -> 0 | W22: =IF($B22="","",IFERROR(INDEX(Ingredients_DB!$R$2:$R$501, MATCH($B22, Ingredients_DB!$B$2:$B$501,0)),0)) -> 0 | X22: =IF($B22="","",IFERROR(INDEX(Ingredients_DB!$S$2:$S$501, MATCH($B22, Ingredients_DB!$B$2:$B$501,0)),0)) -> 0 | Y22: =IF($B22="","",IFERROR(INDEX(Ingredients_DB!$T$2:$T$501, MATCH($B22, Ingredients_DB!$B$2:$B$501,0)),0)) -> 1 | Z22: =IF($B22="","",IFERROR(INDEX(Ingredients_DB!$U$2:$U$501, MATCH($B22, Ingredients_DB!$B$2:$B$501,0)),0)) -> 0 | AA22: =IF($B22="","",IFERROR(INDEX(Ingredients_DB!$V$2:$V$501, MATCH($B22, Ingredients_DB!$B$2:$B$501,0)),0)) -> 0 | AB22: =IF($B22="","",IFERROR(INDEX(Ingredients_DB!$W$2:$W$501, MATCH($B22, Ingredients_DB!$B$2:$B$501,0)),0)) -> 0 | AC22: =IF($B22="","",IFERROR(INDEX(Ingredients_DB!$X$2:$X$501, MATCH($B22, Ingredients_DB!$B$2:$B$501,0)),0)) -> 0 | AD22: =IF($B22="","",IFERROR(INDEX(Ingredients_DB!$Y$2:$Y$501, MATCH($B22, Ingredients_DB!$B$2:$B$501,0)),0)) -> 0 | AE22: =IF($B22="","",IFERROR(INDEX(Ingredients_DB!$Z$2:$Z$501, MATCH($B22, Ingredients_DB!$B$2:$B$501,0)),0)) -> 0
A23: 3 | B23: Cheddar cheese | C23: 30.00 | D23: g | E23: 100% | F23: 30.00 | G23: =IF($B23="","",IFERROR(INDEX(Ingredients_DB!$K$2:$K$501, MATCH($B23, Ingredients_DB!$B$2:$B$501,0)),0)) -> $0.01 | H23: $0.33 | I23: Slice | O23: =IF($B23="","",IFERROR(INDEX(Ingredients_DB!$H$2:$H$501, MATCH($B23, Ingredients_DB!$B$2:$B$501,0)),"")) -> Weight | P23: =IF($B23="","",IFERROR(INDEX(Ingredients_DB!$I$2:$I$501, MATCH($B23, Ingredients_DB!$B$2:$B$501,0)),"")) -> g | Q23: =IF($B23="","",IFERROR(VLOOKUP($O23&"|"&$D23,UOM_Conversions!$A$2:$E$50,4,FALSE),"CHECK UNIT")) -> 1 | R23: =IF($B23="","",IFERROR(INDEX(Ingredients_DB!$M$2:$M$501, MATCH($B23, Ingredients_DB!$B$2:$B$501,0)),0)) -> 1 | S23: =IF($B23="","",IFERROR(INDEX(Ingredients_DB!$N$2:$N$501, MATCH($B23, Ingredients_DB!$B$2:$B$501,0)),0)) -> 0 | T23: =IF($B23="","",IFERROR(INDEX(Ingredients_DB!$O$2:$O$501, MATCH($B23, Ingredients_DB!$B$2:$B$501,0)),0)) -> 0 | U23: =IF($B23="","",IFERROR(INDEX(Ingredients_DB!$P$2:$P$501, MATCH($B23, Ingredients_DB!$B$2:$B$501,0)),0)) -> 0 | V23: =IF($B23="","",IFERROR(INDEX(Ingredients_DB!$Q$2:$Q$501, MATCH($B23, Ingredients_DB!$B$2:$B$501,0)),0)) -> 0 | W23: =IF($B23="","",IFERROR(INDEX(Ingredients_DB!$R$2:$R$501, MATCH($B23, Ingredients_DB!$B$2:$B$501,0)),0)) -> 0 | X23: =IF($B23="","",IFERROR(INDEX(Ingredients_DB!$S$2:$S$501, MATCH($B23, Ingredients_DB!$B$2:$B$501,0)),0)) -> 0 | Y23: =IF($B23="","",IFERROR(INDEX(Ingredients_DB!$T$2:$T$501, MATCH($B23, Ingredients_DB!$B$2:$B$501,0)),0)) -> 0 | Z23: =IF($B23="","",IFERROR(INDEX(Ingredients_DB!$U$2:$U$501, MATCH($B23, Ingredients_DB!$B$2:$B$501,0)),0)) -> 0 | AA23: =IF($B23="","",IFERROR(INDEX(Ingredients_DB!$V$2:$V$501, MATCH($B23, Ingredients_DB!$B$2:$B$501,0)),0)) -> 0 | AB23: =IF($B23="","",IFERROR(INDEX(Ingredients_DB!$W$2:$W$501, MATCH($B23, Ingredients_DB!$B$2:$B$501,0)),0)) -> 0 | AC23: =IF($B23="","",IFERROR(INDEX(Ingredients_DB!$X$2:$X$501, MATCH($B23, Ingredients_DB!$B$2:$B$501,0)),0)) -> 0 | AD23: =IF($B23="","",IFERROR(INDEX(Ingredients_DB!$Y$2:$Y$501, MATCH($B23, Ingredients_DB!$B$2:$B$501,0)),0)) -> 0 | AE23: =IF($B23="","",IFERROR(INDEX(Ingredients_DB!$Z$2:$Z$501, MATCH($B23, Ingredients_DB!$B$2:$B$501,0)),0)) -> 0
A24: 4 | B24: Lettuce | C24: 20.00 | D24: g | E24: 95% | F24: 21.05 | G24: =IF($B24="","",IFERROR(INDEX(Ingredients_DB!$K$2:$K$501, MATCH($B24, Ingredients_DB!$B$2:$B$501,0)),0)) -> $0.01 | H24: $0.17 | I24: Shredded | O24: =IF($B24="","",IFERROR(INDEX(Ingredients_DB!$H$2:$H$501, MATCH($B24, Ingredients_DB!$B$2:$B$501,0)),"")) -> Weight | P24: =IF($B24="","",IFERROR(INDEX(Ingredients_DB!$I$2:$I$501, MATCH($B24, Ingredients_DB!$B$2:$B$501,0)),"")) -> g | Q24: =IF($B24="","",IFERROR(VLOOKUP($O24&"|"&$D24,UOM_Conversions!$A$2:$E$50,4,FALSE),"CHECK UNIT")) -> 1 | R24: =IF($B24="","",IFERROR(INDEX(Ingredients_DB!$M$2:$M$501, MATCH($B24, Ingredients_DB!$B$2:$B$501,0)),0)) -> 0 | S24: =IF($B24="","",IFERROR(INDEX(Ingredients_DB!$N$2:$N$501, MATCH($B24, Ingredients_DB!$B$2:$B$501,0)),0)) -> 0 | T24: =IF($B24="","",IFERROR(INDEX(Ingredients_DB!$O$2:$O$501, MATCH($B24, Ingredients_DB!$B$2:$B$501,0)),0)) -> 0 | U24: =IF($B24="","",IFERROR(INDEX(Ingredients_DB!$P$2:$P$501, MATCH($B24, Ingredients_DB!$B$2:$B$501,0)),0)) -> 0 | V24: =IF($B24="","",IFERROR(INDEX(Ingredients_DB!$Q$2:$Q$501, MATCH($B24, Ingredients_DB!$B$2:$B$501,0)),0)) -> 0 | W24: =IF($B24="","",IFERROR(INDEX(Ingredients_DB!$R$2:$R$501, MATCH($B24, Ingredients_DB!$B$2:$B$501,0)),0)) -> 0 | X24: =IF($B24="","",IFERROR(INDEX(Ingredients_DB!$S$2:$S$501, MATCH($B24, Ingredients_DB!$B$2:$B$501,0)),0)) -> 0 | Y24: =IF($B24="","",IFERROR(INDEX(Ingredients_DB!$T$2:$T$501, MATCH($B24, Ingredients_DB!$B$2:$B$501,0)),0)) -> 0 | Z24: =IF($B24="","",IFERROR(INDEX(Ingredients_DB!$U$2:$U$501, MATCH($B24, Ingredients_DB!$B$2:$B$501,0)),0)) -> 0 | AA24: =IF($B24="","",IFERROR(INDEX(Ingredients_DB!$V$2:$V$501, MATCH($B24, Ingredients_DB!$B$2:$B$501,0)),0)) -> 0 | AB24: =IF($B24="","",IFERROR(INDEX(Ingredients_DB!$W$2:$W$501, MATCH($B24, Ingredients_DB!$B$2:$B$501,0)),0)) -> 0 | AC24: =IF($B24="","",IFERROR(INDEX(Ingredients_DB!$X$2:$X$501, MATCH($B24, Ingredients_DB!$B$2:$B$501,0)),0)) -> 0 | AD24: =IF($B24="","",IFERROR(INDEX(Ingredients_DB!$Y$2:$Y$501, MATCH($B24, Ingredients_DB!$B$2:$B$501,0)),0)) -> 0 | AE24: =IF($B24="","",IFERROR(INDEX(Ingredients_DB!$Z$2:$Z$501, MATCH($B24, Ingredients_DB!$B$2:$B$501,0)),0)) -> 0
A25: 5 | B25: Ketchup | C25: 20.00 | D25: g | E25: 100% | F25: 20.00 | G25: =IF($B25="","",IFERROR(INDEX(Ingredients_DB!$K$2:$K$501, MATCH($B25, Ingredients_DB!$B$2:$B$501,0)),0)) -> $0.00 | H25: $0.08 | O25: =IF($B25="","",IFERROR(INDEX(Ingredients_DB!$H$2:$H$501, MATCH($B25, Ingredients_DB!$B$2:$B$501,0)),"")) -> Weight | P25: =IF($B25="","",IFERROR(INDEX(Ingredients_DB!$I$2:$I$501, MATCH($B25, Ingredients_DB!$B$2:$B$501,0)),"")) -> g | Q25: =IF($B25="","",IFERROR(VLOOKUP($O25&"|"&$D25,UOM_Conversions!$A$2:$E$50,4,FALSE),"CHECK UNIT")) -> 1 | R25: =IF($B25="","",IFERROR(INDEX(Ingredients_DB!$M$2:$M$501, MATCH($B25, Ingredients_DB!$B$2:$B$501,0)),0)) -> 0 | S25: =IF($B25="","",IFERROR(INDEX(Ingredients_DB!$N$2:$N$501, MATCH($B25, Ingredients_DB!$B$2:$B$501,0)),0)) -> 0 | T25: =IF($B25="","",IFERROR(INDEX(Ingredients_DB!$O$2:$O$501, MATCH($B25, Ingredients_DB!$B$2:$B$501,0)),0)) -> 0 | U25: =IF($B25="","",IFERROR(INDEX(Ingredients_DB!$P$2:$P$501, MATCH($B25, Ingredients_DB!$B$2:$B$501,0)),0)) -> 0 | V25: =IF($B25="","",IFERROR(INDEX(Ingredients_DB!$Q$2:$Q$501, MATCH($B25, Ingredients_DB!$B$2:$B$501,0)),0)) -> 0 | W25: =IF($B25="","",IFERROR(INDEX(Ingredients_DB!$R$2:$R$501, MATCH($B25, Ingredients_DB!$B$2:$B$501,0)),0)) -> 0 | X25: =IF($B25="","",IFERROR(INDEX(Ingredients_DB!$S$2:$S$501, MATCH($B25, Ingredients_DB!$B$2:$B$501,0)),0)) -> 0 | Y25: =IF($B25="","",IFERROR(INDEX(Ingredients_DB!$T$2:$T$501, MATCH($B25, Ingredients_DB!$B$2:$B$501,0)),0)) -> 0 | Z25: =IF($B25="","",IFERROR(INDEX(Ingredients_DB!$U$2:$U$501, MATCH($B25, Ingredients_DB!$B$2:$B$501,0)),0)) -> 0 | AA25: =IF($B25="","",IFERROR(INDEX(Ingredients_DB!$V$2:$V$501, MATCH($B25, Ingredients_DB!$B$2:$B$501,0)),0)) -> 0 | AB25: =IF($B25="","",IFERROR(INDEX(Ingredients_DB!$W$2:$W$501, MATCH($B25, Ingredients_DB!$B$2:$B$501,0)),0)) -> 0 | AC25: =IF($B25="","",IFERROR(INDEX(Ingredients_DB!$X$2:$X$501, MATCH($B25, Ingredients_DB!$B$2:$B$501,0)),0)) -> 0 | AD25: =IF($B25="","",IFERROR(INDEX(Ingredients_DB!$Y$2:$Y$501, MATCH($B25, Ingredients_DB!$B$2:$B$501,0)),0)) -> 0 | AE25: =IF($B25="","",IFERROR(INDEX(Ingredients_DB!$Z$2:$Z$501, MATCH($B25, Ingredients_DB!$B$2:$B$501,0)),0)) -> 0
A26: 6 | B26: Mayonnaise | C26: 15.00 | D26: g | E26: 100% | F26: 15.00 | G26: =IF($B26="","",IFERROR(INDEX(Ingredients_DB!$K$2:$K$501, MATCH($B26, Ingredients_DB!$B$2:$B$501,0)),0)) -> $0.01 | H26: $0.11 | O26: =IF($B26="","",IFERROR(INDEX(Ingredients_DB!$H$2:$H$501, MATCH($B26, Ingredients_DB!$B$2:$B$501,0)),"")) -> Weight | P26: =IF($B26="","",IFERROR(INDEX(Ingredients_DB!$I$2:$I$501, MATCH($B26, Ingredients_DB!$B$2:$B$501,0)),"")) -> g | Q26: =IF($B26="","",IFERROR(VLOOKUP($O26&"|"&$D26,UOM_Conversions!$A$2:$E$50,4,FALSE),"CHECK UNIT")) -> 1 | R26: =IF($B26="","",IFERROR(INDEX(Ingredients_DB!$M$2:$M$501, MATCH($B26, Ingredients_DB!$B$2:$B$501,0)),0)) -> 0 | S26: =IF($B26="","",IFERROR(INDEX(Ingredients_DB!$N$2:$N$501, MATCH($B26, Ingredients_DB!$B$2:$B$501,0)),0)) -> 1 | T26: =IF($B26="","",IFERROR(INDEX(Ingredients_DB!$O$2:$O$501, MATCH($B26, Ingredients_DB!$B$2:$B$501,0)),0)) -> 0 | U26: =IF($B26="","",IFERROR(INDEX(Ingredients_DB!$P$2:$P$501, MATCH($B26, Ingredients_DB!$B$2:$B$501,0)),0)) -> 0 | V26: =IF($B26="","",IFERROR(INDEX(Ingredients_DB!$Q$2:$Q$501, MATCH($B26, Ingredients_DB!$B$2:$B$501,0)),0)) -> 0 | W26: =IF($B26="","",IFERROR(INDEX(Ingredients_DB!$R$2:$R$501, MATCH($B26, Ingredients_DB!$B$2:$B$501,0)),0)) -> 0 | X26: =IF($B26="","",IFERROR(INDEX(Ingredients_DB!$S$2:$S$501, MATCH($B26, Ingredients_DB!$B$2:$B$501,0)),0)) -> 0 | Y26: =IF($B26="","",IFERROR(INDEX(Ingredients_DB!$T$2:$T$501, MATCH($B26, Ingredients_DB!$B$2:$B$501,0)),0)) -> 0 | Z26: =IF($B26="","",IFERROR(INDEX(Ingredients_DB!$U$2:$U$501, MATCH($B26, Ingredients_DB!$B$2:$B$501,0)),0)) -> 1 | AA26: =IF($B26="","",IFERROR(INDEX(Ingredients_DB!$V$2:$V$501, MATCH($B26, Ingredients_DB!$B$2:$B$501,0)),0)) -> 0 | AB26: =IF($B26="","",IFERROR(INDEX(Ingredients_DB!$W$2:$W$501, MATCH($B26, Ingredients_DB!$B$2:$B$501,0)),0)) -> 0 | AC26: =IF($B26="","",IFERROR(INDEX(Ingredients_DB!$X$2:$X$501, MATCH($B26, Ingredients_DB!$B$2:$B$501,0)),0)) -> 0 | AD26: =IF($B26="","",IFERROR(INDEX(Ingredients_DB!$Y$2:$Y$501, MATCH($B26, Ingredients_DB!$B$2:$B$501,0)),0)) -> 0 | AE26: =IF($B26="","",IFERROR(INDEX(Ingredients_DB!$Z$2:$Z$501, MATCH($B26, Ingredients_DB!$B$2:$B$501,0)),0)) -> 0
A27: 7 | B27: French fries (frozen) | C27: 200.00 | D27: g | E27: 100% | F27: 200.00 | G27: =IF($B27="","",IFERROR(INDEX(Ingredients_DB!$K$2:$K$501, MATCH($B27, Ingredients_DB!$B$2:$B$501,0)),0)) -> $0.00 | H27: $0.56 | I27: Portion | O27: =IF($B27="","",IFERROR(INDEX(Ingredients_DB!$H$2:$H$501, MATCH($B27, Ingredients_DB!$B$2:$B$501,0)),"")) -> Weight | P27: =IF($B27="","",IFERROR(INDEX(Ingredients_DB!$I$2:$I$501, MATCH($B27, Ingredients_DB!$B$2:$B$501,0)),"")) -> g | Q27: =IF($B27="","",IFERROR(VLOOKUP($O27&"|"&$D27,UOM_Conversions!$A$2:$E$50,4,FALSE),"CHECK UNIT")) -> 1 | R27: =IF($B27="","",IFERROR(INDEX(Ingredients_DB!$M$2:$M$501, MATCH($B27, Ingredients_DB!$B$2:$B$501,0)),0)) -> 0 | S27: =IF($B27="","",IFERROR(INDEX(Ingredients_DB!$N$2:$N$501, MATCH($B27, Ingredients_DB!$B$2:$B$501,0)),0)) -> 0 | T27: =IF($B27="","",IFERROR(INDEX(Ingredients_DB!$O$2:$O$501, MATCH($B27, Ingredients_DB!$B$2:$B$501,0)),0)) -> 0 | U27: =IF($B27="","",IFERROR(INDEX(Ingredients_DB!$P$2:$P$501, MATCH($B27, Ingredients_DB!$B$2:$B$501,0)),0)) -> 0 | V27: =IF($B27="","",IFERROR(INDEX(Ingredients_DB!$Q$2:$Q$501, MATCH($B27, Ingredients_DB!$B$2:$B$501,0)),0)) -> 0 | W27: =IF($B27="","",IFERROR(INDEX(Ingredients_DB!$R$2:$R$501, MATCH($B27, Ingredients_DB!$B$2:$B$501,0)),0)) -> 0 | X27: =IF($B27="","",IFERROR(INDEX(Ingredients_DB!$S$2:$S$501, MATCH($B27, Ingredients_DB!$B$2:$B$501,0)),0)) -> 0 | Y27: =IF($B27="","",IFERROR(INDEX(Ingredients_DB!$T$2:$T$501, MATCH($B27, Ingredients_DB!$B$2:$B$501,0)),0)) -> 0 | Z27: =IF($B27="","",IFERROR(INDEX(Ingredients_DB!$U$2:$U$501, MATCH($B27, Ingredients_DB!$B$2:$B$501,0)),0)) -> 0 | AA27: =IF($B27="","",IFERROR(INDEX(Ingredients_DB!$V$2:$V$501, MATCH($B27, Ingredients_DB!$B$2:$B$501,0)),0)) -> 0 | AB27: =IF($B27="","",IFERROR(INDEX(Ingredients_DB!$W$2:$W$501, MATCH($B27, Ingredients_DB!$B$2:$B$501,0)),0)) -> 0 | AC27: =IF($B27="","",IFERROR(INDEX(Ingredients_DB!$X$2:$X$501, MATCH($B27, Ingredients_DB!$B$2:$B$501,0)),0)) -> 0 | AD27: =IF($B27="","",IFERROR(INDEX(Ingredients_DB!$Y$2:$Y$501, MATCH($B27, Ingredients_DB!$B$2:$B$501,0)),0)) -> 0 | AE27: =IF($B27="","",IFERROR(INDEX(Ingredients_DB!$Z$2:$Z$501, MATCH($B27, Ingredients_DB!$B$2:$B$501,0)),0)) -> 0
A28: 8 | B28: Sesame seeds | C28: 2.00 | D28: g | E28: 100% | F28: 2.00 | G28: =IF($B28="","",IFERROR(INDEX(Ingredients_DB!$K$2:$K$501, MATCH($B28, Ingredients_DB!$B$2:$B$501,0)),0)) -> $0.01 | H28: $0.02 | I28: Bun topping (optional) | O28: =IF($B28="","",IFERROR(INDEX(Ingredients_DB!$H$2:$H$501, MATCH($B28, Ingredients_DB!$B$2:$B$501,0)),"")) -> Weight | P28: =IF($B28="","",IFERROR(INDEX(Ingredients_DB!$I$2:$I$501, MATCH($B28, Ingredients_DB!$B$2:$B$501,0)),"")) -> g | Q28: =IF($B28="","",IFERROR(VLOOKUP($O28&"|"&$D28,UOM_Conversions!$A$2:$E$50,4,FALSE),"CHECK UNIT")) -> 1 | R28: =IF($B28="","",IFERROR(INDEX(Ingredients_DB!$M$2:$M$501, MATCH($B28, Ingredients_DB!$B$2:$B$501,0)),0)) -> 0 | S28: =IF($B28="","",IFERROR(INDEX(Ingredients_DB!$N$2:$N$501, MATCH($B28, Ingredients_DB!$B$2:$B$501,0)),0)) -> 0 | T28: =IF($B28="","",IFERROR(INDEX(Ingredients_DB!$O$2:$O$501, MATCH($B28, Ingredients_DB!$B$2:$B$501,0)),0)) -> 0 | U28: =IF($B28="","",IFERROR(INDEX(Ingredients_DB!$P$2:$P$501, MATCH($B28, Ingredients_DB!$B$2:$B$501,0)),0)) -> 0 | V28: =IF($B28="","",IFERROR(INDEX(Ingredients_DB!$Q$2:$Q$501, MATCH($B28, Ingredients_DB!$B$2:$B$501,0)),0)) -> 0 | W28: =IF($B28="","",IFERROR(INDEX(Ingredients_DB!$R$2:$R$501, MATCH($B28, Ingredients_DB!$B$2:$B$501,0)),0)) -> 0 | X28: =IF($B28="","",IFERROR(INDEX(Ingredients_DB!$S$2:$S$501, MATCH($B28, Ingredients_DB!$B$2:$B$501,0)),0)) -> 0 | Y28: =IF($B28="","",IFERROR(INDEX(Ingredients_DB!$T$2:$T$501, MATCH($B28, Ingredients_DB!$B$2:$B$501,0)),0)) -> 0 | Z28: =IF($B28="","",IFERROR(INDEX(Ingredients_DB!$U$2:$U$501, MATCH($B28, Ingredients_DB!$B$2:$B$501,0)),0)) -> 0 | AA28: =IF($B28="","",IFERROR(INDEX(Ingredients_DB!$V$2:$V$501, MATCH($B28, Ingredients_DB!$B$2:$B$501,0)),0)) -> 1 | AB28: =IF($B28="","",IFERROR(INDEX(Ingredients_DB!$W$2:$W$501, MATCH($B28, Ingredients_DB!$B$2:$B$501,0)),0)) -> 0 | AC28: =IF($B28="","",IFERROR(INDEX(Ingredients_DB!$X$2:$X$501, MATCH($B28, Ingredients_DB!$B$2:$B$501,0)),0)) -> 0 | AD28: =IF($B28="","",IFERROR(INDEX(Ingredients_DB!$Y$2:$Y$501, MATCH($B28, Ingredients_DB!$B$2:$B$501,0)),0)) -> 0 | AE28: =IF($B28="","",IFERROR(INDEX(Ingredients_DB!$Z$2:$Z$501, MATCH($B28, Ingredients_DB!$B$2:$B$501,0)),0)) -> 0
A29: 9 | C29: 0.00 | D29: g | G29: =IF($B29="","",IFERROR(INDEX(Ingredients_DB!$K$2:$K$501, MATCH($B29, Ingredients_DB!$B$2:$B$501,0)),0)) ->  | O29: =IF($B29="","",IFERROR(INDEX(Ingredients_DB!$H$2:$H$501, MATCH($B29, Ingredients_DB!$B$2:$B$501,0)),"")) ->  | P29: =IF($B29="","",IFERROR(INDEX(Ingredients_DB!$I$2:$I$501, MATCH($B29, Ingredients_DB!$B$2:$B$501,0)),"")) ->  | Q29: =IF($B29="","",IFERROR(VLOOKUP($O29&"|"&$D29,UOM_Conversions!$A$2:$E$50,4,FALSE),"CHECK UNIT")) ->  | R29: =IF($B29="","",IFERROR(INDEX(Ingredients_DB!$M$2:$M$501, MATCH($B29, Ingredients_DB!$B$2:$B$501,0)),0)) ->  | S29: =IF($B29="","",IFERROR(INDEX(Ingredients_DB!$N$2:$N$501, MATCH($B29, Ingredients_DB!$B$2:$B$501,0)),0)) ->  | T29: =IF($B29="","",IFERROR(INDEX(Ingredients_DB!$O$2:$O$501, MATCH($B29, Ingredients_DB!$B$2:$B$501,0)),0)) ->  | U29: =IF($B29="","",IFERROR(INDEX(Ingredients_DB!$P$2:$P$501, MATCH($B29, Ingredients_DB!$B$2:$B$501,0)),0)) ->  | V29: =IF($B29="","",IFERROR(INDEX(Ingredients_DB!$Q$2:$Q$501, MATCH($B29, Ingredients_DB!$B$2:$B$501,0)),0)) ->  | W29: =IF($B29="","",IFERROR(INDEX(Ingredients_DB!$R$2:$R$501, MATCH($B29, Ingredients_DB!$B$2:$B$501,0)),0)) ->  | X29: =IF($B29="","",IFERROR(INDEX(Ingredients_DB!$S$2:$S$501, MATCH($B29, Ingredients_DB!$B$2:$B$501,0)),0)) ->  | Y29: =IF($B29="","",IFERROR(INDEX(Ingredients_DB!$T$2:$T$501, MATCH($B29, Ingredients_DB!$B$2:$B$501,0)),0)) ->  | Z29: =IF($B29="","",IFERROR(INDEX(Ingredients_DB!$U$2:$U$501, MATCH($B29, Ingredients_DB!$B$2:$B$501,0)),0)) ->  | AA29: =IF($B29="","",IFERROR(INDEX(Ingredients_DB!$V$2:$V$501, MATCH($B29, Ingredients_DB!$B$2:$B$501,0)),0)) ->  | AB29: =IF($B29="","",IFERROR(INDEX(Ingredients_DB!$W$2:$W$501, MATCH($B29, Ingredients_DB!$B$2:$B$501,0)),0)) ->  | AC29: =IF($B29="","",IFERROR(INDEX(Ingredients_DB!$X$2:$X$501, MATCH($B29, Ingredients_DB!$B$2:$B$501,0)),0)) ->  | AD29: =IF($B29="","",IFERROR(INDEX(Ingredients_DB!$Y$2:$Y$501, MATCH($B29, Ingredients_DB!$B$2:$B$501,0)),0)) ->  | AE29: =IF($B29="","",IFERROR(INDEX(Ingredients_DB!$Z$2:$Z$501, MATCH($B29, Ingredients_DB!$B$2:$B$501,0)),0)) -> 
A30: 10 | C30: 0.00 | D30: g | G30: =IF($B30="","",IFERROR(INDEX(Ingredients_DB!$K$2:$K$501, MATCH($B30, Ingredients_DB!$B$2:$B$501,0)),0)) ->  | O30: =IF($B30="","",IFERROR(INDEX(Ingredients_DB!$H$2:$H$501, MATCH($B30, Ingredients_DB!$B$2:$B$501,0)),"")) ->  | P30: =IF($B30="","",IFERROR(INDEX(Ingredients_DB!$I$2:$I$501, MATCH($B30, Ingredients_DB!$B$2:$B$501,0)),"")) ->  | Q30: =IF($B30="","",IFERROR(VLOOKUP($O30&"|"&$D30,UOM_Conversions!$A$2:$E$50,4,FALSE),"CHECK UNIT")) ->  | R30: =IF($B30="","",IFERROR(INDEX(Ingredients_DB!$M$2:$M$501, MATCH($B30, Ingredients_DB!$B$2:$B$501,0)),0)) ->  | S30: =IF($B30="","",IFERROR(INDEX(Ingredients_DB!$N$2:$N$501, MATCH($B30, Ingredients_DB!$B$2:$B$501,0)),0)) ->  | T30: =IF($B30="","",IFERROR(INDEX(Ingredients_DB!$O$2:$O$501, MATCH($B30, Ingredients_DB!$B$2:$B$501,0)),0)) ->  | U30: =IF($B30="","",IFERROR(INDEX(Ingredients_DB!$P$2:$P$501, MATCH($B30, Ingredients_DB!$B$2:$B$501,0)),0)) ->  | V30: =IF($B30="","",IFERROR(INDEX(Ingredients_DB!$Q$2:$Q$501, MATCH($B30, Ingredients_DB!$B$2:$B$501,0)),0)) ->  | W30: =IF($B30="","",IFERROR(INDEX(Ingredients_DB!$R$2:$R$501, MATCH($B30, Ingredients_DB!$B$2:$B$501,0)),0)) ->  | X30: =IF($B30="","",IFERROR(INDEX(Ingredients_DB!$S$2:$S$501, MATCH($B30, Ingredients_DB!$B$2:$B$501,0)),0)) ->  | Y30: =IF($B30="","",IFERROR(INDEX(Ingredients_DB!$T$2:$T$501, MATCH($B30, Ingredients_DB!$B$2:$B$501,0)),0)) ->  | Z30: =IF($B30="","",IFERROR(INDEX(Ingredients_DB!$U$2:$U$501, MATCH($B30, Ingredients_DB!$B$2:$B$501,0)),0)) ->  | AA30: =IF($B30="","",IFERROR(INDEX(Ingredients_DB!$V$2:$V$501, MATCH($B30, Ingredients_DB!$B$2:$B$501,0)),0)) ->  | AB30: =IF($B30="","",IFERROR(INDEX(Ingredients_DB!$W$2:$W$501, MATCH($B30, Ingredients_DB!$B$2:$B$501,0)),0)) ->  | AC30: =IF($B30="","",IFERROR(INDEX(Ingredients_DB!$X$2:$X$501, MATCH($B30, Ingredients_DB!$B$2:$B$501,0)),0)) ->  | AD30: =IF($B30="","",IFERROR(INDEX(Ingredients_DB!$Y$2:$Y$501, MATCH($B30, Ingredients_DB!$B$2:$B$501,0)),0)) ->  | AE30: =IF($B30="","",IFERROR(INDEX(Ingredients_DB!$Z$2:$Z$501, MATCH($B30, Ingredients_DB!$B$2:$B$501,0)),0)) -> 
A31: 11 | C31: 0.00 | D31: g | G31: =IF($B31="","",IFERROR(INDEX(Ingredients_DB!$K$2:$K$501, MATCH($B31, Ingredients_DB!$B$2:$B$501,0)),0)) ->  | O31: =IF($B31="","",IFERROR(INDEX(Ingredients_DB!$H$2:$H$501, MATCH($B31, Ingredients_DB!$B$2:$B$501,0)),"")) ->  | P31: =IF($B31="","",IFERROR(INDEX(Ingredients_DB!$I$2:$I$501, MATCH($B31, Ingredients_DB!$B$2:$B$501,0)),"")) ->  | Q31: =IF($B31="","",IFERROR(VLOOKUP($O31&"|"&$D31,UOM_Conversions!$A$2:$E$50,4,FALSE),"CHECK UNIT")) ->  | R31: =IF($B31="","",IFERROR(INDEX(Ingredients_DB!$M$2:$M$501, MATCH($B31, Ingredients_DB!$B$2:$B$501,0)),0)) ->  | S31: =IF($B31="","",IFERROR(INDEX(Ingredients_DB!$N$2:$N$501, MATCH($B31, Ingredients_DB!$B$2:$B$501,0)),0)) ->  | T31: =IF($B31="","",IFERROR(INDEX(Ingredients_DB!$O$2:$O$501, MATCH($B31, Ingredients_DB!$B$2:$B$501,0)),0)) ->  | U31: =IF($B31="","",IFERROR(INDEX(Ingredients_DB!$P$2:$P$501, MATCH($B31, Ingredients_DB!$B$2:$B$501,0)),0)) ->  | V31: =IF($B31="","",IFERROR(INDEX(Ingredients_DB!$Q$2:$Q$501, MATCH($B31, Ingredients_DB!$B$2:$B$501,0)),0)) ->  | W31: =IF($B31="","",IFERROR(INDEX(Ingredients_DB!$R$2:$R$501, MATCH($B31, Ingredients_DB!$B$2:$B$501,0)),0)) ->  | X31: =IF($B31="","",IFERROR(INDEX(Ingredients_DB!$S$2:$S$501, MATCH($B31, Ingredients_DB!$B$2:$B$501,0)),0)) ->  | Y31: =IF($B31="","",IFERROR(INDEX(Ingredients_DB!$T$2:$T$501, MATCH($B31, Ingredients_DB!$B$2:$B$501,0)),0)) ->  | Z31: =IF($B31="","",IFERROR(INDEX(Ingredients_DB!$U$2:$U$501, MATCH($B31, Ingredients_DB!$B$2:$B$501,0)),0)) ->  | AA31: =IF($B31="","",IFERROR(INDEX(Ingredients_DB!$V$2:$V$501, MATCH($B31, Ingredients_DB!$B$2:$B$501,0)),0)) ->  | AB31: =IF($B31="","",IFERROR(INDEX(Ingredients_DB!$W$2:$W$501, MATCH($B31, Ingredients_DB!$B$2:$B$501,0)),0)) ->  | AC31: =IF($B31="","",IFERROR(INDEX(Ingredients_DB!$X$2:$X$501, MATCH($B31, Ingredients_DB!$B$2:$B$501,0)),0)) ->  | AD31: =IF($B31="","",IFERROR(INDEX(Ingredients_DB!$Y$2:$Y$501, MATCH($B31, Ingredients_DB!$B$2:$B$501,0)),0)) ->  | AE31: =IF($B31="","",IFERROR(INDEX(Ingredients_DB!$Z$2:$Z$501, MATCH($B31, Ingredients_DB!$B$2:$B$501,0)),0)) -> 
A32: 12 | C32: 0.00 | D32: g | G32: =IF($B32="","",IFERROR(INDEX(Ingredients_DB!$K$2:$K$501, MATCH($B32, Ingredients_DB!$B$2:$B$501,0)),0)) ->  | O32: =IF($B32="","",IFERROR(INDEX(Ingredients_DB!$H$2:$H$501, MATCH($B32, Ingredients_DB!$B$2:$B$501,0)),"")) ->  | P32: =IF($B32="","",IFERROR(INDEX(Ingredients_DB!$I$2:$I$501, MATCH($B32, Ingredients_DB!$B$2:$B$501,0)),"")) ->  | Q32: =IF($B32="","",IFERROR(VLOOKUP($O32&"|"&$D32,UOM_Conversions!$A$2:$E$50,4,FALSE),"CHECK UNIT")) ->  | R32: =IF($B32="","",IFERROR(INDEX(Ingredients_DB!$M$2:$M$501, MATCH($B32, Ingredients_DB!$B$2:$B$501,0)),0)) ->  | S32: =IF($B32="","",IFERROR(INDEX(Ingredients_DB!$N$2:$N$501, MATCH($B32, Ingredients_DB!$B$2:$B$501,0)),0)) ->  | T32: =IF($B32="","",IFERROR(INDEX(Ingredients_DB!$O$2:$O$501, MATCH($B32, Ingredients_DB!$B$2:$B$501,0)),0)) ->  | U32: =IF($B32="","",IFERROR(INDEX(Ingredients_DB!$P$2:$P$501, MATCH($B32, Ingredients_DB!$B$2:$B$501,0)),0)) ->  | V32: =IF($B32="","",IFERROR(INDEX(Ingredients_DB!$Q$2:$Q$501, MATCH($B32, Ingredients_DB!$B$2:$B$501,0)),0)) ->  | W32: =IF($B32="","",IFERROR(INDEX(Ingredients_DB!$R$2:$R$501, MATCH($B32, Ingredients_DB!$B$2:$B$501,0)),0)) ->  | X32: =IF($B32="","",IFERROR(INDEX(Ingredients_DB!$S$2:$S$501, MATCH($B32, Ingredients_DB!$B$2:$B$501,0)),0)) ->  | Y32: =IF($B32="","",IFERROR(INDEX(Ingredients_DB!$T$2:$T$501, MATCH($B32, Ingredients_DB!$B$2:$B$501,0)),0)) ->  | Z32: =IF($B32="","",IFERROR(INDEX(Ingredients_DB!$U$2:$U$501, MATCH($B32, Ingredients_DB!$B$2:$B$501,0)),0)) ->  | AA32: =IF($B32="","",IFERROR(INDEX(Ingredients_DB!$V$2:$V$501, MATCH($B32, Ingredients_DB!$B$2:$B$501,0)),0)) ->  | AB32: =IF($B32="","",IFERROR(INDEX(Ingredients_DB!$W$2:$W$501, MATCH($B32, Ingredients_DB!$B$2:$B$501,0)),0)) ->  | AC32: =IF($B32="","",IFERROR(INDEX(Ingredients_DB!$X$2:$X$501, MATCH($B32, Ingredients_DB!$B$2:$B$501,0)),0)) ->  | AD32: =IF($B32="","",IFERROR(INDEX(Ingredients_DB!$Y$2:$Y$501, MATCH($B32, Ingredients_DB!$B$2:$B$501,0)),0)) ->  | AE32: =IF($B32="","",IFERROR(INDEX(Ingredients_DB!$Z$2:$Z$501, MATCH($B32, Ingredients_DB!$B$2:$B$501,0)),0)) -> 
A33: 13 | C33: 0.00 | D33: g | G33: =IF($B33="","",IFERROR(INDEX(Ingredients_DB!$K$2:$K$501, MATCH($B33, Ingredients_DB!$B$2:$B$501,0)),0)) ->  | O33: =IF($B33="","",IFERROR(INDEX(Ingredients_DB!$H$2:$H$501, MATCH($B33, Ingredients_DB!$B$2:$B$501,0)),"")) ->  | P33: =IF($B33="","",IFERROR(INDEX(Ingredients_DB!$I$2:$I$501, MATCH($B33, Ingredients_DB!$B$2:$B$501,0)),"")) ->  | Q33: =IF($B33="","",IFERROR(VLOOKUP($O33&"|"&$D33,UOM_Conversions!$A$2:$E$50,4,FALSE),"CHECK UNIT")) ->  | R33: =IF($B33="","",IFERROR(INDEX(Ingredients_DB!$M$2:$M$501, MATCH($B33, Ingredients_DB!$B$2:$B$501,0)),0)) ->  | S33: =IF($B33="","",IFERROR(INDEX(Ingredients_DB!$N$2:$N$501, MATCH($B33, Ingredients_DB!$B$2:$B$501,0)),0)) ->  | T33: =IF($B33="","",IFERROR(INDEX(Ingredients_DB!$O$2:$O$501, MATCH($B33, Ingredients_DB!$B$2:$B$501,0)),0)) ->  | U33: =IF($B33="","",IFERROR(INDEX(Ingredients_DB!$P$2:$P$501, MATCH($B33, Ingredients_DB!$B$2:$B$501,0)),0)) ->  | V33: =IF($B33="","",IFERROR(INDEX(Ingredients_DB!$Q$2:$Q$501, MATCH($B33, Ingredients_DB!$B$2:$B$501,0)),0)) ->  | W33: =IF($B33="","",IFERROR(INDEX(Ingredients_DB!$R$2:$R$501, MATCH($B33, Ingredients_DB!$B$2:$B$501,0)),0)) ->  | X33: =IF($B33="","",IFERROR(INDEX(Ingredients_DB!$S$2:$S$501, MATCH($B33, Ingredients_DB!$B$2:$B$501,0)),0)) ->  | Y33: =IF($B33="","",IFERROR(INDEX(Ingredients_DB!$T$2:$T$501, MATCH($B33, Ingredients_DB!$B$2:$B$501,0)),0)) ->  | Z33: =IF($B33="","",IFERROR(INDEX(Ingredients_DB!$U$2:$U$501, MATCH($B33, Ingredients_DB!$B$2:$B$501,0)),0)) ->  | AA33: =IF($B33="","",IFERROR(INDEX(Ingredients_DB!$V$2:$V$501, MATCH($B33, Ingredients_DB!$B$2:$B$501,0)),0)) ->  | AB33: =IF($B33="","",IFERROR(INDEX(Ingredients_DB!$W$2:$W$501, MATCH($B33, Ingredients_DB!$B$2:$B$501,0)),0)) ->  | AC33: =IF($B33="","",IFERROR(INDEX(Ingredients_DB!$X$2:$X$501, MATCH($B33, Ingredients_DB!$B$2:$B$501,0)),0)) ->  | AD33: =IF($B33="","",IFERROR(INDEX(Ingredients_DB!$Y$2:$Y$501, MATCH($B33, Ingredients_DB!$B$2:$B$501,0)),0)) ->  | AE33: =IF($B33="","",IFERROR(INDEX(Ingredients_DB!$Z$2:$Z$501, MATCH($B33, Ingredients_DB!$B$2:$B$501,0)),0)) -> 
A34: 14 | C34: 0.00 | D34: g | G34: =IF($B34="","",IFERROR(INDEX(Ingredients_DB!$K$2:$K$501, MATCH($B34, Ingredients_DB!$B$2:$B$501,0)),0)) ->  | O34: =IF($B34="","",IFERROR(INDEX(Ingredients_DB!$H$2:$H$501, MATCH($B34, Ingredients_DB!$B$2:$B$501,0)),"")) ->  | P34: =IF($B34="","",IFERROR(INDEX(Ingredients_DB!$I$2:$I$501, MATCH($B34, Ingredients_DB!$B$2:$B$501,0)),"")) ->  | Q34: =IF($B34="","",IFERROR(VLOOKUP($O34&"|"&$D34,UOM_Conversions!$A$2:$E$50,4,FALSE),"CHECK UNIT")) ->  | R34: =IF($B34="","",IFERROR(INDEX(Ingredients_DB!$M$2:$M$501, MATCH($B34, Ingredients_DB!$B$2:$B$501,0)),0)) ->  | S34: =IF($B34="","",IFERROR(INDEX(Ingredients_DB!$N$2:$N$501, MATCH($B34, Ingredients_DB!$B$2:$B$501,0)),0)) ->  | T34: =IF($B34="","",IFERROR(INDEX(Ingredients_DB!$O$2:$O$501, MATCH($B34, Ingredients_DB!$B$2:$B$501,0)),0)) ->  | U34: =IF($B34="","",IFERROR(INDEX(Ingredients_DB!$P$2:$P$501, MATCH($B34, Ingredients_DB!$B$2:$B$501,0)),0)) ->  | V34: =IF($B34="","",IFERROR(INDEX(Ingredients_DB!$Q$2:$Q$501, MATCH($B34, Ingredients_DB!$B$2:$B$501,0)),0)) ->  | W34: =IF($B34="","",IFERROR(INDEX(Ingredients_DB!$R$2:$R$501, MATCH($B34, Ingredients_DB!$B$2:$B$501,0)),0)) ->  | X34: =IF($B34="","",IFERROR(INDEX(Ingredients_DB!$S$2:$S$501, MATCH($B34, Ingredients_DB!$B$2:$B$501,0)),0)) ->  | Y34: =IF($B34="","",IFERROR(INDEX(Ingredients_DB!$T$2:$T$501, MATCH($B34, Ingredients_DB!$B$2:$B$501,0)),0)) ->  | Z34: =IF($B34="","",IFERROR(INDEX(Ingredients_DB!$U$2:$U$501, MATCH($B34, Ingredients_DB!$B$2:$B$501,0)),0)) ->  | AA34: =IF($B34="","",IFERROR(INDEX(Ingredients_DB!$V$2:$V$501, MATCH($B34, Ingredients_DB!$B$2:$B$501,0)),0)) ->  | AB34: =IF($B34="","",IFERROR(INDEX(Ingredients_DB!$W$2:$W$501, MATCH($B34, Ingredients_DB!$B$2:$B$501,0)),0)) ->  | AC34: =IF($B34="","",IFERROR(INDEX(Ingredients_DB!$X$2:$X$501, MATCH($B34, Ingredients_DB!$B$2:$B$501,0)),0)) ->  | AD34: =IF($B34="","",IFERROR(INDEX(Ingredients_DB!$Y$2:$Y$501, MATCH($B34, Ingredients_DB!$B$2:$B$501,0)),0)) ->  | AE34: =IF($B34="","",IFERROR(INDEX(Ingredients_DB!$Z$2:$Z$501, MATCH($B34, Ingredients_DB!$B$2:$B$501,0)),0)) -> 
A35: 15 | C35: 0.00 | D35: g | G35: =IF($B35="","",IFERROR(INDEX(Ingredients_DB!$K$2:$K$501, MATCH($B35, Ingredients_DB!$B$2:$B$501,0)),0)) ->  | O35: =IF($B35="","",IFERROR(INDEX(Ingredients_DB!$H$2:$H$501, MATCH($B35, Ingredients_DB!$B$2:$B$501,0)),"")) ->  | P35: =IF($B35="","",IFERROR(INDEX(Ingredients_DB!$I$2:$I$501, MATCH($B35, Ingredients_DB!$B$2:$B$501,0)),"")) ->  | Q35: =IF($B35="","",IFERROR(VLOOKUP($O35&"|"&$D35,UOM_Conversions!$A$2:$E$50,4,FALSE),"CHECK UNIT")) ->  | R35: =IF($B35="","",IFERROR(INDEX(Ingredients_DB!$M$2:$M$501, MATCH($B35, Ingredients_DB!$B$2:$B$501,0)),0)) ->  | S35: =IF($B35="","",IFERROR(INDEX(Ingredients_DB!$N$2:$N$501, MATCH($B35, Ingredients_DB!$B$2:$B$501,0)),0)) ->  | T35: =IF($B35="","",IFERROR(INDEX(Ingredients_DB!$O$2:$O$501, MATCH($B35, Ingredients_DB!$B$2:$B$501,0)),0)) ->  | U35: =IF($B35="","",IFERROR(INDEX(Ingredients_DB!$P$2:$P$501, MATCH($B35, Ingredients_DB!$B$2:$B$501,0)),0)) ->  | V35: =IF($B35="","",IFERROR(INDEX(Ingredients_DB!$Q$2:$Q$501, MATCH($B35, Ingredients_DB!$B$2:$B$501,0)),0)) ->  | W35: =IF($B35="","",IFERROR(INDEX(Ingredients_DB!$R$2:$R$501, MATCH($B35, Ingredients_DB!$B$2:$B$501,0)),0)) ->  | X35: =IF($B35="","",IFERROR(INDEX(Ingredients_DB!$S$2:$S$501, MATCH($B35, Ingredients_DB!$B$2:$B$501,0)),0)) ->  | Y35: =IF($B35="","",IFERROR(INDEX(Ingredients_DB!$T$2:$T$501, MATCH($B35, Ingredients_DB!$B$2:$B$501,0)),0)) ->  | Z35: =IF($B35="","",IFERROR(INDEX(Ingredients_DB!$U$2:$U$501, MATCH($B35, Ingredients_DB!$B$2:$B$501,0)),0)) ->  | AA35: =IF($B35="","",IFERROR(INDEX(Ingredients_DB!$V$2:$V$501, MATCH($B35, Ingredients_DB!$B$2:$B$501,0)),0)) ->  | AB35: =IF($B35="","",IFERROR(INDEX(Ingredients_DB!$W$2:$W$501, MATCH($B35, Ingredients_DB!$B$2:$B$501,0)),0)) ->  | AC35: =IF($B35="","",IFERROR(INDEX(Ingredients_DB!$X$2:$X$501, MATCH($B35, Ingredients_DB!$B$2:$B$501,0)),0)) ->  | AD35: =IF($B35="","",IFERROR(INDEX(Ingredients_DB!$Y$2:$Y$501, MATCH($B35, Ingredients_DB!$B$2:$B$501,0)),0)) ->  | AE35: =IF($B35="","",IFERROR(INDEX(Ingredients_DB!$Z$2:$Z$501, MATCH($B35, Ingredients_DB!$B$2:$B$501,0)),0)) -> 
A36: 16 | C36: 0.00 | D36: g | G36: =IF($B36="","",IFERROR(INDEX(Ingredients_DB!$K$2:$K$501, MATCH($B36, Ingredients_DB!$B$2:$B$501,0)),0)) ->  | O36: =IF($B36="","",IFERROR(INDEX(Ingredients_DB!$H$2:$H$501, MATCH($B36, Ingredients_DB!$B$2:$B$501,0)),"")) ->  | P36: =IF($B36="","",IFERROR(INDEX(Ingredients_DB!$I$2:$I$501, MATCH($B36, Ingredients_DB!$B$2:$B$501,0)),"")) ->  | Q36: =IF($B36="","",IFERROR(VLOOKUP($O36&"|"&$D36,UOM_Conversions!$A$2:$E$50,4,FALSE),"CHECK UNIT")) ->  | R36: =IF($B36="","",IFERROR(INDEX(Ingredients_DB!$M$2:$M$501, MATCH($B36, Ingredients_DB!$B$2:$B$501,0)),0)) ->  | S36: =IF($B36="","",IFERROR(INDEX(Ingredients_DB!$N$2:$N$501, MATCH($B36, Ingredients_DB!$B$2:$B$501,0)),0)) ->  | T36: =IF($B36="","",IFERROR(INDEX(Ingredients_DB!$O$2:$O$501, MATCH($B36, Ingredients_DB!$B$2:$B$501,0)),0)) ->  | U36: =IF($B36="","",IFERROR(INDEX(Ingredients_DB!$P$2:$P$501, MATCH($B36, Ingredients_DB!$B$2:$B$501,0)),0)) ->  | V36: =IF($B36="","",IFERROR(INDEX(Ingredients_DB!$Q$2:$Q$501, MATCH($B36, Ingredients_DB!$B$2:$B$501,0)),0)) ->  | W36: =IF($B36="","",IFERROR(INDEX(Ingredients_DB!$R$2:$R$501, MATCH($B36, Ingredients_DB!$B$2:$B$501,0)),0)) ->  | X36: =IF($B36="","",IFERROR(INDEX(Ingredients_DB!$S$2:$S$501, MATCH($B36, Ingredients_DB!$B$2:$B$501,0)),0)) ->  | Y36: =IF($B36="","",IFERROR(INDEX(Ingredients_DB!$T$2:$T$501, MATCH($B36, Ingredients_DB!$B$2:$B$501,0)),0)) ->  | Z36: =IF($B36="","",IFERROR(INDEX(Ingredients_DB!$U$2:$U$501, MATCH($B36, Ingredients_DB!$B$2:$B$501,0)),0)) ->  | AA36: =IF($B36="","",IFERROR(INDEX(Ingredients_DB!$V$2:$V$501, MATCH($B36, Ingredients_DB!$B$2:$B$501,0)),0)) ->  | AB36: =IF($B36="","",IFERROR(INDEX(Ingredients_DB!$W$2:$W$501, MATCH($B36, Ingredients_DB!$B$2:$B$501,0)),0)) ->  | AC36: =IF($B36="","",IFERROR(INDEX(Ingredients_DB!$X$2:$X$501, MATCH($B36, Ingredients_DB!$B$2:$B$501,0)),0)) ->  | AD36: =IF($B36="","",IFERROR(INDEX(Ingredients_DB!$Y$2:$Y$501, MATCH($B36, Ingredients_DB!$B$2:$B$501,0)),0)) ->  | AE36: =IF($B36="","",IFERROR(INDEX(Ingredients_DB!$Z$2:$Z$501, MATCH($B36, Ingredients_DB!$B$2:$B$501,0)),0)) -> 
A37: 17 | C37: 0.00 | D37: g | G37: =IF($B37="","",IFERROR(INDEX(Ingredients_DB!$K$2:$K$501, MATCH($B37, Ingredients_DB!$B$2:$B$501,0)),0)) ->  | O37: =IF($B37="","",IFERROR(INDEX(Ingredients_DB!$H$2:$H$501, MATCH($B37, Ingredients_DB!$B$2:$B$501,0)),"")) ->  | P37: =IF($B37="","",IFERROR(INDEX(Ingredients_DB!$I$2:$I$501, MATCH($B37, Ingredients_DB!$B$2:$B$501,0)),"")) ->  | Q37: =IF($B37="","",IFERROR(VLOOKUP($O37&"|"&$D37,UOM_Conversions!$A$2:$E$50,4,FALSE),"CHECK UNIT")) ->  | R37: =IF($B37="","",IFERROR(INDEX(Ingredients_DB!$M$2:$M$501, MATCH($B37, Ingredients_DB!$B$2:$B$501,0)),0)) ->  | S37: =IF($B37="","",IFERROR(INDEX(Ingredients_DB!$N$2:$N$501, MATCH($B37, Ingredients_DB!$B$2:$B$501,0)),0)) ->  | T37: =IF($B37="","",IFERROR(INDEX(Ingredients_DB!$O$2:$O$501, MATCH($B37, Ingredients_DB!$B$2:$B$501,0)),0)) ->  | U37: =IF($B37="","",IFERROR(INDEX(Ingredients_DB!$P$2:$P$501, MATCH($B37, Ingredients_DB!$B$2:$B$501,0)),0)) ->  | V37: =IF($B37="","",IFERROR(INDEX(Ingredients_DB!$Q$2:$Q$501, MATCH($B37, Ingredients_DB!$B$2:$B$501,0)),0)) ->  | W37: =IF($B37="","",IFERROR(INDEX(Ingredients_DB!$R$2:$R$501, MATCH($B37, Ingredients_DB!$B$2:$B$501,0)),0)) ->  | X37: =IF($B37="","",IFERROR(INDEX(Ingredients_DB!$S$2:$S$501, MATCH($B37, Ingredients_DB!$B$2:$B$501,0)),0)) ->  | Y37: =IF($B37="","",IFERROR(INDEX(Ingredients_DB!$T$2:$T$501, MATCH($B37, Ingredients_DB!$B$2:$B$501,0)),0)) ->  | Z37: =IF($B37="","",IFERROR(INDEX(Ingredients_DB!$U$2:$U$501, MATCH($B37, Ingredients_DB!$B$2:$B$501,0)),0)) ->  | AA37: =IF($B37="","",IFERROR(INDEX(Ingredients_DB!$V$2:$V$501, MATCH($B37, Ingredients_DB!$B$2:$B$501,0)),0)) ->  | AB37: =IF($B37="","",IFERROR(INDEX(Ingredients_DB!$W$2:$W$501, MATCH($B37, Ingredients_DB!$B$2:$B$501,0)),0)) ->  | AC37: =IF($B37="","",IFERROR(INDEX(Ingredients_DB!$X$2:$X$501, MATCH($B37, Ingredients_DB!$B$2:$B$501,0)),0)) ->  | AD37: =IF($B37="","",IFERROR(INDEX(Ingredients_DB!$Y$2:$Y$501, MATCH($B37, Ingredients_DB!$B$2:$B$501,0)),0)) ->  | AE37: =IF($B37="","",IFERROR(INDEX(Ingredients_DB!$Z$2:$Z$501, MATCH($B37, Ingredients_DB!$B$2:$B$501,0)),0)) -> 
A38: 18 | C38: 0.00 | D38: g | G38: =IF($B38="","",IFERROR(INDEX(Ingredients_DB!$K$2:$K$501, MATCH($B38, Ingredients_DB!$B$2:$B$501,0)),0)) ->  | O38: =IF($B38="","",IFERROR(INDEX(Ingredients_DB!$H$2:$H$501, MATCH($B38, Ingredients_DB!$B$2:$B$501,0)),"")) ->  | P38: =IF($B38="","",IFERROR(INDEX(Ingredients_DB!$I$2:$I$501, MATCH($B38, Ingredients_DB!$B$2:$B$501,0)),"")) ->  | Q38: =IF($B38="","",IFERROR(VLOOKUP($O38&"|"&$D38,UOM_Conversions!$A$2:$E$50,4,FALSE),"CHECK UNIT")) ->  | R38: =IF($B38="","",IFERROR(INDEX(Ingredients_DB!$M$2:$M$501, MATCH($B38, Ingredients_DB!$B$2:$B$501,0)),0)) ->  | S38: =IF($B38="","",IFERROR(INDEX(Ingredients_DB!$N$2:$N$501, MATCH($B38, Ingredients_DB!$B$2:$B$501,0)),0)) ->  | T38: =IF($B38="","",IFERROR(INDEX(Ingredients_DB!$O$2:$O$501, MATCH($B38, Ingredients_DB!$B$2:$B$501,0)),0)) ->  | U38: =IF($B38="","",IFERROR(INDEX(Ingredients_DB!$P$2:$P$501, MATCH($B38, Ingredients_DB!$B$2:$B$501,0)),0)) ->  | V38: =IF($B38="","",IFERROR(INDEX(Ingredients_DB!$Q$2:$Q$501, MATCH($B38, Ingredients_DB!$B$2:$B$501,0)),0)) ->  | W38: =IF($B38="","",IFERROR(INDEX(Ingredients_DB!$R$2:$R$501, MATCH($B38, Ingredients_DB!$B$2:$B$501,0)),0)) ->  | X38: =IF($B38="","",IFERROR(INDEX(Ingredients_DB!$S$2:$S$501, MATCH($B38, Ingredients_DB!$B$2:$B$501,0)),0)) ->  | Y38: =IF($B38="","",IFERROR(INDEX(Ingredients_DB!$T$2:$T$501, MATCH($B38, Ingredients_DB!$B$2:$B$501,0)),0)) ->  | Z38: =IF($B38="","",IFERROR(INDEX(Ingredients_DB!$U$2:$U$501, MATCH($B38, Ingredients_DB!$B$2:$B$501,0)),0)) ->  | AA38: =IF($B38="","",IFERROR(INDEX(Ingredients_DB!$V$2:$V$501, MATCH($B38, Ingredients_DB!$B$2:$B$501,0)),0)) ->  | AB38: =IF($B38="","",IFERROR(INDEX(Ingredients_DB!$W$2:$W$501, MATCH($B38, Ingredients_DB!$B$2:$B$501,0)),0)) ->  | AC38: =IF($B38="","",IFERROR(INDEX(Ingredients_DB!$X$2:$X$501, MATCH($B38, Ingredients_DB!$B$2:$B$501,0)),0)) ->  | AD38: =IF($B38="","",IFERROR(INDEX(Ingredients_DB!$Y$2:$Y$501, MATCH($B38, Ingredients_DB!$B$2:$B$501,0)),0)) ->  | AE38: =IF($B38="","",IFERROR(INDEX(Ingredients_DB!$Z$2:$Z$501, MATCH($B38, Ingredients_DB!$B$2:$B$501,0)),0)) -> 
A39: 19 | C39: 0.00 | D39: g | G39: =IF($B39="","",IFERROR(INDEX(Ingredients_DB!$K$2:$K$501, MATCH($B39, Ingredients_DB!$B$2:$B$501,0)),0)) ->  | O39: =IF($B39="","",IFERROR(INDEX(Ingredients_DB!$H$2:$H$501, MATCH($B39, Ingredients_DB!$B$2:$B$501,0)),"")) ->  | P39: =IF($B39="","",IFERROR(INDEX(Ingredients_DB!$I$2:$I$501, MATCH($B39, Ingredients_DB!$B$2:$B$501,0)),"")) ->  | Q39: =IF($B39="","",IFERROR(VLOOKUP($O39&"|"&$D39,UOM_Conversions!$A$2:$E$50,4,FALSE),"CHECK UNIT")) ->  | R39: =IF($B39="","",IFERROR(INDEX(Ingredients_DB!$M$2:$M$501, MATCH($B39, Ingredients_DB!$B$2:$B$501,0)),0)) ->  | S39: =IF($B39="","",IFERROR(INDEX(Ingredients_DB!$N$2:$N$501, MATCH($B39, Ingredients_DB!$B$2:$B$501,0)),0)) ->  | T39: =IF($B39="","",IFERROR(INDEX(Ingredients_DB!$O$2:$O$501, MATCH($B39, Ingredients_DB!$B$2:$B$501,0)),0)) ->  | U39: =IF($B39="","",IFERROR(INDEX(Ingredients_DB!$P$2:$P$501, MATCH($B39, Ingredients_DB!$B$2:$B$501,0)),0)) ->  | V39: =IF($B39="","",IFERROR(INDEX(Ingredients_DB!$Q$2:$Q$501, MATCH($B39, Ingredients_DB!$B$2:$B$501,0)),0)) ->  | W39: =IF($B39="","",IFERROR(INDEX(Ingredients_DB!$R$2:$R$501, MATCH($B39, Ingredients_DB!$B$2:$B$501,0)),0)) ->  | X39: =IF($B39="","",IFERROR(INDEX(Ingredients_DB!$S$2:$S$501, MATCH($B39, Ingredients_DB!$B$2:$B$501,0)),0)) ->  | Y39: =IF($B39="","",IFERROR(INDEX(Ingredients_DB!$T$2:$T$501, MATCH($B39, Ingredients_DB!$B$2:$B$501,0)),0)) ->  | Z39: =IF($B39="","",IFERROR(INDEX(Ingredients_DB!$U$2:$U$501, MATCH($B39, Ingredients_DB!$B$2:$B$501,0)),0)) ->  | AA39: =IF($B39="","",IFERROR(INDEX(Ingredients_DB!$V$2:$V$501, MATCH($B39, Ingredients_DB!$B$2:$B$501,0)),0)) ->  | AB39: =IF($B39="","",IFERROR(INDEX(Ingredients_DB!$W$2:$W$501, MATCH($B39, Ingredients_DB!$B$2:$B$501,0)),0)) ->  | AC39: =IF($B39="","",IFERROR(INDEX(Ingredients_DB!$X$2:$X$501, MATCH($B39, Ingredients_DB!$B$2:$B$501,0)),0)) ->  | AD39: =IF($B39="","",IFERROR(INDEX(Ingredients_DB!$Y$2:$Y$501, MATCH($B39, Ingredients_DB!$B$2:$B$501,0)),0)) ->  | AE39: =IF($B39="","",IFERROR(INDEX(Ingredients_DB!$Z$2:$Z$501, MATCH($B39, Ingredients_DB!$B$2:$B$501,0)),0)) -> 
A40: 20 | C40: 0.00 | D40: g | G40: =IF($B40="","",IFERROR(INDEX(Ingredients_DB!$K$2:$K$501, MATCH($B40, Ingredients_DB!$B$2:$B$501,0)),0)) ->  | O40: =IF($B40="","",IFERROR(INDEX(Ingredients_DB!$H$2:$H$501, MATCH($B40, Ingredients_DB!$B$2:$B$501,0)),"")) ->  | P40: =IF($B40="","",IFERROR(INDEX(Ingredients_DB!$I$2:$I$501, MATCH($B40, Ingredients_DB!$B$2:$B$501,0)),"")) ->  | Q40: =IF($B40="","",IFERROR(VLOOKUP($O40&"|"&$D40,UOM_Conversions!$A$2:$E$50,4,FALSE),"CHECK UNIT")) ->  | R40: =IF($B40="","",IFERROR(INDEX(Ingredients_DB!$M$2:$M$501, MATCH($B40, Ingredients_DB!$B$2:$B$501,0)),0)) ->  | S40: =IF($B40="","",IFERROR(INDEX(Ingredients_DB!$N$2:$N$501, MATCH($B40, Ingredients_DB!$B$2:$B$501,0)),0)) ->  | T40: =IF($B40="","",IFERROR(INDEX(Ingredients_DB!$O$2:$O$501, MATCH($B40, Ingredients_DB!$B$2:$B$501,0)),0)) ->  | U40: =IF($B40="","",IFERROR(INDEX(Ingredients_DB!$P$2:$P$501, MATCH($B40, Ingredients_DB!$B$2:$B$501,0)),0)) ->  | V40: =IF($B40="","",IFERROR(INDEX(Ingredients_DB!$Q$2:$Q$501, MATCH($B40, Ingredients_DB!$B$2:$B$501,0)),0)) ->  | W40: =IF($B40="","",IFERROR(INDEX(Ingredients_DB!$R$2:$R$501, MATCH($B40, Ingredients_DB!$B$2:$B$501,0)),0)) ->  | X40: =IF($B40="","",IFERROR(INDEX(Ingredients_DB!$S$2:$S$501, MATCH($B40, Ingredients_DB!$B$2:$B$501,0)),0)) ->  | Y40: =IF($B40="","",IFERROR(INDEX(Ingredients_DB!$T$2:$T$501, MATCH($B40, Ingredients_DB!$B$2:$B$501,0)),0)) ->  | Z40: =IF($B40="","",IFERROR(INDEX(Ingredients_DB!$U$2:$U$501, MATCH($B40, Ingredients_DB!$B$2:$B$501,0)),0)) ->  | AA40: =IF($B40="","",IFERROR(INDEX(Ingredients_DB!$V$2:$V$501, MATCH($B40, Ingredients_DB!$B$2:$B$501,0)),0)) ->  | AB40: =IF($B40="","",IFERROR(INDEX(Ingredients_DB!$W$2:$W$501, MATCH($B40, Ingredients_DB!$B$2:$B$501,0)),0)) ->  | AC40: =IF($B40="","",IFERROR(INDEX(Ingredients_DB!$X$2:$X$501, MATCH($B40, Ingredients_DB!$B$2:$B$501,0)),0)) ->  | AD40: =IF($B40="","",IFERROR(INDEX(Ingredients_DB!$Y$2:$Y$501, MATCH($B40, Ingredients_DB!$B$2:$B$501,0)),0)) ->  | AE40: =IF($B40="","",IFERROR(INDEX(Ingredients_DB!$Z$2:$Z$501, MATCH($B40, Ingredients_DB!$B$2:$B$501,0)),0)) -> 
A41: 21 | C41: 0.00 | D41: g | G41: =IF($B41="","",IFERROR(INDEX(Ingredients_DB!$K$2:$K$501, MATCH($B41, Ingredients_DB!$B$2:$B$501,0)),0)) ->  | O41: =IF($B41="","",IFERROR(INDEX(Ingredients_DB!$H$2:$H$501, MATCH($B41, Ingredients_DB!$B$2:$B$501,0)),"")) ->  | P41: =IF($B41="","",IFERROR(INDEX(Ingredients_DB!$I$2:$I$501, MATCH($B41, Ingredients_DB!$B$2:$B$501,0)),"")) ->  | Q41: =IF($B41="","",IFERROR(VLOOKUP($O41&"|"&$D41,UOM_Conversions!$A$2:$E$50,4,FALSE),"CHECK UNIT")) ->  | R41: =IF($B41="","",IFERROR(INDEX(Ingredients_DB!$M$2:$M$501, MATCH($B41, Ingredients_DB!$B$2:$B$501,0)),0)) ->  | S41: =IF($B41="","",IFERROR(INDEX(Ingredients_DB!$N$2:$N$501, MATCH($B41, Ingredients_DB!$B$2:$B$501,0)),0)) ->  | T41: =IF($B41="","",IFERROR(INDEX(Ingredients_DB!$O$2:$O$501, MATCH($B41, Ingredients_DB!$B$2:$B$501,0)),0)) ->  | U41: =IF($B41="","",IFERROR(INDEX(Ingredients_DB!$P$2:$P$501, MATCH($B41, Ingredients_DB!$B$2:$B$501,0)),0)) ->  | V41: =IF($B41="","",IFERROR(INDEX(Ingredients_DB!$Q$2:$Q$501, MATCH($B41, Ingredients_DB!$B$2:$B$501,0)),0)) ->  | W41: =IF($B41="","",IFERROR(INDEX(Ingredients_DB!$R$2:$R$501, MATCH($B41, Ingredients_DB!$B$2:$B$501,0)),0)) ->  | X41: =IF($B41="","",IFERROR(INDEX(Ingredients_DB!$S$2:$S$501, MATCH($B41, Ingredients_DB!$B$2:$B$501,0)),0)) ->  | Y41: =IF($B41="","",IFERROR(INDEX(Ingredients_DB!$T$2:$T$501, MATCH($B41, Ingredients_DB!$B$2:$B$501,0)),0)) ->  | Z41: =IF($B41="","",IFERROR(INDEX(Ingredients_DB!$U$2:$U$501, MATCH($B41, Ingredients_DB!$B$2:$B$501,0)),0)) ->  | AA41: =IF($B41="","",IFERROR(INDEX(Ingredients_DB!$V$2:$V$501, MATCH($B41, Ingredients_DB!$B$2:$B$501,0)),0)) ->  | AB41: =IF($B41="","",IFERROR(INDEX(Ingredients_DB!$W$2:$W$501, MATCH($B41, Ingredients_DB!$B$2:$B$501,0)),0)) ->  | AC41: =IF($B41="","",IFERROR(INDEX(Ingredients_DB!$X$2:$X$501, MATCH($B41, Ingredients_DB!$B$2:$B$501,0)),0)) ->  | AD41: =IF($B41="","",IFERROR(INDEX(Ingredients_DB!$Y$2:$Y$501, MATCH($B41, Ingredients_DB!$B$2:$B$501,0)),0)) ->  | AE41: =IF($B41="","",IFERROR(INDEX(Ingredients_DB!$Z$2:$Z$501, MATCH($B41, Ingredients_DB!$B$2:$B$501,0)),0)) -> 
A42: 22 | C42: 0.00 | D42: g | G42: =IF($B42="","",IFERROR(INDEX(Ingredients_DB!$K$2:$K$501, MATCH($B42, Ingredients_DB!$B$2:$B$501,0)),0)) ->  | O42: =IF($B42="","",IFERROR(INDEX(Ingredients_DB!$H$2:$H$501, MATCH($B42, Ingredients_DB!$B$2:$B$501,0)),"")) ->  | P42: =IF($B42="","",IFERROR(INDEX(Ingredients_DB!$I$2:$I$501, MATCH($B42, Ingredients_DB!$B$2:$B$501,0)),"")) ->  | Q42: =IF($B42="","",IFERROR(VLOOKUP($O42&"|"&$D42,UOM_Conversions!$A$2:$E$50,4,FALSE),"CHECK UNIT")) ->  | R42: =IF($B42="","",IFERROR(INDEX(Ingredients_DB!$M$2:$M$501, MATCH($B42, Ingredients_DB!$B$2:$B$501,0)),0)) ->  | S42: =IF($B42="","",IFERROR(INDEX(Ingredients_DB!$N$2:$N$501, MATCH($B42, Ingredients_DB!$B$2:$B$501,0)),0)) ->  | T42: =IF($B42="","",IFERROR(INDEX(Ingredients_DB!$O$2:$O$501, MATCH($B42, Ingredients_DB!$B$2:$B$501,0)),0)) ->  | U42: =IF($B42="","",IFERROR(INDEX(Ingredients_DB!$P$2:$P$501, MATCH($B42, Ingredients_DB!$B$2:$B$501,0)),0)) ->  | V42: =IF($B42="","",IFERROR(INDEX(Ingredients_DB!$Q$2:$Q$501, MATCH($B42, Ingredients_DB!$B$2:$B$501,0)),0)) ->  | W42: =IF($B42="","",IFERROR(INDEX(Ingredients_DB!$R$2:$R$501, MATCH($B42, Ingredients_DB!$B$2:$B$501,0)),0)) ->  | X42: =IF($B42="","",IFERROR(INDEX(Ingredients_DB!$S$2:$S$501, MATCH($B42, Ingredients_DB!$B$2:$B$501,0)),0)) ->  | Y42: =IF($B42="","",IFERROR(INDEX(Ingredients_DB!$T$2:$T$501, MATCH($B42, Ingredients_DB!$B$2:$B$501,0)),0)) ->  | Z42: =IF($B42="","",IFERROR(INDEX(Ingredients_DB!$U$2:$U$501, MATCH($B42, Ingredients_DB!$B$2:$B$501,0)),0)) ->  | AA42: =IF($B42="","",IFERROR(INDEX(Ingredients_DB!$V$2:$V$501, MATCH($B42, Ingredients_DB!$B$2:$B$501,0)),0)) ->  | AB42: =IF($B42="","",IFERROR(INDEX(Ingredients_DB!$W$2:$W$501, MATCH($B42, Ingredients_DB!$B$2:$B$501,0)),0)) ->  | AC42: =IF($B42="","",IFERROR(INDEX(Ingredients_DB!$X$2:$X$501, MATCH($B42, Ingredients_DB!$B$2:$B$501,0)),0)) ->  | AD42: =IF($B42="","",IFERROR(INDEX(Ingredients_DB!$Y$2:$Y$501, MATCH($B42, Ingredients_DB!$B$2:$B$501,0)),0)) ->  | AE42: =IF($B42="","",IFERROR(INDEX(Ingredients_DB!$Z$2:$Z$501, MATCH($B42, Ingredients_DB!$B$2:$B$501,0)),0)) -> 
A43: 23 | C43: 0.00 | D43: g | G43: =IF($B43="","",IFERROR(INDEX(Ingredients_DB!$K$2:$K$501, MATCH($B43, Ingredients_DB!$B$2:$B$501,0)),0)) ->  | O43: =IF($B43="","",IFERROR(INDEX(Ingredients_DB!$H$2:$H$501, MATCH($B43, Ingredients_DB!$B$2:$B$501,0)),"")) ->  | P43: =IF($B43="","",IFERROR(INDEX(Ingredients_DB!$I$2:$I$501, MATCH($B43, Ingredients_DB!$B$2:$B$501,0)),"")) ->  | Q43: =IF($B43="","",IFERROR(VLOOKUP($O43&"|"&$D43,UOM_Conversions!$A$2:$E$50,4,FALSE),"CHECK UNIT")) ->  | R43: =IF($B43="","",IFERROR(INDEX(Ingredients_DB!$M$2:$M$501, MATCH($B43, Ingredients_DB!$B$2:$B$501,0)),0)) ->  | S43: =IF($B43="","",IFERROR(INDEX(Ingredients_DB!$N$2:$N$501, MATCH($B43, Ingredients_DB!$B$2:$B$501,0)),0)) ->  | T43: =IF($B43="","",IFERROR(INDEX(Ingredients_DB!$O$2:$O$501, MATCH($B43, Ingredients_DB!$B$2:$B$501,0)),0)) ->  | U43: =IF($B43="","",IFERROR(INDEX(Ingredients_DB!$P$2:$P$501, MATCH($B43, Ingredients_DB!$B$2:$B$501,0)),0)) ->  | V43: =IF($B43="","",IFERROR(INDEX(Ingredients_DB!$Q$2:$Q$501, MATCH($B43, Ingredients_DB!$B$2:$B$501,0)),0)) ->  | W43: =IF($B43="","",IFERROR(INDEX(Ingredients_DB!$R$2:$R$501, MATCH($B43, Ingredients_DB!$B$2:$B$501,0)),0)) ->  | X43: =IF($B43="","",IFERROR(INDEX(Ingredients_DB!$S$2:$S$501, MATCH($B43, Ingredients_DB!$B$2:$B$501,0)),0)) ->  | Y43: =IF($B43="","",IFERROR(INDEX(Ingredients_DB!$T$2:$T$501, MATCH($B43, Ingredients_DB!$B$2:$B$501,0)),0)) ->  | Z43: =IF($B43="","",IFERROR(INDEX(Ingredients_DB!$U$2:$U$501, MATCH($B43, Ingredients_DB!$B$2:$B$501,0)),0)) ->  | AA43: =IF($B43="","",IFERROR(INDEX(Ingredients_DB!$V$2:$V$501, MATCH($B43, Ingredients_DB!$B$2:$B$501,0)),0)) ->  | AB43: =IF($B43="","",IFERROR(INDEX(Ingredients_DB!$W$2:$W$501, MATCH($B43, Ingredients_DB!$B$2:$B$501,0)),0)) ->  | AC43: =IF($B43="","",IFERROR(INDEX(Ingredients_DB!$X$2:$X$501, MATCH($B43, Ingredients_DB!$B$2:$B$501,0)),0)) ->  | AD43: =IF($B43="","",IFERROR(INDEX(Ingredients_DB!$Y$2:$Y$501, MATCH($B43, Ingredients_DB!$B$2:$B$501,0)),0)) ->  | AE43: =IF($B43="","",IFERROR(INDEX(Ingredients_DB!$Z$2:$Z$501, MATCH($B43, Ingredients_DB!$B$2:$B$501,0)),0)) -> 
A44: 24 | C44: 0.00 | D44: g | G44: =IF($B44="","",IFERROR(INDEX(Ingredients_DB!$K$2:$K$501, MATCH($B44, Ingredients_DB!$B$2:$B$501,0)),0)) ->  | O44: =IF($B44="","",IFERROR(INDEX(Ingredients_DB!$H$2:$H$501, MATCH($B44, Ingredients_DB!$B$2:$B$501,0)),"")) ->  | P44: =IF($B44="","",IFERROR(INDEX(Ingredients_DB!$I$2:$I$501, MATCH($B44, Ingredients_DB!$B$2:$B$501,0)),"")) ->  | Q44: =IF($B44="","",IFERROR(VLOOKUP($O44&"|"&$D44,UOM_Conversions!$A$2:$E$50,4,FALSE),"CHECK UNIT")) ->  | R44: =IF($B44="","",IFERROR(INDEX(Ingredients_DB!$M$2:$M$501, MATCH($B44, Ingredients_DB!$B$2:$B$501,0)),0)) ->  | S44: =IF($B44="","",IFERROR(INDEX(Ingredients_DB!$N$2:$N$501, MATCH($B44, Ingredients_DB!$B$2:$B$501,0)),0)) ->  | T44: =IF($B44="","",IFERROR(INDEX(Ingredients_DB!$O$2:$O$501, MATCH($B44, Ingredients_DB!$B$2:$B$501,0)),0)) ->  | U44: =IF($B44="","",IFERROR(INDEX(Ingredients_DB!$P$2:$P$501, MATCH($B44, Ingredients_DB!$B$2:$B$501,0)),0)) ->  | V44: =IF($B44="","",IFERROR(INDEX(Ingredients_DB!$Q$2:$Q$501, MATCH($B44, Ingredients_DB!$B$2:$B$501,0)),0)) ->  | W44: =IF($B44="","",IFERROR(INDEX(Ingredients_DB!$R$2:$R$501, MATCH($B44, Ingredients_DB!$B$2:$B$501,0)),0)) ->  | X44: =IF($B44="","",IFERROR(INDEX(Ingredients_DB!$S$2:$S$501, MATCH($B44, Ingredients_DB!$B$2:$B$501,0)),0)) ->  | Y44: =IF($B44="","",IFERROR(INDEX(Ingredients_DB!$T$2:$T$501, MATCH($B44, Ingredients_DB!$B$2:$B$501,0)),0)) ->  | Z44: =IF($B44="","",IFERROR(INDEX(Ingredients_DB!$U$2:$U$501, MATCH($B44, Ingredients_DB!$B$2:$B$501,0)),0)) ->  | AA44: =IF($B44="","",IFERROR(INDEX(Ingredients_DB!$V$2:$V$501, MATCH($B44, Ingredients_DB!$B$2:$B$501,0)),0)) ->  | AB44: =IF($B44="","",IFERROR(INDEX(Ingredients_DB!$W$2:$W$501, MATCH($B44, Ingredients_DB!$B$2:$B$501,0)),0)) ->  | AC44: =IF($B44="","",IFERROR(INDEX(Ingredients_DB!$X$2:$X$501, MATCH($B44, Ingredients_DB!$B$2:$B$501,0)),0)) ->  | AD44: =IF($B44="","",IFERROR(INDEX(Ingredients_DB!$Y$2:$Y$501, MATCH($B44, Ingredients_DB!$B$2:$B$501,0)),0)) ->  | AE44: =IF($B44="","",IFERROR(INDEX(Ingredients_DB!$Z$2:$Z$501, MATCH($B44, Ingredients_DB!$B$2:$B$501,0)),0)) -> 
A45: 25 | C45: 0.00 | D45: g | G45: =IF($B45="","",IFERROR(INDEX(Ingredients_DB!$K$2:$K$501, MATCH($B45, Ingredients_DB!$B$2:$B$501,0)),0)) ->  | O45: =IF($B45="","",IFERROR(INDEX(Ingredients_DB!$H$2:$H$501, MATCH($B45, Ingredients_DB!$B$2:$B$501,0)),"")) ->  | P45: =IF($B45="","",IFERROR(INDEX(Ingredients_DB!$I$2:$I$501, MATCH($B45, Ingredients_DB!$B$2:$B$501,0)),"")) ->  | Q45: =IF($B45="","",IFERROR(VLOOKUP($O45&"|"&$D45,UOM_Conversions!$A$2:$E$50,4,FALSE),"CHECK UNIT")) ->  | R45: =IF($B45="","",IFERROR(INDEX(Ingredients_DB!$M$2:$M$501, MATCH($B45, Ingredients_DB!$B$2:$B$501,0)),0)) ->  | S45: =IF($B45="","",IFERROR(INDEX(Ingredients_DB!$N$2:$N$501, MATCH($B45, Ingredients_DB!$B$2:$B$501,0)),0)) ->  | T45: =IF($B45="","",IFERROR(INDEX(Ingredients_DB!$O$2:$O$501, MATCH($B45, Ingredients_DB!$B$2:$B$501,0)),0)) ->  | U45: =IF($B45="","",IFERROR(INDEX(Ingredients_DB!$P$2:$P$501, MATCH($B45, Ingredients_DB!$B$2:$B$501,0)),0)) ->  | V45: =IF($B45="","",IFERROR(INDEX(Ingredients_DB!$Q$2:$Q$501, MATCH($B45, Ingredients_DB!$B$2:$B$501,0)),0)) ->  | W45: =IF($B45="","",IFERROR(INDEX(Ingredients_DB!$R$2:$R$501, MATCH($B45, Ingredients_DB!$B$2:$B$501,0)),0)) ->  | X45: =IF($B45="","",IFERROR(INDEX(Ingredients_DB!$S$2:$S$501, MATCH($B45, Ingredients_DB!$B$2:$B$501,0)),0)) ->  | Y45: =IF($B45="","",IFERROR(INDEX(Ingredients_DB!$T$2:$T$501, MATCH($B45, Ingredients_DB!$B$2:$B$501,0)),0)) ->  | Z45: =IF($B45="","",IFERROR(INDEX(Ingredients_DB!$U$2:$U$501, MATCH($B45, Ingredients_DB!$B$2:$B$501,0)),0)) ->  | AA45: =IF($B45="","",IFERROR(INDEX(Ingredients_DB!$V$2:$V$501, MATCH($B45, Ingredients_DB!$B$2:$B$501,0)),0)) ->  | AB45: =IF($B45="","",IFERROR(INDEX(Ingredients_DB!$W$2:$W$501, MATCH($B45, Ingredients_DB!$B$2:$B$501,0)),0)) ->  | AC45: =IF($B45="","",IFERROR(INDEX(Ingredients_DB!$X$2:$X$501, MATCH($B45, Ingredients_DB!$B$2:$B$501,0)),0)) ->  | AD45: =IF($B45="","",IFERROR(INDEX(Ingredients_DB!$Y$2:$Y$501, MATCH($B45, Ingredients_DB!$B$2:$B$501,0)),0)) ->  | AE45: =IF($B45="","",IFERROR(INDEX(Ingredients_DB!$Z$2:$Z$501, MATCH($B45, Ingredients_DB!$B$2:$B$501,0)),0)) -> 
A46: 26 | C46: 0.00 | D46: g | G46: =IF($B46="","",IFERROR(INDEX(Ingredients_DB!$K$2:$K$501, MATCH($B46, Ingredients_DB!$B$2:$B$501,0)),0)) ->  | O46: =IF($B46="","",IFERROR(INDEX(Ingredients_DB!$H$2:$H$501, MATCH($B46, Ingredients_DB!$B$2:$B$501,0)),"")) ->  | P46: =IF($B46="","",IFERROR(INDEX(Ingredients_DB!$I$2:$I$501, MATCH($B46, Ingredients_DB!$B$2:$B$501,0)),"")) ->  | Q46: =IF($B46="","",IFERROR(VLOOKUP($O46&"|"&$D46,UOM_Conversions!$A$2:$E$50,4,FALSE),"CHECK UNIT")) ->  | R46: =IF($B46="","",IFERROR(INDEX(Ingredients_DB!$M$2:$M$501, MATCH($B46, Ingredients_DB!$B$2:$B$501,0)),0)) ->  | S46: =IF($B46="","",IFERROR(INDEX(Ingredients_DB!$N$2:$N$501, MATCH($B46, Ingredients_DB!$B$2:$B$501,0)),0)) ->  | T46: =IF($B46="","",IFERROR(INDEX(Ingredients_DB!$O$2:$O$501, MATCH($B46, Ingredients_DB!$B$2:$B$501,0)),0)) ->  | U46: =IF($B46="","",IFERROR(INDEX(Ingredients_DB!$P$2:$P$501, MATCH($B46, Ingredients_DB!$B$2:$B$501,0)),0)) ->  | V46: =IF($B46="","",IFERROR(INDEX(Ingredients_DB!$Q$2:$Q$501, MATCH($B46, Ingredients_DB!$B$2:$B$501,0)),0)) ->  | W46: =IF($B46="","",IFERROR(INDEX(Ingredients_DB!$R$2:$R$501, MATCH($B46, Ingredients_DB!$B$2:$B$501,0)),0)) ->  | X46: =IF($B46="","",IFERROR(INDEX(Ingredients_DB!$S$2:$S$501, MATCH($B46, Ingredients_DB!$B$2:$B$501,0)),0)) ->  | Y46: =IF($B46="","",IFERROR(INDEX(Ingredients_DB!$T$2:$T$501, MATCH($B46, Ingredients_DB!$B$2:$B$501,0)),0)) ->  | Z46: =IF($B46="","",IFERROR(INDEX(Ingredients_DB!$U$2:$U$501, MATCH($B46, Ingredients_DB!$B$2:$B$501,0)),0)) ->  | AA46: =IF($B46="","",IFERROR(INDEX(Ingredients_DB!$V$2:$V$501, MATCH($B46, Ingredients_DB!$B$2:$B$501,0)),0)) ->  | AB46: =IF($B46="","",IFERROR(INDEX(Ingredients_DB!$W$2:$W$501, MATCH($B46, Ingredients_DB!$B$2:$B$501,0)),0)) ->  | AC46: =IF($B46="","",IFERROR(INDEX(Ingredients_DB!$X$2:$X$501, MATCH($B46, Ingredients_DB!$B$2:$B$501,0)),0)) ->  | AD46: =IF($B46="","",IFERROR(INDEX(Ingredients_DB!$Y$2:$Y$501, MATCH($B46, Ingredients_DB!$B$2:$B$501,0)),0)) ->  | AE46: =IF($B46="","",IFERROR(INDEX(Ingredients_DB!$Z$2:$Z$501, MATCH($B46, Ingredients_DB!$B$2:$B$501,0)),0)) -> 
A47: 27 | C47: 0.00 | D47: g | G47: =IF($B47="","",IFERROR(INDEX(Ingredients_DB!$K$2:$K$501, MATCH($B47, Ingredients_DB!$B$2:$B$501,0)),0)) ->  | O47: =IF($B47="","",IFERROR(INDEX(Ingredients_DB!$H$2:$H$501, MATCH($B47, Ingredients_DB!$B$2:$B$501,0)),"")) ->  | P47: =IF($B47="","",IFERROR(INDEX(Ingredients_DB!$I$2:$I$501, MATCH($B47, Ingredients_DB!$B$2:$B$501,0)),"")) ->  | Q47: =IF($B47="","",IFERROR(VLOOKUP($O47&"|"&$D47,UOM_Conversions!$A$2:$E$50,4,FALSE),"CHECK UNIT")) ->  | R47: =IF($B47="","",IFERROR(INDEX(Ingredients_DB!$M$2:$M$501, MATCH($B47, Ingredients_DB!$B$2:$B$501,0)),0)) ->  | S47: =IF($B47="","",IFERROR(INDEX(Ingredients_DB!$N$2:$N$501, MATCH($B47, Ingredients_DB!$B$2:$B$501,0)),0)) ->  | T47: =IF($B47="","",IFERROR(INDEX(Ingredients_DB!$O$2:$O$501, MATCH($B47, Ingredients_DB!$B$2:$B$501,0)),0)) ->  | U47: =IF($B47="","",IFERROR(INDEX(Ingredients_DB!$P$2:$P$501, MATCH($B47, Ingredients_DB!$B$2:$B$501,0)),0)) ->  | V47: =IF($B47="","",IFERROR(INDEX(Ingredients_DB!$Q$2:$Q$501, MATCH($B47, Ingredients_DB!$B$2:$B$501,0)),0)) ->  | W47: =IF($B47="","",IFERROR(INDEX(Ingredients_DB!$R$2:$R$501, MATCH($B47, Ingredients_DB!$B$2:$B$501,0)),0)) ->  | X47: =IF($B47="","",IFERROR(INDEX(Ingredients_DB!$S$2:$S$501, MATCH($B47, Ingredients_DB!$B$2:$B$501,0)),0)) ->  | Y47: =IF($B47="","",IFERROR(INDEX(Ingredients_DB!$T$2:$T$501, MATCH($B47, Ingredients_DB!$B$2:$B$501,0)),0)) ->  | Z47: =IF($B47="","",IFERROR(INDEX(Ingredients_DB!$U$2:$U$501, MATCH($B47, Ingredients_DB!$B$2:$B$501,0)),0)) ->  | AA47: =IF($B47="","",IFERROR(INDEX(Ingredients_DB!$V$2:$V$501, MATCH($B47, Ingredients_DB!$B$2:$B$501,0)),0)) ->  | AB47: =IF($B47="","",IFERROR(INDEX(Ingredients_DB!$W$2:$W$501, MATCH($B47, Ingredients_DB!$B$2:$B$501,0)),0)) ->  | AC47: =IF($B47="","",IFERROR(INDEX(Ingredients_DB!$X$2:$X$501, MATCH($B47, Ingredients_DB!$B$2:$B$501,0)),0)) ->  | AD47: =IF($B47="","",IFERROR(INDEX(Ingredients_DB!$Y$2:$Y$501, MATCH($B47, Ingredients_DB!$B$2:$B$501,0)),0)) ->  | AE47: =IF($B47="","",IFERROR(INDEX(Ingredients_DB!$Z$2:$Z$501, MATCH($B47, Ingredients_DB!$B$2:$B$501,0)),0)) -> 
A48: 28 | C48: 0.00 | D48: g | G48: =IF($B48="","",IFERROR(INDEX(Ingredients_DB!$K$2:$K$501, MATCH($B48, Ingredients_DB!$B$2:$B$501,0)),0)) ->  | O48: =IF($B48="","",IFERROR(INDEX(Ingredients_DB!$H$2:$H$501, MATCH($B48, Ingredients_DB!$B$2:$B$501,0)),"")) ->  | P48: =IF($B48="","",IFERROR(INDEX(Ingredients_DB!$I$2:$I$501, MATCH($B48, Ingredients_DB!$B$2:$B$501,0)),"")) ->  | Q48: =IF($B48="","",IFERROR(VLOOKUP($O48&"|"&$D48,UOM_Conversions!$A$2:$E$50,4,FALSE),"CHECK UNIT")) ->  | R48: =IF($B48="","",IFERROR(INDEX(Ingredients_DB!$M$2:$M$501, MATCH($B48, Ingredients_DB!$B$2:$B$501,0)),0)) ->  | S48: =IF($B48="","",IFERROR(INDEX(Ingredients_DB!$N$2:$N$501, MATCH($B48, Ingredients_DB!$B$2:$B$501,0)),0)) ->  | T48: =IF($B48="","",IFERROR(INDEX(Ingredients_DB!$O$2:$O$501, MATCH($B48, Ingredients_DB!$B$2:$B$501,0)),0)) ->  | U48: =IF($B48="","",IFERROR(INDEX(Ingredients_DB!$P$2:$P$501, MATCH($B48, Ingredients_DB!$B$2:$B$501,0)),0)) ->  | V48: =IF($B48="","",IFERROR(INDEX(Ingredients_DB!$Q$2:$Q$501, MATCH($B48, Ingredients_DB!$B$2:$B$501,0)),0)) ->  | W48: =IF($B48="","",IFERROR(INDEX(Ingredients_DB!$R$2:$R$501, MATCH($B48, Ingredients_DB!$B$2:$B$501,0)),0)) ->  | X48: =IF($B48="","",IFERROR(INDEX(Ingredients_DB!$S$2:$S$501, MATCH($B48, Ingredients_DB!$B$2:$B$501,0)),0)) ->  | Y48: =IF($B48="","",IFERROR(INDEX(Ingredients_DB!$T$2:$T$501, MATCH($B48, Ingredients_DB!$B$2:$B$501,0)),0)) ->  | Z48: =IF($B48="","",IFERROR(INDEX(Ingredients_DB!$U$2:$U$501, MATCH($B48, Ingredients_DB!$B$2:$B$501,0)),0)) ->  | AA48: =IF($B48="","",IFERROR(INDEX(Ingredients_DB!$V$2:$V$501, MATCH($B48, Ingredients_DB!$B$2:$B$501,0)),0)) ->  | AB48: =IF($B48="","",IFERROR(INDEX(Ingredients_DB!$W$2:$W$501, MATCH($B48, Ingredients_DB!$B$2:$B$501,0)),0)) ->  | AC48: =IF($B48="","",IFERROR(INDEX(Ingredients_DB!$X$2:$X$501, MATCH($B48, Ingredients_DB!$B$2:$B$501,0)),0)) ->  | AD48: =IF($B48="","",IFERROR(INDEX(Ingredients_DB!$Y$2:$Y$501, MATCH($B48, Ingredients_DB!$B$2:$B$501,0)),0)) ->  | AE48: =IF($B48="","",IFERROR(INDEX(Ingredients_DB!$Z$2:$Z$501, MATCH($B48, Ingredients_DB!$B$2:$B$501,0)),0)) -> 
A49: 29 | C49: 0.00 | D49: g | G49: =IF($B49="","",IFERROR(INDEX(Ingredients_DB!$K$2:$K$501, MATCH($B49, Ingredients_DB!$B$2:$B$501,0)),0)) ->  | O49: =IF($B49="","",IFERROR(INDEX(Ingredients_DB!$H$2:$H$501, MATCH($B49, Ingredients_DB!$B$2:$B$501,0)),"")) ->  | P49: =IF($B49="","",IFERROR(INDEX(Ingredients_DB!$I$2:$I$501, MATCH($B49, Ingredients_DB!$B$2:$B$501,0)),"")) ->  | Q49: =IF($B49="","",IFERROR(VLOOKUP($O49&"|"&$D49,UOM_Conversions!$A$2:$E$50,4,FALSE),"CHECK UNIT")) ->  | R49: =IF($B49="","",IFERROR(INDEX(Ingredients_DB!$M$2:$M$501, MATCH($B49, Ingredients_DB!$B$2:$B$501,0)),0)) ->  | S49: =IF($B49="","",IFERROR(INDEX(Ingredients_DB!$N$2:$N$501, MATCH($B49, Ingredients_DB!$B$2:$B$501,0)),0)) ->  | T49: =IF($B49="","",IFERROR(INDEX(Ingredients_DB!$O$2:$O$501, MATCH($B49, Ingredients_DB!$B$2:$B$501,0)),0)) ->  | U49: =IF($B49="","",IFERROR(INDEX(Ingredients_DB!$P$2:$P$501, MATCH($B49, Ingredients_DB!$B$2:$B$501,0)),0)) ->  | V49: =IF($B49="","",IFERROR(INDEX(Ingredients_DB!$Q$2:$Q$501, MATCH($B49, Ingredients_DB!$B$2:$B$501,0)),0)) ->  | W49: =IF($B49="","",IFERROR(INDEX(Ingredients_DB!$R$2:$R$501, MATCH($B49, Ingredients_DB!$B$2:$B$501,0)),0)) ->  | X49: =IF($B49="","",IFERROR(INDEX(Ingredients_DB!$S$2:$S$501, MATCH($B49, Ingredients_DB!$B$2:$B$501,0)),0)) ->  | Y49: =IF($B49="","",IFERROR(INDEX(Ingredients_DB!$T$2:$T$501, MATCH($B49, Ingredients_DB!$B$2:$B$501,0)),0)) ->  | Z49: =IF($B49="","",IFERROR(INDEX(Ingredients_DB!$U$2:$U$501, MATCH($B49, Ingredients_DB!$B$2:$B$501,0)),0)) ->  | AA49: =IF($B49="","",IFERROR(INDEX(Ingredients_DB!$V$2:$V$501, MATCH($B49, Ingredients_DB!$B$2:$B$501,0)),0)) ->  | AB49: =IF($B49="","",IFERROR(INDEX(Ingredients_DB!$W$2:$W$501, MATCH($B49, Ingredients_DB!$B$2:$B$501,0)),0)) ->  | AC49: =IF($B49="","",IFERROR(INDEX(Ingredients_DB!$X$2:$X$501, MATCH($B49, Ingredients_DB!$B$2:$B$501,0)),0)) ->  | AD49: =IF($B49="","",IFERROR(INDEX(Ingredients_DB!$Y$2:$Y$501, MATCH($B49, Ingredients_DB!$B$2:$B$501,0)),0)) ->  | AE49: =IF($B49="","",IFERROR(INDEX(Ingredients_DB!$Z$2:$Z$501, MATCH($B49, Ingredients_DB!$B$2:$B$501,0)),0)) -> 
A50: 30 | C50: 0.00 | D50: g | G50: =IF($B50="","",IFERROR(INDEX(Ingredients_DB!$K$2:$K$501, MATCH($B50, Ingredients_DB!$B$2:$B$501,0)),0)) ->  | O50: =IF($B50="","",IFERROR(INDEX(Ingredients_DB!$H$2:$H$501, MATCH($B50, Ingredients_DB!$B$2:$B$501,0)),"")) ->  | P50: =IF($B50="","",IFERROR(INDEX(Ingredients_DB!$I$2:$I$501, MATCH($B50, Ingredients_DB!$B$2:$B$501,0)),"")) ->  | Q50: =IF($B50="","",IFERROR(VLOOKUP($O50&"|"&$D50,UOM_Conversions!$A$2:$E$50,4,FALSE),"CHECK UNIT")) ->  | R50: =IF($B50="","",IFERROR(INDEX(Ingredients_DB!$M$2:$M$501, MATCH($B50, Ingredients_DB!$B$2:$B$501,0)),0)) ->  | S50: =IF($B50="","",IFERROR(INDEX(Ingredients_DB!$N$2:$N$501, MATCH($B50, Ingredients_DB!$B$2:$B$501,0)),0)) ->  | T50: =IF($B50="","",IFERROR(INDEX(Ingredients_DB!$O$2:$O$501, MATCH($B50, Ingredients_DB!$B$2:$B$501,0)),0)) ->  | U50: =IF($B50="","",IFERROR(INDEX(Ingredients_DB!$P$2:$P$501, MATCH($B50, Ingredients_DB!$B$2:$B$501,0)),0)) ->  | V50: =IF($B50="","",IFERROR(INDEX(Ingredients_DB!$Q$2:$Q$501, MATCH($B50, Ingredients_DB!$B$2:$B$501,0)),0)) ->  | W50: =IF($B50="","",IFERROR(INDEX(Ingredients_DB!$R$2:$R$501, MATCH($B50, Ingredients_DB!$B$2:$B$501,0)),0)) ->  | X50: =IF($B50="","",IFERROR(INDEX(Ingredients_DB!$S$2:$S$501, MATCH($B50, Ingredients_DB!$B$2:$B$501,0)),0)) ->  | Y50: =IF($B50="","",IFERROR(INDEX(Ingredients_DB!$T$2:$T$501, MATCH($B50, Ingredients_DB!$B$2:$B$501,0)),0)) ->  | Z50: =IF($B50="","",IFERROR(INDEX(Ingredients_DB!$U$2:$U$501, MATCH($B50, Ingredients_DB!$B$2:$B$501,0)),0)) ->  | AA50: =IF($B50="","",IFERROR(INDEX(Ingredients_DB!$V$2:$V$501, MATCH($B50, Ingredients_DB!$B$2:$B$501,0)),0)) ->  | AB50: =IF($B50="","",IFERROR(INDEX(Ingredients_DB!$W$2:$W$501, MATCH($B50, Ingredients_DB!$B$2:$B$501,0)),0)) ->  | AC50: =IF($B50="","",IFERROR(INDEX(Ingredients_DB!$X$2:$X$501, MATCH($B50, Ingredients_DB!$B$2:$B$501,0)),0)) ->  | AD50: =IF($B50="","",IFERROR(INDEX(Ingredients_DB!$Y$2:$Y$501, MATCH($B50, Ingredients_DB!$B$2:$B$501,0)),0)) ->  | AE50: =IF($B50="","",IFERROR(INDEX(Ingredients_DB!$Z$2:$Z$501, MATCH($B50, Ingredients_DB!$B$2:$B$501,0)),0)) -> 

Sheet Example 2
A1: RECIPE COST CARD | K1: ALLERGEN SUMMARY (from ingredient flags) | O1: For calculation (do not delete)
A2: Restaurant / Concept | C2: Demo Restaurant | E2: Last Updated | F2: 2026-02-02 | K2: Milk | L2: =IF(MAX(R21:R50)>0,"YES","") -> YES | M2: (e.g., gluten-free option? vegan? substitution guidance, allergen handling, etc.)
A3: Menu Item Name | C3: Example 2 | G3: Currency 1 | H3: Currency 2 | I3: Notes | K3: Egg | L3: =IF(MAX(S21:S50)>0,"YES","") -> YES
A4: Category | C4: Starter | E4: Total Batch Food Cost | G4: =IFERROR(SUM(H21:H50),0) -> $3.82 | I4: SUM(G21:G50) | K4: Fish | L4: =IF(MAX(T21:T50)>0,"YES","") -> 
A5: Station | C5: Grill | E5: Other Costs (packaging etc.) | I5: IFERROR(SUM($G$14:$G$17),0) | K5: Shellfish | L5: =IF(MAX(U21:U50)>0,"YES","") -> 
A6: Batch Yield (portions) | C6: 1 | E6: Total Batch Cost | G6: =G4+G5 -> $3.82 | K6: Molluscs | L6: =IF(MAX(V21:V50)>0,"YES","") -> 
A7: Portion Size | C7: 1 burger + fries | E7: Cost / Portion | G7: =IFERROR(G6/$C$6,0) -> $3.82 | K7: Peanuts | L7: =IF(MAX(W21:W50)>0,"YES","") -> 
A8: Selling Price / Portion | C8: $16.00 | E8: Food Cost % | G8: =IFERROR(G7/$C$8,0) -> 23.9% | K8: Tree Nuts | L8: =IF(MAX(X21:X50)>0,"YES","") -> 
A9: Target Food Cost % | C9: 30.0% | E9: Gross Profit / Portion | G9: =IFERROR($C$8-G7,0) -> $12.18 | K9: Wheat/Gluten | L9: =IF(MAX(Y21:Y50)>0,"YES","") -> YES
A10: Prep Time (min) | C10: 10 | E10: Gross Margin % | G10: =IFERROR(1-G8,0) -> 76.1% | K10: Soy | L10: =IF(MAX(Z21:Z50)>0,"YES","") -> YES
A11: Cook Time (min) | C11: 8 | K11: Sesame | L11: =IF(MAX(AA21:AA50)>0,"YES","") -> YES
A12: Shelf Life / Storage | C12: Hold cold 2 days; cook to order | E12: OTHER COSTS (not part of cost of sale in hotels and resorts) | K12: Mustard | L12: =IF(MAX(AB21:AB50)>0,"YES","") -> 
E13: Description | G13: Cost | I13: Notes | K13: Celery | L13: =IF(MAX(AC21:AC50)>0,"YES","") -> 
E14: Packaging | G14: $0.25 | K14: Lupin | L14: =IF(MAX(AD21:AD50)>0,"YES","") -> 
E15: Napkin/condiment cup | G15: $0.10 | K15: Sulphites | L15: =IF(MAX(AE21:AE50)>0,"YES","") -> 
G16: $0.00
G17: $0.00
A19: INGREDIENTS (enter Qty + Unit; costs auto-calc) | F19: Actual Qty | G19: Unit Cost | K19: PREPARATION METHOD
A20: Line | B20: Ingredient | C20: Qty | D20: Unit | E20: Yield % | F20: in base units | G20: (per base) | H20: Line Cost | I20: Notes | K20: Step-by-step method - critical control points - holding temps - plating - cross-contamination notes -
A21: 1 | B21: Beef mince | C21: 180.00 | D21: g | E21: 90% | F21: =IF($B21="","",IF(ISNUMBER($Q21),$C21*$Q21/E21,"")) -> 200.00 | G21: =IF($B21="","",IFERROR(INDEX(Ingredients_DB!$K$2:$K$501, MATCH($B21, Ingredients_DB!$B$2:$B$501,0)),0)) -> $0.01 | H21: =IF($B21="","",IF(ISNUMBER($F21),$F21*$G21,"")) -> $1.80 | I21: Patty 180g | O21: =IF($B21="","",IFERROR(INDEX(Ingredients_DB!$H$2:$H$501, MATCH($B21, Ingredients_DB!$B$2:$B$501,0)),"")) -> Weight | P21: =IF($B21="","",IFERROR(INDEX(Ingredients_DB!$I$2:$I$501, MATCH($B21, Ingredients_DB!$B$2:$B$501,0)),"")) -> g | Q21: =IF($B21="","",IFERROR(VLOOKUP($O21&"|"&$D21,UOM_Conversions!$A$2:$E$50,4,FALSE),"CHECK UNIT")) -> 1 | R21: =IF($B21="","",IFERROR(INDEX(Ingredients_DB!$M$2:$M$501, MATCH($B21, Ingredients_DB!$B$2:$B$501,0)),0)) -> 0 | S21: =IF($B21="","",IFERROR(INDEX(Ingredients_DB!$N$2:$N$501, MATCH($B21, Ingredients_DB!$B$2:$B$501,0)),0)) -> 0 | T21: =IF($B21="","",IFERROR(INDEX(Ingredients_DB!$O$2:$O$501, MATCH($B21, Ingredients_DB!$B$2:$B$501,0)),0)) -> 0 | U21: =IF($B21="","",IFERROR(INDEX(Ingredients_DB!$P$2:$P$501, MATCH($B21, Ingredients_DB!$B$2:$B$501,0)),0)) -> 0 | V21: =IF($B21="","",IFERROR(INDEX(Ingredients_DB!$Q$2:$Q$501, MATCH($B21, Ingredients_DB!$B$2:$B$501,0)),0)) -> 0 | W21: =IF($B21="","",IFERROR(INDEX(Ingredients_DB!$R$2:$R$501, MATCH($B21, Ingredients_DB!$B$2:$B$501,0)),0)) -> 0 | X21: =IF($B21="","",IFERROR(INDEX(Ingredients_DB!$S$2:$S$501, MATCH($B21, Ingredients_DB!$B$2:$B$501,0)),0)) -> 0 | Y21: =IF($B21="","",IFERROR(INDEX(Ingredients_DB!$T$2:$T$501, MATCH($B21, Ingredients_DB!$B$2:$B$501,0)),0)) -> 0 | Z21: =IF($B21="","",IFERROR(INDEX(Ingredients_DB!$U$2:$U$501, MATCH($B21, Ingredients_DB!$B$2:$B$501,0)),0)) -> 0 | AA21: =IF($B21="","",IFERROR(INDEX(Ingredients_DB!$V$2:$V$501, MATCH($B21, Ingredients_DB!$B$2:$B$501,0)),0)) -> 0 | AB21: =IF($B21="","",IFERROR(INDEX(Ingredients_DB!$W$2:$W$501, MATCH($B21, Ingredients_DB!$B$2:$B$501,0)),0)) -> 0 | AC21: =IF($B21="","",IFERROR(INDEX(Ingredients_DB!$X$2:$X$501, MATCH($B21, Ingredients_DB!$B$2:$B$501,0)),0)) -> 0 | AD21: =IF($B21="","",IFERROR(INDEX(Ingredients_DB!$Y$2:$Y$501, MATCH($B21, Ingredients_DB!$B$2:$B$501,0)),0)) -> 0 | AE21: =IF($B21="","",IFERROR(INDEX(Ingredients_DB!$Z$2:$Z$501, MATCH($B21, Ingredients_DB!$B$2:$B$501,0)),0)) -> 0
A22: 2 | B22: Burger bun | C22: 1.00 | D22: each | E22: 100% | F22: 1.00 | G22: =IF($B22="","",IFERROR(INDEX(Ingredients_DB!$K$2:$K$501, MATCH($B22, Ingredients_DB!$B$2:$B$501,0)),0)) -> $0.75 | H22: $0.75 | I22: Toasted | O22: =IF($B22="","",IFERROR(INDEX(Ingredients_DB!$H$2:$H$501, MATCH($B22, Ingredients_DB!$B$2:$B$501,0)),"")) -> Each | P22: =IF($B22="","",IFERROR(INDEX(Ingredients_DB!$I$2:$I$501, MATCH($B22, Ingredients_DB!$B$2:$B$501,0)),"")) -> each | Q22: =IF($B22="","",IFERROR(VLOOKUP($O22&"|"&$D22,UOM_Conversions!$A$2:$E$50,4,FALSE),"CHECK UNIT")) -> 1 | R22: =IF($B22="","",IFERROR(INDEX(Ingredients_DB!$M$2:$M$501, MATCH($B22, Ingredients_DB!$B$2:$B$501,0)),0)) -> 0 | S22: =IF($B22="","",IFERROR(INDEX(Ingredients_DB!$N$2:$N$501, MATCH($B22, Ingredients_DB!$B$2:$B$501,0)),0)) -> 0 | T22: =IF($B22="","",IFERROR(INDEX(Ingredients_DB!$O$2:$O$501, MATCH($B22, Ingredients_DB!$B$2:$B$501,0)),0)) -> 0 | U22: =IF($B22="","",IFERROR(INDEX(Ingredients_DB!$P$2:$P$501, MATCH($B22, Ingredients_DB!$B$2:$B$501,0)),0)) -> 0 | V22: =IF($B22="","",IFERROR(INDEX(Ingredients_DB!$Q$2:$Q$501, MATCH($B22, Ingredients_DB!$B$2:$B$501,0)),0)) -> 0 | W22: =IF($B22="","",IFERROR(INDEX(Ingredients_DB!$R$2:$R$501, MATCH($B22, Ingredients_DB!$B$2:$B$501,0)),0)) -> 0 | X22: =IF($B22="","",IFERROR(INDEX(Ingredients_DB!$S$2:$S$501, MATCH($B22, Ingredients_DB!$B$2:$B$501,0)),0)) -> 0 | Y22: =IF($B22="","",IFERROR(INDEX(Ingredients_DB!$T$2:$T$501, MATCH($B22, Ingredients_DB!$B$2:$B$501,0)),0)) -> 1 | Z22: =IF($B22="","",IFERROR(INDEX(Ingredients_DB!$U$2:$U$501, MATCH($B22, Ingredients_DB!$B$2:$B$501,0)),0)) -> 0 | AA22: =IF($B22="","",IFERROR(INDEX(Ingredients_DB!$V$2:$V$501, MATCH($B22, Ingredients_DB!$B$2:$B$501,0)),0)) -> 0 | AB22: =IF($B22="","",IFERROR(INDEX(Ingredients_DB!$W$2:$W$501, MATCH($B22, Ingredients_DB!$B$2:$B$501,0)),0)) -> 0 | AC22: =IF($B22="","",IFERROR(INDEX(Ingredients_DB!$X$2:$X$501, MATCH($B22, Ingredients_DB!$B$2:$B$501,0)),0)) -> 0 | AD22: =IF($B22="","",IFERROR(INDEX(Ingredients_DB!$Y$2:$Y$501, MATCH($B22, Ingredients_DB!$B$2:$B$501,0)),0)) -> 0 | AE22: =IF($B22="","",IFERROR(INDEX(Ingredients_DB!$Z$2:$Z$501, MATCH($B22, Ingredients_DB!$B$2:$B$501,0)),0)) -> 0
A23: 3 | B23: Cheddar cheese | C23: 30.00 | D23: g | E23: 100% | F23: 30.00 | G23: =IF($B23="","",IFERROR(INDEX(Ingredients_DB!$K$2:$K$501, MATCH($B23, Ingredients_DB!$B$2:$B$501,0)),0)) -> $0.01 | H23: $0.33 | I23: Slice | O23: =IF($B23="","",IFERROR(INDEX(Ingredients_DB!$H$2:$H$501, MATCH($B23, Ingredients_DB!$B$2:$B$501,0)),"")) -> Weight | P23: =IF($B23="","",IFERROR(INDEX(Ingredients_DB!$I$2:$I$501, MATCH($B23, Ingredients_DB!$B$2:$B$501,0)),"")) -> g | Q23: =IF($B23="","",IFERROR(VLOOKUP($O23&"|"&$D23,UOM_Conversions!$A$2:$E$50,4,FALSE),"CHECK UNIT")) -> 1 | R23: =IF($B23="","",IFERROR(INDEX(Ingredients_DB!$M$2:$M$501, MATCH($B23, Ingredients_DB!$B$2:$B$501,0)),0)) -> 1 | S23: =IF($B23="","",IFERROR(INDEX(Ingredients_DB!$N$2:$N$501, MATCH($B23, Ingredients_DB!$B$2:$B$501,0)),0)) -> 0 | T23: =IF($B23="","",IFERROR(INDEX(Ingredients_DB!$O$2:$O$501, MATCH($B23, Ingredients_DB!$B$2:$B$501,0)),0)) -> 0 | U23: =IF($B23="","",IFERROR(INDEX(Ingredients_DB!$P$2:$P$501, MATCH($B23, Ingredients_DB!$B$2:$B$501,0)),0)) -> 0 | V23: =IF($B23="","",IFERROR(INDEX(Ingredients_DB!$Q$2:$Q$501, MATCH($B23, Ingredients_DB!$B$2:$B$501,0)),0)) -> 0 | W23: =IF($B23="","",IFERROR(INDEX(Ingredients_DB!$R$2:$R$501, MATCH($B23, Ingredients_DB!$B$2:$B$501,0)),0)) -> 0 | X23: =IF($B23="","",IFERROR(INDEX(Ingredients_DB!$S$2:$S$501, MATCH($B23, Ingredients_DB!$B$2:$B$501,0)),0)) -> 0 | Y23: =IF($B23="","",IFERROR(INDEX(Ingredients_DB!$T$2:$T$501, MATCH($B23, Ingredients_DB!$B$2:$B$501,0)),0)) -> 0 | Z23: =IF($B23="","",IFERROR(INDEX(Ingredients_DB!$U$2:$U$501, MATCH($B23, Ingredients_DB!$B$2:$B$501,0)),0)) -> 0 | AA23: =IF($B23="","",IFERROR(INDEX(Ingredients_DB!$V$2:$V$501, MATCH($B23, Ingredients_DB!$B$2:$B$501,0)),0)) -> 0 | AB23: =IF($B23="","",IFERROR(INDEX(Ingredients_DB!$W$2:$W$501, MATCH($B23, Ingredients_DB!$B$2:$B$501,0)),0)) -> 0 | AC23: =IF($B23="","",IFERROR(INDEX(Ingredients_DB!$X$2:$X$501, MATCH($B23, Ingredients_DB!$B$2:$B$501,0)),0)) -> 0 | AD23: =IF($B23="","",IFERROR(INDEX(Ingredients_DB!$Y$2:$Y$501, MATCH($B23, Ingredients_DB!$B$2:$B$501,0)),0)) -> 0 | AE23: =IF($B23="","",IFERROR(INDEX(Ingredients_DB!$Z$2:$Z$501, MATCH($B23, Ingredients_DB!$B$2:$B$501,0)),0)) -> 0
A24: 4 | B24: Lettuce | C24: 20.00 | D24: g | E24: 95% | F24: 21.05 | G24: =IF($B24="","",IFERROR(INDEX(Ingredients_DB!$K$2:$K$501, MATCH($B24, Ingredients_DB!$B$2:$B$501,0)),0)) -> $0.01 | H24: $0.17 | I24: Shredded | O24: =IF($B24="","",IFERROR(INDEX(Ingredients_DB!$H$2:$H$501, MATCH($B24, Ingredients_DB!$B$2:$B$501,0)),"")) -> Weight | P24: =IF($B24="","",IFERROR(INDEX(Ingredients_DB!$I$2:$I$501, MATCH($B24, Ingredients_DB!$B$2:$B$501,0)),"")) -> g | Q24: =IF($B24="","",IFERROR(VLOOKUP($O24&"|"&$D24,UOM_Conversions!$A$2:$E$50,4,FALSE),"CHECK UNIT")) -> 1 | R24: =IF($B24="","",IFERROR(INDEX(Ingredients_DB!$M$2:$M$501, MATCH($B24, Ingredients_DB!$B$2:$B$501,0)),0)) -> 0 | S24: =IF($B24="","",IFERROR(INDEX(Ingredients_DB!$N$2:$N$501, MATCH($B24, Ingredients_DB!$B$2:$B$501,0)),0)) -> 0 | T24: =IF($B24="","",IFERROR(INDEX(Ingredients_DB!$O$2:$O$501, MATCH($B24, Ingredients_DB!$B$2:$B$501,0)),0)) -> 0 | U24: =IF($B24="","",IFERROR(INDEX(Ingredients_DB!$P$2:$P$501, MATCH($B24, Ingredients_DB!$B$2:$B$501,0)),0)) -> 0 | V24: =IF($B24="","",IFERROR(INDEX(Ingredients_DB!$Q$2:$Q$501, MATCH($B24, Ingredients_DB!$B$2:$B$501,0)),0)) -> 0 | W24: =IF($B24="","",IFERROR(INDEX(Ingredients_DB!$R$2:$R$501, MATCH($B24, Ingredients_DB!$B$2:$B$501,0)),0)) -> 0 | X24: =IF($B24="","",IFERROR(INDEX(Ingredients_DB!$S$2:$S$501, MATCH($B24, Ingredients_DB!$B$2:$B$501,0)),0)) -> 0 | Y24: =IF($B24="","",IFERROR(INDEX(Ingredients_DB!$T$2:$T$501, MATCH($B24, Ingredients_DB!$B$2:$B$501,0)),0)) -> 0 | Z24: =IF($B24="","",IFERROR(INDEX(Ingredients_DB!$U$2:$U$501, MATCH($B24, Ingredients_DB!$B$2:$B$501,0)),0)) -> 0 | AA24: =IF($B24="","",IFERROR(INDEX(Ingredients_DB!$V$2:$V$501, MATCH($B24, Ingredients_DB!$B$2:$B$501,0)),0)) -> 0 | AB24: =IF($B24="","",IFERROR(INDEX(Ingredients_DB!$W$2:$W$501, MATCH($B24, Ingredients_DB!$B$2:$B$501,0)),0)) -> 0 | AC24: =IF($B24="","",IFERROR(INDEX(Ingredients_DB!$X$2:$X$501, MATCH($B24, Ingredients_DB!$B$2:$B$501,0)),0)) -> 0 | AD24: =IF($B24="","",IFERROR(INDEX(Ingredients_DB!$Y$2:$Y$501, MATCH($B24, Ingredients_DB!$B$2:$B$501,0)),0)) -> 0 | AE24: =IF($B24="","",IFERROR(INDEX(Ingredients_DB!$Z$2:$Z$501, MATCH($B24, Ingredients_DB!$B$2:$B$501,0)),0)) -> 0
A25: 5 | B25: Ketchup | C25: 20.00 | D25: g | E25: 100% | F25: 20.00 | G25: =IF($B25="","",IFERROR(INDEX(Ingredients_DB!$K$2:$K$501, MATCH($B25, Ingredients_DB!$B$2:$B$501,0)),0)) -> $0.00 | H25: $0.08 | O25: =IF($B25="","",IFERROR(INDEX(Ingredients_DB!$H$2:$H$501, MATCH($B25, Ingredients_DB!$B$2:$B$501,0)),"")) -> Weight | P25: =IF($B25="","",IFERROR(INDEX(Ingredients_DB!$I$2:$I$501, MATCH($B25, Ingredients_DB!$B$2:$B$501,0)),"")) -> g | Q25: =IF($B25="","",IFERROR(VLOOKUP($O25&"|"&$D25,UOM_Conversions!$A$2:$E$50,4,FALSE),"CHECK UNIT")) -> 1 | R25: =IF($B25="","",IFERROR(INDEX(Ingredients_DB!$M$2:$M$501, MATCH($B25, Ingredients_DB!$B$2:$B$501,0)),0)) -> 0 | S25: =IF($B25="","",IFERROR(INDEX(Ingredients_DB!$N$2:$N$501, MATCH($B25, Ingredients_DB!$B$2:$B$501,0)),0)) -> 0 | T25: =IF($B25="","",IFERROR(INDEX(Ingredients_DB!$O$2:$O$501, MATCH($B25, Ingredients_DB!$B$2:$B$501,0)),0)) -> 0 | U25: =IF($B25="","",IFERROR(INDEX(Ingredients_DB!$P$2:$P$501, MATCH($B25, Ingredients_DB!$B$2:$B$501,0)),0)) -> 0 | V25: =IF($B25="","",IFERROR(INDEX(Ingredients_DB!$Q$2:$Q$501, MATCH($B25, Ingredients_DB!$B$2:$B$501,0)),0)) -> 0 | W25: =IF($B25="","",IFERROR(INDEX(Ingredients_DB!$R$2:$R$501, MATCH($B25, Ingredients_DB!$B$2:$B$501,0)),0)) -> 0 | X25: =IF($B25="","",IFERROR(INDEX(Ingredients_DB!$S$2:$S$501, MATCH($B25, Ingredients_DB!$B$2:$B$501,0)),0)) -> 0 | Y25: =IF($B25="","",IFERROR(INDEX(Ingredients_DB!$T$2:$T$501, MATCH($B25, Ingredients_DB!$B$2:$B$501,0)),0)) -> 0 | Z25: =IF($B25="","",IFERROR(INDEX(Ingredients_DB!$U$2:$U$501, MATCH($B25, Ingredients_DB!$B$2:$B$501,0)),0)) -> 0 | AA25: =IF($B25="","",IFERROR(INDEX(Ingredients_DB!$V$2:$V$501, MATCH($B25, Ingredients_DB!$B$2:$B$501,0)),0)) -> 0 | AB25: =IF($B25="","",IFERROR(INDEX(Ingredients_DB!$W$2:$W$501, MATCH($B25, Ingredients_DB!$B$2:$B$501,0)),0)) -> 0 | AC25: =IF($B25="","",IFERROR(INDEX(Ingredients_DB!$X$2:$X$501, MATCH($B25, Ingredients_DB!$B$2:$B$501,0)),0)) -> 0 | AD25: =IF($B25="","",IFERROR(INDEX(Ingredients_DB!$Y$2:$Y$501, MATCH($B25, Ingredients_DB!$B$2:$B$501,0)),0)) -> 0 | AE25: =IF($B25="","",IFERROR(INDEX(Ingredients_DB!$Z$2:$Z$501, MATCH($B25, Ingredients_DB!$B$2:$B$501,0)),0)) -> 0
A26: 6 | B26: Mayonnaise | C26: 15.00 | D26: g | E26: 100% | F26: 15.00 | G26: =IF($B26="","",IFERROR(INDEX(Ingredients_DB!$K$2:$K$501, MATCH($B26, Ingredients_DB!$B$2:$B$501,0)),0)) -> $0.01 | H26: $0.11 | O26: =IF($B26="","",IFERROR(INDEX(Ingredients_DB!$H$2:$H$501, MATCH($B26, Ingredients_DB!$B$2:$B$501,0)),"")) -> Weight | P26: =IF($B26="","",IFERROR(INDEX(Ingredients_DB!$I$2:$I$501, MATCH($B26, Ingredients_DB!$B$2:$B$501,0)),"")) -> g | Q26: =IF($B26="","",IFERROR(VLOOKUP($O26&"|"&$D26,UOM_Conversions!$A$2:$E$50,4,FALSE),"CHECK UNIT")) -> 1 | R26: =IF($B26="","",IFERROR(INDEX(Ingredients_DB!$M$2:$M$501, MATCH($B26, Ingredients_DB!$B$2:$B$501,0)),0)) -> 0 | S26: =IF($B26="","",IFERROR(INDEX(Ingredients_DB!$N$2:$N$501, MATCH($B26, Ingredients_DB!$B$2:$B$501,0)),0)) -> 1 | T26: =IF($B26="","",IFERROR(INDEX(Ingredients_DB!$O$2:$O$501, MATCH($B26, Ingredients_DB!$B$2:$B$501,0)),0)) -> 0 | U26: =IF($B26="","",IFERROR(INDEX(Ingredients_DB!$P$2:$P$501, MATCH($B26, Ingredients_DB!$B$2:$B$501,0)),0)) -> 0 | V26: =IF($B26="","",IFERROR(INDEX(Ingredients_DB!$Q$2:$Q$501, MATCH($B26, Ingredients_DB!$B$2:$B$501,0)),0)) -> 0 | W26: =IF($B26="","",IFERROR(INDEX(Ingredients_DB!$R$2:$R$501, MATCH($B26, Ingredients_DB!$B$2:$B$501,0)),0)) -> 0 | X26: =IF($B26="","",IFERROR(INDEX(Ingredients_DB!$S$2:$S$501, MATCH($B26, Ingredients_DB!$B$2:$B$501,0)),0)) -> 0 | Y26: =IF($B26="","",IFERROR(INDEX(Ingredients_DB!$T$2:$T$501, MATCH($B26, Ingredients_DB!$B$2:$B$501,0)),0)) -> 0 | Z26: =IF($B26="","",IFERROR(INDEX(Ingredients_DB!$U$2:$U$501, MATCH($B26, Ingredients_DB!$B$2:$B$501,0)),0)) -> 1 | AA26: =IF($B26="","",IFERROR(INDEX(Ingredients_DB!$V$2:$V$501, MATCH($B26, Ingredients_DB!$B$2:$B$501,0)),0)) -> 0 | AB26: =IF($B26="","",IFERROR(INDEX(Ingredients_DB!$W$2:$W$501, MATCH($B26, Ingredients_DB!$B$2:$B$501,0)),0)) -> 0 | AC26: =IF($B26="","",IFERROR(INDEX(Ingredients_DB!$X$2:$X$501, MATCH($B26, Ingredients_DB!$B$2:$B$501,0)),0)) -> 0 | AD26: =IF($B26="","",IFERROR(INDEX(Ingredients_DB!$Y$2:$Y$501, MATCH($B26, Ingredients_DB!$B$2:$B$501,0)),0)) -> 0 | AE26: =IF($B26="","",IFERROR(INDEX(Ingredients_DB!$Z$2:$Z$501, MATCH($B26, Ingredients_DB!$B$2:$B$501,0)),0)) -> 0
A27: 7 | B27: French fries (frozen) | C27: 200.00 | D27: g | E27: 100% | F27: 200.00 | G27: =IF($B27="","",IFERROR(INDEX(Ingredients_DB!$K$2:$K$501, MATCH($B27, Ingredients_DB!$B$2:$B$501,0)),0)) -> $0.00 | H27: $0.56 | I27: Portion | O27: =IF($B27="","",IFERROR(INDEX(Ingredients_DB!$H$2:$H$501, MATCH($B27, Ingredients_DB!$B$2:$B$501,0)),"")) -> Weight | P27: =IF($B27="","",IFERROR(INDEX(Ingredients_DB!$I$2:$I$501, MATCH($B27, Ingredients_DB!$B$2:$B$501,0)),"")) -> g | Q27: =IF($B27="","",IFERROR(VLOOKUP($O27&"|"&$D27,UOM_Conversions!$A$2:$E$50,4,FALSE),"CHECK UNIT")) -> 1 | R27: =IF($B27="","",IFERROR(INDEX(Ingredients_DB!$M$2:$M$501, MATCH($B27, Ingredients_DB!$B$2:$B$501,0)),0)) -> 0 | S27: =IF($B27="","",IFERROR(INDEX(Ingredients_DB!$N$2:$N$501, MATCH($B27, Ingredients_DB!$B$2:$B$501,0)),0)) -> 0 | T27: =IF($B27="","",IFERROR(INDEX(Ingredients_DB!$O$2:$O$501, MATCH($B27, Ingredients_DB!$B$2:$B$501,0)),0)) -> 0 | U27: =IF($B27="","",IFERROR(INDEX(Ingredients_DB!$P$2:$P$501, MATCH($B27, Ingredients_DB!$B$2:$B$501,0)),0)) -> 0 | V27: =IF($B27="","",IFERROR(INDEX(Ingredients_DB!$Q$2:$Q$501, MATCH($B27, Ingredients_DB!$B$2:$B$501,0)),0)) -> 0 | W27: =IF($B27="","",IFERROR(INDEX(Ingredients_DB!$R$2:$R$501, MATCH($B27, Ingredients_DB!$B$2:$B$501,0)),0)) -> 0 | X27: =IF($B27="","",IFERROR(INDEX(Ingredients_DB!$S$2:$S$501, MATCH($B27, Ingredients_DB!$B$2:$B$501,0)),0)) -> 0 | Y27: =IF($B27="","",IFERROR(INDEX(Ingredients_DB!$T$2:$T$501, MATCH($B27, Ingredients_DB!$B$2:$B$501,0)),0)) -> 0 | Z27: =IF($B27="","",IFERROR(INDEX(Ingredients_DB!$U$2:$U$501, MATCH($B27, Ingredients_DB!$B$2:$B$501,0)),0)) -> 0 | AA27: =IF($B27="","",IFERROR(INDEX(Ingredients_DB!$V$2:$V$501, MATCH($B27, Ingredients_DB!$B$2:$B$501,0)),0)) -> 0 | AB27: =IF($B27="","",IFERROR(INDEX(Ingredients_DB!$W$2:$W$501, MATCH($B27, Ingredients_DB!$B$2:$B$501,0)),0)) -> 0 | AC27: =IF($B27="","",IFERROR(INDEX(Ingredients_DB!$X$2:$X$501, MATCH($B27, Ingredients_DB!$B$2:$B$501,0)),0)) -> 0 | AD27: =IF($B27="","",IFERROR(INDEX(Ingredients_DB!$Y$2:$Y$501, MATCH($B27, Ingredients_DB!$B$2:$B$501,0)),0)) -> 0 | AE27: =IF($B27="","",IFERROR(INDEX(Ingredients_DB!$Z$2:$Z$501, MATCH($B27, Ingredients_DB!$B$2:$B$501,0)),0)) -> 0
A28: 8 | B28: Sesame seeds | C28: 2.00 | D28: g | E28: 100% | F28: 2.00 | G28: =IF($B28="","",IFERROR(INDEX(Ingredients_DB!$K$2:$K$501, MATCH($B28, Ingredients_DB!$B$2:$B$501,0)),0)) -> $0.01 | H28: $0.02 | I28: Bun topping (optional) | O28: =IF($B28="","",IFERROR(INDEX(Ingredients_DB!$H$2:$H$501, MATCH($B28, Ingredients_DB!$B$2:$B$501,0)),"")) -> Weight | P28: =IF($B28="","",IFERROR(INDEX(Ingredients_DB!$I$2:$I$501, MATCH($B28, Ingredients_DB!$B$2:$B$501,0)),"")) -> g | Q28: =IF($B28="","",IFERROR(VLOOKUP($O28&"|"&$D28,UOM_Conversions!$A$2:$E$50,4,FALSE),"CHECK UNIT")) -> 1 | R28: =IF($B28="","",IFERROR(INDEX(Ingredients_DB!$M$2:$M$501, MATCH($B28, Ingredients_DB!$B$2:$B$501,0)),0)) -> 0 | S28: =IF($B28="","",IFERROR(INDEX(Ingredients_DB!$N$2:$N$501, MATCH($B28, Ingredients_DB!$B$2:$B$501,0)),0)) -> 0 | T28: =IF($B28="","",IFERROR(INDEX(Ingredients_DB!$O$2:$O$501, MATCH($B28, Ingredients_DB!$B$2:$B$501,0)),0)) -> 0 | U28: =IF($B28="","",IFERROR(INDEX(Ingredients_DB!$P$2:$P$501, MATCH($B28, Ingredients_DB!$B$2:$B$501,0)),0)) -> 0 | V28: =IF($B28="","",IFERROR(INDEX(Ingredients_DB!$Q$2:$Q$501, MATCH($B28, Ingredients_DB!$B$2:$B$501,0)),0)) -> 0 | W28: =IF($B28="","",IFERROR(INDEX(Ingredients_DB!$R$2:$R$501, MATCH($B28, Ingredients_DB!$B$2:$B$501,0)),0)) -> 0 | X28: =IF($B28="","",IFERROR(INDEX(Ingredients_DB!$S$2:$S$501, MATCH($B28, Ingredients_DB!$B$2:$B$501,0)),0)) -> 0 | Y28: =IF($B28="","",IFERROR(INDEX(Ingredients_DB!$T$2:$T$501, MATCH($B28, Ingredients_DB!$B$2:$B$501,0)),0)) -> 0 | Z28: =IF($B28="","",IFERROR(INDEX(Ingredients_DB!$U$2:$U$501, MATCH($B28, Ingredients_DB!$B$2:$B$501,0)),0)) -> 0 | AA28: =IF($B28="","",IFERROR(INDEX(Ingredients_DB!$V$2:$V$501, MATCH($B28, Ingredients_DB!$B$2:$B$501,0)),0)) -> 1 | AB28: =IF($B28="","",IFERROR(INDEX(Ingredients_DB!$W$2:$W$501, MATCH($B28, Ingredients_DB!$B$2:$B$501,0)),0)) -> 0 | AC28: =IF($B28="","",IFERROR(INDEX(Ingredients_DB!$X$2:$X$501, MATCH($B28, Ingredients_DB!$B$2:$B$501,0)),0)) -> 0 | AD28: =IF($B28="","",IFERROR(INDEX(Ingredients_DB!$Y$2:$Y$501, MATCH($B28, Ingredients_DB!$B$2:$B$501,0)),0)) -> 0 | AE28: =IF($B28="","",IFERROR(INDEX(Ingredients_DB!$Z$2:$Z$501, MATCH($B28, Ingredients_DB!$B$2:$B$501,0)),0)) -> 0
A29: 9 | C29: 0.00 | D29: g | G29: =IF($B29="","",IFERROR(INDEX(Ingredients_DB!$K$2:$K$501, MATCH($B29, Ingredients_DB!$B$2:$B$501,0)),0)) ->  | O29: =IF($B29="","",IFERROR(INDEX(Ingredients_DB!$H$2:$H$501, MATCH($B29, Ingredients_DB!$B$2:$B$501,0)),"")) ->  | P29: =IF($B29="","",IFERROR(INDEX(Ingredients_DB!$I$2:$I$501, MATCH($B29, Ingredients_DB!$B$2:$B$501,0)),"")) ->  | Q29: =IF($B29="","",IFERROR(VLOOKUP($O29&"|"&$D29,UOM_Conversions!$A$2:$E$50,4,FALSE),"CHECK UNIT")) ->  | R29: =IF($B29="","",IFERROR(INDEX(Ingredients_DB!$M$2:$M$501, MATCH($B29, Ingredients_DB!$B$2:$B$501,0)),0)) ->  | S29: =IF($B29="","",IFERROR(INDEX(Ingredients_DB!$N$2:$N$501, MATCH($B29, Ingredients_DB!$B$2:$B$501,0)),0)) ->  | T29: =IF($B29="","",IFERROR(INDEX(Ingredients_DB!$O$2:$O$501, MATCH($B29, Ingredients_DB!$B$2:$B$501,0)),0)) ->  | U29: =IF($B29="","",IFERROR(INDEX(Ingredients_DB!$P$2:$P$501, MATCH($B29, Ingredients_DB!$B$2:$B$501,0)),0)) ->  | V29: =IF($B29="","",IFERROR(INDEX(Ingredients_DB!$Q$2:$Q$501, MATCH($B29, Ingredients_DB!$B$2:$B$501,0)),0)) ->  | W29: =IF($B29="","",IFERROR(INDEX(Ingredients_DB!$R$2:$R$501, MATCH($B29, Ingredients_DB!$B$2:$B$501,0)),0)) ->  | X29: =IF($B29="","",IFERROR(INDEX(Ingredients_DB!$S$2:$S$501, MATCH($B29, Ingredients_DB!$B$2:$B$501,0)),0)) ->  | Y29: =IF($B29="","",IFERROR(INDEX(Ingredients_DB!$T$2:$T$501, MATCH($B29, Ingredients_DB!$B$2:$B$501,0)),0)) ->  | Z29: =IF($B29="","",IFERROR(INDEX(Ingredients_DB!$U$2:$U$501, MATCH($B29, Ingredients_DB!$B$2:$B$501,0)),0)) ->  | AA29: =IF($B29="","",IFERROR(INDEX(Ingredients_DB!$V$2:$V$501, MATCH($B29, Ingredients_DB!$B$2:$B$501,0)),0)) ->  | AB29: =IF($B29="","",IFERROR(INDEX(Ingredients_DB!$W$2:$W$501, MATCH($B29, Ingredients_DB!$B$2:$B$501,0)),0)) ->  | AC29: =IF($B29="","",IFERROR(INDEX(Ingredients_DB!$X$2:$X$501, MATCH($B29, Ingredients_DB!$B$2:$B$501,0)),0)) ->  | AD29: =IF($B29="","",IFERROR(INDEX(Ingredients_DB!$Y$2:$Y$501, MATCH($B29, Ingredients_DB!$B$2:$B$501,0)),0)) ->  | AE29: =IF($B29="","",IFERROR(INDEX(Ingredients_DB!$Z$2:$Z$501, MATCH($B29, Ingredients_DB!$B$2:$B$501,0)),0)) -> 
A30: 10 | C30: 0.00 | D30: g | G30: =IF($B30="","",IFERROR(INDEX(Ingredients_DB!$K$2:$K$501, MATCH($B30, Ingredients_DB!$B$2:$B$501,0)),0)) ->  | O30: =IF($B30="","",IFERROR(INDEX(Ingredients_DB!$H$2:$H$501, MATCH($B30, Ingredients_DB!$B$2:$B$501,0)),"")) ->  | P30: =IF($B30="","",IFERROR(INDEX(Ingredients_DB!$I$2:$I$501, MATCH($B30, Ingredients_DB!$B$2:$B$501,0)),"")) ->  | Q30: =IF($B30="","",IFERROR(VLOOKUP($O30&"|"&$D30,UOM_Conversions!$A$2:$E$50,4,FALSE),"CHECK UNIT")) ->  | R30: =IF($B30="","",IFERROR(INDEX(Ingredients_DB!$M$2:$M$501, MATCH($B30, Ingredients_DB!$B$2:$B$501,0)),0)) ->  | S30: =IF($B30="","",IFERROR(INDEX(Ingredients_DB!$N$2:$N$501, MATCH($B30, Ingredients_DB!$B$2:$B$501,0)),0)) ->  | T30: =IF($B30="","",IFERROR(INDEX(Ingredients_DB!$O$2:$O$501, MATCH($B30, Ingredients_DB!$B$2:$B$501,0)),0)) ->  | U30: =IF($B30="","",IFERROR(INDEX(Ingredients_DB!$P$2:$P$501, MATCH($B30, Ingredients_DB!$B$2:$B$501,0)),0)) ->  | V30: =IF($B30="","",IFERROR(INDEX(Ingredients_DB!$Q$2:$Q$501, MATCH($B30, Ingredients_DB!$B$2:$B$501,0)),0)) ->  | W30: =IF($B30="","",IFERROR(INDEX(Ingredients_DB!$R$2:$R$501, MATCH($B30, Ingredients_DB!$B$2:$B$501,0)),0)) ->  | X30: =IF($B30="","",IFERROR(INDEX(Ingredients_DB!$S$2:$S$501, MATCH($B30, Ingredients_DB!$B$2:$B$501,0)),0)) ->  | Y30: =IF($B30="","",IFERROR(INDEX(Ingredients_DB!$T$2:$T$501, MATCH($B30, Ingredients_DB!$B$2:$B$501,0)),0)) ->  | Z30: =IF($B30="","",IFERROR(INDEX(Ingredients_DB!$U$2:$U$501, MATCH($B30, Ingredients_DB!$B$2:$B$501,0)),0)) ->  | AA30: =IF($B30="","",IFERROR(INDEX(Ingredients_DB!$V$2:$V$501, MATCH($B30, Ingredients_DB!$B$2:$B$501,0)),0)) ->  | AB30: =IF($B30="","",IFERROR(INDEX(Ingredients_DB!$W$2:$W$501, MATCH($B30, Ingredients_DB!$B$2:$B$501,0)),0)) ->  | AC30: =IF($B30="","",IFERROR(INDEX(Ingredients_DB!$X$2:$X$501, MATCH($B30, Ingredients_DB!$B$2:$B$501,0)),0)) ->  | AD30: =IF($B30="","",IFERROR(INDEX(Ingredients_DB!$Y$2:$Y$501, MATCH($B30, Ingredients_DB!$B$2:$B$501,0)),0)) ->  | AE30: =IF($B30="","",IFERROR(INDEX(Ingredients_DB!$Z$2:$Z$501, MATCH($B30, Ingredients_DB!$B$2:$B$501,0)),0)) -> 
A31: 11 | C31: 0.00 | D31: g | G31: =IF($B31="","",IFERROR(INDEX(Ingredients_DB!$K$2:$K$501, MATCH($B31, Ingredients_DB!$B$2:$B$501,0)),0)) ->  | O31: =IF($B31="","",IFERROR(INDEX(Ingredients_DB!$H$2:$H$501, MATCH($B31, Ingredients_DB!$B$2:$B$501,0)),"")) ->  | P31: =IF($B31="","",IFERROR(INDEX(Ingredients_DB!$I$2:$I$501, MATCH($B31, Ingredients_DB!$B$2:$B$501,0)),"")) ->  | Q31: =IF($B31="","",IFERROR(VLOOKUP($O31&"|"&$D31,UOM_Conversions!$A$2:$E$50,4,FALSE),"CHECK UNIT")) ->  | R31: =IF($B31="","",IFERROR(INDEX(Ingredients_DB!$M$2:$M$501, MATCH($B31, Ingredients_DB!$B$2:$B$501,0)),0)) ->  | S31: =IF($B31="","",IFERROR(INDEX(Ingredients_DB!$N$2:$N$501, MATCH($B31, Ingredients_DB!$B$2:$B$501,0)),0)) ->  | T31: =IF($B31="","",IFERROR(INDEX(Ingredients_DB!$O$2:$O$501, MATCH($B31, Ingredients_DB!$B$2:$B$501,0)),0)) ->  | U31: =IF($B31="","",IFERROR(INDEX(Ingredients_DB!$P$2:$P$501, MATCH($B31, Ingredients_DB!$B$2:$B$501,0)),0)) ->  | V31: =IF($B31="","",IFERROR(INDEX(Ingredients_DB!$Q$2:$Q$501, MATCH($B31, Ingredients_DB!$B$2:$B$501,0)),0)) ->  | W31: =IF($B31="","",IFERROR(INDEX(Ingredients_DB!$R$2:$R$501, MATCH($B31, Ingredients_DB!$B$2:$B$501,0)),0)) ->  | X31: =IF($B31="","",IFERROR(INDEX(Ingredients_DB!$S$2:$S$501, MATCH($B31, Ingredients_DB!$B$2:$B$501,0)),0)) ->  | Y31: =IF($B31="","",IFERROR(INDEX(Ingredients_DB!$T$2:$T$501, MATCH($B31, Ingredients_DB!$B$2:$B$501,0)),0)) ->  | Z31: =IF($B31="","",IFERROR(INDEX(Ingredients_DB!$U$2:$U$501, MATCH($B31, Ingredients_DB!$B$2:$B$501,0)),0)) ->  | AA31: =IF($B31="","",IFERROR(INDEX(Ingredients_DB!$V$2:$V$501, MATCH($B31, Ingredients_DB!$B$2:$B$501,0)),0)) ->  | AB31: =IF($B31="","",IFERROR(INDEX(Ingredients_DB!$W$2:$W$501, MATCH($B31, Ingredients_DB!$B$2:$B$501,0)),0)) ->  | AC31: =IF($B31="","",IFERROR(INDEX(Ingredients_DB!$X$2:$X$501, MATCH($B31, Ingredients_DB!$B$2:$B$501,0)),0)) ->  | AD31: =IF($B31="","",IFERROR(INDEX(Ingredients_DB!$Y$2:$Y$501, MATCH($B31, Ingredients_DB!$B$2:$B$501,0)),0)) ->  | AE31: =IF($B31="","",IFERROR(INDEX(Ingredients_DB!$Z$2:$Z$501, MATCH($B31, Ingredients_DB!$B$2:$B$501,0)),0)) -> 
A32: 12 | C32: 0.00 | D32: g | G32: =IF($B32="","",IFERROR(INDEX(Ingredients_DB!$K$2:$K$501, MATCH($B32, Ingredients_DB!$B$2:$B$501,0)),0)) ->  | O32: =IF($B32="","",IFERROR(INDEX(Ingredients_DB!$H$2:$H$501, MATCH($B32, Ingredients_DB!$B$2:$B$501,0)),"")) ->  | P32: =IF($B32="","",IFERROR(INDEX(Ingredients_DB!$I$2:$I$501, MATCH($B32, Ingredients_DB!$B$2:$B$501,0)),"")) ->  | Q32: =IF($B32="","",IFERROR(VLOOKUP($O32&"|"&$D32,UOM_Conversions!$A$2:$E$50,4,FALSE),"CHECK UNIT")) ->  | R32: =IF($B32="","",IFERROR(INDEX(Ingredients_DB!$M$2:$M$501, MATCH($B32, Ingredients_DB!$B$2:$B$501,0)),0)) ->  | S32: =IF($B32="","",IFERROR(INDEX(Ingredients_DB!$N$2:$N$501, MATCH($B32, Ingredients_DB!$B$2:$B$501,0)),0)) ->  | T32: =IF($B32="","",IFERROR(INDEX(Ingredients_DB!$O$2:$O$501, MATCH($B32, Ingredients_DB!$B$2:$B$501,0)),0)) ->  | U32: =IF($B32="","",IFERROR(INDEX(Ingredients_DB!$P$2:$P$501, MATCH($B32, Ingredients_DB!$B$2:$B$501,0)),0)) ->  | V32: =IF($B32="","",IFERROR(INDEX(Ingredients_DB!$Q$2:$Q$501, MATCH($B32, Ingredients_DB!$B$2:$B$501,0)),0)) ->  | W32: =IF($B32="","",IFERROR(INDEX(Ingredients_DB!$R$2:$R$501, MATCH($B32, Ingredients_DB!$B$2:$B$501,0)),0)) ->  | X32: =IF($B32="","",IFERROR(INDEX(Ingredients_DB!$S$2:$S$501, MATCH($B32, Ingredients_DB!$B$2:$B$501,0)),0)) ->  | Y32: =IF($B32="","",IFERROR(INDEX(Ingredients_DB!$T$2:$T$501, MATCH($B32, Ingredients_DB!$B$2:$B$501,0)),0)) ->  | Z32: =IF($B32="","",IFERROR(INDEX(Ingredients_DB!$U$2:$U$501, MATCH($B32, Ingredients_DB!$B$2:$B$501,0)),0)) ->  | AA32: =IF($B32="","",IFERROR(INDEX(Ingredients_DB!$V$2:$V$501, MATCH($B32, Ingredients_DB!$B$2:$B$501,0)),0)) ->  | AB32: =IF($B32="","",IFERROR(INDEX(Ingredients_DB!$W$2:$W$501, MATCH($B32, Ingredients_DB!$B$2:$B$501,0)),0)) ->  | AC32: =IF($B32="","",IFERROR(INDEX(Ingredients_DB!$X$2:$X$501, MATCH($B32, Ingredients_DB!$B$2:$B$501,0)),0)) ->  | AD32: =IF($B32="","",IFERROR(INDEX(Ingredients_DB!$Y$2:$Y$501, MATCH($B32, Ingredients_DB!$B$2:$B$501,0)),0)) ->  | AE32: =IF($B32="","",IFERROR(INDEX(Ingredients_DB!$Z$2:$Z$501, MATCH($B32, Ingredients_DB!$B$2:$B$501,0)),0)) -> 
A33: 13 | C33: 0.00 | D33: g | G33: =IF($B33="","",IFERROR(INDEX(Ingredients_DB!$K$2:$K$501, MATCH($B33, Ingredients_DB!$B$2:$B$501,0)),0)) ->  | O33: =IF($B33="","",IFERROR(INDEX(Ingredients_DB!$H$2:$H$501, MATCH($B33, Ingredients_DB!$B$2:$B$501,0)),"")) ->  | P33: =IF($B33="","",IFERROR(INDEX(Ingredients_DB!$I$2:$I$501, MATCH($B33, Ingredients_DB!$B$2:$B$501,0)),"")) ->  | Q33: =IF($B33="","",IFERROR(VLOOKUP($O33&"|"&$D33,UOM_Conversions!$A$2:$E$50,4,FALSE),"CHECK UNIT")) ->  | R33: =IF($B33="","",IFERROR(INDEX(Ingredients_DB!$M$2:$M$501, MATCH($B33, Ingredients_DB!$B$2:$B$501,0)),0)) ->  | S33: =IF($B33="","",IFERROR(INDEX(Ingredients_DB!$N$2:$N$501, MATCH($B33, Ingredients_DB!$B$2:$B$501,0)),0)) ->  | T33: =IF($B33="","",IFERROR(INDEX(Ingredients_DB!$O$2:$O$501, MATCH($B33, Ingredients_DB!$B$2:$B$501,0)),0)) ->  | U33: =IF($B33="","",IFERROR(INDEX(Ingredients_DB!$P$2:$P$501, MATCH($B33, Ingredients_DB!$B$2:$B$501,0)),0)) ->  | V33: =IF($B33="","",IFERROR(INDEX(Ingredients_DB!$Q$2:$Q$501, MATCH($B33, Ingredients_DB!$B$2:$B$501,0)),0)) ->  | W33: =IF($B33="","",IFERROR(INDEX(Ingredients_DB!$R$2:$R$501, MATCH($B33, Ingredients_DB!$B$2:$B$501,0)),0)) ->  | X33: =IF($B33="","",IFERROR(INDEX(Ingredients_DB!$S$2:$S$501, MATCH($B33, Ingredients_DB!$B$2:$B$501,0)),0)) ->  | Y33: =IF($B33="","",IFERROR(INDEX(Ingredients_DB!$T$2:$T$501, MATCH($B33, Ingredients_DB!$B$2:$B$501,0)),0)) ->  | Z33: =IF($B33="","",IFERROR(INDEX(Ingredients_DB!$U$2:$U$501, MATCH($B33, Ingredients_DB!$B$2:$B$501,0)),0)) ->  | AA33: =IF($B33="","",IFERROR(INDEX(Ingredients_DB!$V$2:$V$501, MATCH($B33, Ingredients_DB!$B$2:$B$501,0)),0)) ->  | AB33: =IF($B33="","",IFERROR(INDEX(Ingredients_DB!$W$2:$W$501, MATCH($B33, Ingredients_DB!$B$2:$B$501,0)),0)) ->  | AC33: =IF($B33="","",IFERROR(INDEX(Ingredients_DB!$X$2:$X$501, MATCH($B33, Ingredients_DB!$B$2:$B$501,0)),0)) ->  | AD33: =IF($B33="","",IFERROR(INDEX(Ingredients_DB!$Y$2:$Y$501, MATCH($B33, Ingredients_DB!$B$2:$B$501,0)),0)) ->  | AE33: =IF($B33="","",IFERROR(INDEX(Ingredients_DB!$Z$2:$Z$501, MATCH($B33, Ingredients_DB!$B$2:$B$501,0)),0)) -> 
A34: 14 | C34: 0.00 | D34: g | G34: =IF($B34="","",IFERROR(INDEX(Ingredients_DB!$K$2:$K$501, MATCH($B34, Ingredients_DB!$B$2:$B$501,0)),0)) ->  | O34: =IF($B34="","",IFERROR(INDEX(Ingredients_DB!$H$2:$H$501, MATCH($B34, Ingredients_DB!$B$2:$B$501,0)),"")) ->  | P34: =IF($B34="","",IFERROR(INDEX(Ingredients_DB!$I$2:$I$501, MATCH($B34, Ingredients_DB!$B$2:$B$501,0)),"")) ->  | Q34: =IF($B34="","",IFERROR(VLOOKUP($O34&"|"&$D34,UOM_Conversions!$A$2:$E$50,4,FALSE),"CHECK UNIT")) ->  | R34: =IF($B34="","",IFERROR(INDEX(Ingredients_DB!$M$2:$M$501, MATCH($B34, Ingredients_DB!$B$2:$B$501,0)),0)) ->  | S34: =IF($B34="","",IFERROR(INDEX(Ingredients_DB!$N$2:$N$501, MATCH($B34, Ingredients_DB!$B$2:$B$501,0)),0)) ->  | T34: =IF($B34="","",IFERROR(INDEX(Ingredients_DB!$O$2:$O$501, MATCH($B34, Ingredients_DB!$B$2:$B$501,0)),0)) ->  | U34: =IF($B34="","",IFERROR(INDEX(Ingredients_DB!$P$2:$P$501, MATCH($B34, Ingredients_DB!$B$2:$B$501,0)),0)) ->  | V34: =IF($B34="","",IFERROR(INDEX(Ingredients_DB!$Q$2:$Q$501, MATCH($B34, Ingredients_DB!$B$2:$B$501,0)),0)) ->  | W34: =IF($B34="","",IFERROR(INDEX(Ingredients_DB!$R$2:$R$501, MATCH($B34, Ingredients_DB!$B$2:$B$501,0)),0)) ->  | X34: =IF($B34="","",IFERROR(INDEX(Ingredients_DB!$S$2:$S$501, MATCH($B34, Ingredients_DB!$B$2:$B$501,0)),0)) ->  | Y34: =IF($B34="","",IFERROR(INDEX(Ingredients_DB!$T$2:$T$501, MATCH($B34, Ingredients_DB!$B$2:$B$501,0)),0)) ->  | Z34: =IF($B34="","",IFERROR(INDEX(Ingredients_DB!$U$2:$U$501, MATCH($B34, Ingredients_DB!$B$2:$B$501,0)),0)) ->  | AA34: =IF($B34="","",IFERROR(INDEX(Ingredients_DB!$V$2:$V$501, MATCH($B34, Ingredients_DB!$B$2:$B$501,0)),0)) ->  | AB34: =IF($B34="","",IFERROR(INDEX(Ingredients_DB!$W$2:$W$501, MATCH($B34, Ingredients_DB!$B$2:$B$501,0)),0)) ->  | AC34: =IF($B34="","",IFERROR(INDEX(Ingredients_DB!$X$2:$X$501, MATCH($B34, Ingredients_DB!$B$2:$B$501,0)),0)) ->  | AD34: =IF($B34="","",IFERROR(INDEX(Ingredients_DB!$Y$2:$Y$501, MATCH($B34, Ingredients_DB!$B$2:$B$501,0)),0)) ->  | AE34: =IF($B34="","",IFERROR(INDEX(Ingredients_DB!$Z$2:$Z$501, MATCH($B34, Ingredients_DB!$B$2:$B$501,0)),0)) -> 
A35: 15 | C35: 0.00 | D35: g | G35: =IF($B35="","",IFERROR(INDEX(Ingredients_DB!$K$2:$K$501, MATCH($B35, Ingredients_DB!$B$2:$B$501,0)),0)) ->  | O35: =IF($B35="","",IFERROR(INDEX(Ingredients_DB!$H$2:$H$501, MATCH($B35, Ingredients_DB!$B$2:$B$501,0)),"")) ->  | P35: =IF($B35="","",IFERROR(INDEX(Ingredients_DB!$I$2:$I$501, MATCH($B35, Ingredients_DB!$B$2:$B$501,0)),"")) ->  | Q35: =IF($B35="","",IFERROR(VLOOKUP($O35&"|"&$D35,UOM_Conversions!$A$2:$E$50,4,FALSE),"CHECK UNIT")) ->  | R35: =IF($B35="","",IFERROR(INDEX(Ingredients_DB!$M$2:$M$501, MATCH($B35, Ingredients_DB!$B$2:$B$501,0)),0)) ->  | S35: =IF($B35="","",IFERROR(INDEX(Ingredients_DB!$N$2:$N$501, MATCH($B35, Ingredients_DB!$B$2:$B$501,0)),0)) ->  | T35: =IF($B35="","",IFERROR(INDEX(Ingredients_DB!$O$2:$O$501, MATCH($B35, Ingredients_DB!$B$2:$B$501,0)),0)) ->  | U35: =IF($B35="","",IFERROR(INDEX(Ingredients_DB!$P$2:$P$501, MATCH($B35, Ingredients_DB!$B$2:$B$501,0)),0)) ->  | V35: =IF($B35="","",IFERROR(INDEX(Ingredients_DB!$Q$2:$Q$501, MATCH($B35, Ingredients_DB!$B$2:$B$501,0)),0)) ->  | W35: =IF($B35="","",IFERROR(INDEX(Ingredients_DB!$R$2:$R$501, MATCH($B35, Ingredients_DB!$B$2:$B$501,0)),0)) ->  | X35: =IF($B35="","",IFERROR(INDEX(Ingredients_DB!$S$2:$S$501, MATCH($B35, Ingredients_DB!$B$2:$B$501,0)),0)) ->  | Y35: =IF($B35="","",IFERROR(INDEX(Ingredients_DB!$T$2:$T$501, MATCH($B35, Ingredients_DB!$B$2:$B$501,0)),0)) ->  | Z35: =IF($B35="","",IFERROR(INDEX(Ingredients_DB!$U$2:$U$501, MATCH($B35, Ingredients_DB!$B$2:$B$501,0)),0)) ->  | AA35: =IF($B35="","",IFERROR(INDEX(Ingredients_DB!$V$2:$V$501, MATCH($B35, Ingredients_DB!$B$2:$B$501,0)),0)) ->  | AB35: =IF($B35="","",IFERROR(INDEX(Ingredients_DB!$W$2:$W$501, MATCH($B35, Ingredients_DB!$B$2:$B$501,0)),0)) ->  | AC35: =IF($B35="","",IFERROR(INDEX(Ingredients_DB!$X$2:$X$501, MATCH($B35, Ingredients_DB!$B$2:$B$501,0)),0)) ->  | AD35: =IF($B35="","",IFERROR(INDEX(Ingredients_DB!$Y$2:$Y$501, MATCH($B35, Ingredients_DB!$B$2:$B$501,0)),0)) ->  | AE35: =IF($B35="","",IFERROR(INDEX(Ingredients_DB!$Z$2:$Z$501, MATCH($B35, Ingredients_DB!$B$2:$B$501,0)),0)) -> 
A36: 16 | C36: 0.00 | D36: g | G36: =IF($B36="","",IFERROR(INDEX(Ingredients_DB!$K$2:$K$501, MATCH($B36, Ingredients_DB!$B$2:$B$501,0)),0)) ->  | O36: =IF($B36="","",IFERROR(INDEX(Ingredients_DB!$H$2:$H$501, MATCH($B36, Ingredients_DB!$B$2:$B$501,0)),"")) ->  | P36: =IF($B36="","",IFERROR(INDEX(Ingredients_DB!$I$2:$I$501, MATCH($B36, Ingredients_DB!$B$2:$B$501,0)),"")) ->  | Q36: =IF($B36="","",IFERROR(VLOOKUP($O36&"|"&$D36,UOM_Conversions!$A$2:$E$50,4,FALSE),"CHECK UNIT")) ->  | R36: =IF($B36="","",IFERROR(INDEX(Ingredients_DB!$M$2:$M$501, MATCH($B36, Ingredients_DB!$B$2:$B$501,0)),0)) ->  | S36: =IF($B36="","",IFERROR(INDEX(Ingredients_DB!$N$2:$N$501, MATCH($B36, Ingredients_DB!$B$2:$B$501,0)),0)) ->  | T36: =IF($B36="","",IFERROR(INDEX(Ingredients_DB!$O$2:$O$501, MATCH($B36, Ingredients_DB!$B$2:$B$501,0)),0)) ->  | U36: =IF($B36="","",IFERROR(INDEX(Ingredients_DB!$P$2:$P$501, MATCH($B36, Ingredients_DB!$B$2:$B$501,0)),0)) ->  | V36: =IF($B36="","",IFERROR(INDEX(Ingredients_DB!$Q$2:$Q$501, MATCH($B36, Ingredients_DB!$B$2:$B$501,0)),0)) ->  | W36: =IF($B36="","",IFERROR(INDEX(Ingredients_DB!$R$2:$R$501, MATCH($B36, Ingredients_DB!$B$2:$B$501,0)),0)) ->  | X36: =IF($B36="","",IFERROR(INDEX(Ingredients_DB!$S$2:$S$501, MATCH($B36, Ingredients_DB!$B$2:$B$501,0)),0)) ->  | Y36: =IF($B36="","",IFERROR(INDEX(Ingredients_DB!$T$2:$T$501, MATCH($B36, Ingredients_DB!$B$2:$B$501,0)),0)) ->  | Z36: =IF($B36="","",IFERROR(INDEX(Ingredients_DB!$U$2:$U$501, MATCH($B36, Ingredients_DB!$B$2:$B$501,0)),0)) ->  | AA36: =IF($B36="","",IFERROR(INDEX(Ingredients_DB!$V$2:$V$501, MATCH($B36, Ingredients_DB!$B$2:$B$501,0)),0)) ->  | AB36: =IF($B36="","",IFERROR(INDEX(Ingredients_DB!$W$2:$W$501, MATCH($B36, Ingredients_DB!$B$2:$B$501,0)),0)) ->  | AC36: =IF($B36="","",IFERROR(INDEX(Ingredients_DB!$X$2:$X$501, MATCH($B36, Ingredients_DB!$B$2:$B$501,0)),0)) ->  | AD36: =IF($B36="","",IFERROR(INDEX(Ingredients_DB!$Y$2:$Y$501, MATCH($B36, Ingredients_DB!$B$2:$B$501,0)),0)) ->  | AE36: =IF($B36="","",IFERROR(INDEX(Ingredients_DB!$Z$2:$Z$501, MATCH($B36, Ingredients_DB!$B$2:$B$501,0)),0)) -> 
A37: 17 | C37: 0.00 | D37: g | G37: =IF($B37="","",IFERROR(INDEX(Ingredients_DB!$K$2:$K$501, MATCH($B37, Ingredients_DB!$B$2:$B$501,0)),0)) ->  | O37: =IF($B37="","",IFERROR(INDEX(Ingredients_DB!$H$2:$H$501, MATCH($B37, Ingredients_DB!$B$2:$B$501,0)),"")) ->  | P37: =IF($B37="","",IFERROR(INDEX(Ingredients_DB!$I$2:$I$501, MATCH($B37, Ingredients_DB!$B$2:$B$501,0)),"")) ->  | Q37: =IF($B37="","",IFERROR(VLOOKUP($O37&"|"&$D37,UOM_Conversions!$A$2:$E$50,4,FALSE),"CHECK UNIT")) ->  | R37: =IF($B37="","",IFERROR(INDEX(Ingredients_DB!$M$2:$M$501, MATCH($B37, Ingredients_DB!$B$2:$B$501,0)),0)) ->  | S37: =IF($B37="","",IFERROR(INDEX(Ingredients_DB!$N$2:$N$501, MATCH($B37, Ingredients_DB!$B$2:$B$501,0)),0)) ->  | T37: =IF($B37="","",IFERROR(INDEX(Ingredients_DB!$O$2:$O$501, MATCH($B37, Ingredients_DB!$B$2:$B$501,0)),0)) ->  | U37: =IF($B37="","",IFERROR(INDEX(Ingredients_DB!$P$2:$P$501, MATCH($B37, Ingredients_DB!$B$2:$B$501,0)),0)) ->  | V37: =IF($B37="","",IFERROR(INDEX(Ingredients_DB!$Q$2:$Q$501, MATCH($B37, Ingredients_DB!$B$2:$B$501,0)),0)) ->  | W37: =IF($B37="","",IFERROR(INDEX(Ingredients_DB!$R$2:$R$501, MATCH($B37, Ingredients_DB!$B$2:$B$501,0)),0)) ->  | X37: =IF($B37="","",IFERROR(INDEX(Ingredients_DB!$S$2:$S$501, MATCH($B37, Ingredients_DB!$B$2:$B$501,0)),0)) ->  | Y37: =IF($B37="","",IFERROR(INDEX(Ingredients_DB!$T$2:$T$501, MATCH($B37, Ingredients_DB!$B$2:$B$501,0)),0)) ->  | Z37: =IF($B37="","",IFERROR(INDEX(Ingredients_DB!$U$2:$U$501, MATCH($B37, Ingredients_DB!$B$2:$B$501,0)),0)) ->  | AA37: =IF($B37="","",IFERROR(INDEX(Ingredients_DB!$V$2:$V$501, MATCH($B37, Ingredients_DB!$B$2:$B$501,0)),0)) ->  | AB37: =IF($B37="","",IFERROR(INDEX(Ingredients_DB!$W$2:$W$501, MATCH($B37, Ingredients_DB!$B$2:$B$501,0)),0)) ->  | AC37: =IF($B37="","",IFERROR(INDEX(Ingredients_DB!$X$2:$X$501, MATCH($B37, Ingredients_DB!$B$2:$B$501,0)),0)) ->  | AD37: =IF($B37="","",IFERROR(INDEX(Ingredients_DB!$Y$2:$Y$501, MATCH($B37, Ingredients_DB!$B$2:$B$501,0)),0)) ->  | AE37: =IF($B37="","",IFERROR(INDEX(Ingredients_DB!$Z$2:$Z$501, MATCH($B37, Ingredients_DB!$B$2:$B$501,0)),0)) -> 
A38: 18 | C38: 0.00 | D38: g | G38: =IF($B38="","",IFERROR(INDEX(Ingredients_DB!$K$2:$K$501, MATCH($B38, Ingredients_DB!$B$2:$B$501,0)),0)) ->  | O38: =IF($B38="","",IFERROR(INDEX(Ingredients_DB!$H$2:$H$501, MATCH($B38, Ingredients_DB!$B$2:$B$501,0)),"")) ->  | P38: =IF($B38="","",IFERROR(INDEX(Ingredients_DB!$I$2:$I$501, MATCH($B38, Ingredients_DB!$B$2:$B$501,0)),"")) ->  | Q38: =IF($B38="","",IFERROR(VLOOKUP($O38&"|"&$D38,UOM_Conversions!$A$2:$E$50,4,FALSE),"CHECK UNIT")) ->  | R38: =IF($B38="","",IFERROR(INDEX(Ingredients_DB!$M$2:$M$501, MATCH($B38, Ingredients_DB!$B$2:$B$501,0)),0)) ->  | S38: =IF($B38="","",IFERROR(INDEX(Ingredients_DB!$N$2:$N$501, MATCH($B38, Ingredients_DB!$B$2:$B$501,0)),0)) ->  | T38: =IF($B38="","",IFERROR(INDEX(Ingredients_DB!$O$2:$O$501, MATCH($B38, Ingredients_DB!$B$2:$B$501,0)),0)) ->  | U38: =IF($B38="","",IFERROR(INDEX(Ingredients_DB!$P$2:$P$501, MATCH($B38, Ingredients_DB!$B$2:$B$501,0)),0)) ->  | V38: =IF($B38="","",IFERROR(INDEX(Ingredients_DB!$Q$2:$Q$501, MATCH($B38, Ingredients_DB!$B$2:$B$501,0)),0)) ->  | W38: =IF($B38="","",IFERROR(INDEX(Ingredients_DB!$R$2:$R$501, MATCH($B38, Ingredients_DB!$B$2:$B$501,0)),0)) ->  | X38: =IF($B38="","",IFERROR(INDEX(Ingredients_DB!$S$2:$S$501, MATCH($B38, Ingredients_DB!$B$2:$B$501,0)),0)) ->  | Y38: =IF($B38="","",IFERROR(INDEX(Ingredients_DB!$T$2:$T$501, MATCH($B38, Ingredients_DB!$B$2:$B$501,0)),0)) ->  | Z38: =IF($B38="","",IFERROR(INDEX(Ingredients_DB!$U$2:$U$501, MATCH($B38, Ingredients_DB!$B$2:$B$501,0)),0)) ->  | AA38: =IF($B38="","",IFERROR(INDEX(Ingredients_DB!$V$2:$V$501, MATCH($B38, Ingredients_DB!$B$2:$B$501,0)),0)) ->  | AB38: =IF($B38="","",IFERROR(INDEX(Ingredients_DB!$W$2:$W$501, MATCH($B38, Ingredients_DB!$B$2:$B$501,0)),0)) ->  | AC38: =IF($B38="","",IFERROR(INDEX(Ingredients_DB!$X$2:$X$501, MATCH($B38, Ingredients_DB!$B$2:$B$501,0)),0)) ->  | AD38: =IF($B38="","",IFERROR(INDEX(Ingredients_DB!$Y$2:$Y$501, MATCH($B38, Ingredients_DB!$B$2:$B$501,0)),0)) ->  | AE38: =IF($B38="","",IFERROR(INDEX(Ingredients_DB!$Z$2:$Z$501, MATCH($B38, Ingredients_DB!$B$2:$B$501,0)),0)) -> 
A39: 19 | C39: 0.00 | D39: g | G39: =IF($B39="","",IFERROR(INDEX(Ingredients_DB!$K$2:$K$501, MATCH($B39, Ingredients_DB!$B$2:$B$501,0)),0)) ->  | O39: =IF($B39="","",IFERROR(INDEX(Ingredients_DB!$H$2:$H$501, MATCH($B39, Ingredients_DB!$B$2:$B$501,0)),"")) ->  | P39: =IF($B39="","",IFERROR(INDEX(Ingredients_DB!$I$2:$I$501, MATCH($B39, Ingredients_DB!$B$2:$B$501,0)),"")) ->  | Q39: =IF($B39="","",IFERROR(VLOOKUP($O39&"|"&$D39,UOM_Conversions!$A$2:$E$50,4,FALSE),"CHECK UNIT")) ->  | R39: =IF($B39="","",IFERROR(INDEX(Ingredients_DB!$M$2:$M$501, MATCH($B39, Ingredients_DB!$B$2:$B$501,0)),0)) ->  | S39: =IF($B39="","",IFERROR(INDEX(Ingredients_DB!$N$2:$N$501, MATCH($B39, Ingredients_DB!$B$2:$B$501,0)),0)) ->  | T39: =IF($B39="","",IFERROR(INDEX(Ingredients_DB!$O$2:$O$501, MATCH($B39, Ingredients_DB!$B$2:$B$501,0)),0)) ->  | U39: =IF($B39="","",IFERROR(INDEX(Ingredients_DB!$P$2:$P$501, MATCH($B39, Ingredients_DB!$B$2:$B$501,0)),0)) ->  | V39: =IF($B39="","",IFERROR(INDEX(Ingredients_DB!$Q$2:$Q$501, MATCH($B39, Ingredients_DB!$B$2:$B$501,0)),0)) ->  | W39: =IF($B39="","",IFERROR(INDEX(Ingredients_DB!$R$2:$R$501, MATCH($B39, Ingredients_DB!$B$2:$B$501,0)),0)) ->  | X39: =IF($B39="","",IFERROR(INDEX(Ingredients_DB!$S$2:$S$501, MATCH($B39, Ingredients_DB!$B$2:$B$501,0)),0)) ->  | Y39: =IF($B39="","",IFERROR(INDEX(Ingredients_DB!$T$2:$T$501, MATCH($B39, Ingredients_DB!$B$2:$B$501,0)),0)) ->  | Z39: =IF($B39="","",IFERROR(INDEX(Ingredients_DB!$U$2:$U$501, MATCH($B39, Ingredients_DB!$B$2:$B$501,0)),0)) ->  | AA39: =IF($B39="","",IFERROR(INDEX(Ingredients_DB!$V$2:$V$501, MATCH($B39, Ingredients_DB!$B$2:$B$501,0)),0)) ->  | AB39: =IF($B39="","",IFERROR(INDEX(Ingredients_DB!$W$2:$W$501, MATCH($B39, Ingredients_DB!$B$2:$B$501,0)),0)) ->  | AC39: =IF($B39="","",IFERROR(INDEX(Ingredients_DB!$X$2:$X$501, MATCH($B39, Ingredients_DB!$B$2:$B$501,0)),0)) ->  | AD39: =IF($B39="","",IFERROR(INDEX(Ingredients_DB!$Y$2:$Y$501, MATCH($B39, Ingredients_DB!$B$2:$B$501,0)),0)) ->  | AE39: =IF($B39="","",IFERROR(INDEX(Ingredients_DB!$Z$2:$Z$501, MATCH($B39, Ingredients_DB!$B$2:$B$501,0)),0)) -> 
A40: 20 | C40: 0.00 | D40: g | G40: =IF($B40="","",IFERROR(INDEX(Ingredients_DB!$K$2:$K$501, MATCH($B40, Ingredients_DB!$B$2:$B$501,0)),0)) ->  | O40: =IF($B40="","",IFERROR(INDEX(Ingredients_DB!$H$2:$H$501, MATCH($B40, Ingredients_DB!$B$2:$B$501,0)),"")) ->  | P40: =IF($B40="","",IFERROR(INDEX(Ingredients_DB!$I$2:$I$501, MATCH($B40, Ingredients_DB!$B$2:$B$501,0)),"")) ->  | Q40: =IF($B40="","",IFERROR(VLOOKUP($O40&"|"&$D40,UOM_Conversions!$A$2:$E$50,4,FALSE),"CHECK UNIT")) ->  | R40: =IF($B40="","",IFERROR(INDEX(Ingredients_DB!$M$2:$M$501, MATCH($B40, Ingredients_DB!$B$2:$B$501,0)),0)) ->  | S40: =IF($B40="","",IFERROR(INDEX(Ingredients_DB!$N$2:$N$501, MATCH($B40, Ingredients_DB!$B$2:$B$501,0)),0)) ->  | T40: =IF($B40="","",IFERROR(INDEX(Ingredients_DB!$O$2:$O$501, MATCH($B40, Ingredients_DB!$B$2:$B$501,0)),0)) ->  | U40: =IF($B40="","",IFERROR(INDEX(Ingredients_DB!$P$2:$P$501, MATCH($B40, Ingredients_DB!$B$2:$B$501,0)),0)) ->  | V40: =IF($B40="","",IFERROR(INDEX(Ingredients_DB!$Q$2:$Q$501, MATCH($B40, Ingredients_DB!$B$2:$B$501,0)),0)) ->  | W40: =IF($B40="","",IFERROR(INDEX(Ingredients_DB!$R$2:$R$501, MATCH($B40, Ingredients_DB!$B$2:$B$501,0)),0)) ->  | X40: =IF($B40="","",IFERROR(INDEX(Ingredients_DB!$S$2:$S$501, MATCH($B40, Ingredients_DB!$B$2:$B$501,0)),0)) ->  | Y40: =IF($B40="","",IFERROR(INDEX(Ingredients_DB!$T$2:$T$501, MATCH($B40, Ingredients_DB!$B$2:$B$501,0)),0)) ->  | Z40: =IF($B40="","",IFERROR(INDEX(Ingredients_DB!$U$2:$U$501, MATCH($B40, Ingredients_DB!$B$2:$B$501,0)),0)) ->  | AA40: =IF($B40="","",IFERROR(INDEX(Ingredients_DB!$V$2:$V$501, MATCH($B40, Ingredients_DB!$B$2:$B$501,0)),0)) ->  | AB40: =IF($B40="","",IFERROR(INDEX(Ingredients_DB!$W$2:$W$501, MATCH($B40, Ingredients_DB!$B$2:$B$501,0)),0)) ->  | AC40: =IF($B40="","",IFERROR(INDEX(Ingredients_DB!$X$2:$X$501, MATCH($B40, Ingredients_DB!$B$2:$B$501,0)),0)) ->  | AD40: =IF($B40="","",IFERROR(INDEX(Ingredients_DB!$Y$2:$Y$501, MATCH($B40, Ingredients_DB!$B$2:$B$501,0)),0)) ->  | AE40: =IF($B40="","",IFERROR(INDEX(Ingredients_DB!$Z$2:$Z$501, MATCH($B40, Ingredients_DB!$B$2:$B$501,0)),0)) -> 
A41: 21 | C41: 0.00 | D41: g | G41: =IF($B41="","",IFERROR(INDEX(Ingredients_DB!$K$2:$K$501, MATCH($B41, Ingredients_DB!$B$2:$B$501,0)),0)) ->  | O41: =IF($B41="","",IFERROR(INDEX(Ingredients_DB!$H$2:$H$501, MATCH($B41, Ingredients_DB!$B$2:$B$501,0)),"")) ->  | P41: =IF($B41="","",IFERROR(INDEX(Ingredients_DB!$I$2:$I$501, MATCH($B41, Ingredients_DB!$B$2:$B$501,0)),"")) ->  | Q41: =IF($B41="","",IFERROR(VLOOKUP($O41&"|"&$D41,UOM_Conversions!$A$2:$E$50,4,FALSE),"CHECK UNIT")) ->  | R41: =IF($B41="","",IFERROR(INDEX(Ingredients_DB!$M$2:$M$501, MATCH($B41, Ingredients_DB!$B$2:$B$501,0)),0)) ->  | S41: =IF($B41="","",IFERROR(INDEX(Ingredients_DB!$N$2:$N$501, MATCH($B41, Ingredients_DB!$B$2:$B$501,0)),0)) ->  | T41: =IF($B41="","",IFERROR(INDEX(Ingredients_DB!$O$2:$O$501, MATCH($B41, Ingredients_DB!$B$2:$B$501,0)),0)) ->  | U41: =IF($B41="","",IFERROR(INDEX(Ingredients_DB!$P$2:$P$501, MATCH($B41, Ingredients_DB!$B$2:$B$501,0)),0)) ->  | V41: =IF($B41="","",IFERROR(INDEX(Ingredients_DB!$Q$2:$Q$501, MATCH($B41, Ingredients_DB!$B$2:$B$501,0)),0)) ->  | W41: =IF($B41="","",IFERROR(INDEX(Ingredients_DB!$R$2:$R$501, MATCH($B41, Ingredients_DB!$B$2:$B$501,0)),0)) ->  | X41: =IF($B41="","",IFERROR(INDEX(Ingredients_DB!$S$2:$S$501, MATCH($B41, Ingredients_DB!$B$2:$B$501,0)),0)) ->  | Y41: =IF($B41="","",IFERROR(INDEX(Ingredients_DB!$T$2:$T$501, MATCH($B41, Ingredients_DB!$B$2:$B$501,0)),0)) ->  | Z41: =IF($B41="","",IFERROR(INDEX(Ingredients_DB!$U$2:$U$501, MATCH($B41, Ingredients_DB!$B$2:$B$501,0)),0)) ->  | AA41: =IF($B41="","",IFERROR(INDEX(Ingredients_DB!$V$2:$V$501, MATCH($B41, Ingredients_DB!$B$2:$B$501,0)),0)) ->  | AB41: =IF($B41="","",IFERROR(INDEX(Ingredients_DB!$W$2:$W$501, MATCH($B41, Ingredients_DB!$B$2:$B$501,0)),0)) ->  | AC41: =IF($B41="","",IFERROR(INDEX(Ingredients_DB!$X$2:$X$501, MATCH($B41, Ingredients_DB!$B$2:$B$501,0)),0)) ->  | AD41: =IF($B41="","",IFERROR(INDEX(Ingredients_DB!$Y$2:$Y$501, MATCH($B41, Ingredients_DB!$B$2:$B$501,0)),0)) ->  | AE41: =IF($B41="","",IFERROR(INDEX(Ingredients_DB!$Z$2:$Z$501, MATCH($B41, Ingredients_DB!$B$2:$B$501,0)),0)) -> 
A42: 22 | C42: 0.00 | D42: g | G42: =IF($B42="","",IFERROR(INDEX(Ingredients_DB!$K$2:$K$501, MATCH($B42, Ingredients_DB!$B$2:$B$501,0)),0)) ->  | O42: =IF($B42="","",IFERROR(INDEX(Ingredients_DB!$H$2:$H$501, MATCH($B42, Ingredients_DB!$B$2:$B$501,0)),"")) ->  | P42: =IF($B42="","",IFERROR(INDEX(Ingredients_DB!$I$2:$I$501, MATCH($B42, Ingredients_DB!$B$2:$B$501,0)),"")) ->  | Q42: =IF($B42="","",IFERROR(VLOOKUP($O42&"|"&$D42,UOM_Conversions!$A$2:$E$50,4,FALSE),"CHECK UNIT")) ->  | R42: =IF($B42="","",IFERROR(INDEX(Ingredients_DB!$M$2:$M$501, MATCH($B42, Ingredients_DB!$B$2:$B$501,0)),0)) ->  | S42: =IF($B42="","",IFERROR(INDEX(Ingredients_DB!$N$2:$N$501, MATCH($B42, Ingredients_DB!$B$2:$B$501,0)),0)) ->  | T42: =IF($B42="","",IFERROR(INDEX(Ingredients_DB!$O$2:$O$501, MATCH($B42, Ingredients_DB!$B$2:$B$501,0)),0)) ->  | U42: =IF($B42="","",IFERROR(INDEX(Ingredients_DB!$P$2:$P$501, MATCH($B42, Ingredients_DB!$B$2:$B$501,0)),0)) ->  | V42: =IF($B42="","",IFERROR(INDEX(Ingredients_DB!$Q$2:$Q$501, MATCH($B42, Ingredients_DB!$B$2:$B$501,0)),0)) ->  | W42: =IF($B42="","",IFERROR(INDEX(Ingredients_DB!$R$2:$R$501, MATCH($B42, Ingredients_DB!$B$2:$B$501,0)),0)) ->  | X42: =IF($B42="","",IFERROR(INDEX(Ingredients_DB!$S$2:$S$501, MATCH($B42, Ingredients_DB!$B$2:$B$501,0)),0)) ->  | Y42: =IF($B42="","",IFERROR(INDEX(Ingredients_DB!$T$2:$T$501, MATCH($B42, Ingredients_DB!$B$2:$B$501,0)),0)) ->  | Z42: =IF($B42="","",IFERROR(INDEX(Ingredients_DB!$U$2:$U$501, MATCH($B42, Ingredients_DB!$B$2:$B$501,0)),0)) ->  | AA42: =IF($B42="","",IFERROR(INDEX(Ingredients_DB!$V$2:$V$501, MATCH($B42, Ingredients_DB!$B$2:$B$501,0)),0)) ->  | AB42: =IF($B42="","",IFERROR(INDEX(Ingredients_DB!$W$2:$W$501, MATCH($B42, Ingredients_DB!$B$2:$B$501,0)),0)) ->  | AC42: =IF($B42="","",IFERROR(INDEX(Ingredients_DB!$X$2:$X$501, MATCH($B42, Ingredients_DB!$B$2:$B$501,0)),0)) ->  | AD42: =IF($B42="","",IFERROR(INDEX(Ingredients_DB!$Y$2:$Y$501, MATCH($B42, Ingredients_DB!$B$2:$B$501,0)),0)) ->  | AE42: =IF($B42="","",IFERROR(INDEX(Ingredients_DB!$Z$2:$Z$501, MATCH($B42, Ingredients_DB!$B$2:$B$501,0)),0)) -> 
A43: 23 | C43: 0.00 | D43: g | G43: =IF($B43="","",IFERROR(INDEX(Ingredients_DB!$K$2:$K$501, MATCH($B43, Ingredients_DB!$B$2:$B$501,0)),0)) ->  | O43: =IF($B43="","",IFERROR(INDEX(Ingredients_DB!$H$2:$H$501, MATCH($B43, Ingredients_DB!$B$2:$B$501,0)),"")) ->  | P43: =IF($B43="","",IFERROR(INDEX(Ingredients_DB!$I$2:$I$501, MATCH($B43, Ingredients_DB!$B$2:$B$501,0)),"")) ->  | Q43: =IF($B43="","",IFERROR(VLOOKUP($O43&"|"&$D43,UOM_Conversions!$A$2:$E$50,4,FALSE),"CHECK UNIT")) ->  | R43: =IF($B43="","",IFERROR(INDEX(Ingredients_DB!$M$2:$M$501, MATCH($B43, Ingredients_DB!$B$2:$B$501,0)),0)) ->  | S43: =IF($B43="","",IFERROR(INDEX(Ingredients_DB!$N$2:$N$501, MATCH($B43, Ingredients_DB!$B$2:$B$501,0)),0)) ->  | T43: =IF($B43="","",IFERROR(INDEX(Ingredients_DB!$O$2:$O$501, MATCH($B43, Ingredients_DB!$B$2:$B$501,0)),0)) ->  | U43: =IF($B43="","",IFERROR(INDEX(Ingredients_DB!$P$2:$P$501, MATCH($B43, Ingredients_DB!$B$2:$B$501,0)),0)) ->  | V43: =IF($B43="","",IFERROR(INDEX(Ingredients_DB!$Q$2:$Q$501, MATCH($B43, Ingredients_DB!$B$2:$B$501,0)),0)) ->  | W43: =IF($B43="","",IFERROR(INDEX(Ingredients_DB!$R$2:$R$501, MATCH($B43, Ingredients_DB!$B$2:$B$501,0)),0)) ->  | X43: =IF($B43="","",IFERROR(INDEX(Ingredients_DB!$S$2:$S$501, MATCH($B43, Ingredients_DB!$B$2:$B$501,0)),0)) ->  | Y43: =IF($B43="","",IFERROR(INDEX(Ingredients_DB!$T$2:$T$501, MATCH($B43, Ingredients_DB!$B$2:$B$501,0)),0)) ->  | Z43: =IF($B43="","",IFERROR(INDEX(Ingredients_DB!$U$2:$U$501, MATCH($B43, Ingredients_DB!$B$2:$B$501,0)),0)) ->  | AA43: =IF($B43="","",IFERROR(INDEX(Ingredients_DB!$V$2:$V$501, MATCH($B43, Ingredients_DB!$B$2:$B$501,0)),0)) ->  | AB43: =IF($B43="","",IFERROR(INDEX(Ingredients_DB!$W$2:$W$501, MATCH($B43, Ingredients_DB!$B$2:$B$501,0)),0)) ->  | AC43: =IF($B43="","",IFERROR(INDEX(Ingredients_DB!$X$2:$X$501, MATCH($B43, Ingredients_DB!$B$2:$B$501,0)),0)) ->  | AD43: =IF($B43="","",IFERROR(INDEX(Ingredients_DB!$Y$2:$Y$501, MATCH($B43, Ingredients_DB!$B$2:$B$501,0)),0)) ->  | AE43: =IF($B43="","",IFERROR(INDEX(Ingredients_DB!$Z$2:$Z$501, MATCH($B43, Ingredients_DB!$B$2:$B$501,0)),0)) -> 
A44: 24 | C44: 0.00 | D44: g | G44: =IF($B44="","",IFERROR(INDEX(Ingredients_DB!$K$2:$K$501, MATCH($B44, Ingredients_DB!$B$2:$B$501,0)),0)) ->  | O44: =IF($B44="","",IFERROR(INDEX(Ingredients_DB!$H$2:$H$501, MATCH($B44, Ingredients_DB!$B$2:$B$501,0)),"")) ->  | P44: =IF($B44="","",IFERROR(INDEX(Ingredients_DB!$I$2:$I$501, MATCH($B44, Ingredients_DB!$B$2:$B$501,0)),"")) ->  | Q44: =IF($B44="","",IFERROR(VLOOKUP($O44&"|"&$D44,UOM_Conversions!$A$2:$E$50,4,FALSE),"CHECK UNIT")) ->  | R44: =IF($B44="","",IFERROR(INDEX(Ingredients_DB!$M$2:$M$501, MATCH($B44, Ingredients_DB!$B$2:$B$501,0)),0)) ->  | S44: =IF($B44="","",IFERROR(INDEX(Ingredients_DB!$N$2:$N$501, MATCH($B44, Ingredients_DB!$B$2:$B$501,0)),0)) ->  | T44: =IF($B44="","",IFERROR(INDEX(Ingredients_DB!$O$2:$O$501, MATCH($B44, Ingredients_DB!$B$2:$B$501,0)),0)) ->  | U44: =IF($B44="","",IFERROR(INDEX(Ingredients_DB!$P$2:$P$501, MATCH($B44, Ingredients_DB!$B$2:$B$501,0)),0)) ->  | V44: =IF($B44="","",IFERROR(INDEX(Ingredients_DB!$Q$2:$Q$501, MATCH($B44, Ingredients_DB!$B$2:$B$501,0)),0)) ->  | W44: =IF($B44="","",IFERROR(INDEX(Ingredients_DB!$R$2:$R$501, MATCH($B44, Ingredients_DB!$B$2:$B$501,0)),0)) ->  | X44: =IF($B44="","",IFERROR(INDEX(Ingredients_DB!$S$2:$S$501, MATCH($B44, Ingredients_DB!$B$2:$B$501,0)),0)) ->  | Y44: =IF($B44="","",IFERROR(INDEX(Ingredients_DB!$T$2:$T$501, MATCH($B44, Ingredients_DB!$B$2:$B$501,0)),0)) ->  | Z44: =IF($B44="","",IFERROR(INDEX(Ingredients_DB!$U$2:$U$501, MATCH($B44, Ingredients_DB!$B$2:$B$501,0)),0)) ->  | AA44: =IF($B44="","",IFERROR(INDEX(Ingredients_DB!$V$2:$V$501, MATCH($B44, Ingredients_DB!$B$2:$B$501,0)),0)) ->  | AB44: =IF($B44="","",IFERROR(INDEX(Ingredients_DB!$W$2:$W$501, MATCH($B44, Ingredients_DB!$B$2:$B$501,0)),0)) ->  | AC44: =IF($B44="","",IFERROR(INDEX(Ingredients_DB!$X$2:$X$501, MATCH($B44, Ingredients_DB!$B$2:$B$501,0)),0)) ->  | AD44: =IF($B44="","",IFERROR(INDEX(Ingredients_DB!$Y$2:$Y$501, MATCH($B44, Ingredients_DB!$B$2:$B$501,0)),0)) ->  | AE44: =IF($B44="","",IFERROR(INDEX(Ingredients_DB!$Z$2:$Z$501, MATCH($B44, Ingredients_DB!$B$2:$B$501,0)),0)) -> 
A45: 25 | C45: 0.00 | D45: g | G45: =IF($B45="","",IFERROR(INDEX(Ingredients_DB!$K$2:$K$501, MATCH($B45, Ingredients_DB!$B$2:$B$501,0)),0)) ->  | O45: =IF($B45="","",IFERROR(INDEX(Ingredients_DB!$H$2:$H$501, MATCH($B45, Ingredients_DB!$B$2:$B$501,0)),"")) ->  | P45: =IF($B45="","",IFERROR(INDEX(Ingredients_DB!$I$2:$I$501, MATCH($B45, Ingredients_DB!$B$2:$B$501,0)),"")) ->  | Q45: =IF($B45="","",IFERROR(VLOOKUP($O45&"|"&$D45,UOM_Conversions!$A$2:$E$50,4,FALSE),"CHECK UNIT")) ->  | R45: =IF($B45="","",IFERROR(INDEX(Ingredients_DB!$M$2:$M$501, MATCH($B45, Ingredients_DB!$B$2:$B$501,0)),0)) ->  | S45: =IF($B45="","",IFERROR(INDEX(Ingredients_DB!$N$2:$N$501, MATCH($B45, Ingredients_DB!$B$2:$B$501,0)),0)) ->  | T45: =IF($B45="","",IFERROR(INDEX(Ingredients_DB!$O$2:$O$501, MATCH($B45, Ingredients_DB!$B$2:$B$501,0)),0)) ->  | U45: =IF($B45="","",IFERROR(INDEX(Ingredients_DB!$P$2:$P$501, MATCH($B45, Ingredients_DB!$B$2:$B$501,0)),0)) ->  | V45: =IF($B45="","",IFERROR(INDEX(Ingredients_DB!$Q$2:$Q$501, MATCH($B45, Ingredients_DB!$B$2:$B$501,0)),0)) ->  | W45: =IF($B45="","",IFERROR(INDEX(Ingredients_DB!$R$2:$R$501, MATCH($B45, Ingredients_DB!$B$2:$B$501,0)),0)) ->  | X45: =IF($B45="","",IFERROR(INDEX(Ingredients_DB!$S$2:$S$501, MATCH($B45, Ingredients_DB!$B$2:$B$501,0)),0)) ->  | Y45: =IF($B45="","",IFERROR(INDEX(Ingredients_DB!$T$2:$T$501, MATCH($B45, Ingredients_DB!$B$2:$B$501,0)),0)) ->  | Z45: =IF($B45="","",IFERROR(INDEX(Ingredients_DB!$U$2:$U$501, MATCH($B45, Ingredients_DB!$B$2:$B$501,0)),0)) ->  | AA45: =IF($B45="","",IFERROR(INDEX(Ingredients_DB!$V$2:$V$501, MATCH($B45, Ingredients_DB!$B$2:$B$501,0)),0)) ->  | AB45: =IF($B45="","",IFERROR(INDEX(Ingredients_DB!$W$2:$W$501, MATCH($B45, Ingredients_DB!$B$2:$B$501,0)),0)) ->  | AC45: =IF($B45="","",IFERROR(INDEX(Ingredients_DB!$X$2:$X$501, MATCH($B45, Ingredients_DB!$B$2:$B$501,0)),0)) ->  | AD45: =IF($B45="","",IFERROR(INDEX(Ingredients_DB!$Y$2:$Y$501, MATCH($B45, Ingredients_DB!$B$2:$B$501,0)),0)) ->  | AE45: =IF($B45="","",IFERROR(INDEX(Ingredients_DB!$Z$2:$Z$501, MATCH($B45, Ingredients_DB!$B$2:$B$501,0)),0)) -> 
A46: 26 | C46: 0.00 | D46: g | G46: =IF($B46="","",IFERROR(INDEX(Ingredients_DB!$K$2:$K$501, MATCH($B46, Ingredients_DB!$B$2:$B$501,0)),0)) ->  | O46: =IF($B46="","",IFERROR(INDEX(Ingredients_DB!$H$2:$H$501, MATCH($B46, Ingredients_DB!$B$2:$B$501,0)),"")) ->  | P46: =IF($B46="","",IFERROR(INDEX(Ingredients_DB!$I$2:$I$501, MATCH($B46, Ingredients_DB!$B$2:$B$501,0)),"")) ->  | Q46: =IF($B46="","",IFERROR(VLOOKUP($O46&"|"&$D46,UOM_Conversions!$A$2:$E$50,4,FALSE),"CHECK UNIT")) ->  | R46: =IF($B46="","",IFERROR(INDEX(Ingredients_DB!$M$2:$M$501, MATCH($B46, Ingredients_DB!$B$2:$B$501,0)),0)) ->  | S46: =IF($B46="","",IFERROR(INDEX(Ingredients_DB!$N$2:$N$501, MATCH($B46, Ingredients_DB!$B$2:$B$501,0)),0)) ->  | T46: =IF($B46="","",IFERROR(INDEX(Ingredients_DB!$O$2:$O$501, MATCH($B46, Ingredients_DB!$B$2:$B$501,0)),0)) ->  | U46: =IF($B46="","",IFERROR(INDEX(Ingredients_DB!$P$2:$P$501, MATCH($B46, Ingredients_DB!$B$2:$B$501,0)),0)) ->  | V46: =IF($B46="","",IFERROR(INDEX(Ingredients_DB!$Q$2:$Q$501, MATCH($B46, Ingredients_DB!$B$2:$B$501,0)),0)) ->  | W46: =IF($B46="","",IFERROR(INDEX(Ingredients_DB!$R$2:$R$501, MATCH($B46, Ingredients_DB!$B$2:$B$501,0)),0)) ->  | X46: =IF($B46="","",IFERROR(INDEX(Ingredients_DB!$S$2:$S$501, MATCH($B46, Ingredients_DB!$B$2:$B$501,0)),0)) ->  | Y46: =IF($B46="","",IFERROR(INDEX(Ingredients_DB!$T$2:$T$501, MATCH($B46, Ingredients_DB!$B$2:$B$501,0)),0)) ->  | Z46: =IF($B46="","",IFERROR(INDEX(Ingredients_DB!$U$2:$U$501, MATCH($B46, Ingredients_DB!$B$2:$B$501,0)),0)) ->  | AA46: =IF($B46="","",IFERROR(INDEX(Ingredients_DB!$V$2:$V$501, MATCH($B46, Ingredients_DB!$B$2:$B$501,0)),0)) ->  | AB46: =IF($B46="","",IFERROR(INDEX(Ingredients_DB!$W$2:$W$501, MATCH($B46, Ingredients_DB!$B$2:$B$501,0)),0)) ->  | AC46: =IF($B46="","",IFERROR(INDEX(Ingredients_DB!$X$2:$X$501, MATCH($B46, Ingredients_DB!$B$2:$B$501,0)),0)) ->  | AD46: =IF($B46="","",IFERROR(INDEX(Ingredients_DB!$Y$2:$Y$501, MATCH($B46, Ingredients_DB!$B$2:$B$501,0)),0)) ->  | AE46: =IF($B46="","",IFERROR(INDEX(Ingredients_DB!$Z$2:$Z$501, MATCH($B46, Ingredients_DB!$B$2:$B$501,0)),0)) -> 
A47: 27 | C47: 0.00 | D47: g | G47: =IF($B47="","",IFERROR(INDEX(Ingredients_DB!$K$2:$K$501, MATCH($B47, Ingredients_DB!$B$2:$B$501,0)),0)) ->  | O47: =IF($B47="","",IFERROR(INDEX(Ingredients_DB!$H$2:$H$501, MATCH($B47, Ingredients_DB!$B$2:$B$501,0)),"")) ->  | P47: =IF($B47="","",IFERROR(INDEX(Ingredients_DB!$I$2:$I$501, MATCH($B47, Ingredients_DB!$B$2:$B$501,0)),"")) ->  | Q47: =IF($B47="","",IFERROR(VLOOKUP($O47&"|"&$D47,UOM_Conversions!$A$2:$E$50,4,FALSE),"CHECK UNIT")) ->  | R47: =IF($B47="","",IFERROR(INDEX(Ingredients_DB!$M$2:$M$501, MATCH($B47, Ingredients_DB!$B$2:$B$501,0)),0)) ->  | S47: =IF($B47="","",IFERROR(INDEX(Ingredients_DB!$N$2:$N$501, MATCH($B47, Ingredients_DB!$B$2:$B$501,0)),0)) ->  | T47: =IF($B47="","",IFERROR(INDEX(Ingredients_DB!$O$2:$O$501, MATCH($B47, Ingredients_DB!$B$2:$B$501,0)),0)) ->  | U47: =IF($B47="","",IFERROR(INDEX(Ingredients_DB!$P$2:$P$501, MATCH($B47, Ingredients_DB!$B$2:$B$501,0)),0)) ->  | V47: =IF($B47="","",IFERROR(INDEX(Ingredients_DB!$Q$2:$Q$501, MATCH($B47, Ingredients_DB!$B$2:$B$501,0)),0)) ->  | W47: =IF($B47="","",IFERROR(INDEX(Ingredients_DB!$R$2:$R$501, MATCH($B47, Ingredients_DB!$B$2:$B$501,0)),0)) ->  | X47: =IF($B47="","",IFERROR(INDEX(Ingredients_DB!$S$2:$S$501, MATCH($B47, Ingredients_DB!$B$2:$B$501,0)),0)) ->  | Y47: =IF($B47="","",IFERROR(INDEX(Ingredients_DB!$T$2:$T$501, MATCH($B47, Ingredients_DB!$B$2:$B$501,0)),0)) ->  | Z47: =IF($B47="","",IFERROR(INDEX(Ingredients_DB!$U$2:$U$501, MATCH($B47, Ingredients_DB!$B$2:$B$501,0)),0)) ->  | AA47: =IF($B47="","",IFERROR(INDEX(Ingredients_DB!$V$2:$V$501, MATCH($B47, Ingredients_DB!$B$2:$B$501,0)),0)) ->  | AB47: =IF($B47="","",IFERROR(INDEX(Ingredients_DB!$W$2:$W$501, MATCH($B47, Ingredients_DB!$B$2:$B$501,0)),0)) ->  | AC47: =IF($B47="","",IFERROR(INDEX(Ingredients_DB!$X$2:$X$501, MATCH($B47, Ingredients_DB!$B$2:$B$501,0)),0)) ->  | AD47: =IF($B47="","",IFERROR(INDEX(Ingredients_DB!$Y$2:$Y$501, MATCH($B47, Ingredients_DB!$B$2:$B$501,0)),0)) ->  | AE47: =IF($B47="","",IFERROR(INDEX(Ingredients_DB!$Z$2:$Z$501, MATCH($B47, Ingredients_DB!$B$2:$B$501,0)),0)) -> 
A48: 28 | C48: 0.00 | D48: g | G48: =IF($B48="","",IFERROR(INDEX(Ingredients_DB!$K$2:$K$501, MATCH($B48, Ingredients_DB!$B$2:$B$501,0)),0)) ->  | O48: =IF($B48="","",IFERROR(INDEX(Ingredients_DB!$H$2:$H$501, MATCH($B48, Ingredients_DB!$B$2:$B$501,0)),"")) ->  | P48: =IF($B48="","",IFERROR(INDEX(Ingredients_DB!$I$2:$I$501, MATCH($B48, Ingredients_DB!$B$2:$B$501,0)),"")) ->  | Q48: =IF($B48="","",IFERROR(VLOOKUP($O48&"|"&$D48,UOM_Conversions!$A$2:$E$50,4,FALSE),"CHECK UNIT")) ->  | R48: =IF($B48="","",IFERROR(INDEX(Ingredients_DB!$M$2:$M$501, MATCH($B48, Ingredients_DB!$B$2:$B$501,0)),0)) ->  | S48: =IF($B48="","",IFERROR(INDEX(Ingredients_DB!$N$2:$N$501, MATCH($B48, Ingredients_DB!$B$2:$B$501,0)),0)) ->  | T48: =IF($B48="","",IFERROR(INDEX(Ingredients_DB!$O$2:$O$501, MATCH($B48, Ingredients_DB!$B$2:$B$501,0)),0)) ->  | U48: =IF($B48="","",IFERROR(INDEX(Ingredients_DB!$P$2:$P$501, MATCH($B48, Ingredients_DB!$B$2:$B$501,0)),0)) ->  | V48: =IF($B48="","",IFERROR(INDEX(Ingredients_DB!$Q$2:$Q$501, MATCH($B48, Ingredients_DB!$B$2:$B$501,0)),0)) ->  | W48: =IF($B48="","",IFERROR(INDEX(Ingredients_DB!$R$2:$R$501, MATCH($B48, Ingredients_DB!$B$2:$B$501,0)),0)) ->  | X48: =IF($B48="","",IFERROR(INDEX(Ingredients_DB!$S$2:$S$501, MATCH($B48, Ingredients_DB!$B$2:$B$501,0)),0)) ->  | Y48: =IF($B48="","",IFERROR(INDEX(Ingredients_DB!$T$2:$T$501, MATCH($B48, Ingredients_DB!$B$2:$B$501,0)),0)) ->  | Z48: =IF($B48="","",IFERROR(INDEX(Ingredients_DB!$U$2:$U$501, MATCH($B48, Ingredients_DB!$B$2:$B$501,0)),0)) ->  | AA48: =IF($B48="","",IFERROR(INDEX(Ingredients_DB!$V$2:$V$501, MATCH($B48, Ingredients_DB!$B$2:$B$501,0)),0)) ->  | AB48: =IF($B48="","",IFERROR(INDEX(Ingredients_DB!$W$2:$W$501, MATCH($B48, Ingredients_DB!$B$2:$B$501,0)),0)) ->  | AC48: =IF($B48="","",IFERROR(INDEX(Ingredients_DB!$X$2:$X$501, MATCH($B48, Ingredients_DB!$B$2:$B$501,0)),0)) ->  | AD48: =IF($B48="","",IFERROR(INDEX(Ingredients_DB!$Y$2:$Y$501, MATCH($B48, Ingredients_DB!$B$2:$B$501,0)),0)) ->  | AE48: =IF($B48="","",IFERROR(INDEX(Ingredients_DB!$Z$2:$Z$501, MATCH($B48, Ingredients_DB!$B$2:$B$501,0)),0)) -> 
A49: 29 | C49: 0.00 | D49: g | G49: =IF($B49="","",IFERROR(INDEX(Ingredients_DB!$K$2:$K$501, MATCH($B49, Ingredients_DB!$B$2:$B$501,0)),0)) ->  | O49: =IF($B49="","",IFERROR(INDEX(Ingredients_DB!$H$2:$H$501, MATCH($B49, Ingredients_DB!$B$2:$B$501,0)),"")) ->  | P49: =IF($B49="","",IFERROR(INDEX(Ingredients_DB!$I$2:$I$501, MATCH($B49, Ingredients_DB!$B$2:$B$501,0)),"")) ->  | Q49: =IF($B49="","",IFERROR(VLOOKUP($O49&"|"&$D49,UOM_Conversions!$A$2:$E$50,4,FALSE),"CHECK UNIT")) ->  | R49: =IF($B49="","",IFERROR(INDEX(Ingredients_DB!$M$2:$M$501, MATCH($B49, Ingredients_DB!$B$2:$B$501,0)),0)) ->  | S49: =IF($B49="","",IFERROR(INDEX(Ingredients_DB!$N$2:$N$501, MATCH($B49, Ingredients_DB!$B$2:$B$501,0)),0)) ->  | T49: =IF($B49="","",IFERROR(INDEX(Ingredients_DB!$O$2:$O$501, MATCH($B49, Ingredients_DB!$B$2:$B$501,0)),0)) ->  | U49: =IF($B49="","",IFERROR(INDEX(Ingredients_DB!$P$2:$P$501, MATCH($B49, Ingredients_DB!$B$2:$B$501,0)),0)) ->  | V49: =IF($B49="","",IFERROR(INDEX(Ingredients_DB!$Q$2:$Q$501, MATCH($B49, Ingredients_DB!$B$2:$B$501,0)),0)) ->  | W49: =IF($B49="","",IFERROR(INDEX(Ingredients_DB!$R$2:$R$501, MATCH($B49, Ingredients_DB!$B$2:$B$501,0)),0)) ->  | X49: =IF($B49="","",IFERROR(INDEX(Ingredients_DB!$S$2:$S$501, MATCH($B49, Ingredients_DB!$B$2:$B$501,0)),0)) ->  | Y49: =IF($B49="","",IFERROR(INDEX(Ingredients_DB!$T$2:$T$501, MATCH($B49, Ingredients_DB!$B$2:$B$501,0)),0)) ->  | Z49: =IF($B49="","",IFERROR(INDEX(Ingredients_DB!$U$2:$U$501, MATCH($B49, Ingredients_DB!$B$2:$B$501,0)),0)) ->  | AA49: =IF($B49="","",IFERROR(INDEX(Ingredients_DB!$V$2:$V$501, MATCH($B49, Ingredients_DB!$B$2:$B$501,0)),0)) ->  | AB49: =IF($B49="","",IFERROR(INDEX(Ingredients_DB!$W$2:$W$501, MATCH($B49, Ingredients_DB!$B$2:$B$501,0)),0)) ->  | AC49: =IF($B49="","",IFERROR(INDEX(Ingredients_DB!$X$2:$X$501, MATCH($B49, Ingredients_DB!$B$2:$B$501,0)),0)) ->  | AD49: =IF($B49="","",IFERROR(INDEX(Ingredients_DB!$Y$2:$Y$501, MATCH($B49, Ingredients_DB!$B$2:$B$501,0)),0)) ->  | AE49: =IF($B49="","",IFERROR(INDEX(Ingredients_DB!$Z$2:$Z$501, MATCH($B49, Ingredients_DB!$B$2:$B$501,0)),0)) -> 
A50: 30 | C50: 0.00 | D50: g | G50: =IF($B50="","",IFERROR(INDEX(Ingredients_DB!$K$2:$K$501, MATCH($B50, Ingredients_DB!$B$2:$B$501,0)),0)) ->  | O50: =IF($B50="","",IFERROR(INDEX(Ingredients_DB!$H$2:$H$501, MATCH($B50, Ingredients_DB!$B$2:$B$501,0)),"")) ->  | P50: =IF($B50="","",IFERROR(INDEX(Ingredients_DB!$I$2:$I$501, MATCH($B50, Ingredients_DB!$B$2:$B$501,0)),"")) ->  | Q50: =IF($B50="","",IFERROR(VLOOKUP($O50&"|"&$D50,UOM_Conversions!$A$2:$E$50,4,FALSE),"CHECK UNIT")) ->  | R50: =IF($B50="","",IFERROR(INDEX(Ingredients_DB!$M$2:$M$501, MATCH($B50, Ingredients_DB!$B$2:$B$501,0)),0)) ->  | S50: =IF($B50="","",IFERROR(INDEX(Ingredients_DB!$N$2:$N$501, MATCH($B50, Ingredients_DB!$B$2:$B$501,0)),0)) ->  | T50: =IF($B50="","",IFERROR(INDEX(Ingredients_DB!$O$2:$O$501, MATCH($B50, Ingredients_DB!$B$2:$B$501,0)),0)) ->  | U50: =IF($B50="","",IFERROR(INDEX(Ingredients_DB!$P$2:$P$501, MATCH($B50, Ingredients_DB!$B$2:$B$501,0)),0)) ->  | V50: =IF($B50="","",IFERROR(INDEX(Ingredients_DB!$Q$2:$Q$501, MATCH($B50, Ingredients_DB!$B$2:$B$501,0)),0)) ->  | W50: =IF($B50="","",IFERROR(INDEX(Ingredients_DB!$R$2:$R$501, MATCH($B50, Ingredients_DB!$B$2:$B$501,0)),0)) ->  | X50: =IF($B50="","",IFERROR(INDEX(Ingredients_DB!$S$2:$S$501, MATCH($B50, Ingredients_DB!$B$2:$B$501,0)),0)) ->  | Y50: =IF($B50="","",IFERROR(INDEX(Ingredients_DB!$T$2:$T$501, MATCH($B50, Ingredients_DB!$B$2:$B$501,0)),0)) ->  | Z50: =IF($B50="","",IFERROR(INDEX(Ingredients_DB!$U$2:$U$501, MATCH($B50, Ingredients_DB!$B$2:$B$501,0)),0)) ->  | AA50: =IF($B50="","",IFERROR(INDEX(Ingredients_DB!$V$2:$V$501, MATCH($B50, Ingredients_DB!$B$2:$B$501,0)),0)) ->  | AB50: =IF($B50="","",IFERROR(INDEX(Ingredients_DB!$W$2:$W$501, MATCH($B50, Ingredients_DB!$B$2:$B$501,0)),0)) ->  | AC50: =IF($B50="","",IFERROR(INDEX(Ingredients_DB!$X$2:$X$501, MATCH($B50, Ingredients_DB!$B$2:$B$501,0)),0)) ->  | AD50: =IF($B50="","",IFERROR(INDEX(Ingredients_DB!$Y$2:$Y$501, MATCH($B50, Ingredients_DB!$B$2:$B$501,0)),0)) ->  | AE50: =IF($B50="","",IFERROR(INDEX(Ingredients_DB!$Z$2:$Z$501, MATCH($B50, Ingredients_DB!$B$2:$B$501,0)),0)) -> 

Sheet Example 3
A1: RECIPE COST CARD | K1: ALLERGEN SUMMARY (from ingredient flags) | O1: For calculation (do not delete)
A2: Restaurant / Concept | C2: Demo Restaurant | E2: Last Updated | F2: 2026-02-06 | K2: Milk | L2: =IF(MAX(R21:R50)>0,"YES","") -> YES | M2: (e.g., gluten-free option? vegan? substitution guidance, allergen handling, etc.)
A3: Menu Item Name | C3: Example 3 | G3: Currency 1 | H3: Currency 2 | I3: Notes | K3: Egg | L3: =IF(MAX(S21:S50)>0,"YES","") -> YES
A4: Category | C4: Starter | E4: Total Batch Food Cost | G4: =IFERROR(SUM(H21:H50),0) -> $3.82 | I4: SUM(G21:G50) | K4: Fish | L4: =IF(MAX(T21:T50)>0,"YES","") -> 
A5: Station | C5: Grill | E5: Other Costs (packaging etc.) | I5: IFERROR(SUM($G$14:$G$17),0) | K5: Shellfish | L5: =IF(MAX(U21:U50)>0,"YES","") -> 
A6: Batch Yield (portions) | C6: 1 | E6: Total Batch Cost | G6: =G4+G5 -> $3.82 | K6: Molluscs | L6: =IF(MAX(V21:V50)>0,"YES","") -> 
A7: Portion Size | C7: 1 burger + fries | E7: Cost / Portion | G7: =IFERROR(G6/$C$6,0) -> $3.82 | K7: Peanuts | L7: =IF(MAX(W21:W50)>0,"YES","") -> 
A8: Selling Price / Portion | C8: $16.00 | E8: Food Cost % | G8: =IFERROR(G7/$C$8,0) -> 23.9% | K8: Tree Nuts | L8: =IF(MAX(X21:X50)>0,"YES","") -> 
A9: Target Food Cost % | C9: 30.0% | E9: Gross Profit / Portion | G9: =IFERROR($C$8-G7,0) -> $12.18 | K9: Wheat/Gluten | L9: =IF(MAX(Y21:Y50)>0,"YES","") -> YES
A10: Prep Time (min) | C10: 10 | E10: Gross Margin % | G10: =IFERROR(1-G8,0) -> 76.1% | K10: Soy | L10: =IF(MAX(Z21:Z50)>0,"YES","") -> YES
A11: Cook Time (min) | C11: 8 | K11: Sesame | L11: =IF(MAX(AA21:AA50)>0,"YES","") -> YES
A12: Shelf Life / Storage | C12: Hold cold 2 days; cook to order | E12: OTHER COSTS (not part of cost of sale in hotels and resorts) | K12: Mustard | L12: =IF(MAX(AB21:AB50)>0,"YES","") -> 
E13: Description | G13: Cost | I13: Notes | K13: Celery | L13: =IF(MAX(AC21:AC50)>0,"YES","") -> 
E14: Packaging | G14: $0.25 | K14: Lupin | L14: =IF(MAX(AD21:AD50)>0,"YES","") -> 
E15: Napkin/condiment cup | G15: $0.10 | K15: Sulphites | L15: =IF(MAX(AE21:AE50)>0,"YES","") -> 
G16: $0.00
G17: $0.00
A19: INGREDIENTS (enter Qty + Unit; costs auto-calc) | F19: Actual Qty | G19: Unit Cost | K19: PREPARATION METHOD
A20: Line | B20: Ingredient | C20: Qty | D20: Unit | E20: Yield % | F20: in base units | G20: (per base) | H20: Line Cost | I20: Notes | K20: Step-by-step method - critical control points - holding temps - plating - cross-contamination notes -
A21: 1 | B21: Beef mince | C21: 180.00 | D21: g | E21: 90% | F21: =IF($B21="","",IF(ISNUMBER($Q21),$C21*$Q21/E21,"")) -> 200.00 | G21: =IF($B21="","",IFERROR(INDEX(Ingredients_DB!$K$2:$K$501, MATCH($B21, Ingredients_DB!$B$2:$B$501,0)),0)) -> $0.01 | H21: =IF($B21="","",IF(ISNUMBER($F21),$F21*$G21,"")) -> $1.80 | I21: Patty 180g | O21: =IF($B21="","",IFERROR(INDEX(Ingredients_DB!$H$2:$H$501, MATCH($B21, Ingredients_DB!$B$2:$B$501,0)),"")) -> Weight | P21: =IF($B21="","",IFERROR(INDEX(Ingredients_DB!$I$2:$I$501, MATCH($B21, Ingredients_DB!$B$2:$B$501,0)),"")) -> g | Q21: =IF($B21="","",IFERROR(VLOOKUP($O21&"|"&$D21,UOM_Conversions!$A$2:$E$50,4,FALSE),"CHECK UNIT")) -> 1 | R21: =IF($B21="","",IFERROR(INDEX(Ingredients_DB!$M$2:$M$501, MATCH($B21, Ingredients_DB!$B$2:$B$501,0)),0)) -> 0 | S21: =IF($B21="","",IFERROR(INDEX(Ingredients_DB!$N$2:$N$501, MATCH($B21, Ingredients_DB!$B$2:$B$501,0)),0)) -> 0 | T21: =IF($B21="","",IFERROR(INDEX(Ingredients_DB!$O$2:$O$501, MATCH($B21, Ingredients_DB!$B$2:$B$501,0)),0)) -> 0 | U21: =IF($B21="","",IFERROR(INDEX(Ingredients_DB!$P$2:$P$501, MATCH($B21, Ingredients_DB!$B$2:$B$501,0)),0)) -> 0 | V21: =IF($B21="","",IFERROR(INDEX(Ingredients_DB!$Q$2:$Q$501, MATCH($B21, Ingredients_DB!$B$2:$B$501,0)),0)) -> 0 | W21: =IF($B21="","",IFERROR(INDEX(Ingredients_DB!$R$2:$R$501, MATCH($B21, Ingredients_DB!$B$2:$B$501,0)),0)) -> 0 | X21: =IF($B21="","",IFERROR(INDEX(Ingredients_DB!$S$2:$S$501, MATCH($B21, Ingredients_DB!$B$2:$B$501,0)),0)) -> 0 | Y21: =IF($B21="","",IFERROR(INDEX(Ingredients_DB!$T$2:$T$501, MATCH($B21, Ingredients_DB!$B$2:$B$501,0)),0)) -> 0 | Z21: =IF($B21="","",IFERROR(INDEX(Ingredients_DB!$U$2:$U$501, MATCH($B21, Ingredients_DB!$B$2:$B$501,0)),0)) -> 0 | AA21: =IF($B21="","",IFERROR(INDEX(Ingredients_DB!$V$2:$V$501, MATCH($B21, Ingredients_DB!$B$2:$B$501,0)),0)) -> 0 | AB21: =IF($B21="","",IFERROR(INDEX(Ingredients_DB!$W$2:$W$501, MATCH($B21, Ingredients_DB!$B$2:$B$501,0)),0)) -> 0 | AC21: =IF($B21="","",IFERROR(INDEX(Ingredients_DB!$X$2:$X$501, MATCH($B21, Ingredients_DB!$B$2:$B$501,0)),0)) -> 0 | AD21: =IF($B21="","",IFERROR(INDEX(Ingredients_DB!$Y$2:$Y$501, MATCH($B21, Ingredients_DB!$B$2:$B$501,0)),0)) -> 0 | AE21: =IF($B21="","",IFERROR(INDEX(Ingredients_DB!$Z$2:$Z$501, MATCH($B21, Ingredients_DB!$B$2:$B$501,0)),0)) -> 0
A22: 2 | B22: Burger bun | C22: 1.00 | D22: each | E22: 100% | F22: 1.00 | G22: =IF($B22="","",IFERROR(INDEX(Ingredients_DB!$K$2:$K$501, MATCH($B22, Ingredients_DB!$B$2:$B$501,0)),0)) -> $0.75 | H22: $0.75 | I22: Toasted | O22: =IF($B22="","",IFERROR(INDEX(Ingredients_DB!$H$2:$H$501, MATCH($B22, Ingredients_DB!$B$2:$B$501,0)),"")) -> Each | P22: =IF($B22="","",IFERROR(INDEX(Ingredients_DB!$I$2:$I$501, MATCH($B22, Ingredients_DB!$B$2:$B$501,0)),"")) -> each | Q22: =IF($B22="","",IFERROR(VLOOKUP($O22&"|"&$D22,UOM_Conversions!$A$2:$E$50,4,FALSE),"CHECK UNIT")) -> 1 | R22: =IF($B22="","",IFERROR(INDEX(Ingredients_DB!$M$2:$M$501, MATCH($B22, Ingredients_DB!$B$2:$B$501,0)),0)) -> 0 | S22: =IF($B22="","",IFERROR(INDEX(Ingredients_DB!$N$2:$N$501, MATCH($B22, Ingredients_DB!$B$2:$B$501,0)),0)) -> 0 | T22: =IF($B22="","",IFERROR(INDEX(Ingredients_DB!$O$2:$O$501, MATCH($B22, Ingredients_DB!$B$2:$B$501,0)),0)) -> 0 | U22: =IF($B22="","",IFERROR(INDEX(Ingredients_DB!$P$2:$P$501, MATCH($B22, Ingredients_DB!$B$2:$B$501,0)),0)) -> 0 | V22: =IF($B22="","",IFERROR(INDEX(Ingredients_DB!$Q$2:$Q$501, MATCH($B22, Ingredients_DB!$B$2:$B$501,0)),0)) -> 0 | W22: =IF($B22="","",IFERROR(INDEX(Ingredients_DB!$R$2:$R$501, MATCH($B22, Ingredients_DB!$B$2:$B$501,0)),0)) -> 0 | X22: =IF($B22="","",IFERROR(INDEX(Ingredients_DB!$S$2:$S$501, MATCH($B22, Ingredients_DB!$B$2:$B$501,0)),0)) -> 0 | Y22: =IF($B22="","",IFERROR(INDEX(Ingredients_DB!$T$2:$T$501, MATCH($B22, Ingredients_DB!$B$2:$B$501,0)),0)) -> 1 | Z22: =IF($B22="","",IFERROR(INDEX(Ingredients_DB!$U$2:$U$501, MATCH($B22, Ingredients_DB!$B$2:$B$501,0)),0)) -> 0 | AA22: =IF($B22="","",IFERROR(INDEX(Ingredients_DB!$V$2:$V$501, MATCH($B22, Ingredients_DB!$B$2:$B$501,0)),0)) -> 0 | AB22: =IF($B22="","",IFERROR(INDEX(Ingredients_DB!$W$2:$W$501, MATCH($B22, Ingredients_DB!$B$2:$B$501,0)),0)) -> 0 | AC22: =IF($B22="","",IFERROR(INDEX(Ingredients_DB!$X$2:$X$501, MATCH($B22, Ingredients_DB!$B$2:$B$501,0)),0)) -> 0 | AD22: =IF($B22="","",IFERROR(INDEX(Ingredients_DB!$Y$2:$Y$501, MATCH($B22, Ingredients_DB!$B$2:$B$501,0)),0)) -> 0 | AE22: =IF($B22="","",IFERROR(INDEX(Ingredients_DB!$Z$2:$Z$501, MATCH($B22, Ingredients_DB!$B$2:$B$501,0)),0)) -> 0
A23: 3 | B23: Cheddar cheese | C23: 30.00 | D23: g | E23: 100% | F23: 30.00 | G23: =IF($B23="","",IFERROR(INDEX(Ingredients_DB!$K$2:$K$501, MATCH($B23, Ingredients_DB!$B$2:$B$501,0)),0)) -> $0.01 | H23: $0.33 | I23: Slice | O23: =IF($B23="","",IFERROR(INDEX(Ingredients_DB!$H$2:$H$501, MATCH($B23, Ingredients_DB!$B$2:$B$501,0)),"")) -> Weight | P23: =IF($B23="","",IFERROR(INDEX(Ingredients_DB!$I$2:$I$501, MATCH($B23, Ingredients_DB!$B$2:$B$501,0)),"")) -> g | Q23: =IF($B23="","",IFERROR(VLOOKUP($O23&"|"&$D23,UOM_Conversions!$A$2:$E$50,4,FALSE),"CHECK UNIT")) -> 1 | R23: =IF($B23="","",IFERROR(INDEX(Ingredients_DB!$M$2:$M$501, MATCH($B23, Ingredients_DB!$B$2:$B$501,0)),0)) -> 1 | S23: =IF($B23="","",IFERROR(INDEX(Ingredients_DB!$N$2:$N$501, MATCH($B23, Ingredients_DB!$B$2:$B$501,0)),0)) -> 0 | T23: =IF($B23="","",IFERROR(INDEX(Ingredients_DB!$O$2:$O$501, MATCH($B23, Ingredients_DB!$B$2:$B$501,0)),0)) -> 0 | U23: =IF($B23="","",IFERROR(INDEX(Ingredients_DB!$P$2:$P$501, MATCH($B23, Ingredients_DB!$B$2:$B$501,0)),0)) -> 0 | V23: =IF($B23="","",IFERROR(INDEX(Ingredients_DB!$Q$2:$Q$501, MATCH($B23, Ingredients_DB!$B$2:$B$501,0)),0)) -> 0 | W23: =IF($B23="","",IFERROR(INDEX(Ingredients_DB!$R$2:$R$501, MATCH($B23, Ingredients_DB!$B$2:$B$501,0)),0)) -> 0 | X23: =IF($B23="","",IFERROR(INDEX(Ingredients_DB!$S$2:$S$501, MATCH($B23, Ingredients_DB!$B$2:$B$501,0)),0)) -> 0 | Y23: =IF($B23="","",IFERROR(INDEX(Ingredients_DB!$T$2:$T$501, MATCH($B23, Ingredients_DB!$B$2:$B$501,0)),0)) -> 0 | Z23: =IF($B23="","",IFERROR(INDEX(Ingredients_DB!$U$2:$U$501, MATCH($B23, Ingredients_DB!$B$2:$B$501,0)),0)) -> 0 | AA23: =IF($B23="","",IFERROR(INDEX(Ingredients_DB!$V$2:$V$501, MATCH($B23, Ingredients_DB!$B$2:$B$501,0)),0)) -> 0 | AB23: =IF($B23="","",IFERROR(INDEX(Ingredients_DB!$W$2:$W$501, MATCH($B23, Ingredients_DB!$B$2:$B$501,0)),0)) -> 0 | AC23: =IF($B23="","",IFERROR(INDEX(Ingredients_DB!$X$2:$X$501, MATCH($B23, Ingredients_DB!$B$2:$B$501,0)),0)) -> 0 | AD23: =IF($B23="","",IFERROR(INDEX(Ingredients_DB!$Y$2:$Y$501, MATCH($B23, Ingredients_DB!$B$2:$B$501,0)),0)) -> 0 | AE23: =IF($B23="","",IFERROR(INDEX(Ingredients_DB!$Z$2:$Z$501, MATCH($B23, Ingredients_DB!$B$2:$B$501,0)),0)) -> 0
A24: 4 | B24: Lettuce | C24: 20.00 | D24: g | E24: 95% | F24: 21.05 | G24: =IF($B24="","",IFERROR(INDEX(Ingredients_DB!$K$2:$K$501, MATCH($B24, Ingredients_DB!$B$2:$B$501,0)),0)) -> $0.01 | H24: $0.17 | I24: Shredded | O24: =IF($B24="","",IFERROR(INDEX(Ingredients_DB!$H$2:$H$501, MATCH($B24, Ingredients_DB!$B$2:$B$501,0)),"")) -> Weight | P24: =IF($B24="","",IFERROR(INDEX(Ingredients_DB!$I$2:$I$501, MATCH($B24, Ingredients_DB!$B$2:$B$501,0)),"")) -> g | Q24: =IF($B24="","",IFERROR(VLOOKUP($O24&"|"&$D24,UOM_Conversions!$A$2:$E$50,4,FALSE),"CHECK UNIT")) -> 1 | R24: =IF($B24="","",IFERROR(INDEX(Ingredients_DB!$M$2:$M$501, MATCH($B24, Ingredients_DB!$B$2:$B$501,0)),0)) -> 0 | S24: =IF($B24="","",IFERROR(INDEX(Ingredients_DB!$N$2:$N$501, MATCH($B24, Ingredients_DB!$B$2:$B$501,0)),0)) -> 0 | T24: =IF($B24="","",IFERROR(INDEX(Ingredients_DB!$O$2:$O$501, MATCH($B24, Ingredients_DB!$B$2:$B$501,0)),0)) -> 0 | U24: =IF($B24="","",IFERROR(INDEX(Ingredients_DB!$P$2:$P$501, MATCH($B24, Ingredients_DB!$B$2:$B$501,0)),0)) -> 0 | V24: =IF($B24="","",IFERROR(INDEX(Ingredients_DB!$Q$2:$Q$501, MATCH($B24, Ingredients_DB!$B$2:$B$501,0)),0)) -> 0 | W24: =IF($B24="","",IFERROR(INDEX(Ingredients_DB!$R$2:$R$501, MATCH($B24, Ingredients_DB!$B$2:$B$501,0)),0)) -> 0 | X24: =IF($B24="","",IFERROR(INDEX(Ingredients_DB!$S$2:$S$501, MATCH($B24, Ingredients_DB!$B$2:$B$501,0)),0)) -> 0 | Y24: =IF($B24="","",IFERROR(INDEX(Ingredients_DB!$T$2:$T$501, MATCH($B24, Ingredients_DB!$B$2:$B$501,0)),0)) -> 0 | Z24: =IF($B24="","",IFERROR(INDEX(Ingredients_DB!$U$2:$U$501, MATCH($B24, Ingredients_DB!$B$2:$B$501,0)),0)) -> 0 | AA24: =IF($B24="","",IFERROR(INDEX(Ingredients_DB!$V$2:$V$501, MATCH($B24, Ingredients_DB!$B$2:$B$501,0)),0)) -> 0 | AB24: =IF($B24="","",IFERROR(INDEX(Ingredients_DB!$W$2:$W$501, MATCH($B24, Ingredients_DB!$B$2:$B$501,0)),0)) -> 0 | AC24: =IF($B24="","",IFERROR(INDEX(Ingredients_DB!$X$2:$X$501, MATCH($B24, Ingredients_DB!$B$2:$B$501,0)),0)) -> 0 | AD24: =IF($B24="","",IFERROR(INDEX(Ingredients_DB!$Y$2:$Y$501, MATCH($B24, Ingredients_DB!$B$2:$B$501,0)),0)) -> 0 | AE24: =IF($B24="","",IFERROR(INDEX(Ingredients_DB!$Z$2:$Z$501, MATCH($B24, Ingredients_DB!$B$2:$B$501,0)),0)) -> 0
A25: 5 | B25: Ketchup | C25: 20.00 | D25: g | E25: 100% | F25: 20.00 | G25: =IF($B25="","",IFERROR(INDEX(Ingredients_DB!$K$2:$K$501, MATCH($B25, Ingredients_DB!$B$2:$B$501,0)),0)) -> $0.00 | H25: $0.08 | O25: =IF($B25="","",IFERROR(INDEX(Ingredients_DB!$H$2:$H$501, MATCH($B25, Ingredients_DB!$B$2:$B$501,0)),"")) -> Weight | P25: =IF($B25="","",IFERROR(INDEX(Ingredients_DB!$I$2:$I$501, MATCH($B25, Ingredients_DB!$B$2:$B$501,0)),"")) -> g | Q25: =IF($B25="","",IFERROR(VLOOKUP($O25&"|"&$D25,UOM_Conversions!$A$2:$E$50,4,FALSE),"CHECK UNIT")) -> 1 | R25: =IF($B25="","",IFERROR(INDEX(Ingredients_DB!$M$2:$M$501, MATCH($B25, Ingredients_DB!$B$2:$B$501,0)),0)) -> 0 | S25: =IF($B25="","",IFERROR(INDEX(Ingredients_DB!$N$2:$N$501, MATCH($B25, Ingredients_DB!$B$2:$B$501,0)),0)) -> 0 | T25: =IF($B25="","",IFERROR(INDEX(Ingredients_DB!$O$2:$O$501, MATCH($B25, Ingredients_DB!$B$2:$B$501,0)),0)) -> 0 | U25: =IF($B25="","",IFERROR(INDEX(Ingredients_DB!$P$2:$P$501, MATCH($B25, Ingredients_DB!$B$2:$B$501,0)),0)) -> 0 | V25: =IF($B25="","",IFERROR(INDEX(Ingredients_DB!$Q$2:$Q$501, MATCH($B25, Ingredients_DB!$B$2:$B$501,0)),0)) -> 0 | W25: =IF($B25="","",IFERROR(INDEX(Ingredients_DB!$R$2:$R$501, MATCH($B25, Ingredients_DB!$B$2:$B$501,0)),0)) -> 0 | X25: =IF($B25="","",IFERROR(INDEX(Ingredients_DB!$S$2:$S$501, MATCH($B25, Ingredients_DB!$B$2:$B$501,0)),0)) -> 0 | Y25: =IF($B25="","",IFERROR(INDEX(Ingredients_DB!$T$2:$T$501, MATCH($B25, Ingredients_DB!$B$2:$B$501,0)),0)) -> 0 | Z25: =IF($B25="","",IFERROR(INDEX(Ingredients_DB!$U$2:$U$501, MATCH($B25, Ingredients_DB!$B$2:$B$501,0)),0)) -> 0 | AA25: =IF($B25="","",IFERROR(INDEX(Ingredients_DB!$V$2:$V$501, MATCH($B25, Ingredients_DB!$B$2:$B$501,0)),0)) -> 0 | AB25: =IF($B25="","",IFERROR(INDEX(Ingredients_DB!$W$2:$W$501, MATCH($B25, Ingredients_DB!$B$2:$B$501,0)),0)) -> 0 | AC25: =IF($B25="","",IFERROR(INDEX(Ingredients_DB!$X$2:$X$501, MATCH($B25, Ingredients_DB!$B$2:$B$501,0)),0)) -> 0 | AD25: =IF($B25="","",IFERROR(INDEX(Ingredients_DB!$Y$2:$Y$501, MATCH($B25, Ingredients_DB!$B$2:$B$501,0)),0)) -> 0 | AE25: =IF($B25="","",IFERROR(INDEX(Ingredients_DB!$Z$2:$Z$501, MATCH($B25, Ingredients_DB!$B$2:$B$501,0)),0)) -> 0
A26: 6 | B26: Mayonnaise | C26: 15.00 | D26: g | E26: 100% | F26: 15.00 | G26: =IF($B26="","",IFERROR(INDEX(Ingredients_DB!$K$2:$K$501, MATCH($B26, Ingredients_DB!$B$2:$B$501,0)),0)) -> $0.01 | H26: $0.11 | O26: =IF($B26="","",IFERROR(INDEX(Ingredients_DB!$H$2:$H$501, MATCH($B26, Ingredients_DB!$B$2:$B$501,0)),"")) -> Weight | P26: =IF($B26="","",IFERROR(INDEX(Ingredients_DB!$I$2:$I$501, MATCH($B26, Ingredients_DB!$B$2:$B$501,0)),"")) -> g | Q26: =IF($B26="","",IFERROR(VLOOKUP($O26&"|"&$D26,UOM_Conversions!$A$2:$E$50,4,FALSE),"CHECK UNIT")) -> 1 | R26: =IF($B26="","",IFERROR(INDEX(Ingredients_DB!$M$2:$M$501, MATCH($B26, Ingredients_DB!$B$2:$B$501,0)),0)) -> 0 | S26: =IF($B26="","",IFERROR(INDEX(Ingredients_DB!$N$2:$N$501, MATCH($B26, Ingredients_DB!$B$2:$B$501,0)),0)) -> 1 | T26: =IF($B26="","",IFERROR(INDEX(Ingredients_DB!$O$2:$O$501, MATCH($B26, Ingredients_DB!$B$2:$B$501,0)),0)) -> 0 | U26: =IF($B26="","",IFERROR(INDEX(Ingredients_DB!$P$2:$P$501, MATCH($B26, Ingredients_DB!$B$2:$B$501,0)),0)) -> 0 | V26: =IF($B26="","",IFERROR(INDEX(Ingredients_DB!$Q$2:$Q$501, MATCH($B26, Ingredients_DB!$B$2:$B$501,0)),0)) -> 0 | W26: =IF($B26="","",IFERROR(INDEX(Ingredients_DB!$R$2:$R$501, MATCH($B26, Ingredients_DB!$B$2:$B$501,0)),0)) -> 0 | X26: =IF($B26="","",IFERROR(INDEX(Ingredients_DB!$S$2:$S$501, MATCH($B26, Ingredients_DB!$B$2:$B$501,0)),0)) -> 0 | Y26: =IF($B26="","",IFERROR(INDEX(Ingredients_DB!$T$2:$T$501, MATCH($B26, Ingredients_DB!$B$2:$B$501,0)),0)) -> 0 | Z26: =IF($B26="","",IFERROR(INDEX(Ingredients_DB!$U$2:$U$501, MATCH($B26, Ingredients_DB!$B$2:$B$501,0)),0)) -> 1 | AA26: =IF($B26="","",IFERROR(INDEX(Ingredients_DB!$V$2:$V$501, MATCH($B26, Ingredients_DB!$B$2:$B$501,0)),0)) -> 0 | AB26: =IF($B26="","",IFERROR(INDEX(Ingredients_DB!$W$2:$W$501, MATCH($B26, Ingredients_DB!$B$2:$B$501,0)),0)) -> 0 | AC26: =IF($B26="","",IFERROR(INDEX(Ingredients_DB!$X$2:$X$501, MATCH($B26, Ingredients_DB!$B$2:$B$501,0)),0)) -> 0 | AD26: =IF($B26="","",IFERROR(INDEX(Ingredients_DB!$Y$2:$Y$501, MATCH($B26, Ingredients_DB!$B$2:$B$501,0)),0)) -> 0 | AE26: =IF($B26="","",IFERROR(INDEX(Ingredients_DB!$Z$2:$Z$501, MATCH($B26, Ingredients_DB!$B$2:$B$501,0)),0)) -> 0
A27: 7 | B27: French fries (frozen) | C27: 200.00 | D27: g | E27: 100% | F27: 200.00 | G27: =IF($B27="","",IFERROR(INDEX(Ingredients_DB!$K$2:$K$501, MATCH($B27, Ingredients_DB!$B$2:$B$501,0)),0)) -> $0.00 | H27: $0.56 | I27: Portion | O27: =IF($B27="","",IFERROR(INDEX(Ingredients_DB!$H$2:$H$501, MATCH($B27, Ingredients_DB!$B$2:$B$501,0)),"")) -> Weight | P27: =IF($B27="","",IFERROR(INDEX(Ingredients_DB!$I$2:$I$501, MATCH($B27, Ingredients_DB!$B$2:$B$501,0)),"")) -> g | Q27: =IF($B27="","",IFERROR(VLOOKUP($O27&"|"&$D27,UOM_Conversions!$A$2:$E$50,4,FALSE),"CHECK UNIT")) -> 1 | R27: =IF($B27="","",IFERROR(INDEX(Ingredients_DB!$M$2:$M$501, MATCH($B27, Ingredients_DB!$B$2:$B$501,0)),0)) -> 0 | S27: =IF($B27="","",IFERROR(INDEX(Ingredients_DB!$N$2:$N$501, MATCH($B27, Ingredients_DB!$B$2:$B$501,0)),0)) -> 0 | T27: =IF($B27="","",IFERROR(INDEX(Ingredients_DB!$O$2:$O$501, MATCH($B27, Ingredients_DB!$B$2:$B$501,0)),0)) -> 0 | U27: =IF($B27="","",IFERROR(INDEX(Ingredients_DB!$P$2:$P$501, MATCH($B27, Ingredients_DB!$B$2:$B$501,0)),0)) -> 0 | V27: =IF($B27="","",IFERROR(INDEX(Ingredients_DB!$Q$2:$Q$501, MATCH($B27, Ingredients_DB!$B$2:$B$501,0)),0)) -> 0 | W27: =IF($B27="","",IFERROR(INDEX(Ingredients_DB!$R$2:$R$501, MATCH($B27, Ingredients_DB!$B$2:$B$501,0)),0)) -> 0 | X27: =IF($B27="","",IFERROR(INDEX(Ingredients_DB!$S$2:$S$501, MATCH($B27, Ingredients_DB!$B$2:$B$501,0)),0)) -> 0 | Y27: =IF($B27="","",IFERROR(INDEX(Ingredients_DB!$T$2:$T$501, MATCH($B27, Ingredients_DB!$B$2:$B$501,0)),0)) -> 0 | Z27: =IF($B27="","",IFERROR(INDEX(Ingredients_DB!$U$2:$U$501, MATCH($B27, Ingredients_DB!$B$2:$B$501,0)),0)) -> 0 | AA27: =IF($B27="","",IFERROR(INDEX(Ingredients_DB!$V$2:$V$501, MATCH($B27, Ingredients_DB!$B$2:$B$501,0)),0)) -> 0 | AB27: =IF($B27="","",IFERROR(INDEX(Ingredients_DB!$W$2:$W$501, MATCH($B27, Ingredients_DB!$B$2:$B$501,0)),0)) -> 0 | AC27: =IF($B27="","",IFERROR(INDEX(Ingredients_DB!$X$2:$X$501, MATCH($B27, Ingredients_DB!$B$2:$B$501,0)),0)) -> 0 | AD27: =IF($B27="","",IFERROR(INDEX(Ingredients_DB!$Y$2:$Y$501, MATCH($B27, Ingredients_DB!$B$2:$B$501,0)),0)) -> 0 | AE27: =IF($B27="","",IFERROR(INDEX(Ingredients_DB!$Z$2:$Z$501, MATCH($B27, Ingredients_DB!$B$2:$B$501,0)),0)) -> 0
A28: 8 | B28: Sesame seeds | C28: 2.00 | D28: g | E28: 100% | F28: 2.00 | G28: =IF($B28="","",IFERROR(INDEX(Ingredients_DB!$K$2:$K$501, MATCH($B28, Ingredients_DB!$B$2:$B$501,0)),0)) -> $0.01 | H28: $0.02 | I28: Bun topping (optional) | O28: =IF($B28="","",IFERROR(INDEX(Ingredients_DB!$H$2:$H$501, MATCH($B28, Ingredients_DB!$B$2:$B$501,0)),"")) -> Weight | P28: =IF($B28="","",IFERROR(INDEX(Ingredients_DB!$I$2:$I$501, MATCH($B28, Ingredients_DB!$B$2:$B$501,0)),"")) -> g | Q28: =IF($B28="","",IFERROR(VLOOKUP($O28&"|"&$D28,UOM_Conversions!$A$2:$E$50,4,FALSE),"CHECK UNIT")) -> 1 | R28: =IF($B28="","",IFERROR(INDEX(Ingredients_DB!$M$2:$M$501, MATCH($B28, Ingredients_DB!$B$2:$B$501,0)),0)) -> 0 | S28: =IF($B28="","",IFERROR(INDEX(Ingredients_DB!$N$2:$N$501, MATCH($B28, Ingredients_DB!$B$2:$B$501,0)),0)) -> 0 | T28: =IF($B28="","",IFERROR(INDEX(Ingredients_DB!$O$2:$O$501, MATCH($B28, Ingredients_DB!$B$2:$B$501,0)),0)) -> 0 | U28: =IF($B28="","",IFERROR(INDEX(Ingredients_DB!$P$2:$P$501, MATCH($B28, Ingredients_DB!$B$2:$B$501,0)),0)) -> 0 | V28: =IF($B28="","",IFERROR(INDEX(Ingredients_DB!$Q$2:$Q$501, MATCH($B28, Ingredients_DB!$B$2:$B$501,0)),0)) -> 0 | W28: =IF($B28="","",IFERROR(INDEX(Ingredients_DB!$R$2:$R$501, MATCH($B28, Ingredients_DB!$B$2:$B$501,0)),0)) -> 0 | X28: =IF($B28="","",IFERROR(INDEX(Ingredients_DB!$S$2:$S$501, MATCH($B28, Ingredients_DB!$B$2:$B$501,0)),0)) -> 0 | Y28: =IF($B28="","",IFERROR(INDEX(Ingredients_DB!$T$2:$T$501, MATCH($B28, Ingredients_DB!$B$2:$B$501,0)),0)) -> 0 | Z28: =IF($B28="","",IFERROR(INDEX(Ingredients_DB!$U$2:$U$501, MATCH($B28, Ingredients_DB!$B$2:$B$501,0)),0)) -> 0 | AA28: =IF($B28="","",IFERROR(INDEX(Ingredients_DB!$V$2:$V$501, MATCH($B28, Ingredients_DB!$B$2:$B$501,0)),0)) -> 1 | AB28: =IF($B28="","",IFERROR(INDEX(Ingredients_DB!$W$2:$W$501, MATCH($B28, Ingredients_DB!$B$2:$B$501,0)),0)) -> 0 | AC28: =IF($B28="","",IFERROR(INDEX(Ingredients_DB!$X$2:$X$501, MATCH($B28, Ingredients_DB!$B$2:$B$501,0)),0)) -> 0 | AD28: =IF($B28="","",IFERROR(INDEX(Ingredients_DB!$Y$2:$Y$501, MATCH($B28, Ingredients_DB!$B$2:$B$501,0)),0)) -> 0 | AE28: =IF($B28="","",IFERROR(INDEX(Ingredients_DB!$Z$2:$Z$501, MATCH($B28, Ingredients_DB!$B$2:$B$501,0)),0)) -> 0
A29: 9 | C29: 0.00 | D29: g | G29: =IF($B29="","",IFERROR(INDEX(Ingredients_DB!$K$2:$K$501, MATCH($B29, Ingredients_DB!$B$2:$B$501,0)),0)) ->  | O29: =IF($B29="","",IFERROR(INDEX(Ingredients_DB!$H$2:$H$501, MATCH($B29, Ingredients_DB!$B$2:$B$501,0)),"")) ->  | P29: =IF($B29="","",IFERROR(INDEX(Ingredients_DB!$I$2:$I$501, MATCH($B29, Ingredients_DB!$B$2:$B$501,0)),"")) ->  | Q29: =IF($B29="","",IFERROR(VLOOKUP($O29&"|"&$D29,UOM_Conversions!$A$2:$E$50,4,FALSE),"CHECK UNIT")) ->  | R29: =IF($B29="","",IFERROR(INDEX(Ingredients_DB!$M$2:$M$501, MATCH($B29, Ingredients_DB!$B$2:$B$501,0)),0)) ->  | S29: =IF($B29="","",IFERROR(INDEX(Ingredients_DB!$N$2:$N$501, MATCH($B29, Ingredients_DB!$B$2:$B$501,0)),0)) ->  | T29: =IF($B29="","",IFERROR(INDEX(Ingredients_DB!$O$2:$O$501, MATCH($B29, Ingredients_DB!$B$2:$B$501,0)),0)) ->  | U29: =IF($B29="","",IFERROR(INDEX(Ingredients_DB!$P$2:$P$501, MATCH($B29, Ingredients_DB!$B$2:$B$501,0)),0)) ->  | V29: =IF($B29="","",IFERROR(INDEX(Ingredients_DB!$Q$2:$Q$501, MATCH($B29, Ingredients_DB!$B$2:$B$501,0)),0)) ->  | W29: =IF($B29="","",IFERROR(INDEX(Ingredients_DB!$R$2:$R$501, MATCH($B29, Ingredients_DB!$B$2:$B$501,0)),0)) ->  | X29: =IF($B29="","",IFERROR(INDEX(Ingredients_DB!$S$2:$S$501, MATCH($B29, Ingredients_DB!$B$2:$B$501,0)),0)) ->  | Y29: =IF($B29="","",IFERROR(INDEX(Ingredients_DB!$T$2:$T$501, MATCH($B29, Ingredients_DB!$B$2:$B$501,0)),0)) ->  | Z29: =IF($B29="","",IFERROR(INDEX(Ingredients_DB!$U$2:$U$501, MATCH($B29, Ingredients_DB!$B$2:$B$501,0)),0)) ->  | AA29: =IF($B29="","",IFERROR(INDEX(Ingredients_DB!$V$2:$V$501, MATCH($B29, Ingredients_DB!$B$2:$B$501,0)),0)) ->  | AB29: =IF($B29="","",IFERROR(INDEX(Ingredients_DB!$W$2:$W$501, MATCH($B29, Ingredients_DB!$B$2:$B$501,0)),0)) ->  | AC29: =IF($B29="","",IFERROR(INDEX(Ingredients_DB!$X$2:$X$501, MATCH($B29, Ingredients_DB!$B$2:$B$501,0)),0)) ->  | AD29: =IF($B29="","",IFERROR(INDEX(Ingredients_DB!$Y$2:$Y$501, MATCH($B29, Ingredients_DB!$B$2:$B$501,0)),0)) ->  | AE29: =IF($B29="","",IFERROR(INDEX(Ingredients_DB!$Z$2:$Z$501, MATCH($B29, Ingredients_DB!$B$2:$B$501,0)),0)) -> 
A30: 10 | C30: 0.00 | D30: g | G30: =IF($B30="","",IFERROR(INDEX(Ingredients_DB!$K$2:$K$501, MATCH($B30, Ingredients_DB!$B$2:$B$501,0)),0)) ->  | O30: =IF($B30="","",IFERROR(INDEX(Ingredients_DB!$H$2:$H$501, MATCH($B30, Ingredients_DB!$B$2:$B$501,0)),"")) ->  | P30: =IF($B30="","",IFERROR(INDEX(Ingredients_DB!$I$2:$I$501, MATCH($B30, Ingredients_DB!$B$2:$B$501,0)),"")) ->  | Q30: =IF($B30="","",IFERROR(VLOOKUP($O30&"|"&$D30,UOM_Conversions!$A$2:$E$50,4,FALSE),"CHECK UNIT")) ->  | R30: =IF($B30="","",IFERROR(INDEX(Ingredients_DB!$M$2:$M$501, MATCH($B30, Ingredients_DB!$B$2:$B$501,0)),0)) ->  | S30: =IF($B30="","",IFERROR(INDEX(Ingredients_DB!$N$2:$N$501, MATCH($B30, Ingredients_DB!$B$2:$B$501,0)),0)) ->  | T30: =IF($B30="","",IFERROR(INDEX(Ingredients_DB!$O$2:$O$501, MATCH($B30, Ingredients_DB!$B$2:$B$501,0)),0)) ->  | U30: =IF($B30="","",IFERROR(INDEX(Ingredients_DB!$P$2:$P$501, MATCH($B30, Ingredients_DB!$B$2:$B$501,0)),0)) ->  | V30: =IF($B30="","",IFERROR(INDEX(Ingredients_DB!$Q$2:$Q$501, MATCH($B30, Ingredients_DB!$B$2:$B$501,0)),0)) ->  | W30: =IF($B30="","",IFERROR(INDEX(Ingredients_DB!$R$2:$R$501, MATCH($B30, Ingredients_DB!$B$2:$B$501,0)),0)) ->  | X30: =IF($B30="","",IFERROR(INDEX(Ingredients_DB!$S$2:$S$501, MATCH($B30, Ingredients_DB!$B$2:$B$501,0)),0)) ->  | Y30: =IF($B30="","",IFERROR(INDEX(Ingredients_DB!$T$2:$T$501, MATCH($B30, Ingredients_DB!$B$2:$B$501,0)),0)) ->  | Z30: =IF($B30="","",IFERROR(INDEX(Ingredients_DB!$U$2:$U$501, MATCH($B30, Ingredients_DB!$B$2:$B$501,0)),0)) ->  | AA30: =IF($B30="","",IFERROR(INDEX(Ingredients_DB!$V$2:$V$501, MATCH($B30, Ingredients_DB!$B$2:$B$501,0)),0)) ->  | AB30: =IF($B30="","",IFERROR(INDEX(Ingredients_DB!$W$2:$W$501, MATCH($B30, Ingredients_DB!$B$2:$B$501,0)),0)) ->  | AC30: =IF($B30="","",IFERROR(INDEX(Ingredients_DB!$X$2:$X$501, MATCH($B30, Ingredients_DB!$B$2:$B$501,0)),0)) ->  | AD30: =IF($B30="","",IFERROR(INDEX(Ingredients_DB!$Y$2:$Y$501, MATCH($B30, Ingredients_DB!$B$2:$B$501,0)),0)) ->  | AE30: =IF($B30="","",IFERROR(INDEX(Ingredients_DB!$Z$2:$Z$501, MATCH($B30, Ingredients_DB!$B$2:$B$501,0)),0)) -> 
A31: 11 | C31: 0.00 | D31: g | G31: =IF($B31="","",IFERROR(INDEX(Ingredients_DB!$K$2:$K$501, MATCH($B31, Ingredients_DB!$B$2:$B$501,0)),0)) ->  | O31: =IF($B31="","",IFERROR(INDEX(Ingredients_DB!$H$2:$H$501, MATCH($B31, Ingredients_DB!$B$2:$B$501,0)),"")) ->  | P31: =IF($B31="","",IFERROR(INDEX(Ingredients_DB!$I$2:$I$501, MATCH($B31, Ingredients_DB!$B$2:$B$501,0)),"")) ->  | Q31: =IF($B31="","",IFERROR(VLOOKUP($O31&"|"&$D31,UOM_Conversions!$A$2:$E$50,4,FALSE),"CHECK UNIT")) ->  | R31: =IF($B31="","",IFERROR(INDEX(Ingredients_DB!$M$2:$M$501, MATCH($B31, Ingredients_DB!$B$2:$B$501,0)),0)) ->  | S31: =IF($B31="","",IFERROR(INDEX(Ingredients_DB!$N$2:$N$501, MATCH($B31, Ingredients_DB!$B$2:$B$501,0)),0)) ->  | T31: =IF($B31="","",IFERROR(INDEX(Ingredients_DB!$O$2:$O$501, MATCH($B31, Ingredients_DB!$B$2:$B$501,0)),0)) ->  | U31: =IF($B31="","",IFERROR(INDEX(Ingredients_DB!$P$2:$P$501, MATCH($B31, Ingredients_DB!$B$2:$B$501,0)),0)) ->  | V31: =IF($B31="","",IFERROR(INDEX(Ingredients_DB!$Q$2:$Q$501, MATCH($B31, Ingredients_DB!$B$2:$B$501,0)),0)) ->  | W31: =IF($B31="","",IFERROR(INDEX(Ingredients_DB!$R$2:$R$501, MATCH($B31, Ingredients_DB!$B$2:$B$501,0)),0)) ->  | X31: =IF($B31="","",IFERROR(INDEX(Ingredients_DB!$S$2:$S$501, MATCH($B31, Ingredients_DB!$B$2:$B$501,0)),0)) ->  | Y31: =IF($B31="","",IFERROR(INDEX(Ingredients_DB!$T$2:$T$501, MATCH($B31, Ingredients_DB!$B$2:$B$501,0)),0)) ->  | Z31: =IF($B31="","",IFERROR(INDEX(Ingredients_DB!$U$2:$U$501, MATCH($B31, Ingredients_DB!$B$2:$B$501,0)),0)) ->  | AA31: =IF($B31="","",IFERROR(INDEX(Ingredients_DB!$V$2:$V$501, MATCH($B31, Ingredients_DB!$B$2:$B$501,0)),0)) ->  | AB31: =IF($B31="","",IFERROR(INDEX(Ingredients_DB!$W$2:$W$501, MATCH($B31, Ingredients_DB!$B$2:$B$501,0)),0)) ->  | AC31: =IF($B31="","",IFERROR(INDEX(Ingredients_DB!$X$2:$X$501, MATCH($B31, Ingredients_DB!$B$2:$B$501,0)),0)) ->  | AD31: =IF($B31="","",IFERROR(INDEX(Ingredients_DB!$Y$2:$Y$501, MATCH($B31, Ingredients_DB!$B$2:$B$501,0)),0)) ->  | AE31: =IF($B31="","",IFERROR(INDEX(Ingredients_DB!$Z$2:$Z$501, MATCH($B31, Ingredients_DB!$B$2:$B$501,0)),0)) -> 
A32: 12 | C32: 0.00 | D32: g | G32: =IF($B32="","",IFERROR(INDEX(Ingredients_DB!$K$2:$K$501, MATCH($B32, Ingredients_DB!$B$2:$B$501,0)),0)) ->  | O32: =IF($B32="","",IFERROR(INDEX(Ingredients_DB!$H$2:$H$501, MATCH($B32, Ingredients_DB!$B$2:$B$501,0)),"")) ->  | P32: =IF($B32="","",IFERROR(INDEX(Ingredients_DB!$I$2:$I$501, MATCH($B32, Ingredients_DB!$B$2:$B$501,0)),"")) ->  | Q32: =IF($B32="","",IFERROR(VLOOKUP($O32&"|"&$D32,UOM_Conversions!$A$2:$E$50,4,FALSE),"CHECK UNIT")) ->  | R32: =IF($B32="","",IFERROR(INDEX(Ingredients_DB!$M$2:$M$501, MATCH($B32, Ingredients_DB!$B$2:$B$501,0)),0)) ->  | S32: =IF($B32="","",IFERROR(INDEX(Ingredients_DB!$N$2:$N$501, MATCH($B32, Ingredients_DB!$B$2:$B$501,0)),0)) ->  | T32: =IF($B32="","",IFERROR(INDEX(Ingredients_DB!$O$2:$O$501, MATCH($B32, Ingredients_DB!$B$2:$B$501,0)),0)) ->  | U32: =IF($B32="","",IFERROR(INDEX(Ingredients_DB!$P$2:$P$501, MATCH($B32, Ingredients_DB!$B$2:$B$501,0)),0)) ->  | V32: =IF($B32="","",IFERROR(INDEX(Ingredients_DB!$Q$2:$Q$501, MATCH($B32, Ingredients_DB!$B$2:$B$501,0)),0)) ->  | W32: =IF($B32="","",IFERROR(INDEX(Ingredients_DB!$R$2:$R$501, MATCH($B32, Ingredients_DB!$B$2:$B$501,0)),0)) ->  | X32: =IF($B32="","",IFERROR(INDEX(Ingredients_DB!$S$2:$S$501, MATCH($B32, Ingredients_DB!$B$2:$B$501,0)),0)) ->  | Y32: =IF($B32="","",IFERROR(INDEX(Ingredients_DB!$T$2:$T$501, MATCH($B32, Ingredients_DB!$B$2:$B$501,0)),0)) ->  | Z32: =IF($B32="","",IFERROR(INDEX(Ingredients_DB!$U$2:$U$501, MATCH($B32, Ingredients_DB!$B$2:$B$501,0)),0)) ->  | AA32: =IF($B32="","",IFERROR(INDEX(Ingredients_DB!$V$2:$V$501, MATCH($B32, Ingredients_DB!$B$2:$B$501,0)),0)) ->  | AB32: =IF($B32="","",IFERROR(INDEX(Ingredients_DB!$W$2:$W$501, MATCH($B32, Ingredients_DB!$B$2:$B$501,0)),0)) ->  | AC32: =IF($B32="","",IFERROR(INDEX(Ingredients_DB!$X$2:$X$501, MATCH($B32, Ingredients_DB!$B$2:$B$501,0)),0)) ->  | AD32: =IF($B32="","",IFERROR(INDEX(Ingredients_DB!$Y$2:$Y$501, MATCH($B32, Ingredients_DB!$B$2:$B$501,0)),0)) ->  | AE32: =IF($B32="","",IFERROR(INDEX(Ingredients_DB!$Z$2:$Z$501, MATCH($B32, Ingredients_DB!$B$2:$B$501,0)),0)) -> 
A33: 13 | C33: 0.00 | D33: g | G33: =IF($B33="","",IFERROR(INDEX(Ingredients_DB!$K$2:$K$501, MATCH($B33, Ingredients_DB!$B$2:$B$501,0)),0)) ->  | O33: =IF($B33="","",IFERROR(INDEX(Ingredients_DB!$H$2:$H$501, MATCH($B33, Ingredients_DB!$B$2:$B$501,0)),"")) ->  | P33: =IF($B33="","",IFERROR(INDEX(Ingredients_DB!$I$2:$I$501, MATCH($B33, Ingredients_DB!$B$2:$B$501,0)),"")) ->  | Q33: =IF($B33="","",IFERROR(VLOOKUP($O33&"|"&$D33,UOM_Conversions!$A$2:$E$50,4,FALSE),"CHECK UNIT")) ->  | R33: =IF($B33="","",IFERROR(INDEX(Ingredients_DB!$M$2:$M$501, MATCH($B33, Ingredients_DB!$B$2:$B$501,0)),0)) ->  | S33: =IF($B33="","",IFERROR(INDEX(Ingredients_DB!$N$2:$N$501, MATCH($B33, Ingredients_DB!$B$2:$B$501,0)),0)) ->  | T33: =IF($B33="","",IFERROR(INDEX(Ingredients_DB!$O$2:$O$501, MATCH($B33, Ingredients_DB!$B$2:$B$501,0)),0)) ->  | U33: =IF($B33="","",IFERROR(INDEX(Ingredients_DB!$P$2:$P$501, MATCH($B33, Ingredients_DB!$B$2:$B$501,0)),0)) ->  | V33: =IF($B33="","",IFERROR(INDEX(Ingredients_DB!$Q$2:$Q$501, MATCH($B33, Ingredients_DB!$B$2:$B$501,0)),0)) ->  | W33: =IF($B33="","",IFERROR(INDEX(Ingredients_DB!$R$2:$R$501, MATCH($B33, Ingredients_DB!$B$2:$B$501,0)),0)) ->  | X33: =IF($B33="","",IFERROR(INDEX(Ingredients_DB!$S$2:$S$501, MATCH($B33, Ingredients_DB!$B$2:$B$501,0)),0)) ->  | Y33: =IF($B33="","",IFERROR(INDEX(Ingredients_DB!$T$2:$T$501, MATCH($B33, Ingredients_DB!$B$2:$B$501,0)),0)) ->  | Z33: =IF($B33="","",IFERROR(INDEX(Ingredients_DB!$U$2:$U$501, MATCH($B33, Ingredients_DB!$B$2:$B$501,0)),0)) ->  | AA33: =IF($B33="","",IFERROR(INDEX(Ingredients_DB!$V$2:$V$501, MATCH($B33, Ingredients_DB!$B$2:$B$501,0)),0)) ->  | AB33: =IF($B33="","",IFERROR(INDEX(Ingredients_DB!$W$2:$W$501, MATCH($B33, Ingredients_DB!$B$2:$B$501,0)),0)) ->  | AC33: =IF($B33="","",IFERROR(INDEX(Ingredients_DB!$X$2:$X$501, MATCH($B33, Ingredients_DB!$B$2:$B$501,0)),0)) ->  | AD33: =IF($B33="","",IFERROR(INDEX(Ingredients_DB!$Y$2:$Y$501, MATCH($B33, Ingredients_DB!$B$2:$B$501,0)),0)) ->  | AE33: =IF($B33="","",IFERROR(INDEX(Ingredients_DB!$Z$2:$Z$501, MATCH($B33, Ingredients_DB!$B$2:$B$501,0)),0)) -> 
A34: 14 | C34: 0.00 | D34: g | G34: =IF($B34="","",IFERROR(INDEX(Ingredients_DB!$K$2:$K$501, MATCH($B34, Ingredients_DB!$B$2:$B$501,0)),0)) ->  | O34: =IF($B34="","",IFERROR(INDEX(Ingredients_DB!$H$2:$H$501, MATCH($B34, Ingredients_DB!$B$2:$B$501,0)),"")) ->  | P34: =IF($B34="","",IFERROR(INDEX(Ingredients_DB!$I$2:$I$501, MATCH($B34, Ingredients_DB!$B$2:$B$501,0)),"")) ->  | Q34: =IF($B34="","",IFERROR(VLOOKUP($O34&"|"&$D34,UOM_Conversions!$A$2:$E$50,4,FALSE),"CHECK UNIT")) ->  | R34: =IF($B34="","",IFERROR(INDEX(Ingredients_DB!$M$2:$M$501, MATCH($B34, Ingredients_DB!$B$2:$B$501,0)),0)) ->  | S34: =IF($B34="","",IFERROR(INDEX(Ingredients_DB!$N$2:$N$501, MATCH($B34, Ingredients_DB!$B$2:$B$501,0)),0)) ->  | T34: =IF($B34="","",IFERROR(INDEX(Ingredients_DB!$O$2:$O$501, MATCH($B34, Ingredients_DB!$B$2:$B$501,0)),0)) ->  | U34: =IF($B34="","",IFERROR(INDEX(Ingredients_DB!$P$2:$P$501, MATCH($B34, Ingredients_DB!$B$2:$B$501,0)),0)) ->  | V34: =IF($B34="","",IFERROR(INDEX(Ingredients_DB!$Q$2:$Q$501, MATCH($B34, Ingredients_DB!$B$2:$B$501,0)),0)) ->  | W34: =IF($B34="","",IFERROR(INDEX(Ingredients_DB!$R$2:$R$501, MATCH($B34, Ingredients_DB!$B$2:$B$501,0)),0)) ->  | X34: =IF($B34="","",IFERROR(INDEX(Ingredients_DB!$S$2:$S$501, MATCH($B34, Ingredients_DB!$B$2:$B$501,0)),0)) ->  | Y34: =IF($B34="","",IFERROR(INDEX(Ingredients_DB!$T$2:$T$501, MATCH($B34, Ingredients_DB!$B$2:$B$501,0)),0)) ->  | Z34: =IF($B34="","",IFERROR(INDEX(Ingredients_DB!$U$2:$U$501, MATCH($B34, Ingredients_DB!$B$2:$B$501,0)),0)) ->  | AA34: =IF($B34="","",IFERROR(INDEX(Ingredients_DB!$V$2:$V$501, MATCH($B34, Ingredients_DB!$B$2:$B$501,0)),0)) ->  | AB34: =IF($B34="","",IFERROR(INDEX(Ingredients_DB!$W$2:$W$501, MATCH($B34, Ingredients_DB!$B$2:$B$501,0)),0)) ->  | AC34: =IF($B34="","",IFERROR(INDEX(Ingredients_DB!$X$2:$X$501, MATCH($B34, Ingredients_DB!$B$2:$B$501,0)),0)) ->  | AD34: =IF($B34="","",IFERROR(INDEX(Ingredients_DB!$Y$2:$Y$501, MATCH($B34, Ingredients_DB!$B$2:$B$501,0)),0)) ->  | AE34: =IF($B34="","",IFERROR(INDEX(Ingredients_DB!$Z$2:$Z$501, MATCH($B34, Ingredients_DB!$B$2:$B$501,0)),0)) -> 
A35: 15 | C35: 0.00 | D35: g | G35: =IF($B35="","",IFERROR(INDEX(Ingredients_DB!$K$2:$K$501, MATCH($B35, Ingredients_DB!$B$2:$B$501,0)),0)) ->  | O35: =IF($B35="","",IFERROR(INDEX(Ingredients_DB!$H$2:$H$501, MATCH($B35, Ingredients_DB!$B$2:$B$501,0)),"")) ->  | P35: =IF($B35="","",IFERROR(INDEX(Ingredients_DB!$I$2:$I$501, MATCH($B35, Ingredients_DB!$B$2:$B$501,0)),"")) ->  | Q35: =IF($B35="","",IFERROR(VLOOKUP($O35&"|"&$D35,UOM_Conversions!$A$2:$E$50,4,FALSE),"CHECK UNIT")) ->  | R35: =IF($B35="","",IFERROR(INDEX(Ingredients_DB!$M$2:$M$501, MATCH($B35, Ingredients_DB!$B$2:$B$501,0)),0)) ->  | S35: =IF($B35="","",IFERROR(INDEX(Ingredients_DB!$N$2:$N$501, MATCH($B35, Ingredients_DB!$B$2:$B$501,0)),0)) ->  | T35: =IF($B35="","",IFERROR(INDEX(Ingredients_DB!$O$2:$O$501, MATCH($B35, Ingredients_DB!$B$2:$B$501,0)),0)) ->  | U35: =IF($B35="","",IFERROR(INDEX(Ingredients_DB!$P$2:$P$501, MATCH($B35, Ingredients_DB!$B$2:$B$501,0)),0)) ->  | V35: =IF($B35="","",IFERROR(INDEX(Ingredients_DB!$Q$2:$Q$501, MATCH($B35, Ingredients_DB!$B$2:$B$501,0)),0)) ->  | W35: =IF($B35="","",IFERROR(INDEX(Ingredients_DB!$R$2:$R$501, MATCH($B35, Ingredients_DB!$B$2:$B$501,0)),0)) ->  | X35: =IF($B35="","",IFERROR(INDEX(Ingredients_DB!$S$2:$S$501, MATCH($B35, Ingredients_DB!$B$2:$B$501,0)),0)) ->  | Y35: =IF($B35="","",IFERROR(INDEX(Ingredients_DB!$T$2:$T$501, MATCH($B35, Ingredients_DB!$B$2:$B$501,0)),0)) ->  | Z35: =IF($B35="","",IFERROR(INDEX(Ingredients_DB!$U$2:$U$501, MATCH($B35, Ingredients_DB!$B$2:$B$501,0)),0)) ->  | AA35: =IF($B35="","",IFERROR(INDEX(Ingredients_DB!$V$2:$V$501, MATCH($B35, Ingredients_DB!$B$2:$B$501,0)),0)) ->  | AB35: =IF($B35="","",IFERROR(INDEX(Ingredients_DB!$W$2:$W$501, MATCH($B35, Ingredients_DB!$B$2:$B$501,0)),0)) ->  | AC35: =IF($B35="","",IFERROR(INDEX(Ingredients_DB!$X$2:$X$501, MATCH($B35, Ingredients_DB!$B$2:$B$501,0)),0)) ->  | AD35: =IF($B35="","",IFERROR(INDEX(Ingredients_DB!$Y$2:$Y$501, MATCH($B35, Ingredients_DB!$B$2:$B$501,0)),0)) ->  | AE35: =IF($B35="","",IFERROR(INDEX(Ingredients_DB!$Z$2:$Z$501, MATCH($B35, Ingredients_DB!$B$2:$B$501,0)),0)) -> 
A36: 16 | C36: 0.00 | D36: g | G36: =IF($B36="","",IFERROR(INDEX(Ingredients_DB!$K$2:$K$501, MATCH($B36, Ingredients_DB!$B$2:$B$501,0)),0)) ->  | O36: =IF($B36="","",IFERROR(INDEX(Ingredients_DB!$H$2:$H$501, MATCH($B36, Ingredients_DB!$B$2:$B$501,0)),"")) ->  | P36: =IF($B36="","",IFERROR(INDEX(Ingredients_DB!$I$2:$I$501, MATCH($B36, Ingredients_DB!$B$2:$B$501,0)),"")) ->  | Q36: =IF($B36="","",IFERROR(VLOOKUP($O36&"|"&$D36,UOM_Conversions!$A$2:$E$50,4,FALSE),"CHECK UNIT")) ->  | R36: =IF($B36="","",IFERROR(INDEX(Ingredients_DB!$M$2:$M$501, MATCH($B36, Ingredients_DB!$B$2:$B$501,0)),0)) ->  | S36: =IF($B36="","",IFERROR(INDEX(Ingredients_DB!$N$2:$N$501, MATCH($B36, Ingredients_DB!$B$2:$B$501,0)),0)) ->  | T36: =IF($B36="","",IFERROR(INDEX(Ingredients_DB!$O$2:$O$501, MATCH($B36, Ingredients_DB!$B$2:$B$501,0)),0)) ->  | U36: =IF($B36="","",IFERROR(INDEX(Ingredients_DB!$P$2:$P$501, MATCH($B36, Ingredients_DB!$B$2:$B$501,0)),0)) ->  | V36: =IF($B36="","",IFERROR(INDEX(Ingredients_DB!$Q$2:$Q$501, MATCH($B36, Ingredients_DB!$B$2:$B$501,0)),0)) ->  | W36: =IF($B36="","",IFERROR(INDEX(Ingredients_DB!$R$2:$R$501, MATCH($B36, Ingredients_DB!$B$2:$B$501,0)),0)) ->  | X36: =IF($B36="","",IFERROR(INDEX(Ingredients_DB!$S$2:$S$501, MATCH($B36, Ingredients_DB!$B$2:$B$501,0)),0)) ->  | Y36: =IF($B36="","",IFERROR(INDEX(Ingredients_DB!$T$2:$T$501, MATCH($B36, Ingredients_DB!$B$2:$B$501,0)),0)) ->  | Z36: =IF($B36="","",IFERROR(INDEX(Ingredients_DB!$U$2:$U$501, MATCH($B36, Ingredients_DB!$B$2:$B$501,0)),0)) ->  | AA36: =IF($B36="","",IFERROR(INDEX(Ingredients_DB!$V$2:$V$501, MATCH($B36, Ingredients_DB!$B$2:$B$501,0)),0)) ->  | AB36: =IF($B36="","",IFERROR(INDEX(Ingredients_DB!$W$2:$W$501, MATCH($B36, Ingredients_DB!$B$2:$B$501,0)),0)) ->  | AC36: =IF($B36="","",IFERROR(INDEX(Ingredients_DB!$X$2:$X$501, MATCH($B36, Ingredients_DB!$B$2:$B$501,0)),0)) ->  | AD36: =IF($B36="","",IFERROR(INDEX(Ingredients_DB!$Y$2:$Y$501, MATCH($B36, Ingredients_DB!$B$2:$B$501,0)),0)) ->  | AE36: =IF($B36="","",IFERROR(INDEX(Ingredients_DB!$Z$2:$Z$501, MATCH($B36, Ingredients_DB!$B$2:$B$501,0)),0)) -> 
A37: 17 | C37: 0.00 | D37: g | G37: =IF($B37="","",IFERROR(INDEX(Ingredients_DB!$K$2:$K$501, MATCH($B37, Ingredients_DB!$B$2:$B$501,0)),0)) ->  | O37: =IF($B37="","",IFERROR(INDEX(Ingredients_DB!$H$2:$H$501, MATCH($B37, Ingredients_DB!$B$2:$B$501,0)),"")) ->  | P37: =IF($B37="","",IFERROR(INDEX(Ingredients_DB!$I$2:$I$501, MATCH($B37, Ingredients_DB!$B$2:$B$501,0)),"")) ->  | Q37: =IF($B37="","",IFERROR(VLOOKUP($O37&"|"&$D37,UOM_Conversions!$A$2:$E$50,4,FALSE),"CHECK UNIT")) ->  | R37: =IF($B37="","",IFERROR(INDEX(Ingredients_DB!$M$2:$M$501, MATCH($B37, Ingredients_DB!$B$2:$B$501,0)),0)) ->  | S37: =IF($B37="","",IFERROR(INDEX(Ingredients_DB!$N$2:$N$501, MATCH($B37, Ingredients_DB!$B$2:$B$501,0)),0)) ->  | T37: =IF($B37="","",IFERROR(INDEX(Ingredients_DB!$O$2:$O$501, MATCH($B37, Ingredients_DB!$B$2:$B$501,0)),0)) ->  | U37: =IF($B37="","",IFERROR(INDEX(Ingredients_DB!$P$2:$P$501, MATCH($B37, Ingredients_DB!$B$2:$B$501,0)),0)) ->  | V37: =IF($B37="","",IFERROR(INDEX(Ingredients_DB!$Q$2:$Q$501, MATCH($B37, Ingredients_DB!$B$2:$B$501,0)),0)) ->  | W37: =IF($B37="","",IFERROR(INDEX(Ingredients_DB!$R$2:$R$501, MATCH($B37, Ingredients_DB!$B$2:$B$501,0)),0)) ->  | X37: =IF($B37="","",IFERROR(INDEX(Ingredients_DB!$S$2:$S$501, MATCH($B37, Ingredients_DB!$B$2:$B$501,0)),0)) ->  | Y37: =IF($B37="","",IFERROR(INDEX(Ingredients_DB!$T$2:$T$501, MATCH($B37, Ingredients_DB!$B$2:$B$501,0)),0)) ->  | Z37: =IF($B37="","",IFERROR(INDEX(Ingredients_DB!$U$2:$U$501, MATCH($B37, Ingredients_DB!$B$2:$B$501,0)),0)) ->  | AA37: =IF($B37="","",IFERROR(INDEX(Ingredients_DB!$V$2:$V$501, MATCH($B37, Ingredients_DB!$B$2:$B$501,0)),0)) ->  | AB37: =IF($B37="","",IFERROR(INDEX(Ingredients_DB!$W$2:$W$501, MATCH($B37, Ingredients_DB!$B$2:$B$501,0)),0)) ->  | AC37: =IF($B37="","",IFERROR(INDEX(Ingredients_DB!$X$2:$X$501, MATCH($B37, Ingredients_DB!$B$2:$B$501,0)),0)) ->  | AD37: =IF($B37="","",IFERROR(INDEX(Ingredients_DB!$Y$2:$Y$501, MATCH($B37, Ingredients_DB!$B$2:$B$501,0)),0)) ->  | AE37: =IF($B37="","",IFERROR(INDEX(Ingredients_DB!$Z$2:$Z$501, MATCH($B37, Ingredients_DB!$B$2:$B$501,0)),0)) -> 
A38: 18 | C38: 0.00 | D38: g | G38: =IF($B38="","",IFERROR(INDEX(Ingredients_DB!$K$2:$K$501, MATCH($B38, Ingredients_DB!$B$2:$B$501,0)),0)) ->  | O38: =IF($B38="","",IFERROR(INDEX(Ingredients_DB!$H$2:$H$501, MATCH($B38, Ingredients_DB!$B$2:$B$501,0)),"")) ->  | P38: =IF($B38="","",IFERROR(INDEX(Ingredients_DB!$I$2:$I$501, MATCH($B38, Ingredients_DB!$B$2:$B$501,0)),"")) ->  | Q38: =IF($B38="","",IFERROR(VLOOKUP($O38&"|"&$D38,UOM_Conversions!$A$2:$E$50,4,FALSE),"CHECK UNIT")) ->  | R38: =IF($B38="","",IFERROR(INDEX(Ingredients_DB!$M$2:$M$501, MATCH($B38, Ingredients_DB!$B$2:$B$501,0)),0)) ->  | S38: =IF($B38="","",IFERROR(INDEX(Ingredients_DB!$N$2:$N$501, MATCH($B38, Ingredients_DB!$B$2:$B$501,0)),0)) ->  | T38: =IF($B38="","",IFERROR(INDEX(Ingredients_DB!$O$2:$O$501, MATCH($B38, Ingredients_DB!$B$2:$B$501,0)),0)) ->  | U38: =IF($B38="","",IFERROR(INDEX(Ingredients_DB!$P$2:$P$501, MATCH($B38, Ingredients_DB!$B$2:$B$501,0)),0)) ->  | V38: =IF($B38="","",IFERROR(INDEX(Ingredients_DB!$Q$2:$Q$501, MATCH($B38, Ingredients_DB!$B$2:$B$501,0)),0)) ->  | W38: =IF($B38="","",IFERROR(INDEX(Ingredients_DB!$R$2:$R$501, MATCH($B38, Ingredients_DB!$B$2:$B$501,0)),0)) ->  | X38: =IF($B38="","",IFERROR(INDEX(Ingredients_DB!$S$2:$S$501, MATCH($B38, Ingredients_DB!$B$2:$B$501,0)),0)) ->  | Y38: =IF($B38="","",IFERROR(INDEX(Ingredients_DB!$T$2:$T$501, MATCH($B38, Ingredients_DB!$B$2:$B$501,0)),0)) ->  | Z38: =IF($B38="","",IFERROR(INDEX(Ingredients_DB!$U$2:$U$501, MATCH($B38, Ingredients_DB!$B$2:$B$501,0)),0)) ->  | AA38: =IF($B38="","",IFERROR(INDEX(Ingredients_DB!$V$2:$V$501, MATCH($B38, Ingredients_DB!$B$2:$B$501,0)),0)) ->  | AB38: =IF($B38="","",IFERROR(INDEX(Ingredients_DB!$W$2:$W$501, MATCH($B38, Ingredients_DB!$B$2:$B$501,0)),0)) ->  | AC38: =IF($B38="","",IFERROR(INDEX(Ingredients_DB!$X$2:$X$501, MATCH($B38, Ingredients_DB!$B$2:$B$501,0)),0)) ->  | AD38: =IF($B38="","",IFERROR(INDEX(Ingredients_DB!$Y$2:$Y$501, MATCH($B38, Ingredients_DB!$B$2:$B$501,0)),0)) ->  | AE38: =IF($B38="","",IFERROR(INDEX(Ingredients_DB!$Z$2:$Z$501, MATCH($B38, Ingredients_DB!$B$2:$B$501,0)),0)) -> 
